Workbook

Sheet All years 2 bed (hidden)
B3: 2010 | C3: 2011 | D3: 2012 | E3: 2013 | F3: 2014 | G3: 2015 | H3: 2016 | I3: 2017
A4: Aberdeen and Shire | B4: ='Table 7'!$K6 -> 642.58 | C4: ='Table 8'!$K6 -> 670.81 | D4: ='Table 9'!$K6 -> 701.44 | E4: ='Table 10'!$K6 -> 819.48 | F4: ='Table 11'!$K6 -> 898.08 | G4: ='Table 12'!$K6 -> 873.8 | H4: ='Table 13'!$K6 -> 754.39 | I4: ='Table 14'!$K6 -> 681.97
A5: Argyll and Bute | B5: ='Table 7'!$K7 -> 503.03 | C5: ='Table 8'!$K7 -> 499.54 | D5: ='Table 9'!$K7 -> 508.31 | E5: ='Table 10'!$K7 -> 502.51 | F5: ='Table 11'!$K7 -> 495.44 | G5: ='Table 12'!$K7 -> 508.79 | H5: ='Table 13'!$K7 -> 524.75 | I5: ='Table 14'!$K7 -> 515.93
A6: Ayrshires | B6: ='Table 7'!$K8 -> 464.47 | C6: ='Table 8'!$K8 -> 469.47 | D6: ='Table 9'!$K8 -> 459.24 | E6: ='Table 10'!$K8 -> 469.51 | F6: ='Table 11'!$K8 -> 460.9 | G6: ='Table 12'!$K8 -> 460.63 | H6: ='Table 13'!$K8 -> 463.38 | I6: ='Table 14'!$K8 -> 466.59
A7: Dumfries and Galloway | B7: ='Table 7'!$K9 -> 435.12 | C7: ='Table 8'!$K9 -> 444.21 | D7: ='Table 9'!$K9 -> 443.75 | E7: ='Table 10'!$K9 -> 444.46 | F7: ='Table 11'!$K9 -> 442.14 | G7: ='Table 12'!$K9 -> 446.25 | H7: ='Table 13'!$K9 -> 446.89 | I7: ='Table 14'!$K9 -> 453.39
A8: Dundee and Angus | B8: ='Table 7'!$K10 -> 497.46 | C8: ='Table 8'!$K10 -> 520.5 | D8: ='Table 9'!$K10 -> 502.96 | E8: ='Table 10'!$K10 -> 515.07 | F8: ='Table 11'!$K10 -> 517.76 | G8: ='Table 12'!$K10 -> 530.9 | H8: ='Table 13'!$K10 -> 545.96 | I8: ='Table 14'!$K10 -> 554.96
A9: East Dunbartonshire | B9: ='Table 7'!$K11 -> 581.12 | C9: ='Table 8'!$K11 -> 571.97 | D9: ='Table 9'!$K11 -> 608.66 | E9: ='Table 10'!$K11 -> 587.11 | F9: ='Table 11'!$K11 -> 603.7 | G9: ='Table 12'!$K11 -> 610.75 | H9: ='Table 13'!$K11 -> 635.52 | I9: ='Table 14'!$K11 -> 653.4
A10: Fife | B10: ='Table 7'!$K12 -> 463.99 | C10: ='Table 8'!$K12 -> 476.96 | D10: ='Table 9'!$K12 -> 481.34 | E10: ='Table 10'!$K12 -> 485.39 | F10: ='Table 11'!$K12 -> 509.51 | G10: ='Table 12'!$K12 -> 497.96 | H10: ='Table 13'!$K12 -> 510.77 | I10: ='Table 14'!$K12 -> 533.29
A11: Forth Valley | B11: ='Table 7'!$K13 -> 492.41 | C11: ='Table 8'!$K13 -> 506.53 | D11: ='Table 9'!$K13 -> 510.32 | E11: ='Table 10'!$K13 -> 505.6 | F11: ='Table 11'!$K13 -> 506.37 | G11: ='Table 12'!$K13 -> 508.44 | H11: ='Table 13'!$K13 -> 529.72 | I11: ='Table 14'!$K13 -> 562.55
A12: Greater Glasgow | B12: ='Table 7'!$K14 -> 563.64 | C12: ='Table 8'!$K14 -> 588.05 | D12: ='Table 9'!$K14 -> 572.74 | E12: ='Table 10'!$K14 -> 593.71 | F12: ='Table 11'!$K14 -> 626.38 | G12: ='Table 12'!$K14 -> 667.74 | H12: ='Table 13'!$K14 -> 695.92 | I12: ='Table 14'!$K14 -> 744.8
A13: Highland and Islands | B13: ='Table 7'!$K15 -> 503.41 | C13: ='Table 8'!$K15 -> 513.76 | D13: ='Table 9'!$K15 -> 516.38 | E13: ='Table 10'!$K15 -> 527.24 | F13: ='Table 11'!$K15 -> 532.32 | G13: ='Table 12'!$K15 -> 544.55 | H13: ='Table 13'!$K15 -> 560.95 | I13: ='Table 14'!$K15 -> 575.09
A14: Lothian | B14: ='Table 7'!$K16 -> 664.51 | C14: ='Table 8'!$K16 -> 688.96 | D14: ='Table 9'!$K16 -> 699.53 | E14: ='Table 10'!$K16 -> 728.57 | F14: ='Table 11'!$K16 -> 779.12 | G14: ='Table 12'!$K16 -> 828.92 | H14: ='Table 13'!$K16 -> 830.97 | I14: ='Table 14'!$K16 -> 888.18
A15: North Lanarkshire | B15: ='Table 7'!$K17 -> 454.65 | C15: ='Table 8'!$K17 -> 463.08 | D15: ='Table 9'!$K17 -> 464.37 | E15: ='Table 10'!$K17 -> 463.09 | F15: ='Table 11'!$K17 -> 463.85 | G15: ='Table 12'!$K17 -> 474.83 | H15: ='Table 13'!$K17 -> 475.8 | I15: ='Table 14'!$K17 -> 480.25
A16: Perth and Kinross | B16: ='Table 7'!$K18 -> 506.44 | C16: ='Table 8'!$K18 -> 512.44 | D16: ='Table 9'!$K18 -> 504.82 | E16: ='Table 10'!$K18 -> 518.61 | F16: ='Table 11'!$K18 -> 520.45 | G16: ='Table 12'!$K18 -> 528.99 | H16: ='Table 13'!$K18 -> 539.95 | I16: ='Table 14'!$K18 -> 549.21
A17: Renfrewshire / Inverclyde | B17: ='Table 7'!$K19 -> 472.96 | C17: ='Table 8'!$K19 -> 477.94 | D17: ='Table 9'!$K19 -> 484.84 | E17: ='Table 10'!$K19 -> 480.45 | F17: ='Table 11'!$K19 -> 483 | G17: ='Table 12'!$K19 -> 488.37 | H17: ='Table 13'!$K19 -> 493.93 | I17: ='Table 14'!$K19 -> 507.56
A18: Scottish Borders | B18: ='Table 7'!$K20 -> 441.58 | C18: ='Table 8'!$K20 -> 446.24 | D18: ='Table 9'!$K20 -> 444.92 | E18: ='Table 10'!$K20 -> 443.86 | F18: ='Table 11'!$K20 -> 444.22 | G18: ='Table 12'!$K20 -> 443.93 | H18: ='Table 13'!$K20 -> 452.23 | I18: ='Table 14'!$K20 -> 458.64
A19: South Lanarkshire | B19: ='Table 7'!$K21 -> 480.55 | C19: ='Table 8'!$K21 -> 492.1 | D19: ='Table 9'!$K21 -> 485.26 | E19: ='Table 10'!$K21 -> 490.7 | F19: ='Table 11'!$K21 -> 494.06 | G19: ='Table 12'!$K21 -> 497.05 | H19: ='Table 13'!$K21 -> 500.05 | I19: ='Table 14'!$K21 -> 520.08
A20: West Dunbartonshire | B20: ='Table 7'!$K22 -> 492.17 | C20: ='Table 8'!$K22 -> 493.6 | D20: ='Table 9'!$K22 -> 493.9 | E20: ='Table 10'!$K22 -> 486.03 | F20: ='Table 11'!$K22 -> 479 | G20: ='Table 12'!$K22 -> 476.44 | H20: ='Table 13'!$K22 -> 498.22 | I20: ='Table 14'!$K22 -> 495.63
A21: West Lothian | B21: ='Table 7'!$K23 -> 527.37 | C21: ='Table 8'!$K23 -> 525.86 | D21: ='Table 9'!$K23 -> 527.74 | E21: ='Table 10'!$K23 -> 536.71 | F21: ='Table 11'!$K23 -> 542.6 | G21: ='Table 12'!$K23 -> 559.54 | H21: ='Table 13'!$K23 -> 577.8 | I21: ='Table 14'!$K23 -> 598.79
A22: Scotland averages | B22: ='Table 7'!$K5 -> 536.27 | C22: ='Table 8'!$K5 -> 546.42 | D22: ='Table 9'!$K5 -> 552.89 | E22: ='Table 10'!$K5 -> 575.84 | F22: ='Table 11'!$K5 -> 596.45 | G22: ='Table 12'!$K5 -> 609.52 | H22: ='Table 13'!$K5 -> 615.64 | I22: ='Table 14'!$K5 -> 642.8
A24: Aberdeen and Shire | C24: =(C4/B4)-1 -> 0.04393227302 | D24: =(D4/C4)-1 -> 0.04566121555 | E24: 0.1682823905 | F24: 0.09591448235 | G24: -0.02703545341 | H24: -0.1366559854 | I24: =(I4/H4)-1 -> -0.09599809117 | J24: =I24-H24 -> 0.04065789418
A25: Argyll and Bute | C25: =(C5/B5)-1 -> -0.006937955987 | D25: 0.01755615166 | E25: -0.01141035982 | F25: -0.01406937175 | G25: 0.0269457452 | H25: 0.03136854105 | I25: -0.01680800381 | J25: =I25-H25 -> -0.04817654486
A26: Ayrshires | C26: =(C6/B6)-1 -> 0.01076495791 | D26: -0.02179052975 | E26: 0.02236303458 | F26: -0.01833826756 | G26: -0.000585810371 | H26: 0.00597008445 | I26: 0.006927359834 | J26: 0.0009572753847
A27: Dumfries and Galloway | C27: =(C7/B7)-1 -> 0.02089078875 | D27: -0.001035546251 | E27: 0.0016 | F27: -0.005219817306 | G27: 0.009295698195 | H27: 0.001434173669 | I27: 0.01454496632 | J27: 0.01311079265
A28: Dundee and Angus | C28: =(C8/B8)-1 -> 0.04631528163 | D28: -0.03369836695 | E28: 0.02407746143 | F28: 0.005222591104 | G28: 0.02537855377 | H28: 0.02836692409 | I28: 0.01648472416 | J28: -0.01188219994
A29: East Dunbartonshire | C29: =(C9/B9)-1 -> -0.01574545705 | D29: 0.06414672098 | E29: -0.03540564519 | F29: 0.02825705575 | G29: 0.01167798575 | H29: 0.04055669259 | I29: 0.02813444109 | J29: -0.0124222515
A30: Fife | C30: =(C10/B10)-1 -> 0.02795318865 | D30: 0.009183160013 | E30: 0.008414010886 | F30: 0.04969200025 | G30: -0.02266883869 | H30: 0.02572495783 | I30: 0.04409029504 | J30: 0.01836533722
A31: Forth Valley | C31: =(C11/B11)-1 -> 0.02867529092 | D31: 0.007482281405 | E31: -0.009249098605 | F31: 0.001522943038 | G31: 0.0040879199 | H31: 0.04185351271 | I31: 0.06197613834 | J31: 0.02012262563
A32: Greater Glasgow | C32: =(C12/B12)-1 -> 0.04330778511 | D32: -0.02603520109 | E32: 0.03661347208 | F32: 0.05502686497 | G32: 0.06603020531 | H32: 0.04220205469 | I32: 0.07023795839 | J32: 0.02803590369
A33: Highland and Islands | C33: =(C13/B13)-1 -> 0.02055978228 | D33: 0.005099657428 | E33: 0.02103102366 | F33: 0.009635080798 | G33: 0.02297490231 | H33: 0.03011661004 | I33: 0.02520723772 | J33: -0.004909372323
A34: Lothian | C34: =(C14/B14)-1 -> 0.03679402868 | D34: 0.0153419647 | E34: 0.04151358769 | F34: 0.06938248899 | G34: 0.06391826676 | H34: 0.002473097524 | I34: 0.0688472508 | J34: 0.06637415328
A35: North Lanarkshire | C35: =(C15/B15)-1 -> 0.0185417354 | D35: 0.002785695776 | E35: -0.00275642268 | F35: 0.001641149669 | G35: 0.02367144551 | H35: 0.002042836384 | I35: 0.009352669189 | J35: 0.007309832805
A36: Perth and Kinross | C36: =(C16/B16)-1 -> 0.01184740542 | D36: -0.01487003356 | E36: 0.02731666733 | F36: 0.00354794547 | G36: 0.01640887693 | H36: 0.02071872814 | I36: 0.01714973609 | J36: -0.003568992056
A37: Renfrewshire / Inverclyde | C37: =(C17/B17)-1 -> 0.01052943166 | D37: 0.01443695861 | E37: -0.009054533454 | F37: 0.005307524196 | G37: 0.01111801242 | H37: 0.0113848107 | I37: 0.02759500334 | J37: 0.01621019264
A38: Scottish Borders | C38: =(C18/B18)-1 -> 0.01055301418 | D38: -0.00295804948 | E38: -0.002382450778 | F38: 0.0008110665525 | G38: -0.000652829679 | H38: 0.01869664136 | I38: 0.01417420339 | J38: -0.00452243797
A39: South Lanarkshire | C39: =(C19/B19)-1 -> 0.02403495994 | D39: -0.0138996139 | E39: 0.0112104851 | F39: 0.006847360913 | G39: 0.006051896531 | H39: 0.0060356101 | I39: 0.0400559944 | J39: 0.0340203843
A40: West Dunbartonshire | C40: =(C20/B20)-1 -> 0.002905500132 | D40: 0.0006077795786 | E40: -0.01593439968 | F40: -0.01446412773 | G40: -0.005344467641 | H40: 0.04571404584 | I40: -0.005198506684 | J40: -0.05091255252
A41: West Lothian | C41: =(C21/B21)-1 -> -0.00286326488 | D41: 0.003575096033 | E41: 0.0169970061 | F41: 0.01097426916 | G41: 0.0312200516 | H41: 0.03263394932 | I41: 0.03632744894 | J41: 0.003693499629
A42: Scotland averages | C42: =(C22/B22)-1 -> 0.01892703302 | D42: 0.01184070861 | E42: 0.04150916095 | F42: 0.035791192 | G42: 0.02191298516 | H42: 0.01004068775 | I42: 0.04411669157 | J42: 0.03407600382

Sheet Summary table (hidden)
A1: Change in average rents from 2016 to 2017 | H1: Change in average rents from 2010 to 2017
D2: Number of bedrooms | K2: Number of bedrooms
B3: 1 | C3: 2 | D3: 3 | E3: 4 | F3: 1, shared | I3: 1 | J3: 2 | K3: 3 | L3: 4 | M3: 1, shared
A4: Aberdeen and Shire | B4: =VLOOKUP(A4,'Table 1, Chart 2'!$A$4:$F$23,6,FALSE) -> -0.1152561542 | C4: =VLOOKUP(A4,'Table 2, Chart 4'!$A$5:$F$23,6,FALSE) -> -0.09599809117 | D4: =VLOOKUP(A4,'Table 3, Chart 6'!$A$4:$F$23,6,FALSE) -> -0.06923614471 | E4: =VLOOKUP(A4,'Table 4, Chart 8'!$A$4:$F$23,6,FALSE) -> -0.09479373979 | F4: =VLOOKUP(A4,'Table 5, Chart 10'!$A$4:$F$23,6,FALSE) -> -0.113335478 | H4: Aberdeen and Shire | I4: =VLOOKUP(A4,'Table 1, Chart 2'!$A$4:$F$23,5,FALSE) -> -0.05294718523 | J4: =VLOOKUP(A4,'Table 2, Chart 4'!$A$5:$F$23,5,FALSE) -> 0.06129976034 | K4: =VLOOKUP(A4,'Table 3, Chart 6'!$A$4:$F$23,5,FALSE) -> 0.1641588339 | L4: =VLOOKUP(A4,'Table 4, Chart 8'!$A$4:$F$23,5,FALSE) -> 0.238708857 | M4: =VLOOKUP(A4,'Table 5, Chart 10'!$A$4:$F$23,5,FALSE) -> 0.09101150965
A5: Argyll and Bute | B5: =VLOOKUP(A5,'Table 1, Chart 2'!$A$4:$F$23,6,FALSE) -> 0.01168966604 | C5: =VLOOKUP(A5,'Table 2, Chart 4'!$A$5:$F$23,6,FALSE) -> -0.01680800381 | D5: =VLOOKUP(A5,'Table 3, Chart 6'!$A$4:$F$23,6,FALSE) -> -0.02142996591 | E5: =VLOOKUP(A5,'Table 4, Chart 8'!$A$4:$F$23,6,FALSE) -> -0.008406081512 | F5: =VLOOKUP(A5,'Table 5, Chart 10'!$A$4:$F$23,6,FALSE) -> -0.003379161835 | H5: Argyll and Bute | I5: =VLOOKUP(A5,'Table 1, Chart 2'!$A$4:$F$23,5,FALSE) -> 0.09184421295 | J5: =VLOOKUP(A5,'Table 2, Chart 4'!$A$5:$F$23,5,FALSE) -> 0.02564459376 | K5: =VLOOKUP(A5,'Table 3, Chart 6'!$A$4:$F$23,5,FALSE) -> 0.02208488879 | L5: =VLOOKUP(A5,'Table 4, Chart 8'!$A$4:$F$23,5,FALSE) -> 0.06099078915 | M5: =VLOOKUP(A5,'Table 5, Chart 10'!$A$4:$F$23,5,FALSE) -> -0.04679974651
A6: Ayrshires | B6: =VLOOKUP(A6,'Table 1, Chart 2'!$A$4:$F$23,6,FALSE) -> 0.01012941626 | C6: =VLOOKUP(A6,'Table 2, Chart 4'!$A$5:$F$23,6,FALSE) -> 0.006927359834 | D6: =VLOOKUP(A6,'Table 3, Chart 6'!$A$4:$F$23,6,FALSE) -> 0.01850252229 | E6: =VLOOKUP(A6,'Table 4, Chart 8'!$A$4:$F$23,6,FALSE) -> -0.000793370945 | F6: =VLOOKUP(A6,'Table 5, Chart 10'!$A$4:$F$23,6,FALSE) -> 0.008892071733 | H6: Ayrshires | I6: =VLOOKUP(A6,'Table 1, Chart 2'!$A$4:$F$23,5,FALSE) -> -0.01451707421 | J6: =VLOOKUP(A6,'Table 2, Chart 4'!$A$5:$F$23,5,FALSE) -> 0.004564342153 | K6: =VLOOKUP(A6,'Table 3, Chart 6'!$A$4:$F$23,5,FALSE) -> 0.06015105197 | L6: =VLOOKUP(A6,'Table 4, Chart 8'!$A$4:$F$23,5,FALSE) -> 0.1962113817 | M6: =VLOOKUP(A6,'Table 5, Chart 10'!$A$4:$F$23,5,FALSE) -> 0.1206827975
A7: Dumfries and Galloway | B7: =VLOOKUP(A7,'Table 1, Chart 2'!$A$4:$F$23,6,FALSE) -> -0.002055953155 | C7: =VLOOKUP(A7,'Table 2, Chart 4'!$A$5:$F$23,6,FALSE) -> 0.01454496632 | D7: =VLOOKUP(A7,'Table 3, Chart 6'!$A$4:$F$23,6,FALSE) -> 0.02391469323 | E7: =VLOOKUP(A7,'Table 4, Chart 8'!$A$4:$F$23,6,FALSE) -> 0.08771929825 | F7: =VLOOKUP(A7,'Table 5, Chart 10'!$A$4:$F$23,6,FALSE) -> 0.02539336892 | H7: Dumfries and Galloway | I7: =VLOOKUP(A7,'Table 1, Chart 2'!$A$4:$F$23,5,FALSE) -> 0.06831225274 | J7: =VLOOKUP(A7,'Table 2, Chart 4'!$A$5:$F$23,5,FALSE) -> 0.04198841699 | K7: =VLOOKUP(A7,'Table 3, Chart 6'!$A$4:$F$23,5,FALSE) -> 0.05317935272 | L7: =VLOOKUP(A7,'Table 4, Chart 8'!$A$4:$F$23,5,FALSE) -> 0.1328538253 | M7: =VLOOKUP(A7,'Table 5, Chart 10'!$A$4:$F$23,5,FALSE) -> 0.05063336692
A8: Dundee and Angus | B8: =VLOOKUP(A8,'Table 1, Chart 2'!$A$4:$F$23,6,FALSE) -> 0.02750952654 | C8: =VLOOKUP(A8,'Table 2, Chart 4'!$A$5:$F$23,6,FALSE) -> 0.01648472416 | D8: =VLOOKUP(A8,'Table 3, Chart 6'!$A$4:$F$23,6,FALSE) -> 0.02220511943 | E8: =VLOOKUP(A8,'Table 4, Chart 8'!$A$4:$F$23,6,FALSE) -> 0.0765450882 | F8: =VLOOKUP(A8,'Table 5, Chart 10'!$A$4:$F$23,6,FALSE) -> 0.04561747599 | H8: Dundee and Angus | I8: =VLOOKUP(A8,'Table 1, Chart 2'!$A$4:$F$23,5,FALSE) -> 0.1220110012 | J8: =VLOOKUP(A8,'Table 2, Chart 4'!$A$5:$F$23,5,FALSE) -> 0.1155871829 | K8: =VLOOKUP(A8,'Table 3, Chart 6'!$A$4:$F$23,5,FALSE) -> 0.1339088092 | L8: =VLOOKUP(A8,'Table 4, Chart 8'!$A$4:$F$23,5,FALSE) -> 0.2908402875 | M8: =VLOOKUP(A8,'Table 5, Chart 10'!$A$4:$F$23,5,FALSE) -> 0.1763296051
A9: East Dunbartonshire | B9: =VLOOKUP(A9,'Table 1, Chart 2'!$A$4:$F$23,6,FALSE) -> 0.0185834795 | C9: =VLOOKUP(A9,'Table 2, Chart 4'!$A$5:$F$23,6,FALSE) -> 0.02813444109 | D9: =VLOOKUP(A9,'Table 3, Chart 6'!$A$4:$F$23,6,FALSE) -> 0.07522201143 | E9: =VLOOKUP(A9,'Table 4, Chart 8'!$A$4:$F$23,6,FALSE) -> 0.2152042479 | F9: =VLOOKUP(A9,'Table 5, Chart 10'!$A$4:$F$23,6,FALSE) -> 0.1866494242 | H9: East Dunbartonshire | I9: =VLOOKUP(A9,'Table 1, Chart 2'!$A$4:$F$23,5,FALSE) -> 0.08503303009 | J9: =VLOOKUP(A9,'Table 2, Chart 4'!$A$5:$F$23,5,FALSE) -> 0.1243805066 | K9: =VLOOKUP(A9,'Table 3, Chart 6'!$A$4:$F$23,5,FALSE) -> 0.2317271539 | L9: =VLOOKUP(A9,'Table 4, Chart 8'!$A$4:$F$23,5,FALSE) -> 0.366881315 | M9: =VLOOKUP(A9,'Table 5, Chart 10'!$A$4:$F$23,5,FALSE) -> 0.2831269144
A10: Fife | B10: =VLOOKUP(A10,'Table 1, Chart 2'!$A$4:$F$23,6,FALSE) -> 0.02160148976 | C10: =VLOOKUP(A10,'Table 2, Chart 4'!$A$5:$F$23,6,FALSE) -> 0.04409029504 | D10: =VLOOKUP(A10,'Table 3, Chart 6'!$A$4:$F$23,6,FALSE) -> 0.06474878444 | E10: =VLOOKUP(A10,'Table 4, Chart 8'!$A$4:$F$23,6,FALSE) -> 0.01829606768 | F10: =VLOOKUP(A10,'Table 5, Chart 10'!$A$4:$F$23,6,FALSE) -> -0.05562953502 | H10: Fife | I10: =VLOOKUP(A10,'Table 1, Chart 2'!$A$4:$F$23,5,FALSE) -> 0.08564869785 | J10: =VLOOKUP(A10,'Table 2, Chart 4'!$A$5:$F$23,5,FALSE) -> 0.1493566672 | K10: =VLOOKUP(A10,'Table 3, Chart 6'!$A$4:$F$23,5,FALSE) -> 0.1668324393 | L10: =VLOOKUP(A10,'Table 4, Chart 8'!$A$4:$F$23,5,FALSE) -> 0.1860961322 | M10: =VLOOKUP(A10,'Table 5, Chart 10'!$A$4:$F$23,5,FALSE) -> 0.2838986182
A11: Forth Valley | B11: =VLOOKUP(A11,'Table 1, Chart 2'!$A$4:$F$23,6,FALSE) -> 0.01779053789 | C11: =VLOOKUP(A11,'Table 2, Chart 4'!$A$5:$F$23,6,FALSE) -> 0.06197613834 | D11: =VLOOKUP(A11,'Table 3, Chart 6'!$A$4:$F$23,6,FALSE) -> 0.1092574564 | E11: =VLOOKUP(A11,'Table 4, Chart 8'!$A$4:$F$23,6,FALSE) -> 0.04088713971 | F11: =VLOOKUP(A11,'Table 5, Chart 10'!$A$4:$F$23,6,FALSE) -> 0.01755485893 | H11: Forth Valley | I11: =VLOOKUP(A11,'Table 1, Chart 2'!$A$4:$F$23,5,FALSE) -> 0.07231127198 | J11: =VLOOKUP(A11,'Table 2, Chart 4'!$A$5:$F$23,5,FALSE) -> 0.1424422737 | K11: =VLOOKUP(A11,'Table 3, Chart 6'!$A$4:$F$23,5,FALSE) -> 0.1700065345 | L11: =VLOOKUP(A11,'Table 4, Chart 8'!$A$4:$F$23,5,FALSE) -> 0.2775120175 | M11: =VLOOKUP(A11,'Table 5, Chart 10'!$A$4:$F$23,5,FALSE) -> 0.2954322824
A12: Greater Glasgow | B12: =VLOOKUP(A12,'Table 1, Chart 2'!$A$4:$F$23,6,FALSE) -> 0.05580447282 | C12: =VLOOKUP(A12,'Table 2, Chart 4'!$A$5:$F$23,6,FALSE) -> 0.07023795839 | D12: =VLOOKUP(A12,'Table 3, Chart 6'!$A$4:$F$23,6,FALSE) -> 0.05428000044 | E12: =VLOOKUP(A12,'Table 4, Chart 8'!$A$4:$F$23,6,FALSE) -> 0.1726703964 | F12: =VLOOKUP(A12,'Table 5, Chart 10'!$A$4:$F$23,6,FALSE) -> 0.03608759909 | H12: Greater Glasgow | I12: =VLOOKUP(A12,'Table 1, Chart 2'!$A$4:$F$23,5,FALSE) -> 0.2560049412 | J12: =VLOOKUP(A12,'Table 2, Chart 4'!$A$5:$F$23,5,FALSE) -> 0.3214108296 | K12: =VLOOKUP(A12,'Table 3, Chart 6'!$A$4:$F$23,5,FALSE) -> 0.3248465373 | L12: =VLOOKUP(A12,'Table 4, Chart 8'!$A$4:$F$23,5,FALSE) -> 0.4279088072 | M12: =VLOOKUP(A12,'Table 5, Chart 10'!$A$4:$F$23,5,FALSE) -> 0.2314915363
A13: Highland and Islands | B13: =VLOOKUP(A13,'Table 1, Chart 2'!$A$4:$F$23,6,FALSE) -> 0.02145494028 | C13: =VLOOKUP(A13,'Table 2, Chart 4'!$A$5:$F$23,6,FALSE) -> 0.02520723772 | D13: =VLOOKUP(A13,'Table 3, Chart 6'!$A$4:$F$23,6,FALSE) -> 0.03065128396 | E13: =VLOOKUP(A13,'Table 4, Chart 8'!$A$4:$F$23,6,FALSE) -> 0.006602064513 | F13: =VLOOKUP(A13,'Table 5, Chart 10'!$A$4:$F$23,6,FALSE) -> 0.02338888715 | H13: Highland and Islands | I13: =VLOOKUP(A13,'Table 1, Chart 2'!$A$4:$F$23,5,FALSE) -> 0.1334184718 | J13: =VLOOKUP(A13,'Table 2, Chart 4'!$A$5:$F$23,5,FALSE) -> 0.1423889076 | K13: =VLOOKUP(A13,'Table 3, Chart 6'!$A$4:$F$23,5,FALSE) -> 0.1640466063 | L13: =VLOOKUP(A13,'Table 4, Chart 8'!$A$4:$F$23,5,FALSE) -> 0.1028667342 | M13: =VLOOKUP(A13,'Table 5, Chart 10'!$A$4:$F$23,5,FALSE) -> 0.1389149876
A14: Lothian | B14: =VLOOKUP(A14,'Table 1, Chart 2'!$A$4:$F$23,6,FALSE) -> 0.07864669485 | C14: =VLOOKUP(A14,'Table 2, Chart 4'!$A$5:$F$23,6,FALSE) -> 0.0688472508 | D14: =VLOOKUP(A14,'Table 3, Chart 6'!$A$4:$F$23,6,FALSE) -> 0.02891223777 | E14: =VLOOKUP(A14,'Table 4, Chart 8'!$A$4:$F$23,6,FALSE) -> 0.05285918324 | F14: =VLOOKUP(A14,'Table 5, Chart 10'!$A$4:$F$23,6,FALSE) -> 0.06056651987 | H14: Lothian | I14: =VLOOKUP(A14,'Table 1, Chart 2'!$A$4:$F$23,5,FALSE) -> 0.3534283957 | J14: =VLOOKUP(A14,'Table 2, Chart 4'!$A$5:$F$23,5,FALSE) -> 0.3365938812 | K14: =VLOOKUP(A14,'Table 3, Chart 6'!$A$4:$F$23,5,FALSE) -> 0.2463821812 | L14: =VLOOKUP(A14,'Table 4, Chart 8'!$A$4:$F$23,5,FALSE) -> 0.2336597762 | M14: =VLOOKUP(A14,'Table 5, Chart 10'!$A$4:$F$23,5,FALSE) -> 0.2197592622
A15: North Lanarkshire | B15: =VLOOKUP(A15,'Table 1, Chart 2'!$A$4:$F$23,6,FALSE) -> 0.02239412613 | C15: =VLOOKUP(A15,'Table 2, Chart 4'!$A$5:$F$23,6,FALSE) -> 0.009352669189 | D15: =VLOOKUP(A15,'Table 3, Chart 6'!$A$4:$F$23,6,FALSE) -> -0.01599957476 | E15: =VLOOKUP(A15,'Table 4, Chart 8'!$A$4:$F$23,6,FALSE) -> 0.08017974253 | F15: =VLOOKUP(A15,'Table 5, Chart 10'!$A$4:$F$23,6,FALSE) -> 0.08357294662 | H15: North Lanarkshire | I15: =VLOOKUP(A15,'Table 1, Chart 2'!$A$4:$F$23,5,FALSE) -> 0.04483331547 | J15: =VLOOKUP(A15,'Table 2, Chart 4'!$A$5:$F$23,5,FALSE) -> 0.05630704938 | K15: =VLOOKUP(A15,'Table 3, Chart 6'!$A$4:$F$23,5,FALSE) -> 0.01246991905 | L15: =VLOOKUP(A15,'Table 4, Chart 8'!$A$4:$F$23,5,FALSE) -> 0.1457906602 | M15: =VLOOKUP(A15,'Table 5, Chart 10'!$A$4:$F$23,5,FALSE) -> 0.1678119105
A16: Perth and Kinross | B16: =VLOOKUP(A16,'Table 1, Chart 2'!$A$4:$F$23,6,FALSE) -> 0.01957613622 | C16: =VLOOKUP(A16,'Table 2, Chart 4'!$A$5:$F$23,6,FALSE) -> 0.01714973609 | D16: =VLOOKUP(A16,'Table 3, Chart 6'!$A$4:$F$23,6,FALSE) -> 0.07846809241 | E16: =VLOOKUP(A16,'Table 4, Chart 8'!$A$4:$F$23,6,FALSE) -> 0.0003732662764 | F16: =VLOOKUP(A16,'Table 5, Chart 10'!$A$4:$F$23,6,FALSE) -> 0.06783422924 | H16: Perth and Kinross | I16: =VLOOKUP(A16,'Table 1, Chart 2'!$A$4:$F$23,5,FALSE) -> 0.1025328529 | J16: =VLOOKUP(A16,'Table 2, Chart 4'!$A$5:$F$23,5,FALSE) -> 0.08445225496 | K16: =VLOOKUP(A16,'Table 3, Chart 6'!$A$4:$F$23,5,FALSE) -> 0.1655259783 | L16: =VLOOKUP(A16,'Table 4, Chart 8'!$A$4:$F$23,5,FALSE) -> 0.1876618076 | M16: =VLOOKUP(A16,'Table 5, Chart 10'!$A$4:$F$23,5,FALSE) -> 0.1758573283
A17: Renfrewshire / Inverclyde | B17: =VLOOKUP(A17,'Table 1, Chart 2'!$A$4:$F$23,6,FALSE) -> -0.01274259448 | C17: =VLOOKUP(A17,'Table 2, Chart 4'!$A$5:$F$23,6,FALSE) -> 0.02759500334 | D17: =VLOOKUP(A17,'Table 3, Chart 6'!$A$4:$F$23,6,FALSE) -> 0.01306173223 | E17: =VLOOKUP(A17,'Table 4, Chart 8'!$A$4:$F$23,6,FALSE) -> 0.07952932829 | F17: =VLOOKUP(A17,'Table 5, Chart 10'!$A$4:$F$23,6,FALSE) -> 0.0005920468375 | H17: Renfrewshire / Inverclyde | I17: =VLOOKUP(A17,'Table 1, Chart 2'!$A$4:$F$23,5,FALSE) -> 0.03263976068 | J17: =VLOOKUP(A17,'Table 2, Chart 4'!$A$5:$F$23,5,FALSE) -> 0.07315629229 | K17: =VLOOKUP(A17,'Table 3, Chart 6'!$A$4:$F$23,5,FALSE) -> 0.06522130116 | L17: =VLOOKUP(A17,'Table 4, Chart 8'!$A$4:$F$23,5,FALSE) -> 0.3139573937 | M17: =VLOOKUP(A17,'Table 5, Chart 10'!$A$4:$F$23,5,FALSE) -> 0.02683453723
A18: Scottish Borders | B18: =VLOOKUP(A18,'Table 1, Chart 2'!$A$4:$F$23,6,FALSE) -> 0.02080374053 | C18: =VLOOKUP(A18,'Table 2, Chart 4'!$A$5:$F$23,6,FALSE) -> 0.01417420339 | D18: =VLOOKUP(A18,'Table 3, Chart 6'!$A$4:$F$23,6,FALSE) -> 0.03626572889 | E18: =VLOOKUP(A18,'Table 4, Chart 8'!$A$4:$F$23,6,FALSE) -> 0.01403157781 | F18: =VLOOKUP(A18,'Table 5, Chart 10'!$A$4:$F$23,6,FALSE) -> 0.1552808822 | H18: Scottish Borders | I18: =VLOOKUP(A18,'Table 1, Chart 2'!$A$4:$F$23,5,FALSE) -> 0.02605669413 | J18: =VLOOKUP(A18,'Table 2, Chart 4'!$A$5:$F$23,5,FALSE) -> 0.0386339961 | K18: =VLOOKUP(A18,'Table 3, Chart 6'!$A$4:$F$23,5,FALSE) -> 0.0986678577 | L18: =VLOOKUP(A18,'Table 4, Chart 8'!$A$4:$F$23,5,FALSE) -> 0.08767961489 | M18: =VLOOKUP(A18,'Table 5, Chart 10'!$A$4:$F$23,5,FALSE) -> 0.2212181669
A19: South Lanarkshire | B19: =VLOOKUP(A19,'Table 1, Chart 2'!$A$4:$F$23,6,FALSE) -> 0.0275328084 | C19: =VLOOKUP(A19,'Table 2, Chart 4'!$A$5:$F$23,6,FALSE) -> 0.0400559944 | D19: =VLOOKUP(A19,'Table 3, Chart 6'!$A$4:$F$23,6,FALSE) -> 0.03917810801 | E19: =VLOOKUP(A19,'Table 4, Chart 8'!$A$4:$F$23,6,FALSE) -> 0.07297220619 | F19: =VLOOKUP(A19,'Table 5, Chart 10'!$A$4:$F$23,6,FALSE) -> 0.17794351 | H19: South Lanarkshire | I19: =VLOOKUP(A19,'Table 1, Chart 2'!$A$4:$F$23,5,FALSE) -> 0.02358354904 | J19: =VLOOKUP(A19,'Table 2, Chart 4'!$A$5:$F$23,5,FALSE) -> 0.08225991052 | K19: =VLOOKUP(A19,'Table 3, Chart 6'!$A$4:$F$23,5,FALSE) -> 0.05525778458 | L19: =VLOOKUP(A19,'Table 4, Chart 8'!$A$4:$F$23,5,FALSE) -> 0.1866999924 | M19: =VLOOKUP(A19,'Table 5, Chart 10'!$A$4:$F$23,5,FALSE) -> 0.2009253567
A20: West Dunbartonshire | B20: =VLOOKUP(A20,'Table 1, Chart 2'!$A$4:$F$23,6,FALSE) -> -0.004470306179 | C20: =VLOOKUP(A20,'Table 2, Chart 4'!$A$5:$F$23,6,FALSE) -> -0.005198506684 | D20: =VLOOKUP(A20,'Table 3, Chart 6'!$A$4:$F$23,6,FALSE) -> 0.04966979493 | E20: =VLOOKUP(A20,'Table 4, Chart 8'!$A$4:$F$23,6,FALSE) -> -0.02261445119 | F20: =VLOOKUP(A20,'Table 5, Chart 10'!$A$4:$F$23,6,FALSE) -> 0.02769412276 | H20: West Dunbartonshire | I20: =VLOOKUP(A20,'Table 1, Chart 2'!$A$4:$F$23,5,FALSE) -> 0.004510634009 | J20: =VLOOKUP(A20,'Table 2, Chart 4'!$A$5:$F$23,5,FALSE) -> 0.007030091229 | K20: =VLOOKUP(A20,'Table 3, Chart 6'!$A$4:$F$23,5,FALSE) -> 0.02185903292 | L20: =VLOOKUP(A20,'Table 4, Chart 8'!$A$4:$F$23,5,FALSE) -> 0.07910602278 | M20: =VLOOKUP(A20,'Table 5, Chart 10'!$A$4:$F$23,5,FALSE) -> 0.1457994392
A21: West Lothian | B21: =VLOOKUP(A21,'Table 1, Chart 2'!$A$4:$F$23,6,FALSE) -> 0.01545042457 | C21: =VLOOKUP(A21,'Table 2, Chart 4'!$A$5:$F$23,6,FALSE) -> 0.03632744894 | D21: =VLOOKUP(A21,'Table 3, Chart 6'!$A$4:$F$23,6,FALSE) -> 0.02608179343 | E21: =VLOOKUP(A21,'Table 4, Chart 8'!$A$4:$F$23,6,FALSE) -> 0.05951126226 | F21: =VLOOKUP(A21,'Table 5, Chart 10'!$A$4:$F$23,6,FALSE) -> 0.04190751445 | H21: West Lothian | I21: =VLOOKUP(A21,'Table 1, Chart 2'!$A$4:$F$23,5,FALSE) -> 0.1143677892 | J21: =VLOOKUP(A21,'Table 2, Chart 4'!$A$5:$F$23,5,FALSE) -> 0.1354267402 | K21: =VLOOKUP(A21,'Table 3, Chart 6'!$A$4:$F$23,5,FALSE) -> 0.1502670585 | L21: =VLOOKUP(A21,'Table 4, Chart 8'!$A$4:$F$23,5,FALSE) -> 0.1689183519 | M21: =VLOOKUP(A21,'Table 5, Chart 10'!$A$4:$F$23,5,FALSE) -> 0.1898116592
A22: Scotland | B22: =VLOOKUP(A22,'Table 1, Chart 2'!$A$4:$F$23,6,FALSE) -> 0.04026329997 | C22: =VLOOKUP(A22,'Table 2, Chart 4'!$A$5:$F$23,6,FALSE) -> 0.04411669157 | D22: =VLOOKUP(A22,'Table 3, Chart 6'!$A$4:$F$23,6,FALSE) -> 0.04566950053 | E22: =VLOOKUP(A22,'Table 4, Chart 8'!$A$4:$F$23,6,FALSE) -> 0.04871131182 | F22: =VLOOKUP(A22,'Table 5, Chart 10'!$A$4:$F$23,6,FALSE) -> 0.0297773327 | H22: Scotland | I22: =VLOOKUP(A22,'Table 1, Chart 2'!$A$4:$F$23,5,FALSE) -> 0.1495674522 | J22: =VLOOKUP(A22,'Table 2, Chart 4'!$A$5:$F$23,5,FALSE) -> 0.1986499338 | K22: =VLOOKUP(A22,'Table 3, Chart 6'!$A$4:$F$23,5,FALSE) -> 0.159493298 | L22: =VLOOKUP(A22,'Table 4, Chart 8'!$A$4:$F$23,5,FALSE) -> 0.1920063432 | M22: =VLOOKUP(A22,'Table 5, Chart 10'!$A$4:$F$23,5,FALSE) -> 0.1662108072
A24: CPI inflation 2016 to 2017 = 3.0% | H24: CPI inflation 2010 to 2016 = 15.9%
A26: Key: | B26: number and percentage of table cells: | H26: Key: | I26: number and percentage of table cells:
A27: Rents have decreased | B27: =COUNTIF(B4:F21,"<0%") -> 17 | C27: =B27/90 -> 0.1888888889 | H27: Rents have decreased | I27: =COUNTIF(I4:M21,"<0%") -> 3 | J27: =I27/90 -> 0.03333333333
A28: Rents have increased, but not above inflation | B28: =90-B27-B29 -> 37 | C28: =B28/90 -> 0.4111111111 | H28: Rents have increased, but not above inflation | I28: =90-I27-I29 -> 52 | J28: =I28/90 -> 0.5777777778
A29: Rents have increased above inflation | B29: =COUNTIF(B4:F21,">3.0%") -> 36 | C29: =B29/90 -> 0.4 | H29: Rents have increased above inflation | I29: =COUNTIF(I4:M21,">15.9%") -> 35 | J29: =I29/90 -> 0.3888888889
A35: 2010 to 2017 inflation | B35: 0.1592427617
A36: 2016 to 2017 inflation | B36: 0.0296735905

Sheet Contents
B2: Contents
B4: Chart 1 | C4: Cumulative % Change in Average (mean) Rents from 2010 to 2017 (years to end-Sept), by Broad Rental Market Area - 2-Bedroom Properties
B5: Table 1 | C5: 1 Bedroom Properties - Average (mean) Monthly Rents (£): Cumulative Changes 2010 to 2017, by Broad Rental Market Area
B6: Chart 2 | C6: Cumulative % Change in Average (mean) Rents from 2010 to 2017 (years to end-Sept), by Broad Rental Market Area - 1-Bedroom Properties
B7: Chart 3 | C7: Average (mean) Monthly Rents 2017 (year to end-Sept), by Broad Rental Market Area - 1-Bedroom Properties
B8: Table 2 | C8: 2 Bedroom Properties - Average (mean) Monthly Rents (£): Cumulative Changes 2010 to 2017, by Broad Rental Market Area
B9: Chart 4 | C9: Cumulative % Change in Average (mean) Rents from 2010 to 2017 (years to end-Sept), by Broad Rental Market Area - 2-Bedroom Properties
B10: Chart 5 | C10: Average (mean) Monthly Rents 2017 (year to end-Sept), by Broad Rental Market Area - 2-Bedroom Properties
B11: Table 3 | C11: 3 Bedroom Properties - Average (mean) Monthly Rents (£): Cumulative Changes 2010 to 2017, by Broad Rental Market Area
B12: Chart 6 | C12: Cumulative % Change in Average (mean) Rents from 2010 to 2017 (years to end-Sept), by Broad Rental Market Area - 3-Bedroom Properties
B13: Chart 7 | C13: Average (mean) Monthly Rents 2017 (year to end-Sept), by Broad Rental Market Area - 3-Bedroom Properties
B14: Table 4 | C14: 4 Bedroom Properties - Average (mean) Monthly Rents (£): Cumulative Changes 2010 to 2017, by Broad Rental Market Area
B15: Chart 8 | C15: Cumulative % Change in Average (mean) Rents from 2010 to 2017 (years to end-Sept), by Broad Rental Market Area - 4-Bedroom Properties
B16: Chart 9 | C16: Average (mean) Monthly Rents 2017 (year to end-Sept), by Broad Rental Market Area - 4-Bedroom Properties
B17: Table 5 | C17: 1 Bedroom Shared Properties - Average (mean) Monthly Rents (£): Cumulative Changes 2010 to 2017, by Broad Rental Market Area
B18: Chart 10 | C18: Cumulative % Change in Average (mean) Rents from 2010 to 2017 (years to end-Sept), by Broad Rental Market Area - 1 bedroom shared properties
B19: Chart 11 | C19: Average (mean) Monthly Rents 2017 (year to end-Sept), by Broad Rental Market Area - 1-Bedroom Shared Properties
B20: Table 6 | C20: Summary of Average (mean) Private Rents (£ monthly): Scotland, 2010 to 2017 (years to end Sept)
B21: Chart 12 | C21: Average (mean) monthly rents, by Property Size: Scotland, 2010 to 2017
B22: Table 7 | C22: Private Rents (£ Monthly), by Broad Rental Market Area, 2010 (year to end Sept)
B23: Table 8 | C23: Private Rents (£ Monthly), by Broad Rental Market Area, 2011 (year to end Sept)
B24: Table 9 | C24: Private Rents (£ Monthly), by Broad Rental Market Area, 2012 (year to end Sept)
B25: Table 10 | C25: Private Rents (£ Monthly), by Broad Rental Market Area, 2013 (year to end Sept)
B26: Table 11 | C26: Private Rents (£ Monthly), by Broad Rental Market Area, 2014 (year to end Sept)
B27: Table 12 | C27: Private Rents (£ Monthly), by Broad Rental Market Area, 2015 (year to end Sept)
B28: Table 13 | C28: Private Rents (£ Monthly), by Broad Rental Market Area, 2016 (year to end Sept)
B29: Table 14 | C29: Private Rents (£ Monthly), by Broad Rental Market Area, 2017 (year to end Sept)
B30: Chart A1 | C30: Number of Dwelllings by Tenure, Scotland, 1981 to 2017
B31: Table C1 | C31: Sample Sizes by Broad Rental Market Area and size of property, 2017 (year to end Sept)
B32: Chart C1 | C32: 2017 Sample Data Profiles
B33: Chart C2 | C33: An Example of Sample Data Profiles that can Change Over Time - Argyll and Bute broad rental market area
B34: Chart C3 | C34: Sample Numbers in Broad Rental Market Areas, as proportions of the Scotland total
B37: BRMA Profiles
B38: Aberdeen & Shire
B39: Argyll & Bute
B40: Ayrshires
B41: Dumfries & Galloway
B42: Dundee & Angus
B43: East Dunbartonshire
B44: Fife
B45: Forth Valley
B46: Greater Glasgow
B47: Highlands & Islands
B48: Lothian
B49: North Lanarkshire
B50: Perth & Kinross
B51: Renfrewshire / Inverclyde
B52: Scottish Borders
B53: South Lanarkshire
B54: West Dunbartonshire
B55: West Lothian

Sheet Chart 1
A1: Back to contents
A3: 2 Bedroom Properties - Average (mean) Monthly Rents (£): Cumulative Changes 2010 to 2017, by Broad Rental Market Area
B4: 2010 | C4: 2016 | D4: 2017 | E4: 2010 to 2017 change | F4: 2016 to 2017 change | T4: Cumulative CPI - 2010 to 2017
A5: Lothian | B5: 664.51 | C5: 830.97 | D5: 888.18 | E5: 0.3365938812 | F5: 0.0688472508 | T5: ='Summary table'!$B$35 -> 0.1592427617
A6: Greater Glasgow | B6: 563.64 | C6: 695.92 | D6: 744.8 | E6: 0.3214108296 | F6: 0.07023795839 | T6: ='Summary table'!$B$35 -> 0.1592427617
A7: Scotland | B7: 536.27 | C7: 615.64 | D7: 642.8 | E7: 0.1986499338 | F7: 0.04411669157 | T7: ='Summary table'!$B$35 -> 0.1592427617
A8: Fife | B8: 463.99 | C8: 510.77 | D8: 533.29 | E8: 0.1493566672 | F8: 0.04409029504 | T8: ='Summary table'!$B$35 -> 0.1592427617
A9: Forth Valley | B9: 492.41 | C9: 529.72 | D9: 562.55 | E9: 0.1424422737 | F9: 0.06197613834 | T9: ='Summary table'!$B$35 -> 0.1592427617
A10: Highland and Islands | B10: 503.41 | C10: 560.95 | D10: 575.09 | E10: 0.1423889076 | F10: 0.02520723772 | T10: ='Summary table'!$B$35 -> 0.1592427617
A11: West Lothian | B11: 527.37 | C11: 577.8 | D11: 598.79 | E11: 0.1354267402 | F11: 0.03632744894 | T11: ='Summary table'!$B$35 -> 0.1592427617
A12: East Dunbartonshire | B12: 581.12 | C12: 635.52 | D12: 653.4 | E12: 0.1243805066 | F12: 0.02813444109 | T12: ='Summary table'!$B$35 -> 0.1592427617
A13: Dundee and Angus | B13: 497.46 | C13: 545.96 | D13: 554.96 | E13: 0.1155871829 | F13: 0.01648472416 | T13: ='Summary table'!$B$35 -> 0.1592427617
A14: Perth and Kinross | B14: 506.44 | C14: 539.95 | D14: 549.21 | E14: 0.08445225496 | F14: 0.01714973609 | T14: ='Summary table'!$B$35 -> 0.1592427617
A15: South Lanarkshire | B15: 480.55 | C15: 500.05 | D15: 520.08 | E15: 0.08225991052 | F15: 0.0400559944 | T15: ='Summary table'!$B$35 -> 0.1592427617
A16: Renfrewshire / Inverclyde | B16: 472.96 | C16: 493.93 | D16: 507.56 | E16: 0.07315629229 | F16: 0.02759500334 | T16: ='Summary table'!$B$35 -> 0.1592427617
A17: Aberdeen and Shire | B17: 642.58 | C17: 754.39 | D17: 681.97 | E17: 0.06129976034 | F17: -0.09599809117 | T17: ='Summary table'!$B$35 -> 0.1592427617
A18: North Lanarkshire | B18: 454.65 | C18: 475.8 | D18: 480.25 | E18: 0.05630704938 | F18: 0.009352669189 | T18: ='Summary table'!$B$35 -> 0.1592427617
A19: Dumfries and Galloway | B19: 435.12 | C19: 446.89 | D19: 453.39 | E19: 0.04198841699 | F19: 0.01454496632 | T19: ='Summary table'!$B$35 -> 0.1592427617
A20: Scottish Borders | B20: 441.58 | C20: 452.23 | D20: 458.64 | E20: 0.0386339961 | F20: 0.01417420339 | T20: ='Summary table'!$B$35 -> 0.1592427617
A21: Argyll and Bute | B21: 503.03 | C21: 524.75 | D21: 515.93 | E21: 0.02564459376 | F21: -0.01680800381 | T21: ='Summary table'!$B$35 -> 0.1592427617
A22: West Dunbartonshire | B22: 492.17 | C22: 498.22 | D22: 495.63 | E22: 0.007030091229 | F22: -0.005198506684 | T22: ='Summary table'!$B$35 -> 0.1592427617
A23: Ayrshires | B23: 464.47 | C23: 463.38 | D23: 466.59 | E23: 0.004564342153 | F23: 0.006927359834 | T23: ='Summary table'!$B$35 -> 0.1592427617

Sheet Table 1, Chart 2
A1: Back to contents
A3: TABLE 1: 1 Bedroom Properties - Average (mean) Monthly Rents (£): Cumulative Changes 2010 to 2017, by Broad Rental Market Area
B4: 2010 | C4: 2016 | D4: 2017 | E4: 2010 to 2017 change | F4: 2016 to 2017 change | R4: Cumulative CPI - 2010 to 2017
A5: Lothian | B5: 520.36 | C5: 652.92 | D5: 704.27 | E5: 0.3534283957 | F5: 0.07864669485 | R5: ='Summary table'!$B$35 -> 0.1592427617
A6: Greater Glasgow | B6: 437.14 | C6: 520.03 | D6: 549.05 | E6: 0.2560049412 | F6: 0.05580447282 | R6: ='Summary table'!$B$35 -> 0.1592427617
A7: Scotland | B7: 435.79 | C7: 481.58 | D7: 500.97 | E7: 0.1495674522 | F7: 0.04026329997 | R7: ='Summary table'!$B$35 -> 0.1592427617
A8: Highland and Islands | B8: 415.01 | C8: 460.5 | D8: 470.38 | E8: 0.1334184718 | F8: 0.02145494028 | R8: ='Summary table'!$B$35 -> 0.1592427617
A9: Dundee and Angus | B9: 350.87 | C9: 383.14 | D9: 393.68 | E9: 0.1220110012 | F9: 0.02750952654 | R9: ='Summary table'!$B$35 -> 0.1592427617
A10: West Lothian | B10: 428.18 | C10: 469.89 | D10: 477.15 | E10: 0.1143677892 | F10: 0.01545042457 | R10: ='Summary table'!$B$35 -> 0.1592427617
A11: Perth and Kinross | B11: 377.44 | C11: 408.15 | D11: 416.14 | E11: 0.1025328529 | F11: 0.01957613622 | R11: ='Summary table'!$B$35 -> 0.1592427617
A12: Argyll and Bute | B12: 382.06 | C12: 412.33 | D12: 417.15 | E12: 0.09184421295 | F12: 0.01168966604 | R12: ='Summary table'!$B$35 -> 0.1592427617
A13: Fife | B13: 378.99 | C13: 402.75 | D13: 411.45 | E13: 0.08564869785 | F13: 0.02160148976 | R13: ='Summary table'!$B$35 -> 0.1592427617
A14: East Dunbartonshire | B14: 449.59 | C14: 478.92 | D14: 487.82 | E14: 0.08503303009 | F14: 0.0185834795 | R14: ='Summary table'!$B$35 -> 0.1592427617
A15: Forth Valley | B15: 386.8 | C15: 407.52 | D15: 414.77 | E15: 0.07231127198 | F15: 0.01779053789 | R15: ='Summary table'!$B$35 -> 0.1592427617
A16: Dumfries and Galloway | B16: 358.94 | C16: 384.25 | D16: 383.46 | E16: 0.06831225274 | F16: -0.002055953155 | R16: ='Summary table'!$B$35 -> 0.1592427617
A17: North Lanarkshire | B17: 373.16 | C17: 381.35 | D17: 389.89 | E17: 0.04483331547 | F17: 0.02239412613 | R17: ='Summary table'!$B$35 -> 0.1592427617
A18: Renfrewshire / Inverclyde | B18: 374.39 | C18: 391.6 | D18: 386.61 | E18: 0.03263976068 | F18: -0.01274259448 | R18: ='Summary table'!$B$35 -> 0.1592427617
A19: Scottish Borders | B19: 336.19 | C19: 337.92 | D19: 344.95 | E19: 0.02605669413 | F19: 0.02080374053 | R19: ='Summary table'!$B$35 -> 0.1592427617
A20: South Lanarkshire | B20: 382.47 | C20: 381 | D20: 391.49 | E20: 0.02358354904 | F20: 0.0275328084 | R20: ='Summary table'!$B$35 -> 0.1592427617
A21: West Dunbartonshire | B21: 396.84 | C21: 400.42 | D21: 398.63 | E21: 0.004510634009 | F21: -0.004470306179 | R21: ='Summary table'!$B$35 -> 0.1592427617
A22: Ayrshires | B22: 375.42 | C22: 366.26 | D22: 369.97 | E22: -0.01451707421 | F22: 0.01012941626 | R22: ='Summary table'!$B$35 -> 0.1592427617
A23: Aberdeen and Shire | B23: 528.64 | C23: 565.87 | D23: 500.65 | E23: -0.05294718523 | F23: -0.1152561542 | R23: ='Summary table'!$B$35 -> 0.1592427617

Sheet Chart 3
A1: Back to contents
A3: Average (mean) monthly rents for 1 Bedroom Properties in 2017 (year to end-Sept)
A4: 1 Bedroom Properties | B4: £ monthly
A5: Lothian | B5: 704.27
A6: Greater Glasgow | B6: 549.05
A7: Scotland | B7: 500.97
A8: Aberdeen and Shire | B8: 500.65
A9: East Dunbartonshire | B9: 487.82
A10: West Lothian | B10: 477.15
A11: Highland and Islands | B11: 470.38
A12: Argyll and Bute | B12: 417.15
A13: Perth and Kinross | B13: 416.14
A14: Forth Valley | B14: 414.77
A15: Fife | B15: 411.45
A16: West Dunbartonshire | B16: 398.63
A17: Dundee and Angus | B17: 393.68
A18: South Lanarkshire | B18: 391.49
A19: North Lanarkshire | B19: 389.89
A20: Renfrewshire / Inverclyde | B20: 386.61
A21: Dumfries and Galloway | B21: 383.46
A22: Ayrshires | B22: 369.97
A23: Scottish Borders | B23: 344.95

Sheet Table 2, Chart 4
A1: Back to contents
A3: TABLE 2: 2 Bedroom Properties - Average (mean) Monthly Rents (£): Cumulative Changes 2010 to 2017, by Broad Rental Market Area
B4: 2010 | C4: 2016 | D4: 2017 | E4: 2010 to 2017 change | F4: 2016 to 2017 change | V4: Cumulative CPI - 2010 to 2017
A5: Lothian | B5: 664.51 | C5: 830.97 | D5: 888.18 | E5: 0.3365938812 | F5: 0.0688472508 | V5: ='Summary table'!$B$35 -> 0.1592427617
A6: Greater Glasgow | B6: 563.64 | C6: 695.92 | D6: 744.8 | E6: 0.3214108296 | F6: 0.07023795839 | V6: ='Summary table'!$B$35 -> 0.1592427617
A7: Scotland | B7: 536.27 | C7: 615.64 | D7: 642.8 | E7: 0.1986499338 | F7: 0.04411669157 | V7: ='Summary table'!$B$35 -> 0.1592427617
A8: Fife | B8: 463.99 | C8: 510.77 | D8: 533.29 | E8: 0.1493566672 | F8: 0.04409029504 | V8: ='Summary table'!$B$35 -> 0.1592427617
A9: Forth Valley | B9: 492.41 | C9: 529.72 | D9: 562.55 | E9: 0.1424422737 | F9: 0.06197613834 | V9: ='Summary table'!$B$35 -> 0.1592427617
A10: Highland and Islands | B10: 503.41 | C10: 560.95 | D10: 575.09 | E10: 0.1423889076 | F10: 0.02520723772 | V10: ='Summary table'!$B$35 -> 0.1592427617
A11: West Lothian | B11: 527.37 | C11: 577.8 | D11: 598.79 | E11: 0.1354267402 | F11: 0.03632744894 | V11: ='Summary table'!$B$35 -> 0.1592427617
A12: East Dunbartonshire | B12: 581.12 | C12: 635.52 | D12: 653.4 | E12: 0.1243805066 | F12: 0.02813444109 | V12: ='Summary table'!$B$35 -> 0.1592427617
A13: Dundee and Angus | B13: 497.46 | C13: 545.96 | D13: 554.96 | E13: 0.1155871829 | F13: 0.01648472416 | V13: ='Summary table'!$B$35 -> 0.1592427617
A14: Perth and Kinross | B14: 506.44 | C14: 539.95 | D14: 549.21 | E14: 0.08445225496 | F14: 0.01714973609 | V14: ='Summary table'!$B$35 -> 0.1592427617
A15: South Lanarkshire | B15: 480.55 | C15: 500.05 | D15: 520.08 | E15: 0.08225991052 | F15: 0.0400559944 | V15: ='Summary table'!$B$35 -> 0.1592427617
A16: Renfrewshire / Inverclyde | B16: 472.96 | C16: 493.93 | D16: 507.56 | E16: 0.07315629229 | F16: 0.02759500334 | V16: ='Summary table'!$B$35 -> 0.1592427617
A17: Aberdeen and Shire | B17: 642.58 | C17: 754.39 | D17: 681.97 | E17: 0.06129976034 | F17: -0.09599809117 | V17: ='Summary table'!$B$35 -> 0.1592427617
A18: North Lanarkshire | B18: 454.65 | C18: 475.8 | D18: 480.25 | E18: 0.05630704938 | F18: 0.009352669189 | V18: ='Summary table'!$B$35 -> 0.1592427617
A19: Dumfries and Galloway | B19: 435.12 | C19: 446.89 | D19: 453.39 | E19: 0.04198841699 | F19: 0.01454496632 | V19: ='Summary table'!$B$35 -> 0.1592427617
A20: Scottish Borders | B20: 441.58 | C20: 452.23 | D20: 458.64 | E20: 0.0386339961 | F20: 0.01417420339 | V20: ='Summary table'!$B$35 -> 0.1592427617
A21: Argyll and Bute | B21: 503.03 | C21: 524.75 | D21: 515.93 | E21: 0.02564459376 | F21: -0.01680800381 | V21: ='Summary table'!$B$35 -> 0.1592427617
A22: West Dunbartonshire | B22: 492.17 | C22: 498.22 | D22: 495.63 | E22: 0.007030091229 | F22: -0.005198506684 | V22: ='Summary table'!$B$35 -> 0.1592427617
A23: Ayrshires | B23: 464.47 | C23: 463.38 | D23: 466.59 | E23: 0.004564342153 | F23: 0.006927359834 | V23: ='Summary table'!$B$35 -> 0.1592427617

Sheet Chart 5
A1: Back to contents
A3: Average (mean) monthly rents for 2 Bedroom Properties in 2017 (year to end-Sept)
A4: 2 Bedroom Properties | B4: £ monthly
A5: Lothian | B5: 888.18
A6: Greater Glasgow | B6: 744.8
A7: Aberdeen and Shire | B7: 681.97
A8: East Dunbartonshire | B8: 653.4
A9: Scotland | B9: 642.8
A10: West Lothian | B10: 598.79
A11: Highland and Islands | B11: 575.09
A12: Forth Valley | B12: 562.55
A13: Dundee and Angus | B13: 554.96
A14: Perth and Kinross | B14: 549.21
A15: Fife | B15: 533.29
A16: South Lanarkshire | B16: 520.08
A17: Argyll and Bute | B17: 515.93
A18: Renfrewshire / Inverclyde | B18: 507.56
A19: West Dunbartonshire | B19: 495.63
A20: North Lanarkshire | B20: 480.25
A21: Ayrshires | B21: 466.59
A22: Scottish Borders | B22: 458.64
A23: Dumfries and Galloway | B23: 453.39

Sheet Table 3, Chart 6
A1: Back to contents
A3: TABLE 3: 3 Bedroom Properties - Average (mean) Monthly Rents (£): Cumulative Changes 2010 to 2017, by Broad Rental Market Area
B4: 2010 | C4: 2016 | D4: 2017 | E4: 2010 to 2017 change | F4: 2016 to 2017 change | T4: Cumulative CPI - 2010 to 2017
A5: Greater Glasgow | B5: 728.19 | C5: 915.07 | D5: 964.74 | E5: 0.3248465373 | F5: 0.05428000044 | T5: ='Summary table'!$B$35 -> 0.1592427617
A6: Lothian | B6: 917.68 | C6: 1111.64 | D6: 1143.78 | E6: 0.2463821812 | F6: 0.02891223777 | T6: ='Summary table'!$B$35 -> 0.1592427617
A7: East Dunbartonshire | B7: 750.02 | C7: 859.19 | D7: 923.82 | E7: 0.2317271539 | F7: 0.07522201143 | T7: ='Summary table'!$B$35 -> 0.1592427617
A8: Forth Valley | B8: 642.74 | C8: 677.94 | D8: 752.01 | E8: 0.1700065345 | F8: 0.1092574564 | T8: ='Summary table'!$B$35 -> 0.1592427617
A9: Fife | B9: 563.02 | C9: 617 | D9: 656.95 | E9: 0.1668324393 | F9: 0.06474878444 | T9: ='Summary table'!$B$35 -> 0.1592427617
A10: Perth and Kinross | B10: 647.27 | C10: 699.52 | D10: 754.41 | E10: 0.1655259783 | F10: 0.07846809241 | T10: ='Summary table'!$B$35 -> 0.1592427617
A11: Aberdeen and Shire | B11: 743.67 | C11: 930.15 | D11: 865.75 | E11: 0.1641588339 | F11: -0.06923614471 | T11: ='Summary table'!$B$35 -> 0.1592427617
A12: Highland and Islands | B12: 594.77 | C12: 671.75 | D12: 692.34 | E12: 0.1640466063 | F12: 0.03065128396 | T12: ='Summary table'!$B$35 -> 0.1592427617
A13: Scotland | B13: 678.9 | C13: 752.8 | D13: 787.18 | E13: 0.159493298 | F13: 0.04566950053 | T13: ='Summary table'!$B$35 -> 0.1592427617
A14: West Lothian | B14: 615.97 | C14: 690.52 | D14: 708.53 | E14: 0.1502670585 | F14: 0.02608179343 | T14: ='Summary table'!$B$35 -> 0.1592427617
A15: Dundee and Angus | B15: 632.52 | C15: 701.64 | D15: 717.22 | E15: 0.1339088092 | F15: 0.02220511943 | T15: ='Summary table'!$B$35 -> 0.1592427617
A16: Scottish Borders | B16: 514.96 | C16: 545.97 | D16: 565.77 | E16: 0.0986678577 | F16: 0.03626572889 | T16: ='Summary table'!$B$35 -> 0.1592427617
A17: Renfrewshire / Inverclyde | B17: 611.61 | C17: 643.1 | D17: 651.5 | E17: 0.06522130116 | F17: 0.01306173223 | T17: ='Summary table'!$B$35 -> 0.1592427617
A18: Ayrshires | B18: 556.1 | C18: 578.84 | D18: 589.55 | E18: 0.06015105197 | F18: 0.01850252229 | T18: ='Summary table'!$B$35 -> 0.1592427617
A19: South Lanarkshire | B19: 626.88 | C19: 636.58 | D19: 661.52 | E19: 0.05525778458 | F19: 0.03917810801 | T19: ='Summary table'!$B$35 -> 0.1592427617
A20: Dumfries and Galloway | B20: 499.63 | C20: 513.91 | D20: 526.2 | E20: 0.05317935272 | F20: 0.02391469323 | T20: ='Summary table'!$B$35 -> 0.1592427617
A21: Argyll and Bute | B21: 637.54 | C21: 665.89 | D21: 651.62 | E21: 0.02208488879 | F21: -0.02142996591 | T21: ='Summary table'!$B$35 -> 0.1592427617
A22: West Dunbartonshire | B22: 591.06 | C22: 575.4 | D22: 603.98 | E22: 0.02185903292 | F22: 0.04966979493 | T22: ='Summary table'!$B$35 -> 0.1592427617
A23: North Lanarkshire | B23: 548.52 | C23: 564.39 | D23: 555.36 | E23: 0.01246991905 | F23: -0.01599957476 | T23: ='Summary table'!$B$35 -> 0.1592427617

Sheet Chart 7
A1: Back to contents
A3: Average (mean) monthly rents for 3 Bedroom Properties in 2017 (year to end-Sept)
A4: 3 Bedroom Properties | B4: £ monthly
A5: Lothian | B5: 1143.78
A6: Greater Glasgow | B6: 964.74
A7: East Dunbartonshire | B7: 923.82
A8: Aberdeen and Shire | B8: 865.75
A9: Scotland | B9: 787.18
A10: Perth and Kinross | B10: 754.41
A11: Forth Valley | B11: 752.01
A12: Dundee and Angus | B12: 717.22
A13: West Lothian | B13: 708.53
A14: Highland and Islands | B14: 692.34
A15: South Lanarkshire | B15: 661.52
A16: Fife | B16: 656.95
A17: Argyll and Bute | B17: 651.62
A18: Renfrewshire / Inverclyde | B18: 651.5
A19: West Dunbartonshire | B19: 603.98
A20: Ayrshires | B20: 589.55
A21: Scottish Borders | B21: 565.77
A22: North Lanarkshire | B22: 555.36
A23: Dumfries and Galloway | B23: 526.2

Sheet Table 4, Chart 8
A1: Back to contents
A3: TABLE 4: 4 Bedroom Properties - Average (mean) Monthly Rents (£): Cumulative Changes 2010 to 2017, by Broad Rental Market Area
B4: 2010 | C4: 2016 | D4: 2017 | E4: 2010 to 2017 change | F4: 2016 to 2017 change | T4: Cumulative CPI - 2010 to 2017
A5: Greater Glasgow | B5: 1067.19 | C5: 1299.47 | D5: 1523.85 | E5: 0.4279088072 | F5: 0.1726703964 | T5: ='Summary table'!$B$35 -> 0.1592427617
A6: East Dunbartonshire | B6: 1135.19 | C6: 1276.88 | D6: 1551.67 | E6: 0.366881315 | F6: 0.2152042479 | T6: ='Summary table'!$B$35 -> 0.1592427617
A7: Renfrewshire / Inverclyde | B7: 833.68 | C7: 1014.72 | D7: 1095.42 | E7: 0.3139573937 | F7: 0.07952932829 | T7: ='Summary table'!$B$35 -> 0.1592427617
A8: Dundee and Angus | B8: 811.27 | C8: 972.76 | D8: 1047.22 | E8: 0.2908402875 | F8: 0.0765450882 | T8: ='Summary table'!$B$35 -> 0.1592427617
A9: Forth Valley | B9: 857.08 | C9: 1051.92 | D9: 1094.93 | E9: 0.2775120175 | F9: 0.04088713971 | T9: ='Summary table'!$B$35 -> 0.1592427617
A10: Aberdeen and Shire | B10: 943.66 | C10: 1291.33 | D10: 1168.92 | E10: 0.238708857 | F10: -0.09479373979 | T10: ='Summary table'!$B$35 -> 0.1592427617
A11: Lothian | B11: 1290.68 | C11: 1512.32 | D11: 1592.26 | E11: 0.2336597762 | F11: 0.05285918324 | T11: ='Summary table'!$B$35 -> 0.1592427617
A12: Ayrshires | B12: 758.06 | C12: 907.52 | D12: 906.8 | E12: 0.1962113817 | F12: -0.000793370945 | T12: ='Summary table'!$B$35 -> 0.1592427617
A13: Scotland | B13: 958.51 | C13: 1089.48 | D13: 1142.55 | E13: 0.1920063432 | F13: 0.04871131182 | T13: ='Summary table'!$B$35 -> 0.1592427617
A14: Perth and Kinross | B14: 857.5 | C14: 1018.04 | D14: 1018.42 | E14: 0.1876618076 | F14: 0.0003732662764 | T14: ='Summary table'!$B$35 -> 0.1592427617
A15: South Lanarkshire | B15: 924.21 | C15: 1022.17 | D15: 1096.76 | E15: 0.1866999924 | F15: 0.07297220619 | T15: ='Summary table'!$B$35 -> 0.1592427617
A16: Fife | B16: 773.31 | C16: 900.74 | D16: 917.22 | E16: 0.1860961322 | F16: 0.01829606768 | T16: ='Summary table'!$B$35 -> 0.1592427617
A17: West Lothian | B17: 834.19 | C17: 920.33 | D17: 975.1 | E17: 0.1689183519 | F17: 0.05951126226 | T17: ='Summary table'!$B$35 -> 0.1592427617
A18: North Lanarkshire | B18: 776.25 | C18: 823.4 | D18: 889.42 | E18: 0.1457906602 | F18: 0.08017974253 | T18: ='Summary table'!$B$35 -> 0.1592427617
A19: Dumfries and Galloway | B19: 620.08 | C19: 645.81 | D19: 702.46 | E19: 0.1328538253 | F19: 0.08771929825 | T19: ='Summary table'!$B$35 -> 0.1592427617
A20: Highland and Islands | B20: 750.68 | C20: 822.47 | D20: 827.9 | E20: 0.1028667342 | F20: 0.006602064513 | T20: ='Summary table'!$B$35 -> 0.1592427617
A21: Scottish Borders | B21: 689.67 | C21: 739.76 | D21: 750.14 | E21: 0.08767961489 | F21: 0.01403157781 | T21: ='Summary table'!$B$35 -> 0.1592427617
A22: West Dunbartonshire | B22: 821.05 | C22: 906.5 | D22: 886 | E22: 0.07910602278 | F22: -0.02261445119 | T22: ='Summary table'!$B$35 -> 0.1592427617
A23: Argyll and Bute | B23: 923.91 | C23: 988.57 | D23: 980.26 | E23: 0.06099078915 | F23: -0.008406081512 | T23: ='Summary table'!$B$35 -> 0.1592427617

Sheet Chart 9
A1: Back to contents
A3: Average (mean) monthly rents for 4 Bedroom Properties in 2017 (year to end-Sept)
A4: 4 Bedroom Properties | B4: £ monthly
A5: Lothian | B5: 1592.26
A6: East Dunbartonshire | B6: 1551.67
A7: Greater Glasgow | B7: 1523.85
A8: Aberdeen and Shire | B8: 1168.92
A9: Scotland | B9: 1142.55
A10: South Lanarkshire | B10: 1096.76
A11: Renfrewshire / Inverclyde | B11: 1095.42
A12: Forth Valley | B12: 1094.93
A13: Dundee and Angus | B13: 1047.22
A14: Perth and Kinross | B14: 1018.42
A15: Argyll and Bute | B15: 980.26
A16: West Lothian | B16: 975.1
A17: Fife | B17: 917.22
A18: Ayrshires | B18: 906.8
A19: North Lanarkshire | B19: 889.42
A20: West Dunbartonshire | B20: 886
A21: Highland and Islands | B21: 827.9
A22: Scottish Borders | B22: 750.14
A23: Dumfries and Galloway | B23: 702.46

Sheet Table 5, Chart 10
A1: Back to contents
A3: TABLE 5: 1 Bedroom Shared Properties - Average (mean) Monthly Rents (£): Cumulative Changes 2010 to 2017, by Broad Rental Market Area
B4: 2010 | C4: 2016 | D4: 2017 | E4: 2010 to 2017 change | F4: 2016 to 2017 change | S4: Cumulative CPI - 2010 to 2017
A5: Forth Valley | B5: 275.63 | C5: 350.9 | D5: 357.06 | E5: 0.2954322824 | F5: 0.01755485893 | S5: ='Summary table'!$B$35 -> 0.1592427617
A6: Fife | B6: 270.66 | C6: 367.97 | D6: 347.5 | E6: 0.2838986182 | F6: -0.05562953502 | S6: ='Summary table'!$B$35 -> 0.1592427617
A7: East Dunbartonshire | B7: 300.36 | C7: 324.78 | D7: 385.4 | E7: 0.2831269144 | F7: 0.1866494242 | S7: ='Summary table'!$B$35 -> 0.1592427617
A8: Greater Glasgow | B8: 313.1 | C8: 372.15 | D8: 385.58 | E8: 0.2314915363 | F8: 0.03608759909 | S8: ='Summary table'!$B$35 -> 0.1592427617
A9: Scottish Borders | B9: 255.63 | C9: 270.22 | D9: 312.18 | E9: 0.2212181669 | F9: 0.1552808822 | S9: ='Summary table'!$B$35 -> 0.1592427617
A10: Lothian | B10: 319.85 | C10: 367.86 | D10: 390.14 | E10: 0.2197592622 | F10: 0.06056651987 | S10: ='Summary table'!$B$35 -> 0.1592427617
A11: South Lanarkshire | B11: 309.07 | C11: 315.1 | D11: 371.17 | E11: 0.2009253567 | F11: 0.17794351 | S11: ='Summary table'!$B$35 -> 0.1592427617
A12: West Lothian | B12: 278.75 | C12: 318.32 | D12: 331.66 | E12: 0.1898116592 | F12: 0.04190751445 | S12: ='Summary table'!$B$35 -> 0.1592427617
A13: Dundee and Angus | B13: 262.86 | C13: 295.72 | D13: 309.21 | E13: 0.1763296051 | F13: 0.04561747599 | S13: ='Summary table'!$B$35 -> 0.1592427617
A14: Perth and Kinross | B14: 261.86 | C14: 288.35 | D14: 307.91 | E14: 0.1758573283 | F14: 0.06783422924 | S14: ='Summary table'!$B$35 -> 0.1592427617
A15: North Lanarkshire | B15: 296.88 | C15: 319.96 | D15: 346.7 | E15: 0.1678119105 | F15: 0.08357294662 | S15: ='Summary table'!$B$35 -> 0.1592427617
A16: Scotland | B16: 299.8 | C16: 339.52 | D16: 349.63 | E16: 0.1662108072 | F16: 0.0297773327 | S16: ='Summary table'!$B$35 -> 0.1592427617
A17: West Dunbartonshire | B17: 288.89 | C17: 322.09 | D17: 331.01 | E17: 0.1457994392 | F17: 0.02769412276 | S17: ='Summary table'!$B$35 -> 0.1592427617
A18: Highland and Islands | B18: 287.37 | C18: 319.81 | D18: 327.29 | E18: 0.1389149876 | F18: 0.02338888715 | S18: ='Summary table'!$B$35 -> 0.1592427617
A19: Ayrshires | B19: 301.7 | C19: 335.13 | D19: 338.11 | E19: 0.1206827975 | F19: 0.008892071733 | S19: ='Summary table'!$B$35 -> 0.1592427617
A20: Aberdeen and Shire | B20: 328.42 | C20: 404.11 | D20: 358.31 | E20: 0.09101150965 | F20: -0.113335478 | S20: ='Summary table'!$B$35 -> 0.1592427617
A21: Dumfries and Galloway | B21: 277.88 | C21: 284.72 | D21: 291.95 | E21: 0.05063336692 | F21: 0.02539336892 | S21: ='Summary table'!$B$35 -> 0.1592427617
A22: Renfrewshire / Inverclyde | B22: 296.26 | C22: 304.03 | D22: 304.21 | E22: 0.02683453723 | F22: 0.0005920468375 | S22: ='Summary table'!$B$35 -> 0.1592427617
A23: Argyll and Bute | B23: 315.6 | C23: 301.85 | D23: 300.83 | E23: -0.04679974651 | F23: -0.003379161835 | S23: ='Summary table'!$B$35 -> 0.1592427617

Sheet Chart 11
A1: Back to contents
A3: Average (mean) monthly rents for 1 Bedroom Shared Properties in 2017 (year to end-Sept)
A4: 1 Bedroom Shared Properties | B4: £ monthly
A5: Lothian | B5: 390.14
A6: Greater Glasgow | B6: 385.58
A7: East Dunbartonshire | B7: 385.4
A8: South Lanarkshire | B8: 371.17
A9: Aberdeen and Shire | B9: 358.31
A10: Forth Valley | B10: 357.06
A11: Scotland | B11: 349.63
A12: Fife | B12: 347.5
A13: North Lanarkshire | B13: 346.7
A14: Ayrshires | B14: 338.11
A15: West Lothian | B15: 331.66
A16: West Dunbartonshire | B16: 331.01
A17: Highland and Islands | B17: 327.29
A18: Scottish Borders | B18: 312.18
A19: Dundee and Angus | B19: 309.21
A20: Perth and Kinross | B20: 307.91
A21: Renfrewshire / Inverclyde | B21: 304.21
A22: Argyll and Bute | B22: 300.83
A23: Dumfries and Galloway | B23: 291.95
A24: Note: Figures for rooms in shared properties represent "rent only", i.e. exclude any payments for shared services

Sheet BRMA Profile - Aberdeen and Shi (hidden)
A1: BRMA Rent Profile for:
A2: Aberdeen and Shire | I2: =ROUND(MIN(J6:P9,J28:P31,J50:P53,J72:P75,J94:P97)-0.01,2) -> -0.21 | J2: =ROUND(MAX(J6:P9,J28:P31,J50:P53,J72:P75,J94:P97)+0.01,2) -> 0.51
A4: 1 Bedroom Properties - Quartile Measures: | I4: 1 Bedroom Properties - Annual changes and 6-yr cumulative change:
B5: 2010 | C5: 2011 | D5: 2012 | E5: 2013 | F5: 2014 | G5: 2015 | H5: 2016 | J5: 2010 to 2011 | K5: 2011 to 2012 | L5: 2012 to 2013 | M5: 2013 to 2014 | N5: 2014 to 2015 | O5: 2015 to 2016 | P5: 2010 to 2016
A6: Lower Quartile | B6: =VLOOKUP($A$2,'Table 7'!$A$5:$L$23,3,FALSE) -> 500 | C6: =VLOOKUP($A$2,'Table 8'!$A$5:$L$23,3,FALSE) -> 500 | D6: =VLOOKUP($A$2,'Table 9'!$A$5:$L$23,3,FALSE) -> 520 | E6: =VLOOKUP($A$2,'Table 10'!$A$5:$L$23,3,FALSE) -> 550 | F6: =VLOOKUP($A$2,'Table 11'!$A$5:$L$23,3,FALSE) -> 625 | G6: =VLOOKUP($A$2,'Table 12'!$A$5:$L$23,3,FALSE) -> 625 | H6: =VLOOKUP($A$2,'Table 13'!$A$5:$L$23,3,FALSE) -> 510 | I6: Lower Quartile | J6: =C6/B6-1 -> 0 | K6: 0.04 | L6: 0.05769230769 | M6: 0.1363636364 | N6: 0 | O6: =H6/G6-1 -> -0.184 | P6: =H6/B6-1 -> 0.02
A7: Median | B7: =VLOOKUP($A$2,'Table 7'!$A$5:$L$23,4,FALSE) -> 525 | C7: =VLOOKUP($A$2,'Table 8'!$A$5:$L$23,4,FALSE) -> 550 | D7: =VLOOKUP($A$2,'Table 9'!$A$5:$L$23,4,FALSE) -> 550 | E7: =VLOOKUP($A$2,'Table 10'!$A$5:$L$23,4,FALSE) -> 600 | F7: =VLOOKUP($A$2,'Table 11'!$A$5:$L$23,4,FALSE) -> 650 | G7: =VLOOKUP($A$2,'Table 12'!$A$5:$L$23,4,FALSE) -> 675 | H7: =VLOOKUP($A$2,'Table 13'!$A$5:$L$23,4,FALSE) -> 550 | I7: Median | J7: =C7/B7-1 -> 0.04761904762 | K7: 0 | L7: 0.09090909091 | M7: 0.08333333333 | N7: 0.03846153846 | O7: =H7/G7-1 -> -0.1851851852 | P7: =H7/B7-1 -> 0.04761904762
A8: Mean | B8: =VLOOKUP($A$2,'Table 7'!$A$5:$L$23,5,FALSE) -> 528.64 | C8: =VLOOKUP($A$2,'Table 8'!$A$5:$L$23,5,FALSE) -> 540.49 | D8: =VLOOKUP($A$2,'Table 9'!$A$5:$L$23,5,FALSE) -> 555.25 | E8: =VLOOKUP($A$2,'Table 10'!$A$5:$L$23,5,FALSE) -> 600.18 | F8: =VLOOKUP($A$2,'Table 11'!$A$5:$L$23,5,FALSE) -> 663.52 | G8: =VLOOKUP($A$2,'Table 12'!$A$5:$L$23,5,FALSE) -> 666.96 | H8: =VLOOKUP($A$2,'Table 13'!$A$5:$L$23,5,FALSE) -> 565.87 | I8: Mean | J8: 0.0224160109 | K8: 0.02730855335 | L8: 0.08091850518 | M8: 0.1055350062 | N8: 0.005184470702 | O8: -0.1515683099 | P8: 0.07042599879
A9: Upper Quartile | B9: =VLOOKUP($A$2,'Table 7'!$A$5:$L$23,6,FALSE) -> 575 | C9: =VLOOKUP($A$2,'Table 8'!$A$5:$L$23,6,FALSE) -> 575 | D9: =VLOOKUP($A$2,'Table 9'!$A$5:$L$23,6,FALSE) -> 600 | E9: =VLOOKUP($A$2,'Table 10'!$A$5:$L$23,6,FALSE) -> 650 | F9: =VLOOKUP($A$2,'Table 11'!$A$5:$L$23,6,FALSE) -> 725 | G9: =VLOOKUP($A$2,'Table 12'!$A$5:$L$23,6,FALSE) -> 700 | H9: =VLOOKUP($A$2,'Table 13'!$A$5:$L$23,6,FALSE) -> 600 | I9: Upper Quartile | J9: 0 | K9: 0.04347826087 | L9: 0.08333333333 | M9: 0.1153846154 | N9: -0.03448275862 | O9: -0.1428571429 | P9: 0.04347826087
A26: 2 Bedroom Properties: | I26: 2 Bedroom Properties - Annual changes and 6-yr cumulative change:
B27: 2010 | C27: 2011 | D27: 2012 | E27: 2013 | F27: 2014 | G27: 2015 | H27: 2016 | J27: 2010 to 2011 | K27: 2011 to 2012 | L27: 2012 to 2013 | M27: 2013 to 2014 | N27: 2014 to 2015 | O27: 2015 to 2016 | P27: 2010 to 2016
A28: Lower Quartile | B28: =VLOOKUP($A$2,'Table 7'!$A$5:$L$23,9,FALSE) -> 590 | C28: =VLOOKUP($A$2,'Table 8'!$A$5:$L$23,9,FALSE) -> 600 | D28: =VLOOKUP($A$2,'Table 9'!$A$5:$L$23,9,FALSE) -> 650 | E28: =VLOOKUP($A$2,'Table 10'!$A$5:$L$23,9,FALSE) -> 700 | F28: =VLOOKUP($A$2,'Table 11'!$A$5:$L$23,9,FALSE) -> 795 | G28: =VLOOKUP($A$2,'Table 12'!$A$5:$L$23,9,FALSE) -> 795 | H28: =VLOOKUP($A$2,'Table 13'!$A$5:$L$23,9,FALSE) -> 675 | I28: Lower Quartile | J28: =C28/B28-1 -> 0.01694915254 | K28: 0.08333333333 | L28: 0.07692307692 | M28: 0.1357142857 | N28: 0 | O28: =H28/G28-1 -> -0.1509433962 | P28: =H28/B28-1 -> 0.1440677966
A29: Median | B29: =VLOOKUP($A$2,'Table 7'!$A$5:$L$23,10,FALSE) -> 650 | C29: =VLOOKUP($A$2,'Table 8'!$A$5:$L$23,10,FALSE) -> 695 | D29: =VLOOKUP($A$2,'Table 9'!$A$5:$L$23,10,FALSE) -> 700 | E29: =VLOOKUP($A$2,'Table 10'!$A$5:$L$23,10,FALSE) -> 800 | F29: =VLOOKUP($A$2,'Table 11'!$A$5:$L$23,10,FALSE) -> 875 | G29: =VLOOKUP($A$2,'Table 12'!$A$5:$L$23,10,FALSE) -> 875 | H29: =VLOOKUP($A$2,'Table 13'!$A$5:$L$23,10,FALSE) -> 750 | I29: Median | J29: 0.06923076923 | K29: 0.007194244604 | L29: 0.1428571429 | M29: 0.09375 | N29: 0 | O29: =H29/G29-1 -> -0.1428571429 | P29: =H29/B29-1 -> 0.1538461538
A30: Mean | B30: =VLOOKUP($A$2,'Table 7'!$A$5:$L$23,11,FALSE) -> 642.58 | C30: =VLOOKUP($A$2,'Table 8'!$A$5:$L$23,11,FALSE) -> 670.81 | D30: =VLOOKUP($A$2,'Table 9'!$A$5:$L$23,11,FALSE) -> 701.44 | E30: =VLOOKUP($A$2,'Table 10'!$A$5:$L$23,11,FALSE) -> 819.48 | F30: =VLOOKUP($A$2,'Table 11'!$A$5:$L$23,11,FALSE) -> 898.08 | G30: =VLOOKUP($A$2,'Table 12'!$A$5:$L$23,11,FALSE) -> 873.8 | H30: =VLOOKUP($A$2,'Table 13'!$A$5:$L$23,11,FALSE) -> 754.39 | I30: Mean | J30: 0.04393227302 | K30: 0.04566121555 | L30: 0.1682823905 | M30: 0.09591448235 | N30: -0.02703545341 | O30: =H30/G30-1 -> -0.1366559854 | P30: 0.1740016807
A31: Upper Quartile | B31: =VLOOKUP($A$2,'Table 7'!$A$5:$L$23,12,FALSE) -> 700 | C31: =VLOOKUP($A$2,'Table 8'!$A$5:$L$23,12,FALSE) -> 750 | D31: =VLOOKUP($A$2,'Table 9'!$A$5:$L$23,12,FALSE) -> 775 | E31: =VLOOKUP($A$2,'Table 10'!$A$5:$L$23,12,FALSE) -> 900 | F31: =VLOOKUP($A$2,'Table 11'!$A$5:$L$23,12,FALSE) -> 1000 | G31: =VLOOKUP($A$2,'Table 12'!$A$5:$L$23,12,FALSE) -> 950 | H31: =VLOOKUP($A$2,'Table 13'!$A$5:$L$23,12,FALSE) -> 800 | I31: Upper Quartile | J31: 0.07142857143 | K31: 0.03333333333 | L31: 0.1612903226 | M31: 0.1111111111 | N31: -0.05 | O31: =H31/G31-1 -> -0.1578947368 | P31: 0.1428571429
A48: 3 Bedroom Properties: | I48: 3 Bedroom Properties - Annual changes and 6-yr cumulative change:
B49: 2010 | C49: 2011 | D49: 2012 | E49: 2013 | F49: 2014 | G49: 2015 | H49: 2016 | J49: 2010 to 2011 | K49: 2011 to 2012 | L49: 2012 to 2013 | M49: 2013 to 2014 | N49: 2014 to 2015 | O49: 2015 to 2016 | P49: 2010 to 2016
A50: Lower Quartile | B50: =VLOOKUP($A$2,'Table 7'!$A$26:$L$44,3,FALSE) -> 650 | C50: =VLOOKUP($A$2,'Table 8'!$A$26:$L$44,3,FALSE) -> 650 | D50: =VLOOKUP($A$2,'Table 9'!$A$26:$L$44,3,FALSE) -> 700 | E50: =VLOOKUP($A$2,'Table 10'!$A$26:$L$44,3,FALSE) -> 775 | F50: =VLOOKUP($A$2,'Table 11'!$A$26:$L$44,3,FALSE) -> 850 | G50: =VLOOKUP($A$2,'Table 12'!$A$26:$L$44,3,FALSE) -> 900 | H50: =VLOOKUP($A$2,'Table 13'!$A$26:$L$44,3,FALSE) -> 800 | I50: Lower Quartile | J50: =C50/B50-1 -> 0 | K50: 0.07692307692 | L50: 0.1071428571 | M50: 0.09677419355 | N50: 0.05882352941 | O50: =H50/G50-1 -> -0.1111111111 | P50: =H50/B50-1 -> 0.2307692308
A51: Median | B51: =VLOOKUP($A$2,'Table 7'!$A$26:$L$44,4,FALSE) -> 750 | C51: =VLOOKUP($A$2,'Table 8'!$A$26:$L$44,4,FALSE) -> 750 | D51: =VLOOKUP($A$2,'Table 9'!$A$26:$L$44,4,FALSE) -> 825 | E51: =VLOOKUP($A$2,'Table 10'!$A$26:$L$44,4,FALSE) -> 950 | F51: =VLOOKUP($A$2,'Table 11'!$A$26:$L$44,4,FALSE) -> 1100 | G51: =VLOOKUP($A$2,'Table 12'!$A$26:$L$44,4,FALSE) -> 1100 | H51: =VLOOKUP($A$2,'Table 13'!$A$26:$L$44,4,FALSE) -> 900 | I51: Median | J51: 0 | K51: 0.1 | L51: 0.1515151515 | M51: 0.1578947368 | N51: 0 | O51: =H51/G51-1 -> -0.1818181818 | P51: =H51/B51-1 -> 0.2
A52: Mean | B52: =VLOOKUP($A$2,'Table 7'!$A$26:$L$44,5,FALSE) -> 743.67 | C52: =VLOOKUP($A$2,'Table 8'!$A$26:$L$44,5,FALSE) -> 752.95 | D52: =VLOOKUP($A$2,'Table 9'!$A$26:$L$44,5,FALSE) -> 827.09 | E52: =VLOOKUP($A$2,'Table 10'!$A$26:$L$44,5,FALSE) -> 1019.32 | F52: =VLOOKUP($A$2,'Table 11'!$A$26:$L$44,5,FALSE) -> 1089.01 | G52: =VLOOKUP($A$2,'Table 12'!$A$26:$L$44,5,FALSE) -> 1072.46 | H52: =VLOOKUP($A$2,'Table 13'!$A$26:$L$44,5,FALSE) -> 930.15 | I52: Mean | J52: 0.01247865317 | K52: 0.0984660336 | L52: 0.2324172702 | M52: 0.06836910882 | N52: -0.01519728928 | O52: =H52/G52-1 -> -0.1326949257 | P52: 0.2507563839
A53: Upper Quartile | B53: =VLOOKUP($A$2,'Table 7'!$A$26:$L$44,6,FALSE) -> 850 | C53: =VLOOKUP($A$2,'Table 8'!$A$26:$L$44,6,FALSE) -> 875 | D53: =VLOOKUP($A$2,'Table 9'!$A$26:$L$44,6,FALSE) -> 950 | E53: =VLOOKUP($A$2,'Table 10'!$A$26:$L$44,6,FALSE) -> 1200 | F53: =VLOOKUP($A$2,'Table 11'!$A$26:$L$44,6,FALSE) -> 1300 | G53: =VLOOKUP($A$2,'Table 12'!$A$26:$L$44,6,FALSE) -> 1250 | H53: =VLOOKUP($A$2,'Table 13'!$A$26:$L$44,6,FALSE) -> 1050 | I53: Upper Quartile | J53: 0.02941176471 | K53: 0.08571428571 | L53: 0.2631578947 | M53: 0.08333333333 | N53: -0.03846153846 | O53: =H53/G53-1 -> -0.16 | P53: 0.2352941176
A70: 4 Bedroom Properties: | I70: 4 Bedroom Properties - Annual changes and 6-yr cumulative change:
B71: 2010 | C71: 2011 | D71: 2012 | E71: 2013 | F71: 2014 | G71: 2015 | H71: 2016 | J71: 2010 to 2011 | K71: 2011 to 2012 | L71: 2012 to 2013 | M71: 2013 to 2014 | N71: 2014 to 2015 | O71: 2015 to 2016 | P71: 2010 to 2016
A72: Lower Quartile | B72: =VLOOKUP($A$2,'Table 7'!$A$26:$L$44,9,FALSE) -> 850 | C72: =VLOOKUP($A$2,'Table 8'!$A$26:$L$44,9,FALSE) -> 850 | D72: =VLOOKUP($A$2,'Table 9'!$A$26:$L$44,9,FALSE) -> 900 | E72: =VLOOKUP($A$2,'Table 10'!$A$26:$L$44,9,FALSE) -> 1100 | F72: =VLOOKUP($A$2,'Table 11'!$A$26:$L$44,9,FALSE) -> 1200 | G72: =VLOOKUP($A$2,'Table 12'!$A$26:$L$44,9,FALSE) -> 1250 | H72: =VLOOKUP($A$2,'Table 13'!$A$26:$L$44,9,FALSE) -> 1000 | I72: Lower Quartile | J72: =C72/B72-1 -> 0 | K72: 0.05882352941 | L72: 0.2222222222 | M72: 0.09090909091 | N72: 0.04166666667 | O72: =H72/G72-1 -> -0.2 | P72: =H72/B72-1 -> 0.1764705882
A73: Median | B73: =VLOOKUP($A$2,'Table 7'!$A$26:$L$44,10,FALSE) -> 950 | C73: =VLOOKUP($A$2,'Table 8'!$A$26:$L$44,10,FALSE) -> 995 | D73: =VLOOKUP($A$2,'Table 9'!$A$26:$L$44,10,FALSE) -> 1100 | E73: =VLOOKUP($A$2,'Table 10'!$A$26:$L$44,10,FALSE) -> 1400 | F73: =VLOOKUP($A$2,'Table 11'!$A$26:$L$44,10,FALSE) -> 1550 | G73: =VLOOKUP($A$2,'Table 12'!$A$26:$L$44,10,FALSE) -> 1450 | H73: =VLOOKUP($A$2,'Table 13'!$A$26:$L$44,10,FALSE) -> 1200 | I73: Median | J73: 0.04736842105 | K73: 0.1055276382 | L73: 0.2727272727 | M73: 0.1071428571 | N73: -0.06451612903 | O73: =H73/G73-1 -> -0.1724137931 | P73: =H73/B73-1 -> 0.2631578947
A74: Mean | B74: =VLOOKUP($A$2,'Table 7'!$A$26:$L$44,11,FALSE) -> 943.66 | C74: =VLOOKUP($A$2,'Table 8'!$A$26:$L$44,11,FALSE) -> 1017.76 | D74: =VLOOKUP($A$2,'Table 9'!$A$26:$L$44,11,FALSE) -> 1105.08 | E74: =VLOOKUP($A$2,'Table 10'!$A$26:$L$44,11,FALSE) -> 1484.07 | F74: =VLOOKUP($A$2,'Table 11'!$A$26:$L$44,11,FALSE) -> 1564.74 | G74: =VLOOKUP($A$2,'Table 12'!$A$26:$L$44,11,FALSE) -> 1492.52 | H74: =VLOOKUP($A$2,'Table 13'!$A$26:$L$44,11,FALSE) -> 1291.33 | I74: Mean | J74: 0.07852404468 | K74: 0.08579625845 | L74: 0.3429525464 | M74: 0.05435727425 | N74: -0.04615463272 | O74: -0.1347988637 | P74: 0.3684271878
A75: Upper Quartile | B75: =VLOOKUP($A$2,'Table 7'!$A$26:$L$44,12,FALSE) -> 1000 | C75: =VLOOKUP($A$2,'Table 8'!$A$26:$L$44,12,FALSE) -> 1200 | D75: =VLOOKUP($A$2,'Table 9'!$A$26:$L$44,12,FALSE) -> 1300 | E75: =VLOOKUP($A$2,'Table 10'!$A$26:$L$44,12,FALSE) -> 1800 | F75: =VLOOKUP($A$2,'Table 11'!$A$26:$L$44,12,FALSE) -> 1850 | G75: =VLOOKUP($A$2,'Table 12'!$A$26:$L$44,12,FALSE) -> 1700 | H75: =VLOOKUP($A$2,'Table 13'!$A$26:$L$44,12,FALSE) -> 1500 | I75: Upper Quartile | J75: 0.2 | K75: 0.08333333333 | L75: 0.3846153846 | M75: 0.02777777778 | N75: -0.08108108108 | O75: -0.1176470588 | P75: 0.5
A92: 1 Bedroom Shared Properties: | I92: 1 Bedroom Shared Properties - Annual changes and 6-yr cumulative change:
B93: 2010 | C93: 2011 | D93: 2012 | E93: 2013 | F93: 2014 | G93: 2015 | H93: 2016 | J93: 2010 to 2011 | K93: 2011 to 2012 | L93: 2012 to 2013 | M93: 2013 to 2014 | N93: 2014 to 2015 | O93: 2015 to 2016 | P93: 2010 to 2016
A94: Lower Quartile | B94: =VLOOKUP($A$2,'Table 7'!$A$47:$F$65,3,FALSE) -> 286 | C94: =VLOOKUP($A$2,'Table 8'!$A$47:$F$65,3,FALSE) -> 285 | D94: =VLOOKUP($A$2,'Table 9'!$A$47:$F$65,3,FALSE) -> 300 | E94: =VLOOKUP($A$2,'Table 10'!$A$47:$F$65,3,FALSE) -> 316.33 | F94: =VLOOKUP($A$2,'Table 11'!$A$47:$F$65,3,FALSE) -> 345 | G94: =VLOOKUP($A$2,'Table 12'!$A$47:$F$65,3,FALSE) -> 375 | H94: =VLOOKUP($A$2,'Table 13'!$A$47:$F$65,3,FALSE) -> 350 | I94: Lower Quartile | J94: =C94/B94-1 -> -0.003496503497 | K94: 0.05263157895 | L94: 0.05443333333 | M94: 0.09063319951 | N94: 0.08695652174 | O94: =H94/G94-1 -> -0.06666666667 | P94: =H94/B94-1 -> 0.2237762238
A95: Median | B95: =VLOOKUP($A$2,'Table 7'!$A$47:$F$65,4,FALSE) -> 335 | C95: =VLOOKUP($A$2,'Table 8'!$A$47:$F$65,4,FALSE) -> 325 | D95: =VLOOKUP($A$2,'Table 9'!$A$47:$F$65,4,FALSE) -> 340 | E95: =VLOOKUP($A$2,'Table 10'!$A$47:$F$65,4,FALSE) -> 350 | F95: =VLOOKUP($A$2,'Table 11'!$A$47:$F$65,4,FALSE) -> 400 | G95: =VLOOKUP($A$2,'Table 12'!$A$47:$F$65,4,FALSE) -> 407.5 | H95: =VLOOKUP($A$2,'Table 13'!$A$47:$F$65,4,FALSE) -> 400 | I95: Median | J95: -0.02985074627 | K95: 0.04615384615 | L95: 0.02941176471 | M95: 0.1428571429 | N95: 0.01875 | O95: =H95/G95-1 -> -0.01840490798 | P95: =H95/B95-1 -> 0.1940298507
A96: Mean | B96: =VLOOKUP($A$2,'Table 7'!$A$47:$F$65,5,FALSE) -> 328.42 | C96: =VLOOKUP($A$2,'Table 8'!$A$47:$F$65,5,FALSE) -> 322.86 | D96: =VLOOKUP($A$2,'Table 9'!$A$47:$F$65,5,FALSE) -> 338.34 | E96: =VLOOKUP($A$2,'Table 10'!$A$47:$F$65,5,FALSE) -> 365.66 | F96: =VLOOKUP($A$2,'Table 11'!$A$47:$F$65,5,FALSE) -> 401.77 | G96: =VLOOKUP($A$2,'Table 12'!$A$47:$F$65,5,FALSE) -> 433.46 | H96: =VLOOKUP($A$2,'Table 13'!$A$47:$F$65,5,FALSE) -> 404.11 | I96: Mean | J96: -0.01692954144 | K96: 0.04794647835 | L96: 0.0807471774 | M96: 0.09875293989 | N96: 0.07887597382 | O96: -0.06771097679 | P96: 0.2304670848
A97: Upper Quartile | B97: =VLOOKUP($A$2,'Table 7'!$A$47:$F$65,6,FALSE) -> 360 | C97: =VLOOKUP($A$2,'Table 8'!$A$47:$F$65,6,FALSE) -> 355 | D97: =VLOOKUP($A$2,'Table 9'!$A$47:$F$65,6,FALSE) -> 375 | E97: =VLOOKUP($A$2,'Table 10'!$A$47:$F$65,6,FALSE) -> 400 | F97: =VLOOKUP($A$2,'Table 11'!$A$47:$F$65,6,FALSE) -> 450 | G97: =VLOOKUP($A$2,'Table 12'!$A$47:$F$65,6,FALSE) -> 500 | H97: =VLOOKUP($A$2,'Table 13'!$A$47:$F$65,6,FALSE) -> 450 | I97: Upper Quartile | J97: -0.01388888889 | K97: 0.05633802817 | L97: 0.06666666667 | M97: 0.125 | N97: 0.1111111111 | O97: -0.1 | P97: 0.25
A116: Mean Rents by Property Size: | I116: Median Rents by Property Size:
B117: 2010 | C117: 2011 | D117: 2012 | E117: 2013 | F117: 2014 | G117: 2015 | H117: 2016 | J117: 2010 | K117: 2011 | L117: 2012 | M117: 2013 | N117: 2014 | O117: 2015 | P117: 2016
A118: 1 Bedroom Shared | B118: =B96 -> 328.42 | C118: 322.86 | D118: 338.34 | E118: 365.66 | F118: 401.77 | G118: 433.46 | H118: =H96 -> 404.11 | I118: 1 Bedroom Shared | J118: =B95 -> 335 | K118: 325 | L118: 340 | M118: 350 | N118: 400 | O118: =G95 -> 407.5 | P118: =H95 -> 400
A119: 1 Bedroom | B119: =B8 -> 528.64 | C119: 540.49 | D119: 555.25 | E119: 600.18 | F119: 663.52 | G119: 666.96 | H119: =H8 -> 565.87 | I119: 1 Bedroom | J119: =B7 -> 525 | K119: 550 | L119: 550 | M119: 600 | N119: 650 | O119: =G7 -> 675 | P119: =H7 -> 550
A120: 2 Bedrooms | B120: =B30 -> 642.58 | C120: 670.81 | D120: 701.44 | E120: 819.48 | F120: 898.08 | G120: 873.8 | H120: =H30 -> 754.39 | I120: 2 Bedrooms | J120: =B29 -> 650 | K120: 695 | L120: 700 | M120: 800 | N120: 875 | O120: =G29 -> 875 | P120: =H29 -> 750
A121: 3 Bedrooms | B121: =B52 -> 743.67 | C121: 752.95 | D121: 827.09 | E121: 1019.32 | F121: 1089.01 | G121: 1072.46 | H121: =H52 -> 930.15 | I121: 3 Bedrooms | J121: =B51 -> 750 | K121: 750 | L121: 825 | M121: 950 | N121: 1100 | O121: =G51 -> 1100 | P121: =H51 -> 900
A122: 4 Bedrooms | B122: =B74 -> 943.66 | C122: 1017.76 | D122: 1105.08 | E122: 1484.07 | F122: 1564.74 | G122: 1492.52 | H122: =H74 -> 1291.33 | I122: 4 Bedrooms | J122: =B73 -> 950 | K122: 995 | L122: 1100 | M122: 1400 | N122: 1550 | O122: =G73 -> 1450 | P122: =H73 -> 1200
A140: Sample Sizes: | I140: Sample Proportions:
B141: 2010 | C141: 2011 | D141: 2012 | E141: 2013 | F141: 2014 | G141: 2015 | H141: 2016 | J141: 2010 | K141: 2011 | L141: 2012 | M141: 2013 | N141: 2014 | O141: 2015 | P141: 2016
A142: 1 Bedroom | B142: =VLOOKUP($A$2,'Table 7'!$A$5:$L$23,2,FALSE) -> 541 | C142: =VLOOKUP($A$2,'Table 8'!$A$5:$L$23,2,FALSE) -> 691 | D142: =VLOOKUP($A$2,'Table 9'!$A$5:$L$23,2,FALSE) -> 690 | E142: =VLOOKUP($A$2,'Table 10'!$A$5:$L$23,2,FALSE) -> 534 | F142: =VLOOKUP($A$2,'Table 11'!$A$5:$L$23,2,FALSE) -> 561 | G142: =VLOOKUP($A$2,'Table 12'!$A$5:$L$23,2,FALSE) -> 596 | H142: =VLOOKUP($A$2,'Table 13'!$A$5:$L$23,2,FALSE) -> 738 | I142: 1 Bedroom | J142: =B142/SUM(B$142:B$146) -> 0.3421884883 | K142: =C142/SUM(C$142:C$146) -> 0.3016150153 | L142: 0.2547065338 | M142: 0.2211180124 | N142: 0.2290730911 | O142: =G142/SUM(G$142:G$146) -> 0.2430668842 | P142: 0.2635714286
A143: 2 Bedrooms | B143: =VLOOKUP($A$2,'Table 7'!$A$5:$L$23,8,FALSE) -> 557 | C143: =VLOOKUP($A$2,'Table 8'!$A$5:$L$23,8,FALSE) -> 870 | D143: =VLOOKUP($A$2,'Table 9'!$A$5:$L$23,8,FALSE) -> 1062 | E143: =VLOOKUP($A$2,'Table 10'!$A$5:$L$23,8,FALSE) -> 967 | F143: =VLOOKUP($A$2,'Table 11'!$A$5:$L$23,8,FALSE) -> 1025 | G143: =VLOOKUP($A$2,'Table 12'!$A$5:$L$23,8,FALSE) -> 1009 | H143: =VLOOKUP($A$2,'Table 13'!$A$5:$L$23,8,FALSE) -> 1271 | I143: 2 Bedrooms | J143: =B143/SUM(B$142:B$146) -> 0.3523086654 | K143: 0.3797468354 | L143: 0.3920265781 | M143: 0.4004140787 | N143: 0.4185381788 | O143: 0.4115008157 | P143: 0.4539285714
A144: 3 Bedrooms | B144: =VLOOKUP($A$2,'Table 7'!$A$26:$L$44,2,FALSE) -> 226 | C144: =VLOOKUP($A$2,'Table 8'!$A$26:$L$44,2,FALSE) -> 364 | D144: =VLOOKUP($A$2,'Table 9'!$A$26:$L$44,2,FALSE) -> 486 | E144: =VLOOKUP($A$2,'Table 10'!$A$26:$L$44,2,FALSE) -> 448 | F144: =VLOOKUP($A$2,'Table 11'!$A$26:$L$44,2,FALSE) -> 422 | G144: =VLOOKUP($A$2,'Table 12'!$A$26:$L$44,2,FALSE) -> 428 | H144: =VLOOKUP($A$2,'Table 13'!$A$26:$L$44,2,FALSE) -> 412 | I144: 3 Bedrooms | J144: =B144/SUM(B$142:B$146) -> 0.1429475016 | K144: 0.158882584 | L144: 0.1794019934 | M144: 0.1855072464 | N144: 0.1723152307 | O144: 0.1745513866 | P144: 0.1471428571
A145: 4 Bedrooms | B145: =VLOOKUP($A$2,'Table 7'!$A$26:$L$44,8,FALSE) -> 123 | C145: =VLOOKUP($A$2,'Table 8'!$A$26:$L$44,8,FALSE) -> 174 | D145: =VLOOKUP($A$2,'Table 9'!$A$26:$L$44,8,FALSE) -> 239 | E145: =VLOOKUP($A$2,'Table 10'!$A$26:$L$44,8,FALSE) -> 324 | F145: =VLOOKUP($A$2,'Table 11'!$A$26:$L$44,8,FALSE) -> 293 | G145: =VLOOKUP($A$2,'Table 12'!$A$26:$L$44,8,FALSE) -> 281 | H145: =VLOOKUP($A$2,'Table 13'!$A$26:$L$44,8,FALSE) -> 275 | I145: 4 Bedrooms | J145: =B145/SUM(B$142:B$146) -> 0.07779886148 | K145: 0.07594936709 | L145: 0.08822443706 | M145: 0.1341614907 | N145: 0.1196406697 | O145: 0.1146003263 | P145: 0.09821428571
A146: 1 Bedroom Shared | B146: =VLOOKUP($A$2,'Table 7'!$A$47:$L$65,2,FALSE) -> 134 | C146: =VLOOKUP($A$2,'Table 8'!$A$47:$L$65,2,FALSE) -> 192 | D146: =VLOOKUP($A$2,'Table 9'!$A$47:$L$65,2,FALSE) -> 232 | E146: =VLOOKUP($A$2,'Table 10'!$A$47:$L$65,2,FALSE) -> 142 | F146: =VLOOKUP($A$2,'Table 11'!$A$47:$L$65,2,FALSE) -> 148 | G146: =VLOOKUP($A$2,'Table 12'!$A$47:$L$65,2,FALSE) -> 138 | H146: =VLOOKUP($A$2,'Table 13'!$A$47:$L$65,2,FALSE) -> 104 | I146: 1 Bedroom Shared | J146: =B146/SUM(B$142:B$146) -> 0.08475648324 | K146: 0.08380619817 | L146: 0.08564045773 | M146: 0.05879917184 | N146: 0.06043282973 | O146: 0.05628058728 | P146: 0.03714285714

Sheet BRMA Profile - Argyll and Bute (hidden)
A1: BRMA Rent Profile for:
A2: Aberdeen and Shire | I2: =ROUND(MIN(J6:P9,J28:P31,J50:P53,J72:P75,J94:P97)-0.01,2) -> -0.21 | J2: =ROUND(MAX(J6:P9,J28:P31,J50:P53,J72:P75,J94:P97)+0.01,2) -> 0.51
A4: 1 Bedroom Properties - Quartile Measures: | I4: 1 Bedroom Properties - Annual changes and 6-yr cumulative change:
B5: 2010 | C5: 2011 | D5: 2012 | E5: 2013 | F5: 2014 | G5: 2015 | H5: 2016 | J5: 2010 to 2011 | K5: 2011 to 2012 | L5: 2012 to 2013 | M5: 2013 to 2014 | N5: 2014 to 2015 | O5: 2015 to 2016 | P5: 2010 to 2016
A6: Lower Quartile | B6: =VLOOKUP($A$2,'Table 7'!$A$5:$L$23,3,FALSE) -> 500 | C6: =VLOOKUP($A$2,'Table 8'!$A$5:$L$23,3,FALSE) -> 500 | D6: =VLOOKUP($A$2,'Table 9'!$A$5:$L$23,3,FALSE) -> 520 | E6: =VLOOKUP($A$2,'Table 10'!$A$5:$L$23,3,FALSE) -> 550 | F6: =VLOOKUP($A$2,'Table 11'!$A$5:$L$23,3,FALSE) -> 625 | G6: =VLOOKUP($A$2,'Table 12'!$A$5:$L$23,3,FALSE) -> 625 | H6: =VLOOKUP($A$2,'Table 13'!$A$5:$L$23,3,FALSE) -> 510 | I6: Lower Quartile | J6: =C6/B6-1 -> 0 | K6: 0.04 | L6: 0.05769230769 | M6: 0.1363636364 | N6: 0 | O6: =H6/G6-1 -> -0.184 | P6: =H6/B6-1 -> 0.02
A7: Median | B7: =VLOOKUP($A$2,'Table 7'!$A$5:$L$23,4,FALSE) -> 525 | C7: =VLOOKUP($A$2,'Table 8'!$A$5:$L$23,4,FALSE) -> 550 | D7: =VLOOKUP($A$2,'Table 9'!$A$5:$L$23,4,FALSE) -> 550 | E7: =VLOOKUP($A$2,'Table 10'!$A$5:$L$23,4,FALSE) -> 600 | F7: =VLOOKUP($A$2,'Table 11'!$A$5:$L$23,4,FALSE) -> 650 | G7: =VLOOKUP($A$2,'Table 12'!$A$5:$L$23,4,FALSE) -> 675 | H7: =VLOOKUP($A$2,'Table 13'!$A$5:$L$23,4,FALSE) -> 550 | I7: Median | J7: 0.04761904762 | K7: 0 | L7: 0.09090909091 | M7: 0.08333333333 | N7: 0.03846153846 | O7: -0.1851851852 | P7: =H7/B7-1 -> 0.04761904762
A8: Mean | B8: =VLOOKUP($A$2,'Table 7'!$A$5:$L$23,5,FALSE) -> 528.64 | C8: =VLOOKUP($A$2,'Table 8'!$A$5:$L$23,5,FALSE) -> 540.49 | D8: =VLOOKUP($A$2,'Table 9'!$A$5:$L$23,5,FALSE) -> 555.25 | E8: =VLOOKUP($A$2,'Table 10'!$A$5:$L$23,5,FALSE) -> 600.18 | F8: =VLOOKUP($A$2,'Table 11'!$A$5:$L$23,5,FALSE) -> 663.52 | G8: =VLOOKUP($A$2,'Table 12'!$A$5:$L$23,5,FALSE) -> 666.96 | H8: =VLOOKUP($A$2,'Table 13'!$A$5:$L$23,5,FALSE) -> 565.87 | I8: Mean | J8: 0.0224160109 | K8: 0.02730855335 | L8: 0.08091850518 | M8: 0.1055350062 | N8: 0.005184470702 | O8: -0.1515683099 | P8: 0.07042599879
A9: Upper Quartile | B9: =VLOOKUP($A$2,'Table 7'!$A$5:$L$23,6,FALSE) -> 575 | C9: =VLOOKUP($A$2,'Table 8'!$A$5:$L$23,6,FALSE) -> 575 | D9: =VLOOKUP($A$2,'Table 9'!$A$5:$L$23,6,FALSE) -> 600 | E9: =VLOOKUP($A$2,'Table 10'!$A$5:$L$23,6,FALSE) -> 650 | F9: =VLOOKUP($A$2,'Table 11'!$A$5:$L$23,6,FALSE) -> 725 | G9: =VLOOKUP($A$2,'Table 12'!$A$5:$L$23,6,FALSE) -> 700 | H9: =VLOOKUP($A$2,'Table 13'!$A$5:$L$23,6,FALSE) -> 600 | I9: Upper Quartile | J9: 0 | K9: 0.04347826087 | L9: 0.08333333333 | M9: 0.1153846154 | N9: -0.03448275862 | O9: -0.1428571429 | P9: 0.04347826087
A26: 2 Bedroom Properties: | I26: 2 Bedroom Properties - Annual changes and 6-yr cumulative change:
B27: 2010 | C27: 2011 | D27: 2012 | E27: 2013 | F27: 2014 | G27: 2015 | H27: 2016 | J27: 2010 to 2011 | K27: 2011 to 2012 | L27: 2012 to 2013 | M27: 2013 to 2014 | N27: 2014 to 2015 | O27: 2015 to 2016 | P27: 2010 to 2016
A28: Lower Quartile | B28: =VLOOKUP($A$2,'Table 7'!$A$5:$L$23,9,FALSE) -> 590 | C28: =VLOOKUP($A$2,'Table 8'!$A$5:$L$23,9,FALSE) -> 600 | D28: =VLOOKUP($A$2,'Table 9'!$A$5:$L$23,9,FALSE) -> 650 | E28: =VLOOKUP($A$2,'Table 10'!$A$5:$L$23,9,FALSE) -> 700 | F28: =VLOOKUP($A$2,'Table 11'!$A$5:$L$23,9,FALSE) -> 795 | G28: =VLOOKUP($A$2,'Table 12'!$A$5:$L$23,9,FALSE) -> 795 | H28: =VLOOKUP($A$2,'Table 13'!$A$5:$L$23,9,FALSE) -> 675 | I28: Lower Quartile | J28: =C28/B28-1 -> 0.01694915254 | K28: 0.08333333333 | L28: 0.07692307692 | M28: 0.1357142857 | N28: 0 | O28: =H28/G28-1 -> -0.1509433962 | P28: =H28/B28-1 -> 0.1440677966
A29: Median | B29: =VLOOKUP($A$2,'Table 7'!$A$5:$L$23,10,FALSE) -> 650 | C29: =VLOOKUP($A$2,'Table 8'!$A$5:$L$23,10,FALSE) -> 695 | D29: =VLOOKUP($A$2,'Table 9'!$A$5:$L$23,10,FALSE) -> 700 | E29: =VLOOKUP($A$2,'Table 10'!$A$5:$L$23,10,FALSE) -> 800 | F29: =VLOOKUP($A$2,'Table 11'!$A$5:$L$23,10,FALSE) -> 875 | G29: =VLOOKUP($A$2,'Table 12'!$A$5:$L$23,10,FALSE) -> 875 | H29: =VLOOKUP($A$2,'Table 13'!$A$5:$L$23,10,FALSE) -> 750 | I29: Median | J29: 0.06923076923 | K29: 0.007194244604 | L29: 0.1428571429 | M29: 0.09375 | N29: 0 | O29: =H29/G29-1 -> -0.1428571429 | P29: =H29/B29-1 -> 0.1538461538
A30: Mean | B30: =VLOOKUP($A$2,'Table 7'!$A$5:$L$23,11,FALSE) -> 642.58 | C30: =VLOOKUP($A$2,'Table 8'!$A$5:$L$23,11,FALSE) -> 670.81 | D30: =VLOOKUP($A$2,'Table 9'!$A$5:$L$23,11,FALSE) -> 701.44 | E30: =VLOOKUP($A$2,'Table 10'!$A$5:$L$23,11,FALSE) -> 819.48 | F30: =VLOOKUP($A$2,'Table 11'!$A$5:$L$23,11,FALSE) -> 898.08 | G30: =VLOOKUP($A$2,'Table 12'!$A$5:$L$23,11,FALSE) -> 873.8 | H30: =VLOOKUP($A$2,'Table 13'!$A$5:$L$23,11,FALSE) -> 754.39 | I30: Mean | J30: 0.04393227302 | K30: 0.04566121555 | L30: 0.1682823905 | M30: 0.09591448235 | N30: -0.02703545341 | O30: =H30/G30-1 -> -0.1366559854 | P30: 0.1740016807
A31: Upper Quartile | B31: =VLOOKUP($A$2,'Table 7'!$A$5:$L$23,12,FALSE) -> 700 | C31: =VLOOKUP($A$2,'Table 8'!$A$5:$L$23,12,FALSE) -> 750 | D31: =VLOOKUP($A$2,'Table 9'!$A$5:$L$23,12,FALSE) -> 775 | E31: =VLOOKUP($A$2,'Table 10'!$A$5:$L$23,12,FALSE) -> 900 | F31: =VLOOKUP($A$2,'Table 11'!$A$5:$L$23,12,FALSE) -> 1000 | G31: =VLOOKUP($A$2,'Table 12'!$A$5:$L$23,12,FALSE) -> 950 | H31: =VLOOKUP($A$2,'Table 13'!$A$5:$L$23,12,FALSE) -> 800 | I31: Upper Quartile | J31: 0.07142857143 | K31: 0.03333333333 | L31: 0.1612903226 | M31: 0.1111111111 | N31: -0.05 | O31: =H31/G31-1 -> -0.1578947368 | P31: 0.1428571429
A48: 3 Bedroom Properties: | I48: 3 Bedroom Properties - Annual changes and 6-yr cumulative change:
B49: 2010 | C49: 2011 | D49: 2012 | E49: 2013 | F49: 2014 | G49: 2015 | H49: 2016 | J49: 2010 to 2011 | K49: 2011 to 2012 | L49: 2012 to 2013 | M49: 2013 to 2014 | N49: 2014 to 2015 | O49: 2015 to 2016 | P49: 2010 to 2016
A50: Lower Quartile | B50: =VLOOKUP($A$2,'Table 7'!$A$26:$L$44,3,FALSE) -> 650 | C50: =VLOOKUP($A$2,'Table 8'!$A$26:$L$44,3,FALSE) -> 650 | D50: =VLOOKUP($A$2,'Table 9'!$A$26:$L$44,3,FALSE) -> 700 | E50: =VLOOKUP($A$2,'Table 10'!$A$26:$L$44,3,FALSE) -> 775 | F50: =VLOOKUP($A$2,'Table 11'!$A$26:$L$44,3,FALSE) -> 850 | G50: =VLOOKUP($A$2,'Table 12'!$A$26:$L$44,3,FALSE) -> 900 | H50: =VLOOKUP($A$2,'Table 13'!$A$26:$L$44,3,FALSE) -> 800 | I50: Lower Quartile | J50: =C50/B50-1 -> 0 | K50: 0.07692307692 | L50: 0.1071428571 | M50: 0.09677419355 | N50: 0.05882352941 | O50: =H50/G50-1 -> -0.1111111111 | P50: =H50/B50-1 -> 0.2307692308
A51: Median | B51: =VLOOKUP($A$2,'Table 7'!$A$26:$L$44,4,FALSE) -> 750 | C51: =VLOOKUP($A$2,'Table 8'!$A$26:$L$44,4,FALSE) -> 750 | D51: =VLOOKUP($A$2,'Table 9'!$A$26:$L$44,4,FALSE) -> 825 | E51: =VLOOKUP($A$2,'Table 10'!$A$26:$L$44,4,FALSE) -> 950 | F51: =VLOOKUP($A$2,'Table 11'!$A$26:$L$44,4,FALSE) -> 1100 | G51: =VLOOKUP($A$2,'Table 12'!$A$26:$L$44,4,FALSE) -> 1100 | H51: =VLOOKUP($A$2,'Table 13'!$A$26:$L$44,4,FALSE) -> 900 | I51: Median | J51: 0 | K51: 0.1 | L51: 0.1515151515 | M51: 0.1578947368 | N51: 0 | O51: =H51/G51-1 -> -0.1818181818 | P51: =H51/B51-1 -> 0.2
A52: Mean | B52: =VLOOKUP($A$2,'Table 7'!$A$26:$L$44,5,FALSE) -> 743.67 | C52: =VLOOKUP($A$2,'Table 8'!$A$26:$L$44,5,FALSE) -> 752.95 | D52: =VLOOKUP($A$2,'Table 9'!$A$26:$L$44,5,FALSE) -> 827.09 | E52: =VLOOKUP($A$2,'Table 10'!$A$26:$L$44,5,FALSE) -> 1019.32 | F52: =VLOOKUP($A$2,'Table 11'!$A$26:$L$44,5,FALSE) -> 1089.01 | G52: =VLOOKUP($A$2,'Table 12'!$A$26:$L$44,5,FALSE) -> 1072.46 | H52: =VLOOKUP($A$2,'Table 13'!$A$26:$L$44,5,FALSE) -> 930.15 | I52: Mean | J52: 0.01247865317 | K52: 0.0984660336 | L52: 0.2324172702 | M52: 0.06836910882 | N52: -0.01519728928 | O52: =H52/G52-1 -> -0.1326949257 | P52: 0.2507563839
A53: Upper Quartile | B53: =VLOOKUP($A$2,'Table 7'!$A$26:$L$44,6,FALSE) -> 850 | C53: =VLOOKUP($A$2,'Table 8'!$A$26:$L$44,6,FALSE) -> 875 | D53: =VLOOKUP($A$2,'Table 9'!$A$26:$L$44,6,FALSE) -> 950 | E53: =VLOOKUP($A$2,'Table 10'!$A$26:$L$44,6,FALSE) -> 1200 | F53: =VLOOKUP($A$2,'Table 11'!$A$26:$L$44,6,FALSE) -> 1300 | G53: =VLOOKUP($A$2,'Table 12'!$A$26:$L$44,6,FALSE) -> 1250 | H53: =VLOOKUP($A$2,'Table 13'!$A$26:$L$44,6,FALSE) -> 1050 | I53: Upper Quartile | J53: 0.02941176471 | K53: 0.08571428571 | L53: 0.2631578947 | M53: 0.08333333333 | N53: -0.03846153846 | O53: =H53/G53-1 -> -0.16 | P53: 0.2352941176
A70: 4 Bedroom Properties: | I70: 4 Bedroom Properties - Annual changes and 6-yr cumulative change:
B71: 2010 | C71: 2011 | D71: 2012 | E71: 2013 | F71: 2014 | G71: 2015 | H71: 2016 | J71: 2010 to 2011 | K71: 2011 to 2012 | L71: 2012 to 2013 | M71: 2013 to 2014 | N71: 2014 to 2015 | O71: 2015 to 2016 | P71: 2010 to 2016
A72: Lower Quartile | B72: =VLOOKUP($A$2,'Table 7'!$A$26:$L$44,9,FALSE) -> 850 | C72: =VLOOKUP($A$2,'Table 8'!$A$26:$L$44,9,FALSE) -> 850 | D72: =VLOOKUP($A$2,'Table 9'!$A$26:$L$44,9,FALSE) -> 900 | E72: =VLOOKUP($A$2,'Table 10'!$A$26:$L$44,9,FALSE) -> 1100 | F72: =VLOOKUP($A$2,'Table 11'!$A$26:$L$44,9,FALSE) -> 1200 | G72: =VLOOKUP($A$2,'Table 12'!$A$26:$L$44,9,FALSE) -> 1250 | H72: =VLOOKUP($A$2,'Table 13'!$A$26:$L$44,9,FALSE) -> 1000 | I72: Lower Quartile | J72: =C72/B72-1 -> 0 | K72: 0.05882352941 | L72: 0.2222222222 | M72: 0.09090909091 | N72: 0.04166666667 | O72: =H72/G72-1 -> -0.2 | P72: =H72/B72-1 -> 0.1764705882
A73: Median | B73: =VLOOKUP($A$2,'Table 7'!$A$26:$L$44,10,FALSE) -> 950 | C73: =VLOOKUP($A$2,'Table 8'!$A$26:$L$44,10,FALSE) -> 995 | D73: =VLOOKUP($A$2,'Table 9'!$A$26:$L$44,10,FALSE) -> 1100 | E73: =VLOOKUP($A$2,'Table 10'!$A$26:$L$44,10,FALSE) -> 1400 | F73: =VLOOKUP($A$2,'Table 11'!$A$26:$L$44,10,FALSE) -> 1550 | G73: =VLOOKUP($A$2,'Table 12'!$A$26:$L$44,10,FALSE) -> 1450 | H73: =VLOOKUP($A$2,'Table 13'!$A$26:$L$44,10,FALSE) -> 1200 | I73: Median | J73: 0.04736842105 | K73: 0.1055276382 | L73: 0.2727272727 | M73: 0.1071428571 | N73: -0.06451612903 | O73: -0.1724137931 | P73: =H73/B73-1 -> 0.2631578947
A74: Mean | B74: =VLOOKUP($A$2,'Table 7'!$A$26:$L$44,11,FALSE) -> 943.66 | C74: =VLOOKUP($A$2,'Table 8'!$A$26:$L$44,11,FALSE) -> 1017.76 | D74: =VLOOKUP($A$2,'Table 9'!$A$26:$L$44,11,FALSE) -> 1105.08 | E74: =VLOOKUP($A$2,'Table 10'!$A$26:$L$44,11,FALSE) -> 1484.07 | F74: =VLOOKUP($A$2,'Table 11'!$A$26:$L$44,11,FALSE) -> 1564.74 | G74: =VLOOKUP($A$2,'Table 12'!$A$26:$L$44,11,FALSE) -> 1492.52 | H74: =VLOOKUP($A$2,'Table 13'!$A$26:$L$44,11,FALSE) -> 1291.33 | I74: Mean | J74: 0.07852404468 | K74: 0.08579625845 | L74: 0.3429525464 | M74: 0.05435727425 | N74: -0.04615463272 | O74: -0.1347988637 | P74: 0.3684271878
A75: Upper Quartile | B75: =VLOOKUP($A$2,'Table 7'!$A$26:$L$44,12,FALSE) -> 1000 | C75: =VLOOKUP($A$2,'Table 8'!$A$26:$L$44,12,FALSE) -> 1200 | D75: =VLOOKUP($A$2,'Table 9'!$A$26:$L$44,12,FALSE) -> 1300 | E75: =VLOOKUP($A$2,'Table 10'!$A$26:$L$44,12,FALSE) -> 1800 | F75: =VLOOKUP($A$2,'Table 11'!$A$26:$L$44,12,FALSE) -> 1850 | G75: =VLOOKUP($A$2,'Table 12'!$A$26:$L$44,12,FALSE) -> 1700 | H75: =VLOOKUP($A$2,'Table 13'!$A$26:$L$44,12,FALSE) -> 1500 | I75: Upper Quartile | J75: 0.2 | K75: 0.08333333333 | L75: 0.3846153846 | M75: 0.02777777778 | N75: -0.08108108108 | O75: -0.1176470588 | P75: 0.5
A92: 1 Bedroom Shared Properties: | I92: 1 Bedroom Shared Properties - Annual changes and 6-yr cumulative change:
B93: 2010 | C93: 2011 | D93: 2012 | E93: 2013 | F93: 2014 | G93: 2015 | H93: 2016 | J93: 2010 to 2011 | K93: 2011 to 2012 | L93: 2012 to 2013 | M93: 2013 to 2014 | N93: 2014 to 2015 | O93: 2015 to 2016 | P93: 2010 to 2016
A94: Lower Quartile | B94: =VLOOKUP($A$2,'Table 7'!$A$47:$F$65,3,FALSE) -> 286 | C94: =VLOOKUP($A$2,'Table 8'!$A$47:$F$65,3,FALSE) -> 285 | D94: =VLOOKUP($A$2,'Table 9'!$A$47:$F$65,3,FALSE) -> 300 | E94: =VLOOKUP($A$2,'Table 10'!$A$47:$F$65,3,FALSE) -> 316.33 | F94: =VLOOKUP($A$2,'Table 11'!$A$47:$F$65,3,FALSE) -> 345 | G94: =VLOOKUP($A$2,'Table 12'!$A$47:$F$65,3,FALSE) -> 375 | H94: =VLOOKUP($A$2,'Table 13'!$A$47:$F$65,3,FALSE) -> 350 | I94: Lower Quartile | J94: =C94/B94-1 -> -0.003496503497 | K94: 0.05263157895 | L94: 0.05443333333 | M94: 0.09063319951 | N94: 0.08695652174 | O94: =H94/G94-1 -> -0.06666666667 | P94: =H94/B94-1 -> 0.2237762238
A95: Median | B95: =VLOOKUP($A$2,'Table 7'!$A$47:$F$65,4,FALSE) -> 335 | C95: =VLOOKUP($A$2,'Table 8'!$A$47:$F$65,4,FALSE) -> 325 | D95: =VLOOKUP($A$2,'Table 9'!$A$47:$F$65,4,FALSE) -> 340 | E95: =VLOOKUP($A$2,'Table 10'!$A$47:$F$65,4,FALSE) -> 350 | F95: =VLOOKUP($A$2,'Table 11'!$A$47:$F$65,4,FALSE) -> 400 | G95: =VLOOKUP($A$2,'Table 12'!$A$47:$F$65,4,FALSE) -> 407.5 | H95: =VLOOKUP($A$2,'Table 13'!$A$47:$F$65,4,FALSE) -> 400 | I95: Median | J95: -0.02985074627 | K95: 0.04615384615 | L95: 0.02941176471 | M95: 0.1428571429 | N95: 0.01875 | O95: -0.01840490798 | P95: =H95/B95-1 -> 0.1940298507
A96: Mean | B96: =VLOOKUP($A$2,'Table 7'!$A$47:$F$65,5,FALSE) -> 328.42 | C96: =VLOOKUP($A$2,'Table 8'!$A$47:$F$65,5,FALSE) -> 322.86 | D96: =VLOOKUP($A$2,'Table 9'!$A$47:$F$65,5,FALSE) -> 338.34 | E96: =VLOOKUP($A$2,'Table 10'!$A$47:$F$65,5,FALSE) -> 365.66 | F96: =VLOOKUP($A$2,'Table 11'!$A$47:$F$65,5,FALSE) -> 401.77 | G96: =VLOOKUP($A$2,'Table 12'!$A$47:$F$65,5,FALSE) -> 433.46 | H96: =VLOOKUP($A$2,'Table 13'!$A$47:$F$65,5,FALSE) -> 404.11 | I96: Mean | J96: -0.01692954144 | K96: 0.04794647835 | L96: 0.0807471774 | M96: 0.09875293989 | N96: 0.07887597382 | O96: -0.06771097679 | P96: 0.2304670848
A97: Upper Quartile | B97: =VLOOKUP($A$2,'Table 7'!$A$47:$F$65,6,FALSE) -> 360 | C97: =VLOOKUP($A$2,'Table 8'!$A$47:$F$65,6,FALSE) -> 355 | D97: =VLOOKUP($A$2,'Table 9'!$A$47:$F$65,6,FALSE) -> 375 | E97: =VLOOKUP($A$2,'Table 10'!$A$47:$F$65,6,FALSE) -> 400 | F97: =VLOOKUP($A$2,'Table 11'!$A$47:$F$65,6,FALSE) -> 450 | G97: =VLOOKUP($A$2,'Table 12'!$A$47:$F$65,6,FALSE) -> 500 | H97: =VLOOKUP($A$2,'Table 13'!$A$47:$F$65,6,FALSE) -> 450 | I97: Upper Quartile | J97: -0.01388888889 | K97: 0.05633802817 | L97: 0.06666666667 | M97: 0.125 | N97: 0.1111111111 | O97: -0.1 | P97: 0.25
A116: Mean Rents by Property Size: | I116: Median Rents by Property Size:
B117: 2010 | C117: 2011 | D117: 2012 | E117: 2013 | F117: 2014 | G117: 2015 | H117: 2016 | J117: 2010 | K117: 2011 | L117: 2012 | M117: 2013 | N117: 2014 | O117: 2015 | P117: 2016
A118: 1 Bedroom Shared | B118: =B96 -> 328.42 | C118: 322.86 | D118: 338.34 | E118: 365.66 | F118: 401.77 | G118: 433.46 | H118: 404.11 | I118: 1 Bedroom Shared | J118: =B95 -> 335 | K118: 325 | L118: 340 | M118: 350 | N118: 400 | O118: =G95 -> 407.5 | P118: =H95 -> 400
A119: 1 Bedroom | B119: =B8 -> 528.64 | C119: 540.49 | D119: 555.25 | E119: 600.18 | F119: 663.52 | G119: 666.96 | H119: 565.87 | I119: 1 Bedroom | J119: =B7 -> 525 | K119: 550 | L119: 550 | M119: 600 | N119: 650 | O119: =G7 -> 675 | P119: =H7 -> 550
A120: 2 Bedrooms | B120: =B30 -> 642.58 | C120: 670.81 | D120: 701.44 | E120: 819.48 | F120: 898.08 | G120: 873.8 | H120: 754.39 | I120: 2 Bedrooms | J120: =B29 -> 650 | K120: 695 | L120: 700 | M120: 800 | N120: 875 | O120: =G29 -> 875 | P120: =H29 -> 750
A121: 3 Bedrooms | B121: =B52 -> 743.67 | C121: 752.95 | D121: 827.09 | E121: 1019.32 | F121: 1089.01 | G121: 1072.46 | H121: 930.15 | I121: 3 Bedrooms | J121: =B51 -> 750 | K121: 750 | L121: 825 | M121: 950 | N121: 1100 | O121: =G51 -> 1100 | P121: =H51 -> 900
A122: 4 Bedrooms | B122: =B74 -> 943.66 | C122: 1017.76 | D122: 1105.08 | E122: 1484.07 | F122: 1564.74 | G122: 1492.52 | H122: 1291.33 | I122: 4 Bedrooms | J122: =B73 -> 950 | K122: 995 | L122: 1100 | M122: 1400 | N122: 1550 | O122: =G73 -> 1450 | P122: =H73 -> 1200
A140: Sample Sizes: | I140: Sample Proportions:
B141: 2010 | C141: 2011 | D141: 2012 | E141: 2013 | F141: 2014 | G141: 2015 | H141: 2016 | J141: 2010 | K141: 2011 | L141: 2012 | M141: 2013 | N141: 2014 | O141: 2015 | P141: 2016
A142: 1 Bedroom | B142: =VLOOKUP($A$2,'Table 7'!$A$5:$L$23,2,FALSE) -> 541 | C142: =VLOOKUP($A$2,'Table 8'!$A$5:$L$23,2,FALSE) -> 691 | D142: =VLOOKUP($A$2,'Table 9'!$A$5:$L$23,2,FALSE) -> 690 | E142: =VLOOKUP($A$2,'Table 10'!$A$5:$L$23,2,FALSE) -> 534 | F142: =VLOOKUP($A$2,'Table 11'!$A$5:$L$23,2,FALSE) -> 561 | G142: =VLOOKUP($A$2,'Table 12'!$A$5:$L$23,2,FALSE) -> 596 | H142: =VLOOKUP($A$2,'Table 13'!$A$5:$L$23,2,FALSE) -> 738 | I142: 1 Bedroom | J142: =B142/SUM(B$142:B$146) -> 0.3421884883 | K142: =C142/SUM(C$142:C$146) -> 0.3016150153 | L142: 0.2547065338 | M142: 0.2211180124 | N142: 0.2290730911 | O142: =G142/SUM(G$142:G$146) -> 0.2430668842 | P142: 0.2635714286
A143: 2 Bedrooms | B143: =VLOOKUP($A$2,'Table 7'!$A$5:$L$23,8,FALSE) -> 557 | C143: =VLOOKUP($A$2,'Table 8'!$A$5:$L$23,8,FALSE) -> 870 | D143: =VLOOKUP($A$2,'Table 9'!$A$5:$L$23,8,FALSE) -> 1062 | E143: =VLOOKUP($A$2,'Table 10'!$A$5:$L$23,8,FALSE) -> 967 | F143: =VLOOKUP($A$2,'Table 11'!$A$5:$L$23,8,FALSE) -> 1025 | G143: =VLOOKUP($A$2,'Table 12'!$A$5:$L$23,8,FALSE) -> 1009 | H143: =VLOOKUP($A$2,'Table 13'!$A$5:$L$23,8,FALSE) -> 1271 | I143: 2 Bedrooms | J143: =B143/SUM(B$142:B$146) -> 0.3523086654 | K143: 0.3797468354 | L143: 0.3920265781 | M143: 0.4004140787 | N143: 0.4185381788 | O143: 0.4115008157 | P143: 0.4539285714
A144: 3 Bedrooms | B144: =VLOOKUP($A$2,'Table 7'!$A$26:$L$44,2,FALSE) -> 226 | C144: =VLOOKUP($A$2,'Table 8'!$A$26:$L$44,2,FALSE) -> 364 | D144: =VLOOKUP($A$2,'Table 9'!$A$26:$L$44,2,FALSE) -> 486 | E144: =VLOOKUP($A$2,'Table 10'!$A$26:$L$44,2,FALSE) -> 448 | F144: =VLOOKUP($A$2,'Table 11'!$A$26:$L$44,2,FALSE) -> 422 | G144: =VLOOKUP($A$2,'Table 12'!$A$26:$L$44,2,FALSE) -> 428 | H144: =VLOOKUP($A$2,'Table 13'!$A$26:$L$44,2,FALSE) -> 412 | I144: 3 Bedrooms | J144: =B144/SUM(B$142:B$146) -> 0.1429475016 | K144: 0.158882584 | L144: 0.1794019934 | M144: 0.1855072464 | N144: 0.1723152307 | O144: 0.1745513866 | P144: 0.1471428571
A145: 4 Bedrooms | B145: =VLOOKUP($A$2,'Table 7'!$A$26:$L$44,8,FALSE) -> 123 | C145: =VLOOKUP($A$2,'Table 8'!$A$26:$L$44,8,FALSE) -> 174 | D145: =VLOOKUP($A$2,'Table 9'!$A$26:$L$44,8,FALSE) -> 239 | E145: =VLOOKUP($A$2,'Table 10'!$A$26:$L$44,8,FALSE) -> 324 | F145: =VLOOKUP($A$2,'Table 11'!$A$26:$L$44,8,FALSE) -> 293 | G145: =VLOOKUP($A$2,'Table 12'!$A$26:$L$44,8,FALSE) -> 281 | H145: =VLOOKUP($A$2,'Table 13'!$A$26:$L$44,8,FALSE) -> 275 | I145: 4 Bedrooms | J145: =B145/SUM(B$142:B$146) -> 0.07779886148 | K145: 0.07594936709 | L145: 0.08822443706 | M145: 0.1341614907 | N145: 0.1196406697 | O145: 0.1146003263 | P145: 0.09821428571
A146: 1 Bedroom Shared | B146: =VLOOKUP($A$2,'Table 7'!$A$47:$L$65,2,FALSE) -> 134 | C146: =VLOOKUP($A$2,'Table 8'!$A$47:$L$65,2,FALSE) -> 192 | D146: =VLOOKUP($A$2,'Table 9'!$A$47:$L$65,2,FALSE) -> 232 | E146: =VLOOKUP($A$2,'Table 10'!$A$47:$L$65,2,FALSE) -> 142 | F146: =VLOOKUP($A$2,'Table 11'!$A$47:$L$65,2,FALSE) -> 148 | G146: =VLOOKUP($A$2,'Table 12'!$A$47:$L$65,2,FALSE) -> 138 | H146: =VLOOKUP($A$2,'Table 13'!$A$47:$L$65,2,FALSE) -> 104 | I146: 1 Bedroom Shared | J146: =B146/SUM(B$142:B$146) -> 0.08475648324 | K146: 0.08380619817 | L146: 0.08564045773 | M146: 0.05879917184 | N146: 0.06043282973 | O146: 0.05628058728 | P146: 0.03714285714

Sheet BRMA Profile - Ayrshires (hidden)
A1: BRMA Rent Profile for:
A2: Ayrshires | I2: =ROUND(MIN(J6:P9,J28:P31,J50:P53,J72:P75,J94:P97)-0.01,2) -> -0.08 | J2: =ROUND(MAX(J6:P9,J28:P31,J50:P53,J72:P75,J94:P97)+0.01,2) -> 0.21
A4: 1 Bedroom Properties - Quartile Measures: | I4: 1 Bedroom Properties - Annual changes and 6-yr cumulative change:
B5: 2010 | C5: 2011 | D5: 2012 | E5: 2013 | F5: 2014 | G5: 2015 | H5: 2016 | J5: 2010 to 2011 | K5: 2011 to 2012 | L5: 2012 to 2013 | M5: 2013 to 2014 | N5: 2014 to 2015 | O5: 2015 to 2016 | P5: 2010 to 2016
A6: Lower Quartile | B6: =VLOOKUP($A$2,'Table 7'!$A$5:$L$23,3,FALSE) -> 350 | C6: =VLOOKUP($A$2,'Table 8'!$A$5:$L$23,3,FALSE) -> 350 | D6: =VLOOKUP($A$2,'Table 9'!$A$5:$L$23,3,FALSE) -> 330 | E6: =VLOOKUP($A$2,'Table 10'!$A$5:$L$23,3,FALSE) -> 325 | F6: =VLOOKUP($A$2,'Table 11'!$A$5:$L$23,3,FALSE) -> 325 | G6: =VLOOKUP($A$2,'Table 12'!$A$5:$L$23,3,FALSE) -> 325 | H6: =VLOOKUP($A$2,'Table 13'!$A$5:$L$23,3,FALSE) -> 327.5 | I6: Lower Quartile | J6: =C6/B6-1 -> 0 | K6: -0.05714285714 | L6: -0.01515151515 | M6: 0 | N6: 0 | O6: =H6/G6-1 -> 0.007692307692 | P6: =H6/B6-1 -> -0.06428571429
A7: Median | B7: =VLOOKUP($A$2,'Table 7'!$A$5:$L$23,4,FALSE) -> 375 | C7: =VLOOKUP($A$2,'Table 8'!$A$5:$L$23,4,FALSE) -> 375 | D7: =VLOOKUP($A$2,'Table 9'!$A$5:$L$23,4,FALSE) -> 350 | E7: =VLOOKUP($A$2,'Table 10'!$A$5:$L$23,4,FALSE) -> 360 | F7: =VLOOKUP($A$2,'Table 11'!$A$5:$L$23,4,FALSE) -> 360 | G7: =VLOOKUP($A$2,'Table 12'!$A$5:$L$23,4,FALSE) -> 350 | H7: =VLOOKUP($A$2,'Table 13'!$A$5:$L$23,4,FALSE) -> 350 | I7: Median | J7: 0 | K7: -0.06666666667 | L7: 0.02857142857 | M7: 0 | N7: -0.02777777778 | O7: 0 | P7: =H7/B7-1 -> -0.06666666667
A8: Mean | B8: =VLOOKUP($A$2,'Table 7'!$A$5:$L$23,5,FALSE) -> 375.42 | C8: =VLOOKUP($A$2,'Table 8'!$A$5:$L$23,5,FALSE) -> 378.48 | D8: =VLOOKUP($A$2,'Table 9'!$A$5:$L$23,5,FALSE) -> 365.01 | E8: =VLOOKUP($A$2,'Table 10'!$A$5:$L$23,5,FALSE) -> 369.38 | F8: =VLOOKUP($A$2,'Table 11'!$A$5:$L$23,5,FALSE) -> 364.83 | G8: =VLOOKUP($A$2,'Table 12'!$A$5:$L$23,5,FALSE) -> 362.86 | H8: =VLOOKUP($A$2,'Table 13'!$A$5:$L$23,5,FALSE) -> 366.26 | I8: Mean | J8: 0.008150871024 | K8: -0.03558972733 | L8: 0.01197227473 | M8: -0.01231793817 | N8: -0.005399775238 | O8: 0.009370004961 | P8: -0.02439933941
A9: Upper Quartile | B9: =VLOOKUP($A$2,'Table 7'!$A$5:$L$23,6,FALSE) -> 400 | C9: =VLOOKUP($A$2,'Table 8'!$A$5:$L$23,6,FALSE) -> 400 | D9: =VLOOKUP($A$2,'Table 9'!$A$5:$L$23,6,FALSE) -> 395 | E9: =VLOOKUP($A$2,'Table 10'!$A$5:$L$23,6,FALSE) -> 400 | F9: =VLOOKUP($A$2,'Table 11'!$A$5:$L$23,6,FALSE) -> 395 | G9: =VLOOKUP($A$2,'Table 12'!$A$5:$L$23,6,FALSE) -> 395 | H9: =VLOOKUP($A$2,'Table 13'!$A$5:$L$23,6,FALSE) -> 400 | I9: Upper Quartile | J9: 0 | K9: -0.0125 | L9: 0.01265822785 | M9: -0.0125 | N9: 0 | O9: 0.01265822785 | P9: 0
A26: 2 Bedroom Properties: | I26: 2 Bedroom Properties - Annual changes and 6-yr cumulative change:
B27: 2010 | C27: 2011 | D27: 2012 | E27: 2013 | F27: 2014 | G27: 2015 | H27: 2016 | J27: 2010 to 2011 | K27: 2011 to 2012 | L27: 2012 to 2013 | M27: 2013 to 2014 | N27: 2014 to 2015 | O27: 2015 to 2016 | P27: 2010 to 2016
A28: Lower Quartile | B28: =VLOOKUP($A$2,'Table 7'!$A$5:$L$23,9,FALSE) -> 425 | C28: =VLOOKUP($A$2,'Table 8'!$A$5:$L$23,9,FALSE) -> 425 | D28: =VLOOKUP($A$2,'Table 9'!$A$5:$L$23,9,FALSE) -> 425 | E28: =VLOOKUP($A$2,'Table 10'!$A$5:$L$23,9,FALSE) -> 425 | F28: =VLOOKUP($A$2,'Table 11'!$A$5:$L$23,9,FALSE) -> 425 | G28: =VLOOKUP($A$2,'Table 12'!$A$5:$L$23,9,FALSE) -> 420 | H28: =VLOOKUP($A$2,'Table 13'!$A$5:$L$23,9,FALSE) -> 425 | I28: Lower Quartile | J28: =C28/B28-1 -> 0 | K28: 0 | L28: 0 | M28: 0 | N28: -0.01176470588 | O28: =H28/G28-1 -> 0.0119047619 | P28: =H28/B28-1 -> 0
A29: Median | B29: =VLOOKUP($A$2,'Table 7'!$A$5:$L$23,10,FALSE) -> 450 | C29: =VLOOKUP($A$2,'Table 8'!$A$5:$L$23,10,FALSE) -> 450 | D29: =VLOOKUP($A$2,'Table 9'!$A$5:$L$23,10,FALSE) -> 450 | E29: =VLOOKUP($A$2,'Table 10'!$A$5:$L$23,10,FALSE) -> 450 | F29: =VLOOKUP($A$2,'Table 11'!$A$5:$L$23,10,FALSE) -> 450 | G29: =VLOOKUP($A$2,'Table 12'!$A$5:$L$23,10,FALSE) -> 450 | H29: =VLOOKUP($A$2,'Table 13'!$A$5:$L$23,10,FALSE) -> 450 | I29: Median | J29: 0 | K29: 0 | L29: 0 | M29: 0 | N29: 0 | O29: =H29/G29-1 -> 0 | P29: =H29/B29-1 -> 0
A30: Mean | B30: =VLOOKUP($A$2,'Table 7'!$A$5:$L$23,11,FALSE) -> 464.47 | C30: =VLOOKUP($A$2,'Table 8'!$A$5:$L$23,11,FALSE) -> 469.47 | D30: =VLOOKUP($A$2,'Table 9'!$A$5:$L$23,11,FALSE) -> 459.24 | E30: =VLOOKUP($A$2,'Table 10'!$A$5:$L$23,11,FALSE) -> 469.51 | F30: =VLOOKUP($A$2,'Table 11'!$A$5:$L$23,11,FALSE) -> 460.9 | G30: =VLOOKUP($A$2,'Table 12'!$A$5:$L$23,11,FALSE) -> 460.63 | H30: =VLOOKUP($A$2,'Table 13'!$A$5:$L$23,11,FALSE) -> 463.38 | I30: Mean | J30: 0.01076495791 | K30: -0.02179052975 | L30: 0.02236303458 | M30: -0.01833826756 | N30: -0.000585810371 | O30: =H30/G30-1 -> 0.00597008445 | P30: -0.002346760824
A31: Upper Quartile | B31: =VLOOKUP($A$2,'Table 7'!$A$5:$L$23,12,FALSE) -> 495 | C31: =VLOOKUP($A$2,'Table 8'!$A$5:$L$23,12,FALSE) -> 500 | D31: =VLOOKUP($A$2,'Table 9'!$A$5:$L$23,12,FALSE) -> 495 | E31: =VLOOKUP($A$2,'Table 10'!$A$5:$L$23,12,FALSE) -> 500 | F31: =VLOOKUP($A$2,'Table 11'!$A$5:$L$23,12,FALSE) -> 497.5 | G31: =VLOOKUP($A$2,'Table 12'!$A$5:$L$23,12,FALSE) -> 500 | H31: =VLOOKUP($A$2,'Table 13'!$A$5:$L$23,12,FALSE) -> 500 | I31: Upper Quartile | J31: 0.0101010101 | K31: -0.01 | L31: 0.0101010101 | M31: -0.005 | N31: 0.005025125628 | O31: =H31/G31-1 -> 0 | P31: 0.0101010101
A48: 3 Bedroom Properties: | I48: 3 Bedroom Properties - Annual changes and 6-yr cumulative change:
B49: 2010 | C49: 2011 | D49: 2012 | E49: 2013 | F49: 2014 | G49: 2015 | H49: 2016 | J49: 2010 to 2011 | K49: 2011 to 2012 | L49: 2012 to 2013 | M49: 2013 to 2014 | N49: 2014 to 2015 | O49: 2015 to 2016 | P49: 2010 to 2016
A50: Lower Quartile | B50: =VLOOKUP($A$2,'Table 7'!$A$26:$L$44,3,FALSE) -> 475 | C50: =VLOOKUP($A$2,'Table 8'!$A$26:$L$44,3,FALSE) -> 495 | D50: =VLOOKUP($A$2,'Table 9'!$A$26:$L$44,3,FALSE) -> 495 | E50: =VLOOKUP($A$2,'Table 10'!$A$26:$L$44,3,FALSE) -> 495 | F50: =VLOOKUP($A$2,'Table 11'!$A$26:$L$44,3,FALSE) -> 495 | G50: =VLOOKUP($A$2,'Table 12'!$A$26:$L$44,3,FALSE) -> 490 | H50: =VLOOKUP($A$2,'Table 13'!$A$26:$L$44,3,FALSE) -> 495 | I50: Lower Quartile | J50: =C50/B50-1 -> 0.04210526316 | K50: 0 | L50: 0 | M50: 0 | N50: -0.0101010101 | O50: =H50/G50-1 -> 0.01020408163 | P50: =H50/B50-1 -> 0.04210526316
A51: Median | B51: =VLOOKUP($A$2,'Table 7'!$A$26:$L$44,4,FALSE) -> 545 | C51: =VLOOKUP($A$2,'Table 8'!$A$26:$L$44,4,FALSE) -> 550 | D51: =VLOOKUP($A$2,'Table 9'!$A$26:$L$44,4,FALSE) -> 550 | E51: =VLOOKUP($A$2,'Table 10'!$A$26:$L$44,4,FALSE) -> 550 | F51: =VLOOKUP($A$2,'Table 11'!$A$26:$L$44,4,FALSE) -> 550 | G51: =VLOOKUP($A$2,'Table 12'!$A$26:$L$44,4,FALSE) -> 525 | H51: =VLOOKUP($A$2,'Table 13'!$A$26:$L$44,4,FALSE) -> 550 | I51: Median | J51: 0.009174311927 | K51: 0 | L51: 0 | M51: 0 | N51: -0.04545454545 | O51: =H51/G51-1 -> 0.04761904762 | P51: =H51/B51-1 -> 0.009174311927
A52: Mean | B52: =VLOOKUP($A$2,'Table 7'!$A$26:$L$44,5,FALSE) -> 556.1 | C52: =VLOOKUP($A$2,'Table 8'!$A$26:$L$44,5,FALSE) -> 569.88 | D52: =VLOOKUP($A$2,'Table 9'!$A$26:$L$44,5,FALSE) -> 576.09 | E52: =VLOOKUP($A$2,'Table 10'!$A$26:$L$44,5,FALSE) -> 574.91 | F52: =VLOOKUP($A$2,'Table 11'!$A$26:$L$44,5,FALSE) -> 568.83 | G52: =VLOOKUP($A$2,'Table 12'!$A$26:$L$44,5,FALSE) -> 568.07 | H52: =VLOOKUP($A$2,'Table 13'!$A$26:$L$44,5,FALSE) -> 578.84 | I52: Mean | J52: 0.02477971588 | K52: 0.01089703095 | L52: -0.002048291066 | M52: -0.01057556835 | N52: -0.001336075805 | O52: =H52/G52-1 -> 0.01895893112 | P52: 0.04089192591
A53: Upper Quartile | B53: =VLOOKUP($A$2,'Table 7'!$A$26:$L$44,6,FALSE) -> 600 | C53: =VLOOKUP($A$2,'Table 8'!$A$26:$L$44,6,FALSE) -> 625 | D53: =VLOOKUP($A$2,'Table 9'!$A$26:$L$44,6,FALSE) -> 650 | E53: =VLOOKUP($A$2,'Table 10'!$A$26:$L$44,6,FALSE) -> 650 | F53: =VLOOKUP($A$2,'Table 11'!$A$26:$L$44,6,FALSE) -> 625 | G53: =VLOOKUP($A$2,'Table 12'!$A$26:$L$44,6,FALSE) -> 642.5 | H53: =VLOOKUP($A$2,'Table 13'!$A$26:$L$44,6,FALSE) -> 650 | I53: Upper Quartile | J53: 0.04166666667 | K53: 0.04 | L53: 0 | M53: -0.03846153846 | N53: 0.028 | O53: =H53/G53-1 -> 0.01167315175 | P53: 0.08333333333
A70: 4 Bedroom Properties: | I70: 4 Bedroom Properties - Annual changes and 6-yr cumulative change:
B71: 2010 | C71: 2011 | D71: 2012 | E71: 2013 | F71: 2014 | G71: 2015 | H71: 2016 | J71: 2010 to 2011 | K71: 2011 to 2012 | L71: 2012 to 2013 | M71: 2013 to 2014 | N71: 2014 to 2015 | O71: 2015 to 2016 | P71: 2010 to 2016
A72: Lower Quartile | B72: =VLOOKUP($A$2,'Table 7'!$A$26:$L$44,9,FALSE) -> 650 | C72: =VLOOKUP($A$2,'Table 8'!$A$26:$L$44,9,FALSE) -> 650 | D72: =VLOOKUP($A$2,'Table 9'!$A$26:$L$44,9,FALSE) -> 650 | E72: =VLOOKUP($A$2,'Table 10'!$A$26:$L$44,9,FALSE) -> 677.5 | F72: =VLOOKUP($A$2,'Table 11'!$A$26:$L$44,9,FALSE) -> 675 | G72: =VLOOKUP($A$2,'Table 12'!$A$26:$L$44,9,FALSE) -> 695 | H72: =VLOOKUP($A$2,'Table 13'!$A$26:$L$44,9,FALSE) -> 695 | I72: Lower Quartile | J72: =C72/B72-1 -> 0 | K72: 0 | L72: 0.04230769231 | M72: -0.0036900369 | N72: 0.02962962963 | O72: =H72/G72-1 -> 0 | P72: =H72/B72-1 -> 0.06923076923
A73: Median | B73: =VLOOKUP($A$2,'Table 7'!$A$26:$L$44,10,FALSE) -> 725 | C73: =VLOOKUP($A$2,'Table 8'!$A$26:$L$44,10,FALSE) -> 750 | D73: =VLOOKUP($A$2,'Table 9'!$A$26:$L$44,10,FALSE) -> 750 | E73: =VLOOKUP($A$2,'Table 10'!$A$26:$L$44,10,FALSE) -> 795 | F73: =VLOOKUP($A$2,'Table 11'!$A$26:$L$44,10,FALSE) -> 750 | G73: =VLOOKUP($A$2,'Table 12'!$A$26:$L$44,10,FALSE) -> 850 | H73: =VLOOKUP($A$2,'Table 13'!$A$26:$L$44,10,FALSE) -> 800 | I73: Median | J73: 0.03448275862 | K73: 0 | L73: 0.06 | M73: -0.05660377358 | N73: 0.1333333333 | O73: -0.05882352941 | P73: =H73/B73-1 -> 0.1034482759
A74: Mean | B74: =VLOOKUP($A$2,'Table 7'!$A$26:$L$44,11,FALSE) -> 758.06 | C74: =VLOOKUP($A$2,'Table 8'!$A$26:$L$44,11,FALSE) -> 788.66 | D74: =VLOOKUP($A$2,'Table 9'!$A$26:$L$44,11,FALSE) -> 816.47 | E74: =VLOOKUP($A$2,'Table 10'!$A$26:$L$44,11,FALSE) -> 834.36 | F74: =VLOOKUP($A$2,'Table 11'!$A$26:$L$44,11,FALSE) -> 840.12 | G74: =VLOOKUP($A$2,'Table 12'!$A$26:$L$44,11,FALSE) -> 871.69 | H74: =VLOOKUP($A$2,'Table 13'!$A$26:$L$44,11,FALSE) -> 907.52 | I74: Mean | J74: 0.04036619793 | K74: 0.03526234372 | L74: 0.02191139907 | M74: 0.006903494894 | N74: 0.03757796505 | O74: 0.04110406222 | P74: 0.1971611746
A75: Upper Quartile | B75: =VLOOKUP($A$2,'Table 7'!$A$26:$L$44,12,FALSE) -> 850 | C75: =VLOOKUP($A$2,'Table 8'!$A$26:$L$44,12,FALSE) -> 875 | D75: =VLOOKUP($A$2,'Table 9'!$A$26:$L$44,12,FALSE) -> 900 | E75: =VLOOKUP($A$2,'Table 10'!$A$26:$L$44,12,FALSE) -> 900 | F75: =VLOOKUP($A$2,'Table 11'!$A$26:$L$44,12,FALSE) -> 1000 | G75: =VLOOKUP($A$2,'Table 12'!$A$26:$L$44,12,FALSE) -> 995 | H75: =VLOOKUP($A$2,'Table 13'!$A$26:$L$44,12,FALSE) -> 975 | I75: Upper Quartile | J75: 0.02941176471 | K75: 0.02857142857 | L75: 0 | M75: 0.1111111111 | N75: -0.005 | O75: -0.02010050251 | P75: 0.1470588235
A92: 1 Bedroom Shared Properties: | I92: 1 Bedroom Shared Properties - Annual changes and 6-yr cumulative change:
B93: 2010 | C93: 2011 | D93: 2012 | E93: 2013 | F93: 2014 | G93: 2015 | H93: 2016 | J93: 2010 to 2011 | K93: 2011 to 2012 | L93: 2012 to 2013 | M93: 2013 to 2014 | N93: 2014 to 2015 | O93: 2015 to 2016 | P93: 2010 to 2016
A94: Lower Quartile | B94: =VLOOKUP($A$2,'Table 7'!$A$47:$F$65,3,FALSE) -> 280 | C94: =VLOOKUP($A$2,'Table 8'!$A$47:$F$65,3,FALSE) -> 274 | D94: =VLOOKUP($A$2,'Table 9'!$A$47:$F$65,3,FALSE) -> 273 | E94: =VLOOKUP($A$2,'Table 10'!$A$47:$F$65,3,FALSE) -> 260 | F94: =VLOOKUP($A$2,'Table 11'!$A$47:$F$65,3,FALSE) -> 260 | G94: =VLOOKUP($A$2,'Table 12'!$A$47:$F$65,3,FALSE) -> 275 | H94: =VLOOKUP($A$2,'Table 13'!$A$47:$F$65,3,FALSE) -> 275 | I94: Lower Quartile | J94: =C94/B94-1 -> -0.02142857143 | K94: -0.003649635036 | L94: -0.04761904762 | M94: 0 | N94: 0.05769230769 | O94: =H94/G94-1 -> 0 | P94: =H94/B94-1 -> -0.01785714286
A95: Median | B95: =VLOOKUP($A$2,'Table 7'!$A$47:$F$65,4,FALSE) -> 300 | C95: =VLOOKUP($A$2,'Table 8'!$A$47:$F$65,4,FALSE) -> 298 | D95: =VLOOKUP($A$2,'Table 9'!$A$47:$F$65,4,FALSE) -> 300 | E95: =VLOOKUP($A$2,'Table 10'!$A$47:$F$65,4,FALSE) -> 286.5 | F95: =VLOOKUP($A$2,'Table 11'!$A$47:$F$65,4,FALSE) -> 276.66 | G95: =VLOOKUP($A$2,'Table 12'!$A$47:$F$65,4,FALSE) -> 300 | H95: =VLOOKUP($A$2,'Table 13'!$A$47:$F$65,4,FALSE) -> 325.89 | I95: Median | J95: -0.006666666667 | K95: 0.006711409396 | L95: -0.045 | M95: -0.03434554974 | N95: 0.08436347864 | O95: 0.0863 | P95: =H95/B95-1 -> 0.0863
A96: Mean | B96: =VLOOKUP($A$2,'Table 7'!$A$47:$F$65,5,FALSE) -> 301.7 | C96: =VLOOKUP($A$2,'Table 8'!$A$47:$F$65,5,FALSE) -> 300.68 | D96: =VLOOKUP($A$2,'Table 9'!$A$47:$F$65,5,FALSE) -> 301.73 | E96: =VLOOKUP($A$2,'Table 10'!$A$47:$F$65,5,FALSE) -> 301.15 | F96: =VLOOKUP($A$2,'Table 11'!$A$47:$F$65,5,FALSE) -> 289.5 | G96: =VLOOKUP($A$2,'Table 12'!$A$47:$F$65,5,FALSE) -> 304.35 | H96: =VLOOKUP($A$2,'Table 13'!$A$47:$F$65,5,FALSE) -> 335.13 | I96: Mean | J96: -0.003380841896 | K96: 0.003492084608 | L96: -0.001922248368 | M96: -0.03868504068 | N96: 0.05129533679 | O96: 0.1011335633 | P96: 0.1108054359
A97: Upper Quartile | B97: =VLOOKUP($A$2,'Table 7'!$A$47:$F$65,6,FALSE) -> 324 | C97: =VLOOKUP($A$2,'Table 8'!$A$47:$F$65,6,FALSE) -> 324 | D97: =VLOOKUP($A$2,'Table 9'!$A$47:$F$65,6,FALSE) -> 325 | E97: =VLOOKUP($A$2,'Table 10'!$A$47:$F$65,6,FALSE) -> 325 | F97: =VLOOKUP($A$2,'Table 11'!$A$47:$F$65,6,FALSE) -> 315 | G97: =VLOOKUP($A$2,'Table 12'!$A$47:$F$65,6,FALSE) -> 333 | H97: =VLOOKUP($A$2,'Table 13'!$A$47:$F$65,6,FALSE) -> 359.52 | I97: Upper Quartile | J97: 0 | K97: 0.003086419753 | L97: 0 | M97: -0.03076923077 | N97: 0.05714285714 | O97: 0.07963963964 | P97: 0.1096296296
A116: Mean Rents by Property Size: | I116: Median Rents by Property Size:
B117: 2010 | C117: 2011 | D117: 2012 | E117: 2013 | F117: 2014 | G117: 2015 | H117: 2016 | J117: 2010 | K117: 2011 | L117: 2012 | M117: 2013 | N117: 2014 | O117: 2015 | P117: 2016
A118: 1 Bedroom Shared | B118: =B96 -> 301.7 | C118: 300.68 | D118: 301.73 | E118: 301.15 | F118: 289.5 | G118: 304.35 | H118: 335.13 | I118: 1 Bedroom Shared | J118: =B95 -> 300 | K118: 298 | L118: 300 | M118: 286.5 | N118: 276.66 | O118: =G95 -> 300 | P118: =H95 -> 325.89
A119: 1 Bedroom | B119: =B8 -> 375.42 | C119: 378.48 | D119: 365.01 | E119: 369.38 | F119: 364.83 | G119: 362.86 | H119: 366.26 | I119: 1 Bedroom | J119: =B7 -> 375 | K119: 375 | L119: 350 | M119: 360 | N119: 360 | O119: =G7 -> 350 | P119: =H7 -> 350
A120: 2 Bedrooms | B120: =B30 -> 464.47 | C120: 469.47 | D120: 459.24 | E120: 469.51 | F120: 460.9 | G120: 460.63 | H120: 463.38 | I120: 2 Bedrooms | J120: =B29 -> 450 | K120: 450 | L120: 450 | M120: 450 | N120: 450 | O120: =G29 -> 450 | P120: =H29 -> 450
A121: 3 Bedrooms | B121: =B52 -> 556.1 | C121: 569.88 | D121: 576.09 | E121: 574.91 | F121: 568.83 | G121: 568.07 | H121: 578.84 | I121: 3 Bedrooms | J121: =B51 -> 545 | K121: 550 | L121: 550 | M121: 550 | N121: 550 | O121: =G51 -> 525 | P121: =H51 -> 550
A122: 4 Bedrooms | B122: =B74 -> 758.06 | C122: 788.66 | D122: 816.47 | E122: 834.36 | F122: 840.12 | G122: 871.69 | H122: 907.52 | I122: 4 Bedrooms | J122: =B73 -> 725 | K122: 750 | L122: 750 | M122: 795 | N122: 750 | O122: =G73 -> 850 | P122: =H73 -> 800
A140: Sample Sizes: | I140: Sample Proportions:
B141: 2010 | C141: 2011 | D141: 2012 | E141: 2013 | F141: 2014 | G141: 2015 | H141: 2016 | J141: 2010 | K141: 2011 | L141: 2012 | M141: 2013 | N141: 2014 | O141: 2015 | P141: 2016
A142: 1 Bedroom | B142: =VLOOKUP($A$2,'Table 7'!$A$5:$L$23,2,FALSE) -> 359 | C142: =VLOOKUP($A$2,'Table 8'!$A$5:$L$23,2,FALSE) -> 354 | D142: =VLOOKUP($A$2,'Table 9'!$A$5:$L$23,2,FALSE) -> 284 | E142: =VLOOKUP($A$2,'Table 10'!$A$5:$L$23,2,FALSE) -> 201 | F142: =VLOOKUP($A$2,'Table 11'!$A$5:$L$23,2,FALSE) -> 206 | G142: =VLOOKUP($A$2,'Table 12'!$A$5:$L$23,2,FALSE) -> 286 | H142: =VLOOKUP($A$2,'Table 13'!$A$5:$L$23,2,FALSE) -> 288 | I142: 1 Bedroom | J142: =B142/SUM(B$142:B$146) -> 0.2156156156 | K142: =C142/SUM(C$142:C$146) -> 0.2068965517 | L142: 0.1994382022 | M142: 0.143982808 | N142: 0.1494920174 | O142: =G142/SUM(G$142:G$146) -> 0.1796482412 | P142: 0.1844971172
A143: 2 Bedrooms | B143: =VLOOKUP($A$2,'Table 7'!$A$5:$L$23,8,FALSE) -> 759 | C143: =VLOOKUP($A$2,'Table 8'!$A$5:$L$23,8,FALSE) -> 737 | D143: =VLOOKUP($A$2,'Table 9'!$A$5:$L$23,8,FALSE) -> 607 | E143: =VLOOKUP($A$2,'Table 10'!$A$5:$L$23,8,FALSE) -> 592 | F143: =VLOOKUP($A$2,'Table 11'!$A$5:$L$23,8,FALSE) -> 604 | G143: =VLOOKUP($A$2,'Table 12'!$A$5:$L$23,8,FALSE) -> 681 | H143: =VLOOKUP($A$2,'Table 13'!$A$5:$L$23,8,FALSE) -> 716 | I143: 2 Bedrooms | J143: =B143/SUM(B$142:B$146) -> 0.4558558559 | K143: 0.430742256 | L143: 0.4262640449 | M143: 0.4240687679 | N143: 0.4383164006 | O143: 0.4277638191 | P143: 0.4586803331
A144: 3 Bedrooms | B144: =VLOOKUP($A$2,'Table 7'!$A$26:$L$44,2,FALSE) -> 390 | C144: =VLOOKUP($A$2,'Table 8'!$A$26:$L$44,2,FALSE) -> 417 | D144: =VLOOKUP($A$2,'Table 9'!$A$26:$L$44,2,FALSE) -> 328 | E144: =VLOOKUP($A$2,'Table 10'!$A$26:$L$44,2,FALSE) -> 347 | F144: =VLOOKUP($A$2,'Table 11'!$A$26:$L$44,2,FALSE) -> 346 | G144: =VLOOKUP($A$2,'Table 12'!$A$26:$L$44,2,FALSE) -> 380 | H144: =VLOOKUP($A$2,'Table 13'!$A$26:$L$44,2,FALSE) -> 341 | I144: 3 Bedrooms | J144: =B144/SUM(B$142:B$146) -> 0.2342342342 | K144: 0.2437171245 | L144: 0.2303370787 | M144: 0.2485673352 | N144: 0.2510885341 | O144: 0.2386934673 | P144: 0.2184497117
A145: 4 Bedrooms | B145: =VLOOKUP($A$2,'Table 7'!$A$26:$L$44,8,FALSE) -> 119 | C145: =VLOOKUP($A$2,'Table 8'!$A$26:$L$44,8,FALSE) -> 136 | D145: =VLOOKUP($A$2,'Table 9'!$A$26:$L$44,8,FALSE) -> 108 | E145: =VLOOKUP($A$2,'Table 10'!$A$26:$L$44,8,FALSE) -> 136 | F145: =VLOOKUP($A$2,'Table 11'!$A$26:$L$44,8,FALSE) -> 115 | G145: =VLOOKUP($A$2,'Table 12'!$A$26:$L$44,8,FALSE) -> 106 | H145: =VLOOKUP($A$2,'Table 13'!$A$26:$L$44,8,FALSE) -> 101 | I145: 4 Bedrooms | J145: =B145/SUM(B$142:B$146) -> 0.07147147147 | K145: 0.07948568089 | L145: 0.07584269663 | M145: 0.09742120344 | N145: 0.08345428157 | O145: 0.06658291457 | P145: 0.06470211403
A146: 1 Bedroom Shared | B146: =VLOOKUP($A$2,'Table 7'!$A$47:$L$65,2,FALSE) -> 38 | C146: =VLOOKUP($A$2,'Table 8'!$A$47:$L$65,2,FALSE) -> 67 | D146: =VLOOKUP($A$2,'Table 9'!$A$47:$L$65,2,FALSE) -> 97 | E146: =VLOOKUP($A$2,'Table 10'!$A$47:$L$65,2,FALSE) -> 120 | F146: =VLOOKUP($A$2,'Table 11'!$A$47:$L$65,2,FALSE) -> 107 | G146: =VLOOKUP($A$2,'Table 12'!$A$47:$L$65,2,FALSE) -> 139 | H146: =VLOOKUP($A$2,'Table 13'!$A$47:$L$65,2,FALSE) -> 115 | I146: 1 Bedroom Shared | J146: =B146/SUM(B$142:B$146) -> 0.02282282282 | K146: 0.03915838691 | L146: 0.06811797753 | M146: 0.08595988539 | N146: 0.07764876633 | O146: 0.08731155779 | P146: 0.07367072389

Sheet BRMA Profile - Dumfries and Gal (hidden)
A1: BRMA Rent Profile for:
A2: Dumfries and Galloway | I2: =ROUND(MIN(J6:P9,J28:P31,J50:P53,J72:P75,J94:P97)-0.01,2) -> -0.06 | J2: =ROUND(MAX(J6:P9,J28:P31,J50:P53,J72:P75,J94:P97)+0.01,2) -> 0.15
A4: 1 Bedroom Properties - Quartile Measures: | I4: 1 Bedroom Properties - Annual changes and 6-yr cumulative change:
B5: 2010 | C5: 2011 | D5: 2012 | E5: 2013 | F5: 2014 | G5: 2015 | H5: 2016 | J5: 2010 to 2011 | K5: 2011 to 2012 | L5: 2012 to 2013 | M5: 2013 to 2014 | N5: 2014 to 2015 | O5: 2015 to 2016 | P5: 2010 to 2016
A6: Lower Quartile | B6: =VLOOKUP($A$2,'Table 7'!$A$5:$L$23,3,FALSE) -> 325 | C6: =VLOOKUP($A$2,'Table 8'!$A$5:$L$23,3,FALSE) -> 340 | D6: =VLOOKUP($A$2,'Table 9'!$A$5:$L$23,3,FALSE) -> 350 | E6: =VLOOKUP($A$2,'Table 10'!$A$5:$L$23,3,FALSE) -> 350 | F6: =VLOOKUP($A$2,'Table 11'!$A$5:$L$23,3,FALSE) -> 350 | G6: =VLOOKUP($A$2,'Table 12'!$A$5:$L$23,3,FALSE) -> 350 | H6: =VLOOKUP($A$2,'Table 13'!$A$5:$L$23,3,FALSE) -> 369.35 | I6: Lower Quartile | J6: =C6/B6-1 -> 0.04615384615 | K6: 0.02941176471 | L6: 0 | M6: 0 | N6: 0 | O6: =H6/G6-1 -> 0.05528571429 | P6: =H6/B6-1 -> 0.1364615385
A7: Median | B7: =VLOOKUP($A$2,'Table 7'!$A$5:$L$23,4,FALSE) -> 360 | C7: =VLOOKUP($A$2,'Table 8'!$A$5:$L$23,4,FALSE) -> 375 | D7: =VLOOKUP($A$2,'Table 9'!$A$5:$L$23,4,FALSE) -> 370 | E7: =VLOOKUP($A$2,'Table 10'!$A$5:$L$23,4,FALSE) -> 375 | F7: =VLOOKUP($A$2,'Table 11'!$A$5:$L$23,4,FALSE) -> 375 | G7: =VLOOKUP($A$2,'Table 12'!$A$5:$L$23,4,FALSE) -> 375 | H7: =VLOOKUP($A$2,'Table 13'!$A$5:$L$23,4,FALSE) -> 380 | I7: Median | J7: 0.04166666667 | K7: -0.01333333333 | L7: 0.01351351351 | M7: 0 | N7: 0 | O7: 0.01333333333 | P7: =H7/B7-1 -> 0.05555555556
A8: Mean | B8: =VLOOKUP($A$2,'Table 7'!$A$5:$L$23,5,FALSE) -> 358.94 | C8: =VLOOKUP($A$2,'Table 8'!$A$5:$L$23,5,FALSE) -> 367.22 | D8: =VLOOKUP($A$2,'Table 9'!$A$5:$L$23,5,FALSE) -> 366.47 | E8: =VLOOKUP($A$2,'Table 10'!$A$5:$L$23,5,FALSE) -> 374.15 | F8: =VLOOKUP($A$2,'Table 11'!$A$5:$L$23,5,FALSE) -> 369.27 | G8: =VLOOKUP($A$2,'Table 12'!$A$5:$L$23,5,FALSE) -> 373.39 | H8: =VLOOKUP($A$2,'Table 13'!$A$5:$L$23,5,FALSE) -> 384.25 | I8: Mean | J8: 0.02306792222 | K8: -0.00204237242 | L8: 0.02095669495 | M8: -0.01304289723 | N8: 0.01115714789 | O8: 0.02908487105 | P8: 0.07051317769
A9: Upper Quartile | B9: =VLOOKUP($A$2,'Table 7'!$A$5:$L$23,6,FALSE) -> 390 | C9: =VLOOKUP($A$2,'Table 8'!$A$5:$L$23,6,FALSE) -> 395 | D9: =VLOOKUP($A$2,'Table 9'!$A$5:$L$23,6,FALSE) -> 395 | E9: =VLOOKUP($A$2,'Table 10'!$A$5:$L$23,6,FALSE) -> 395 | F9: =VLOOKUP($A$2,'Table 11'!$A$5:$L$23,6,FALSE) -> 390 | G9: =VLOOKUP($A$2,'Table 12'!$A$5:$L$23,6,FALSE) -> 400 | H9: =VLOOKUP($A$2,'Table 13'!$A$5:$L$23,6,FALSE) -> 400 | I9: Upper Quartile | J9: 0.01282051282 | K9: 0 | L9: 0 | M9: -0.01265822785 | N9: 0.02564102564 | O9: 0 | P9: 0.02564102564
A26: 2 Bedroom Properties: | I26: 2 Bedroom Properties - Annual changes and 6-yr cumulative change:
B27: 2010 | C27: 2011 | D27: 2012 | E27: 2013 | F27: 2014 | G27: 2015 | H27: 2016 | J27: 2010 to 2011 | K27: 2011 to 2012 | L27: 2012 to 2013 | M27: 2013 to 2014 | N27: 2014 to 2015 | O27: 2015 to 2016 | P27: 2010 to 2016
A28: Lower Quartile | B28: =VLOOKUP($A$2,'Table 7'!$A$5:$L$23,9,FALSE) -> 400 | C28: =VLOOKUP($A$2,'Table 8'!$A$5:$L$23,9,FALSE) -> 420 | D28: =VLOOKUP($A$2,'Table 9'!$A$5:$L$23,9,FALSE) -> 420 | E28: =VLOOKUP($A$2,'Table 10'!$A$5:$L$23,9,FALSE) -> 425 | F28: =VLOOKUP($A$2,'Table 11'!$A$5:$L$23,9,FALSE) -> 410 | G28: =VLOOKUP($A$2,'Table 12'!$A$5:$L$23,9,FALSE) -> 420 | H28: =VLOOKUP($A$2,'Table 13'!$A$5:$L$23,9,FALSE) -> 420 | I28: Lower Quartile | J28: =C28/B28-1 -> 0.05 | K28: 0 | L28: 0.0119047619 | M28: -0.03529411765 | N28: 0.0243902439 | O28: =H28/G28-1 -> 0 | P28: =H28/B28-1 -> 0.05
A29: Median | B29: =VLOOKUP($A$2,'Table 7'!$A$5:$L$23,10,FALSE) -> 430 | C29: =VLOOKUP($A$2,'Table 8'!$A$5:$L$23,10,FALSE) -> 450 | D29: =VLOOKUP($A$2,'Table 9'!$A$5:$L$23,10,FALSE) -> 450 | E29: =VLOOKUP($A$2,'Table 10'!$A$5:$L$23,10,FALSE) -> 450 | F29: =VLOOKUP($A$2,'Table 11'!$A$5:$L$23,10,FALSE) -> 450 | G29: =VLOOKUP($A$2,'Table 12'!$A$5:$L$23,10,FALSE) -> 450 | H29: =VLOOKUP($A$2,'Table 13'!$A$5:$L$23,10,FALSE) -> 450 | I29: Median | J29: 0.04651162791 | K29: 0 | L29: 0 | M29: 0 | N29: 0 | O29: =H29/G29-1 -> 0 | P29: =H29/B29-1 -> 0.04651162791
A30: Mean | B30: =VLOOKUP($A$2,'Table 7'!$A$5:$L$23,11,FALSE) -> 435.12 | C30: =VLOOKUP($A$2,'Table 8'!$A$5:$L$23,11,FALSE) -> 444.21 | D30: =VLOOKUP($A$2,'Table 9'!$A$5:$L$23,11,FALSE) -> 443.75 | E30: =VLOOKUP($A$2,'Table 10'!$A$5:$L$23,11,FALSE) -> 444.46 | F30: =VLOOKUP($A$2,'Table 11'!$A$5:$L$23,11,FALSE) -> 442.14 | G30: =VLOOKUP($A$2,'Table 12'!$A$5:$L$23,11,FALSE) -> 446.25 | H30: =VLOOKUP($A$2,'Table 13'!$A$5:$L$23,11,FALSE) -> 446.89 | I30: Mean | J30: 0.02089078875 | K30: -0.001035546251 | L30: 0.0016 | M30: -0.005219817306 | N30: 0.009295698195 | O30: =H30/G30-1 -> 0.001434173669 | P30: 0.02705000919
A31: Upper Quartile | B31: =VLOOKUP($A$2,'Table 7'!$A$5:$L$23,12,FALSE) -> 475 | C31: =VLOOKUP($A$2,'Table 8'!$A$5:$L$23,12,FALSE) -> 475 | D31: =VLOOKUP($A$2,'Table 9'!$A$5:$L$23,12,FALSE) -> 475 | E31: =VLOOKUP($A$2,'Table 10'!$A$5:$L$23,12,FALSE) -> 475 | F31: =VLOOKUP($A$2,'Table 11'!$A$5:$L$23,12,FALSE) -> 475 | G31: =VLOOKUP($A$2,'Table 12'!$A$5:$L$23,12,FALSE) -> 475 | H31: =VLOOKUP($A$2,'Table 13'!$A$5:$L$23,12,FALSE) -> 475 | I31: Upper Quartile | J31: 0 | K31: 0 | L31: 0 | M31: 0 | N31: 0 | O31: =H31/G31-1 -> 0 | P31: 0
A48: 3 Bedroom Properties: | I48: 3 Bedroom Properties - Annual changes and 6-yr cumulative change:
B49: 2010 | C49: 2011 | D49: 2012 | E49: 2013 | F49: 2014 | G49: 2015 | H49: 2016 | J49: 2010 to 2011 | K49: 2011 to 2012 | L49: 2012 to 2013 | M49: 2013 to 2014 | N49: 2014 to 2015 | O49: 2015 to 2016 | P49: 2010 to 2016
A50: Lower Quartile | B50: =VLOOKUP($A$2,'Table 7'!$A$26:$L$44,3,FALSE) -> 440 | C50: =VLOOKUP($A$2,'Table 8'!$A$26:$L$44,3,FALSE) -> 450 | D50: =VLOOKUP($A$2,'Table 9'!$A$26:$L$44,3,FALSE) -> 450 | E50: =VLOOKUP($A$2,'Table 10'!$A$26:$L$44,3,FALSE) -> 475 | F50: =VLOOKUP($A$2,'Table 11'!$A$26:$L$44,3,FALSE) -> 450 | G50: =VLOOKUP($A$2,'Table 12'!$A$26:$L$44,3,FALSE) -> 450 | H50: =VLOOKUP($A$2,'Table 13'!$A$26:$L$44,3,FALSE) -> 450 | I50: Lower Quartile | J50: =C50/B50-1 -> 0.02272727273 | K50: 0 | L50: 0.05555555556 | M50: -0.05263157895 | N50: 0 | O50: =H50/G50-1 -> 0 | P50: =H50/B50-1 -> 0.02272727273
A51: Median | B51: =VLOOKUP($A$2,'Table 7'!$A$26:$L$44,4,FALSE) -> 485 | C51: =VLOOKUP($A$2,'Table 8'!$A$26:$L$44,4,FALSE) -> 500 | D51: =VLOOKUP($A$2,'Table 9'!$A$26:$L$44,4,FALSE) -> 500 | E51: =VLOOKUP($A$2,'Table 10'!$A$26:$L$44,4,FALSE) -> 500 | F51: =VLOOKUP($A$2,'Table 11'!$A$26:$L$44,4,FALSE) -> 500 | G51: =VLOOKUP($A$2,'Table 12'!$A$26:$L$44,4,FALSE) -> 500 | H51: =VLOOKUP($A$2,'Table 13'!$A$26:$L$44,4,FALSE) -> 500 | I51: Median | J51: 0.03092783505 | K51: 0 | L51: 0 | M51: 0 | N51: 0 | O51: =H51/G51-1 -> 0 | P51: =H51/B51-1 -> 0.03092783505
A52: Mean | B52: =VLOOKUP($A$2,'Table 7'!$A$26:$L$44,5,FALSE) -> 499.63 | C52: =VLOOKUP($A$2,'Table 8'!$A$26:$L$44,5,FALSE) -> 509.58 | D52: =VLOOKUP($A$2,'Table 9'!$A$26:$L$44,5,FALSE) -> 507.7 | E52: =VLOOKUP($A$2,'Table 10'!$A$26:$L$44,5,FALSE) -> 508.44 | F52: =VLOOKUP($A$2,'Table 11'!$A$26:$L$44,5,FALSE) -> 511.86 | G52: =VLOOKUP($A$2,'Table 12'!$A$26:$L$44,5,FALSE) -> 505.94 | H52: =VLOOKUP($A$2,'Table 13'!$A$26:$L$44,5,FALSE) -> 513.91 | I52: Mean | J52: 0.01991473691 | K52: -0.003689312767 | L52: 0.001457553673 | M52: 0.006726457399 | N52: -0.01156566249 | O52: =H52/G52-1 -> 0.01575285607 | P52: 0.02858115005
A53: Upper Quartile | B53: =VLOOKUP($A$2,'Table 7'!$A$26:$L$44,6,FALSE) -> 550 | C53: =VLOOKUP($A$2,'Table 8'!$A$26:$L$44,6,FALSE) -> 560 | D53: =VLOOKUP($A$2,'Table 9'!$A$26:$L$44,6,FALSE) -> 550 | E53: =VLOOKUP($A$2,'Table 10'!$A$26:$L$44,6,FALSE) -> 550 | F53: =VLOOKUP($A$2,'Table 11'!$A$26:$L$44,6,FALSE) -> 550 | G53: =VLOOKUP($A$2,'Table 12'!$A$26:$L$44,6,FALSE) -> 550 | H53: =VLOOKUP($A$2,'Table 13'!$A$26:$L$44,6,FALSE) -> 550 | I53: Upper Quartile | J53: 0.01818181818 | K53: -0.01785714286 | L53: 0 | M53: 0 | N53: 0 | O53: =H53/G53-1 -> 0 | P53: 0
A70: 4 Bedroom Properties: | I70: 4 Bedroom Properties - Annual changes and 6-yr cumulative change:
B71: 2010 | C71: 2011 | D71: 2012 | E71: 2013 | F71: 2014 | G71: 2015 | H71: 2016 | J71: 2010 to 2011 | K71: 2011 to 2012 | L71: 2012 to 2013 | M71: 2013 to 2014 | N71: 2014 to 2015 | O71: 2015 to 2016 | P71: 2010 to 2016
A72: Lower Quartile | B72: =VLOOKUP($A$2,'Table 7'!$A$26:$L$44,9,FALSE) -> 500 | C72: =VLOOKUP($A$2,'Table 8'!$A$26:$L$44,9,FALSE) -> 550 | D72: =VLOOKUP($A$2,'Table 9'!$A$26:$L$44,9,FALSE) -> 545 | E72: =VLOOKUP($A$2,'Table 10'!$A$26:$L$44,9,FALSE) -> 550 | F72: =VLOOKUP($A$2,'Table 11'!$A$26:$L$44,9,FALSE) -> 550 | G72: =VLOOKUP($A$2,'Table 12'!$A$26:$L$44,9,FALSE) -> 550 | H72: =VLOOKUP($A$2,'Table 13'!$A$26:$L$44,9,FALSE) -> 550 | I72: Lower Quartile | J72: =C72/B72-1 -> 0.1 | K72: -0.009090909091 | L72: 0.009174311927 | M72: 0 | N72: 0 | O72: =H72/G72-1 -> 0 | P72: =H72/B72-1 -> 0.1
A73: Median | B73: =VLOOKUP($A$2,'Table 7'!$A$26:$L$44,10,FALSE) -> 600 | C73: =VLOOKUP($A$2,'Table 8'!$A$26:$L$44,10,FALSE) -> 650 | D73: =VLOOKUP($A$2,'Table 9'!$A$26:$L$44,10,FALSE) -> 622.5 | E73: =VLOOKUP($A$2,'Table 10'!$A$26:$L$44,10,FALSE) -> 632.5 | F73: =VLOOKUP($A$2,'Table 11'!$A$26:$L$44,10,FALSE) -> 650 | G73: =VLOOKUP($A$2,'Table 12'!$A$26:$L$44,10,FALSE) -> 650 | H73: =VLOOKUP($A$2,'Table 13'!$A$26:$L$44,10,FALSE) -> 650 | I73: Median | J73: 0.08333333333 | K73: -0.04230769231 | L73: 0.01606425703 | M73: 0.02766798419 | N73: 0 | O73: 0 | P73: =H73/B73-1 -> 0.08333333333
A74: Mean | B74: =VLOOKUP($A$2,'Table 7'!$A$26:$L$44,11,FALSE) -> 620.08 | C74: =VLOOKUP($A$2,'Table 8'!$A$26:$L$44,11,FALSE) -> 648.78 | D74: =VLOOKUP($A$2,'Table 9'!$A$26:$L$44,11,FALSE) -> 632.94 | E74: =VLOOKUP($A$2,'Table 10'!$A$26:$L$44,11,FALSE) -> 635.38 | F74: =VLOOKUP($A$2,'Table 11'!$A$26:$L$44,11,FALSE) -> 636.92 | G74: =VLOOKUP($A$2,'Table 12'!$A$26:$L$44,11,FALSE) -> 646.85 | H74: =VLOOKUP($A$2,'Table 13'!$A$26:$L$44,11,FALSE) -> 645.81 | I74: Mean | J74: 0.04628435041 | K74: -0.02441505595 | L74: 0.003855025753 | M74: 0.002423746419 | N74: 0.01559065503 | O74: -0.001607791605 | P74: 0.04149464585
A75: Upper Quartile | B75: =VLOOKUP($A$2,'Table 7'!$A$26:$L$44,12,FALSE) -> 700 | C75: =VLOOKUP($A$2,'Table 8'!$A$26:$L$44,12,FALSE) -> 700 | D75: =VLOOKUP($A$2,'Table 9'!$A$26:$L$44,12,FALSE) -> 675 | E75: =VLOOKUP($A$2,'Table 10'!$A$26:$L$44,12,FALSE) -> 700 | F75: =VLOOKUP($A$2,'Table 11'!$A$26:$L$44,12,FALSE) -> 700 | G75: =VLOOKUP($A$2,'Table 12'!$A$26:$L$44,12,FALSE) -> 750 | H75: =VLOOKUP($A$2,'Table 13'!$A$26:$L$44,12,FALSE) -> 750 | I75: Upper Quartile | J75: 0 | K75: -0.03571428571 | L75: 0.03703703704 | M75: 0 | N75: 0.07142857143 | O75: 0 | P75: 0.07142857143
A92: 1 Bedroom Shared Properties: | I92: 1 Bedroom Shared Properties - Annual changes and 6-yr cumulative change:
B93: 2010 | C93: 2011 | D93: 2012 | E93: 2013 | F93: 2014 | G93: 2015 | H93: 2016 | J93: 2010 to 2011 | K93: 2011 to 2012 | L93: 2012 to 2013 | M93: 2013 to 2014 | N93: 2014 to 2015 | O93: 2015 to 2016 | P93: 2010 to 2016
A94: Lower Quartile | B94: =VLOOKUP($A$2,'Table 7'!$A$47:$F$65,3,FALSE) -> 260 | C94: =VLOOKUP($A$2,'Table 8'!$A$47:$F$65,3,FALSE) -> 255 | D94: =VLOOKUP($A$2,'Table 9'!$A$47:$F$65,3,FALSE) -> 250.47 | E94: =VLOOKUP($A$2,'Table 10'!$A$47:$F$65,3,FALSE) -> 250 | F94: =VLOOKUP($A$2,'Table 11'!$A$47:$F$65,3,FALSE) -> 255 | G94: =VLOOKUP($A$2,'Table 12'!$A$47:$F$65,3,FALSE) -> 257.5 | H94: =VLOOKUP($A$2,'Table 13'!$A$47:$F$65,3,FALSE) -> 260 | I94: Lower Quartile | J94: =C94/B94-1 -> -0.01923076923 | K94: -0.01776470588 | L94: -0.001876472232 | M94: 0.02 | N94: 0.009803921569 | O94: =H94/G94-1 -> 0.009708737864 | P94: =H94/B94-1 -> 0
A95: Median | B95: =VLOOKUP($A$2,'Table 7'!$A$47:$F$65,4,FALSE) -> 285 | C95: =VLOOKUP($A$2,'Table 8'!$A$47:$F$65,4,FALSE) -> 275 | D95: =VLOOKUP($A$2,'Table 9'!$A$47:$F$65,4,FALSE) -> 275 | E95: =VLOOKUP($A$2,'Table 10'!$A$47:$F$65,4,FALSE) -> 265 | F95: =VLOOKUP($A$2,'Table 11'!$A$47:$F$65,4,FALSE) -> 271.67 | G95: =VLOOKUP($A$2,'Table 12'!$A$47:$F$65,4,FALSE) -> 281.81 | H95: =VLOOKUP($A$2,'Table 13'!$A$47:$F$65,4,FALSE) -> 282.5 | I95: Median | J95: -0.0350877193 | K95: 0 | L95: -0.03636363636 | M95: 0.02516981132 | N95: 0.0373246954 | O95: 0.002448458181 | P95: =H95/B95-1 -> -0.008771929825
A96: Mean | B96: =VLOOKUP($A$2,'Table 7'!$A$47:$F$65,5,FALSE) -> 277.88 | C96: =VLOOKUP($A$2,'Table 8'!$A$47:$F$65,5,FALSE) -> 274.11 | D96: =VLOOKUP($A$2,'Table 9'!$A$47:$F$65,5,FALSE) -> 274.66 | E96: =VLOOKUP($A$2,'Table 10'!$A$47:$F$65,5,FALSE) -> 272.17 | F96: =VLOOKUP($A$2,'Table 11'!$A$47:$F$65,5,FALSE) -> 268.81 | G96: =VLOOKUP($A$2,'Table 12'!$A$47:$F$65,5,FALSE) -> 277.7 | H96: =VLOOKUP($A$2,'Table 13'!$A$47:$F$65,5,FALSE) -> 284.72 | I96: Mean | J96: -0.01356700734 | K96: 0.002006493743 | L96: -0.009065754023 | M96: -0.01234522541 | N96: 0.03307168632 | O96: 0.02527907814 | P96: 0.0246149417
A97: Upper Quartile | B97: =VLOOKUP($A$2,'Table 7'!$A$47:$F$65,6,FALSE) -> 299.99 | C97: =VLOOKUP($A$2,'Table 8'!$A$47:$F$65,6,FALSE) -> 290 | D97: =VLOOKUP($A$2,'Table 9'!$A$47:$F$65,6,FALSE) -> 305 | E97: =VLOOKUP($A$2,'Table 10'!$A$47:$F$65,6,FALSE) -> 293.8 | F97: =VLOOKUP($A$2,'Table 11'!$A$47:$F$65,6,FALSE) -> 285 | G97: =VLOOKUP($A$2,'Table 12'!$A$47:$F$65,6,FALSE) -> 305 | H97: =VLOOKUP($A$2,'Table 13'!$A$47:$F$65,6,FALSE) -> 305 | I97: Upper Quartile | J97: -0.03330111004 | K97: 0.05172413793 | L97: -0.03672131148 | M97: -0.02995234854 | N97: 0.0701754386 | O97: 0 | P97: 0.01670055669
A116: Mean Rents by Property Size: | I116: Median Rents by Property Size:
B117: 2010 | C117: 2011 | D117: 2012 | E117: 2013 | F117: 2014 | G117: 2015 | H117: 2016 | J117: 2010 | K117: 2011 | L117: 2012 | M117: 2013 | N117: 2014 | O117: 2015 | P117: 2016
A118: 1 Bedroom Shared | B118: =B96 -> 277.88 | C118: 274.11 | D118: 274.66 | E118: 272.17 | F118: 268.81 | G118: 277.7 | H118: 284.72 | I118: 1 Bedroom Shared | J118: =B95 -> 285 | K118: 275 | L118: 275 | M118: 265 | N118: 271.67 | O118: =G95 -> 281.81 | P118: =H95 -> 282.5
A119: 1 Bedroom | B119: =B8 -> 358.94 | C119: 367.22 | D119: 366.47 | E119: 374.15 | F119: 369.27 | G119: 373.39 | H119: 384.25 | I119: 1 Bedroom | J119: =B7 -> 360 | K119: 375 | L119: 370 | M119: 375 | N119: 375 | O119: =G7 -> 375 | P119: =H7 -> 380
A120: 2 Bedrooms | B120: =B30 -> 435.12 | C120: 444.21 | D120: 443.75 | E120: 444.46 | F120: 442.14 | G120: 446.25 | H120: 446.89 | I120: 2 Bedrooms | J120: =B29 -> 430 | K120: 450 | L120: 450 | M120: 450 | N120: 450 | O120: =G29 -> 450 | P120: =H29 -> 450
A121: 3 Bedrooms | B121: =B52 -> 499.63 | C121: 509.58 | D121: 507.7 | E121: 508.44 | F121: 511.86 | G121: 505.94 | H121: 513.91 | I121: 3 Bedrooms | J121: =B51 -> 485 | K121: 500 | L121: 500 | M121: 500 | N121: 500 | O121: =G51 -> 500 | P121: =H51 -> 500
A122: 4 Bedrooms | B122: =B74 -> 620.08 | C122: 648.78 | D122: 632.94 | E122: 635.38 | F122: 636.92 | G122: 646.85 | H122: 645.81 | I122: 4 Bedrooms | J122: =B73 -> 600 | K122: 650 | L122: 622.5 | M122: 632.5 | N122: 650 | O122: =G73 -> 650 | P122: =H73 -> 650
A140: Sample Sizes: | I140: Sample Proportions:
B141: 2010 | C141: 2011 | D141: 2012 | E141: 2013 | F141: 2014 | G141: 2015 | H141: 2016 | J141: 2010 | K141: 2011 | L141: 2012 | M141: 2013 | N141: 2014 | O141: 2015 | P141: 2016
A142: 1 Bedroom | B142: =VLOOKUP($A$2,'Table 7'!$A$5:$L$23,2,FALSE) -> 58 | C142: =VLOOKUP($A$2,'Table 8'!$A$5:$L$23,2,FALSE) -> 82 | D142: =VLOOKUP($A$2,'Table 9'!$A$5:$L$23,2,FALSE) -> 97 | E142: =VLOOKUP($A$2,'Table 10'!$A$5:$L$23,2,FALSE) -> 102 | F142: =VLOOKUP($A$2,'Table 11'!$A$5:$L$23,2,FALSE) -> 114 | G142: =VLOOKUP($A$2,'Table 12'!$A$5:$L$23,2,FALSE) -> 110 | H142: =VLOOKUP($A$2,'Table 13'!$A$5:$L$23,2,FALSE) -> 109 | I142: 1 Bedroom | J142: =B142/SUM(B$142:B$146) -> 0.1164658635 | K142: =C142/SUM(C$142:C$146) -> 0.1169757489 | L142: 0.1197530864 | M142: 0.1207100592 | N142: 0.1266666667 | O142: =G142/SUM(G$142:G$146) -> 0.1283547258 | P142: 0.13625
A143: 2 Bedrooms | B143: =VLOOKUP($A$2,'Table 7'!$A$5:$L$23,8,FALSE) -> 180 | C143: =VLOOKUP($A$2,'Table 8'!$A$5:$L$23,8,FALSE) -> 280 | D143: =VLOOKUP($A$2,'Table 9'!$A$5:$L$23,8,FALSE) -> 322 | E143: =VLOOKUP($A$2,'Table 10'!$A$5:$L$23,8,FALSE) -> 339 | F143: =VLOOKUP($A$2,'Table 11'!$A$5:$L$23,8,FALSE) -> 363 | G143: =VLOOKUP($A$2,'Table 12'!$A$5:$L$23,8,FALSE) -> 371 | H143: =VLOOKUP($A$2,'Table 13'!$A$5:$L$23,8,FALSE) -> 341 | I143: 2 Bedrooms | J143: =B143/SUM(B$142:B$146) -> 0.3614457831 | K143: 0.3994293866 | L143: 0.3975308642 | M143: 0.401183432 | N143: 0.4033333333 | O143: 0.4329054842 | P143: 0.42625
A144: 3 Bedrooms | B144: =VLOOKUP($A$2,'Table 7'!$A$26:$L$44,2,FALSE) -> 145 | C144: =VLOOKUP($A$2,'Table 8'!$A$26:$L$44,2,FALSE) -> 200 | D144: =VLOOKUP($A$2,'Table 9'!$A$26:$L$44,2,FALSE) -> 256 | E144: =VLOOKUP($A$2,'Table 10'!$A$26:$L$44,2,FALSE) -> 259 | F144: =VLOOKUP($A$2,'Table 11'!$A$26:$L$44,2,FALSE) -> 284 | G144: =VLOOKUP($A$2,'Table 12'!$A$26:$L$44,2,FALSE) -> 234 | H144: =VLOOKUP($A$2,'Table 13'!$A$26:$L$44,2,FALSE) -> 206 | I144: 3 Bedrooms | J144: =B144/SUM(B$142:B$146) -> 0.2911646586 | K144: 0.2853067047 | L144: 0.3160493827 | M144: 0.3065088757 | N144: 0.3155555556 | O144: 0.2730455076 | P144: 0.2575
A145: 4 Bedrooms | B145: =VLOOKUP($A$2,'Table 7'!$A$26:$L$44,8,FALSE) -> 65 | C145: =VLOOKUP($A$2,'Table 8'!$A$26:$L$44,8,FALSE) -> 80 | D145: =VLOOKUP($A$2,'Table 9'!$A$26:$L$44,8,FALSE) -> 80 | E145: =VLOOKUP($A$2,'Table 10'!$A$26:$L$44,8,FALSE) -> 80 | F145: =VLOOKUP($A$2,'Table 11'!$A$26:$L$44,8,FALSE) -> 65 | G145: =VLOOKUP($A$2,'Table 12'!$A$26:$L$44,8,FALSE) -> 62 | H145: =VLOOKUP($A$2,'Table 13'!$A$26:$L$44,8,FALSE) -> 62 | I145: 4 Bedrooms | J145: =B145/SUM(B$142:B$146) -> 0.1305220884 | K145: 0.1141226819 | L145: 0.0987654321 | M145: 0.09467455621 | N145: 0.07222222222 | O145: 0.0723453909 | P145: 0.0775
A146: 1 Bedroom Shared | B146: =VLOOKUP($A$2,'Table 7'!$A$47:$L$65,2,FALSE) -> 50 | C146: =VLOOKUP($A$2,'Table 8'!$A$47:$L$65,2,FALSE) -> 59 | D146: =VLOOKUP($A$2,'Table 9'!$A$47:$L$65,2,FALSE) -> 55 | E146: =VLOOKUP($A$2,'Table 10'!$A$47:$L$65,2,FALSE) -> 65 | F146: =VLOOKUP($A$2,'Table 11'!$A$47:$L$65,2,FALSE) -> 74 | G146: =VLOOKUP($A$2,'Table 12'!$A$47:$L$65,2,FALSE) -> 80 | H146: =VLOOKUP($A$2,'Table 13'!$A$47:$L$65,2,FALSE) -> 82 | I146: 1 Bedroom Shared | J146: =B146/SUM(B$142:B$146) -> 0.1004016064 | K146: 0.08416547789 | L146: 0.06790123457 | M146: 0.07692307692 | N146: 0.08222222222 | O146: 0.09334889148 | P146: 0.1025

Sheet BRMA Profile - Dundee and Angus (hidden)
A1: BRMA Rent Profile for:
A2: Dundee and Angus | I2: =ROUND(MIN(J6:P9,J28:P31,J50:P53,J72:P75,J94:P97)-0.01,2) -> -0.06 | J2: =ROUND(MAX(J6:P9,J28:P31,J50:P53,J72:P75,J94:P97)+0.01,2) -> 0.36
A4: 1 Bedroom Properties - Quartile Measures: | I4: 1 Bedroom Properties - Annual changes and 6-yr cumulative change:
B5: 2010 | C5: 2011 | D5: 2012 | E5: 2013 | F5: 2014 | G5: 2015 | H5: 2016 | J5: 2010 to 2011 | K5: 2011 to 2012 | L5: 2012 to 2013 | M5: 2013 to 2014 | N5: 2014 to 2015 | O5: 2015 to 2016 | P5: 2010 to 2016
A6: Lower Quartile | B6: =VLOOKUP($A$2,'Table 7'!$A$5:$L$23,3,FALSE) -> 320 | C6: =VLOOKUP($A$2,'Table 8'!$A$5:$L$23,3,FALSE) -> 325 | D6: =VLOOKUP($A$2,'Table 9'!$A$5:$L$23,3,FALSE) -> 330 | E6: =VLOOKUP($A$2,'Table 10'!$A$5:$L$23,3,FALSE) -> 330 | F6: =VLOOKUP($A$2,'Table 11'!$A$5:$L$23,3,FALSE) -> 335 | G6: =VLOOKUP($A$2,'Table 12'!$A$5:$L$23,3,FALSE) -> 350 | H6: =VLOOKUP($A$2,'Table 13'!$A$5:$L$23,3,FALSE) -> 350 | I6: Lower Quartile | J6: =C6/B6-1 -> 0.015625 | K6: 0.01538461538 | L6: 0 | M6: 0.01515151515 | N6: 0.0447761194 | O6: =H6/G6-1 -> 0 | P6: =H6/B6-1 -> 0.09375
A7: Median | B7: =VLOOKUP($A$2,'Table 7'!$A$5:$L$23,4,FALSE) -> 350 | C7: =VLOOKUP($A$2,'Table 8'!$A$5:$L$23,4,FALSE) -> 350 | D7: =VLOOKUP($A$2,'Table 9'!$A$5:$L$23,4,FALSE) -> 360 | E7: =VLOOKUP($A$2,'Table 10'!$A$5:$L$23,4,FALSE) -> 350 | F7: =VLOOKUP($A$2,'Table 11'!$A$5:$L$23,4,FALSE) -> 365 | G7: =VLOOKUP($A$2,'Table 12'!$A$5:$L$23,4,FALSE) -> 375 | H7: =VLOOKUP($A$2,'Table 13'!$A$5:$L$23,4,FALSE) -> 375 | I7: Median | J7: 0 | K7: 0.02857142857 | L7: -0.02777777778 | M7: 0.04285714286 | N7: 0.02739726027 | O7: 0 | P7: =H7/B7-1 -> 0.07142857143
A8: Mean | B8: =VLOOKUP($A$2,'Table 7'!$A$5:$L$23,5,FALSE) -> 350.87 | C8: =VLOOKUP($A$2,'Table 8'!$A$5:$L$23,5,FALSE) -> 360.3 | D8: =VLOOKUP($A$2,'Table 9'!$A$5:$L$23,5,FALSE) -> 361.48 | E8: =VLOOKUP($A$2,'Table 10'!$A$5:$L$23,5,FALSE) -> 362.12 | F8: =VLOOKUP($A$2,'Table 11'!$A$5:$L$23,5,FALSE) -> 369.12 | G8: =VLOOKUP($A$2,'Table 12'!$A$5:$L$23,5,FALSE) -> 381.24 | H8: =VLOOKUP($A$2,'Table 13'!$A$5:$L$23,5,FALSE) -> 383.14 | I8: Mean | J8: 0.02687605096 | K8: 0.003275048571 | L8: 0.001770499059 | M8: 0.01933060864 | N8: 0.03283485046 | O8: 0.004983737278 | P8: 0.09197138541
A9: Upper Quartile | B9: =VLOOKUP($A$2,'Table 7'!$A$5:$L$23,6,FALSE) -> 375 | C9: =VLOOKUP($A$2,'Table 8'!$A$5:$L$23,6,FALSE) -> 385 | D9: =VLOOKUP($A$2,'Table 9'!$A$5:$L$23,6,FALSE) -> 380 | E9: =VLOOKUP($A$2,'Table 10'!$A$5:$L$23,6,FALSE) -> 385 | F9: =VLOOKUP($A$2,'Table 11'!$A$5:$L$23,6,FALSE) -> 400 | G9: =VLOOKUP($A$2,'Table 12'!$A$5:$L$23,6,FALSE) -> 400 | H9: =VLOOKUP($A$2,'Table 13'!$A$5:$L$23,6,FALSE) -> 400 | I9: Upper Quartile | J9: 0.02666666667 | K9: -0.01298701299 | L9: 0.01315789474 | M9: 0.03896103896 | N9: 0 | O9: 0 | P9: 0.06666666667
A26: 2 Bedroom Properties: | I26: 2 Bedroom Properties - Annual changes and 6-yr cumulative change:
B27: 2010 | C27: 2011 | D27: 2012 | E27: 2013 | F27: 2014 | G27: 2015 | H27: 2016 | J27: 2010 to 2011 | K27: 2011 to 2012 | L27: 2012 to 2013 | M27: 2013 to 2014 | N27: 2014 to 2015 | O27: 2015 to 2016 | P27: 2010 to 2016
A28: Lower Quartile | B28: =VLOOKUP($A$2,'Table 7'!$A$5:$L$23,9,FALSE) -> 440 | C28: =VLOOKUP($A$2,'Table 8'!$A$5:$L$23,9,FALSE) -> 450 | D28: =VLOOKUP($A$2,'Table 9'!$A$5:$L$23,9,FALSE) -> 440 | E28: =VLOOKUP($A$2,'Table 10'!$A$5:$L$23,9,FALSE) -> 450 | F28: =VLOOKUP($A$2,'Table 11'!$A$5:$L$23,9,FALSE) -> 450 | G28: =VLOOKUP($A$2,'Table 12'!$A$5:$L$23,9,FALSE) -> 450 | H28: =VLOOKUP($A$2,'Table 13'!$A$5:$L$23,9,FALSE) -> 465 | I28: Lower Quartile | J28: =C28/B28-1 -> 0.02272727273 | K28: -0.02222222222 | L28: 0.02272727273 | M28: 0 | N28: 0 | O28: =H28/G28-1 -> 0.03333333333 | P28: =H28/B28-1 -> 0.05681818182
A29: Median | B29: =VLOOKUP($A$2,'Table 7'!$A$5:$L$23,10,FALSE) -> 480 | C29: =VLOOKUP($A$2,'Table 8'!$A$5:$L$23,10,FALSE) -> 500 | D29: =VLOOKUP($A$2,'Table 9'!$A$5:$L$23,10,FALSE) -> 490 | E29: =VLOOKUP($A$2,'Table 10'!$A$5:$L$23,10,FALSE) -> 500 | F29: =VLOOKUP($A$2,'Table 11'!$A$5:$L$23,10,FALSE) -> 500 | G29: =VLOOKUP($A$2,'Table 12'!$A$5:$L$23,10,FALSE) -> 517.5 | H29: =VLOOKUP($A$2,'Table 13'!$A$5:$L$23,10,FALSE) -> 530 | I29: Median | J29: 0.04166666667 | K29: -0.02 | L29: 0.02040816327 | M29: 0 | N29: 0.035 | O29: =H29/G29-1 -> 0.02415458937 | P29: =H29/B29-1 -> 0.1041666667
A30: Mean | B30: =VLOOKUP($A$2,'Table 7'!$A$5:$L$23,11,FALSE) -> 497.46 | C30: =VLOOKUP($A$2,'Table 8'!$A$5:$L$23,11,FALSE) -> 520.5 | D30: =VLOOKUP($A$2,'Table 9'!$A$5:$L$23,11,FALSE) -> 502.96 | E30: =VLOOKUP($A$2,'Table 10'!$A$5:$L$23,11,FALSE) -> 515.07 | F30: =VLOOKUP($A$2,'Table 11'!$A$5:$L$23,11,FALSE) -> 517.76 | G30: =VLOOKUP($A$2,'Table 12'!$A$5:$L$23,11,FALSE) -> 530.9 | H30: =VLOOKUP($A$2,'Table 13'!$A$5:$L$23,11,FALSE) -> 545.96 | I30: Mean | J30: 0.04631528163 | K30: -0.03369836695 | L30: 0.02407746143 | M30: 0.005222591104 | N30: 0.02537855377 | O30: =H30/G30-1 -> 0.02836692409 | P30: 0.097495276
A31: Upper Quartile | B31: =VLOOKUP($A$2,'Table 7'!$A$5:$L$23,12,FALSE) -> 550 | C31: =VLOOKUP($A$2,'Table 8'!$A$5:$L$23,12,FALSE) -> 585 | D31: =VLOOKUP($A$2,'Table 9'!$A$5:$L$23,12,FALSE) -> 560 | E31: =VLOOKUP($A$2,'Table 10'!$A$5:$L$23,12,FALSE) -> 575 | F31: =VLOOKUP($A$2,'Table 11'!$A$5:$L$23,12,FALSE) -> 575 | G31: =VLOOKUP($A$2,'Table 12'!$A$5:$L$23,12,FALSE) -> 600 | H31: =VLOOKUP($A$2,'Table 13'!$A$5:$L$23,12,FALSE) -> 600 | I31: Upper Quartile | J31: 0.06363636364 | K31: -0.04273504274 | L31: 0.02678571429 | M31: 0 | N31: 0.04347826087 | O31: =H31/G31-1 -> 0 | P31: 0.09090909091
A48: 3 Bedroom Properties: | I48: 3 Bedroom Properties - Annual changes and 6-yr cumulative change:
B49: 2010 | C49: 2011 | D49: 2012 | E49: 2013 | F49: 2014 | G49: 2015 | H49: 2016 | J49: 2010 to 2011 | K49: 2011 to 2012 | L49: 2012 to 2013 | M49: 2013 to 2014 | N49: 2014 to 2015 | O49: 2015 to 2016 | P49: 2010 to 2016
A50: Lower Quartile | B50: =VLOOKUP($A$2,'Table 7'!$A$26:$L$44,3,FALSE) -> 550 | C50: =VLOOKUP($A$2,'Table 8'!$A$26:$L$44,3,FALSE) -> 575 | D50: =VLOOKUP($A$2,'Table 9'!$A$26:$L$44,3,FALSE) -> 550 | E50: =VLOOKUP($A$2,'Table 10'!$A$26:$L$44,3,FALSE) -> 550 | F50: =VLOOKUP($A$2,'Table 11'!$A$26:$L$44,3,FALSE) -> 550 | G50: =VLOOKUP($A$2,'Table 12'!$A$26:$L$44,3,FALSE) -> 560 | H50: =VLOOKUP($A$2,'Table 13'!$A$26:$L$44,3,FALSE) -> 600 | I50: Lower Quartile | J50: =C50/B50-1 -> 0.04545454545 | K50: -0.04347826087 | L50: 0 | M50: 0 | N50: 0.01818181818 | O50: =H50/G50-1 -> 0.07142857143 | P50: =H50/B50-1 -> 0.09090909091
A51: Median | B51: =VLOOKUP($A$2,'Table 7'!$A$26:$L$44,4,FALSE) -> 650 | C51: =VLOOKUP($A$2,'Table 8'!$A$26:$L$44,4,FALSE) -> 650 | D51: =VLOOKUP($A$2,'Table 9'!$A$26:$L$44,4,FALSE) -> 650 | E51: =VLOOKUP($A$2,'Table 10'!$A$26:$L$44,4,FALSE) -> 625 | F51: =VLOOKUP($A$2,'Table 11'!$A$26:$L$44,4,FALSE) -> 650 | G51: =VLOOKUP($A$2,'Table 12'!$A$26:$L$44,4,FALSE) -> 690 | H51: =VLOOKUP($A$2,'Table 13'!$A$26:$L$44,4,FALSE) -> 700 | I51: Median | J51: 0 | K51: 0 | L51: -0.03846153846 | M51: 0.04 | N51: 0.06153846154 | O51: =H51/G51-1 -> 0.01449275362 | P51: =H51/B51-1 -> 0.07692307692
A52: Mean | B52: =VLOOKUP($A$2,'Table 7'!$A$26:$L$44,5,FALSE) -> 632.52 | C52: =VLOOKUP($A$2,'Table 8'!$A$26:$L$44,5,FALSE) -> 651.09 | D52: =VLOOKUP($A$2,'Table 9'!$A$26:$L$44,5,FALSE) -> 643.12 | E52: =VLOOKUP($A$2,'Table 10'!$A$26:$L$44,5,FALSE) -> 644.39 | F52: =VLOOKUP($A$2,'Table 11'!$A$26:$L$44,5,FALSE) -> 668.02 | G52: =VLOOKUP($A$2,'Table 12'!$A$26:$L$44,5,FALSE) -> 684.17 | H52: =VLOOKUP($A$2,'Table 13'!$A$26:$L$44,5,FALSE) -> 701.64 | I52: Mean | J52: 0.02935875545 | K52: -0.01224101123 | L52: 0.001974748103 | M52: 0.03667033939 | N52: 0.02417592288 | O52: =H52/G52-1 -> 0.02553458936 | P52: 0.109277177
A53: Upper Quartile | B53: =VLOOKUP($A$2,'Table 7'!$A$26:$L$44,6,FALSE) -> 700 | C53: =VLOOKUP($A$2,'Table 8'!$A$26:$L$44,6,FALSE) -> 750 | D53: =VLOOKUP($A$2,'Table 9'!$A$26:$L$44,6,FALSE) -> 725 | E53: =VLOOKUP($A$2,'Table 10'!$A$26:$L$44,6,FALSE) -> 750 | F53: =VLOOKUP($A$2,'Table 11'!$A$26:$L$44,6,FALSE) -> 750 | G53: =VLOOKUP($A$2,'Table 12'!$A$26:$L$44,6,FALSE) -> 795 | H53: =VLOOKUP($A$2,'Table 13'!$A$26:$L$44,6,FALSE) -> 795 | I53: Upper Quartile | J53: 0.07142857143 | K53: -0.03333333333 | L53: 0.03448275862 | M53: 0 | N53: 0.06 | O53: =H53/G53-1 -> 0 | P53: 0.1357142857
A70: 4 Bedroom Properties: | I70: 4 Bedroom Properties - Annual changes and 6-yr cumulative change:
B71: 2010 | C71: 2011 | D71: 2012 | E71: 2013 | F71: 2014 | G71: 2015 | H71: 2016 | J71: 2010 to 2011 | K71: 2011 to 2012 | L71: 2012 to 2013 | M71: 2013 to 2014 | N71: 2014 to 2015 | O71: 2015 to 2016 | P71: 2010 to 2016
A72: Lower Quartile | B72: =VLOOKUP($A$2,'Table 7'!$A$26:$L$44,9,FALSE) -> 750 | C72: =VLOOKUP($A$2,'Table 8'!$A$26:$L$44,9,FALSE) -> 780 | D72: =VLOOKUP($A$2,'Table 9'!$A$26:$L$44,9,FALSE) -> 750 | E72: =VLOOKUP($A$2,'Table 10'!$A$26:$L$44,9,FALSE) -> 750 | F72: =VLOOKUP($A$2,'Table 11'!$A$26:$L$44,9,FALSE) -> 800 | G72: =VLOOKUP($A$2,'Table 12'!$A$26:$L$44,9,FALSE) -> 825 | H72: =VLOOKUP($A$2,'Table 13'!$A$26:$L$44,9,FALSE) -> 800 | I72: Lower Quartile | J72: =C72/B72-1 -> 0.04 | K72: -0.03846153846 | L72: 0 | M72: 0.06666666667 | N72: 0.03125 | O72: =H72/G72-1 -> -0.0303030303 | P72: =H72/B72-1 -> 0.06666666667
A73: Median | B73: =VLOOKUP($A$2,'Table 7'!$A$26:$L$44,10,FALSE) -> 825 | C73: =VLOOKUP($A$2,'Table 8'!$A$26:$L$44,10,FALSE) -> 850 | D73: =VLOOKUP($A$2,'Table 9'!$A$26:$L$44,10,FALSE) -> 850 | E73: =VLOOKUP($A$2,'Table 10'!$A$26:$L$44,10,FALSE) -> 850 | F73: =VLOOKUP($A$2,'Table 11'!$A$26:$L$44,10,FALSE) -> 950 | G73: =VLOOKUP($A$2,'Table 12'!$A$26:$L$44,10,FALSE) -> 950 | H73: =VLOOKUP($A$2,'Table 13'!$A$26:$L$44,10,FALSE) -> 995 | I73: Median | J73: 0.0303030303 | K73: 0 | L73: 0 | M73: 0.1176470588 | N73: 0 | O73: 0.04736842105 | P73: =H73/B73-1 -> 0.2060606061
A74: Mean | B74: =VLOOKUP($A$2,'Table 7'!$A$26:$L$44,11,FALSE) -> 811.27 | C74: =VLOOKUP($A$2,'Table 8'!$A$26:$L$44,11,FALSE) -> 894.44 | D74: =VLOOKUP($A$2,'Table 9'!$A$26:$L$44,11,FALSE) -> 849.5 | E74: =VLOOKUP($A$2,'Table 10'!$A$26:$L$44,11,FALSE) -> 883.13 | F74: =VLOOKUP($A$2,'Table 11'!$A$26:$L$44,11,FALSE) -> 961.21 | G74: =VLOOKUP($A$2,'Table 12'!$A$26:$L$44,11,FALSE) -> 967.81 | H74: =VLOOKUP($A$2,'Table 13'!$A$26:$L$44,11,FALSE) -> 972.76 | I74: Mean | J74: 0.1025182738 | K74: -0.05024372792 | L74: 0.03958799294 | M74: 0.08841280446 | N74: 0.006866345544 | O74: 0.00511464027 | P74: 0.1990582667
A75: Upper Quartile | B75: =VLOOKUP($A$2,'Table 7'!$A$26:$L$44,12,FALSE) -> 890 | C75: =VLOOKUP($A$2,'Table 8'!$A$26:$L$44,12,FALSE) -> 1000 | D75: =VLOOKUP($A$2,'Table 9'!$A$26:$L$44,12,FALSE) -> 950 | E75: =VLOOKUP($A$2,'Table 10'!$A$26:$L$44,12,FALSE) -> 950 | F75: =VLOOKUP($A$2,'Table 11'!$A$26:$L$44,12,FALSE) -> 1140 | G75: =VLOOKUP($A$2,'Table 12'!$A$26:$L$44,12,FALSE) -> 1140 | H75: =VLOOKUP($A$2,'Table 13'!$A$26:$L$44,12,FALSE) -> 1200 | I75: Upper Quartile | J75: 0.1235955056 | K75: -0.05 | L75: 0 | M75: 0.2 | N75: 0 | O75: 0.05263157895 | P75: 0.3483146067
A92: 1 Bedroom Shared Properties: | I92: 1 Bedroom Shared Properties - Annual changes and 6-yr cumulative change:
B93: 2010 | C93: 2011 | D93: 2012 | E93: 2013 | F93: 2014 | G93: 2015 | H93: 2016 | J93: 2010 to 2011 | K93: 2011 to 2012 | L93: 2012 to 2013 | M93: 2013 to 2014 | N93: 2014 to 2015 | O93: 2015 to 2016 | P93: 2010 to 2016
A94: Lower Quartile | B94: =VLOOKUP($A$2,'Table 7'!$A$47:$F$65,3,FALSE) -> 225 | C94: =VLOOKUP($A$2,'Table 8'!$A$47:$F$65,3,FALSE) -> 235 | D94: =VLOOKUP($A$2,'Table 9'!$A$47:$F$65,3,FALSE) -> 238.33 | E94: =VLOOKUP($A$2,'Table 10'!$A$47:$F$65,3,FALSE) -> 250 | F94: =VLOOKUP($A$2,'Table 11'!$A$47:$F$65,3,FALSE) -> 250 | G94: =VLOOKUP($A$2,'Table 12'!$A$47:$F$65,3,FALSE) -> 250 | H94: =VLOOKUP($A$2,'Table 13'!$A$47:$F$65,3,FALSE) -> 250 | I94: Lower Quartile | J94: =C94/B94-1 -> 0.04444444444 | K94: 0.01417021277 | L94: 0.0489657198 | M94: 0 | N94: 0 | O94: =H94/G94-1 -> 0 | P94: =H94/B94-1 -> 0.1111111111
A95: Median | B95: =VLOOKUP($A$2,'Table 7'!$A$47:$F$65,4,FALSE) -> 250 | C95: =VLOOKUP($A$2,'Table 8'!$A$47:$F$65,4,FALSE) -> 260 | D95: =VLOOKUP($A$2,'Table 9'!$A$47:$F$65,4,FALSE) -> 265 | E95: =VLOOKUP($A$2,'Table 10'!$A$47:$F$65,4,FALSE) -> 273.34 | F95: =VLOOKUP($A$2,'Table 11'!$A$47:$F$65,4,FALSE) -> 275 | G95: =VLOOKUP($A$2,'Table 12'!$A$47:$F$65,4,FALSE) -> 290 | H95: =VLOOKUP($A$2,'Table 13'!$A$47:$F$65,4,FALSE) -> 300 | I95: Median | J95: 0.04 | K95: 0.01923076923 | L95: 0.03147169811 | M95: 0.006073022609 | N95: 0.05454545455 | O95: 0.03448275862 | P95: =H95/B95-1 -> 0.2
A96: Mean | B96: =VLOOKUP($A$2,'Table 7'!$A$47:$F$65,5,FALSE) -> 262.86 | C96: =VLOOKUP($A$2,'Table 8'!$A$47:$F$65,5,FALSE) -> 263.08 | D96: =VLOOKUP($A$2,'Table 9'!$A$47:$F$65,5,FALSE) -> 269.83 | E96: =VLOOKUP($A$2,'Table 10'!$A$47:$F$65,5,FALSE) -> 268.35 | F96: =VLOOKUP($A$2,'Table 11'!$A$47:$F$65,5,FALSE) -> 274.42 | G96: =VLOOKUP($A$2,'Table 12'!$A$47:$F$65,5,FALSE) -> 289.28 | H96: =VLOOKUP($A$2,'Table 13'!$A$47:$F$65,5,FALSE) -> 295.72 | I96: Mean | J96: 0.0008369474245 | K96: 0.02565759465 | L96: -0.005484934959 | M96: 0.02261971306 | N96: 0.05415057212 | O96: 0.02226216814 | P96: 0.1250095108
A97: Upper Quartile | B97: =VLOOKUP($A$2,'Table 7'!$A$47:$F$65,6,FALSE) -> 300 | C97: =VLOOKUP($A$2,'Table 8'!$A$47:$F$65,6,FALSE) -> 290 | D97: =VLOOKUP($A$2,'Table 9'!$A$47:$F$65,6,FALSE) -> 300 | E97: =VLOOKUP($A$2,'Table 10'!$A$47:$F$65,6,FALSE) -> 300 | F97: =VLOOKUP($A$2,'Table 11'!$A$47:$F$65,6,FALSE) -> 300 | G97: =VLOOKUP($A$2,'Table 12'!$A$47:$F$65,6,FALSE) -> 320 | H97: =VLOOKUP($A$2,'Table 13'!$A$47:$F$65,6,FALSE) -> 320 | I97: Upper Quartile | J97: -0.03333333333 | K97: 0.03448275862 | L97: 0 | M97: 0 | N97: 0.06666666667 | O97: 0 | P97: 0.06666666667
A116: Mean Rents by Property Size: | I116: Median Rents by Property Size:
B117: 2010 | C117: 2011 | D117: 2012 | E117: 2013 | F117: 2014 | G117: 2015 | H117: 2016 | J117: 2010 | K117: 2011 | L117: 2012 | M117: 2013 | N117: 2014 | O117: 2015 | P117: 2016
A118: 1 Bedroom Shared | B118: =B96 -> 262.86 | C118: 263.08 | D118: 269.83 | E118: 268.35 | F118: 274.42 | G118: 289.28 | H118: 295.72 | I118: 1 Bedroom Shared | J118: =B95 -> 250 | K118: 260 | L118: 265 | M118: 273.34 | N118: 275 | O118: =G95 -> 290 | P118: =H95 -> 300
A119: 1 Bedroom | B119: =B8 -> 350.87 | C119: 360.3 | D119: 361.48 | E119: 362.12 | F119: 369.12 | G119: 381.24 | H119: 383.14 | I119: 1 Bedroom | J119: =B7 -> 350 | K119: 350 | L119: 360 | M119: 350 | N119: 365 | O119: =G7 -> 375 | P119: =H7 -> 375
A120: 2 Bedrooms | B120: =B30 -> 497.46 | C120: 520.5 | D120: 502.96 | E120: 515.07 | F120: 517.76 | G120: 530.9 | H120: 545.96 | I120: 2 Bedrooms | J120: =B29 -> 480 | K120: 500 | L120: 490 | M120: 500 | N120: 500 | O120: =G29 -> 517.5 | P120: =H29 -> 530
A121: 3 Bedrooms | B121: =B52 -> 632.52 | C121: 651.09 | D121: 643.12 | E121: 644.39 | F121: 668.02 | G121: 684.17 | H121: 701.64 | I121: 3 Bedrooms | J121: =B51 -> 650 | K121: 650 | L121: 650 | M121: 625 | N121: 650 | O121: =G51 -> 690 | P121: =H51 -> 700
A122: 4 Bedrooms | B122: =B74 -> 811.27 | C122: 894.44 | D122: 849.5 | E122: 883.13 | F122: 961.21 | G122: 967.81 | H122: 972.76 | I122: 4 Bedrooms | J122: =B73 -> 825 | K122: 850 | L122: 850 | M122: 850 | N122: 950 | O122: =G73 -> 950 | P122: =H73 -> 995
A140: Sample Sizes: | I140: Sample Proportions:
B141: 2010 | C141: 2011 | D141: 2012 | E141: 2013 | F141: 2014 | G141: 2015 | H141: 2016 | J141: 2010 | K141: 2011 | L141: 2012 | M141: 2013 | N141: 2014 | O141: 2015 | P141: 2016
A142: 1 Bedroom | B142: =VLOOKUP($A$2,'Table 7'!$A$5:$L$23,2,FALSE) -> 319 | C142: =VLOOKUP($A$2,'Table 8'!$A$5:$L$23,2,FALSE) -> 458 | D142: =VLOOKUP($A$2,'Table 9'!$A$5:$L$23,2,FALSE) -> 483 | E142: =VLOOKUP($A$2,'Table 10'!$A$5:$L$23,2,FALSE) -> 437 | F142: =VLOOKUP($A$2,'Table 11'!$A$5:$L$23,2,FALSE) -> 405 | G142: =VLOOKUP($A$2,'Table 12'!$A$5:$L$23,2,FALSE) -> 406 | H142: =VLOOKUP($A$2,'Table 13'!$A$5:$L$23,2,FALSE) -> 382 | I142: 1 Bedroom | J142: =B142/SUM(B$142:B$146) -> 0.2463320463 | K142: =C142/SUM(C$142:C$146) -> 0.2624641834 | L142: 0.2479466119 | M142: 0.2612074118 | N142: 0.2281690141 | O142: =G142/SUM(G$142:G$146) -> 0.2321326472 | P142: 0.2070460705
A143: 2 Bedrooms | B143: =VLOOKUP($A$2,'Table 7'!$A$5:$L$23,8,FALSE) -> 613 | C143: =VLOOKUP($A$2,'Table 8'!$A$5:$L$23,8,FALSE) -> 818 | D143: =VLOOKUP($A$2,'Table 9'!$A$5:$L$23,8,FALSE) -> 918 | E143: =VLOOKUP($A$2,'Table 10'!$A$5:$L$23,8,FALSE) -> 790 | F143: =VLOOKUP($A$2,'Table 11'!$A$5:$L$23,8,FALSE) -> 856 | G143: =VLOOKUP($A$2,'Table 12'!$A$5:$L$23,8,FALSE) -> 860 | H143: =VLOOKUP($A$2,'Table 13'!$A$5:$L$23,8,FALSE) -> 950 | I143: 2 Bedrooms | J143: =B143/SUM(B$142:B$146) -> 0.4733590734 | K143: 0.4687679083 | L143: 0.4712525667 | M143: 0.4722056186 | N143: 0.4822535211 | O143: 0.4917095483 | P143: 0.5149051491
A144: 3 Bedrooms | B144: =VLOOKUP($A$2,'Table 7'!$A$26:$L$44,2,FALSE) -> 198 | C144: =VLOOKUP($A$2,'Table 8'!$A$26:$L$44,2,FALSE) -> 224 | D144: =VLOOKUP($A$2,'Table 9'!$A$26:$L$44,2,FALSE) -> 283 | E144: =VLOOKUP($A$2,'Table 10'!$A$26:$L$44,2,FALSE) -> 245 | F144: =VLOOKUP($A$2,'Table 11'!$A$26:$L$44,2,FALSE) -> 303 | G144: =VLOOKUP($A$2,'Table 12'!$A$26:$L$44,2,FALSE) -> 283 | H144: =VLOOKUP($A$2,'Table 13'!$A$26:$L$44,2,FALSE) -> 335 | I144: 3 Bedrooms | J144: =B144/SUM(B$142:B$146) -> 0.1528957529 | K144: 0.1283667622 | L144: 0.1452772074 | M144: 0.1464435146 | N144: 0.1707042254 | O144: 0.1618067467 | P144: 0.1815718157
A145: 4 Bedrooms | B145: =VLOOKUP($A$2,'Table 7'!$A$26:$L$44,8,FALSE) -> 71 | C145: =VLOOKUP($A$2,'Table 8'!$A$26:$L$44,8,FALSE) -> 107 | D145: =VLOOKUP($A$2,'Table 9'!$A$26:$L$44,8,FALSE) -> 121 | E145: =VLOOKUP($A$2,'Table 10'!$A$26:$L$44,8,FALSE) -> 93 | F145: =VLOOKUP($A$2,'Table 11'!$A$26:$L$44,8,FALSE) -> 107 | G145: =VLOOKUP($A$2,'Table 12'!$A$26:$L$44,8,FALSE) -> 105 | H145: =VLOOKUP($A$2,'Table 13'!$A$26:$L$44,8,FALSE) -> 85 | I145: 4 Bedrooms | J145: =B145/SUM(B$142:B$146) -> 0.05482625483 | K145: 0.06131805158 | L145: 0.06211498973 | M145: 0.0555887627 | N145: 0.06028169014 | O145: 0.06003430532 | P145: 0.0460704607
A146: 1 Bedroom Shared | B146: =VLOOKUP($A$2,'Table 7'!$A$47:$L$65,2,FALSE) -> 94 | C146: =VLOOKUP($A$2,'Table 8'!$A$47:$L$65,2,FALSE) -> 138 | D146: =VLOOKUP($A$2,'Table 9'!$A$47:$L$65,2,FALSE) -> 143 | E146: =VLOOKUP($A$2,'Table 10'!$A$47:$L$65,2,FALSE) -> 108 | F146: =VLOOKUP($A$2,'Table 11'!$A$47:$L$65,2,FALSE) -> 104 | G146: =VLOOKUP($A$2,'Table 12'!$A$47:$L$65,2,FALSE) -> 95 | H146: =VLOOKUP($A$2,'Table 13'!$A$47:$L$65,2,FALSE) -> 93 | I146: 1 Bedroom Shared | J146: =B146/SUM(B$142:B$146) -> 0.07258687259 | K146: 0.07908309456 | L146: 0.07340862423 | M146: 0.06455469217 | N146: 0.0585915493 | O146: 0.05431675243 | P146: 0.05040650407

Sheet BRMA Profile - East Dunbartonsh (hidden)
A1: BRMA Rent Profile for:
A2: East Dunbartonshire | I2: =ROUND(MIN(J6:P9,J28:P31,J50:P53,J72:P75,J94:P97)-0.01,2) -> -0.1 | J2: =ROUND(MAX(J6:P9,J28:P31,J50:P53,J72:P75,J94:P97)+0.01,2) -> 0.28
A4: 1 Bedroom Properties - Quartile Measures: | I4: 1 Bedroom Properties - Annual changes and 6-yr cumulative change:
B5: 2010 | C5: 2011 | D5: 2012 | E5: 2013 | F5: 2014 | G5: 2015 | H5: 2016 | J5: 2010 to 2011 | K5: 2011 to 2012 | L5: 2012 to 2013 | M5: 2013 to 2014 | N5: 2014 to 2015 | O5: 2015 to 2016 | P5: 2010 to 2016
A6: Lower Quartile | B6: =VLOOKUP($A$2,'Table 7'!$A$5:$L$23,3,FALSE) -> 400 | C6: =VLOOKUP($A$2,'Table 8'!$A$5:$L$23,3,FALSE) -> 412.5 | D6: =VLOOKUP($A$2,'Table 9'!$A$5:$L$23,3,FALSE) -> 400 | E6: =VLOOKUP($A$2,'Table 10'!$A$5:$L$23,3,FALSE) -> 420 | F6: =VLOOKUP($A$2,'Table 11'!$A$5:$L$23,3,FALSE) -> 425 | G6: =VLOOKUP($A$2,'Table 12'!$A$5:$L$23,3,FALSE) -> 425 | H6: =VLOOKUP($A$2,'Table 13'!$A$5:$L$23,3,FALSE) -> 425 | I6: Lower Quartile | J6: =C6/B6-1 -> 0.03125 | K6: -0.0303030303 | L6: 0.05 | M6: 0.0119047619 | N6: 0 | O6: =H6/G6-1 -> 0 | P6: =H6/B6-1 -> 0.0625
A7: Median | B7: =VLOOKUP($A$2,'Table 7'!$A$5:$L$23,4,FALSE) -> 425 | C7: =VLOOKUP($A$2,'Table 8'!$A$5:$L$23,4,FALSE) -> 450 | D7: =VLOOKUP($A$2,'Table 9'!$A$5:$L$23,4,FALSE) -> 425 | E7: =VLOOKUP($A$2,'Table 10'!$A$5:$L$23,4,FALSE) -> 450 | F7: =VLOOKUP($A$2,'Table 11'!$A$5:$L$23,4,FALSE) -> 450 | G7: =VLOOKUP($A$2,'Table 12'!$A$5:$L$23,4,FALSE) -> 450 | H7: =VLOOKUP($A$2,'Table 13'!$A$5:$L$23,4,FALSE) -> 450 | I7: Median | J7: 0.05882352941 | K7: -0.05555555556 | L7: 0.05882352941 | M7: 0 | N7: 0 | O7: 0 | P7: =H7/B7-1 -> 0.05882352941
A8: Mean | B8: =VLOOKUP($A$2,'Table 7'!$A$5:$L$23,5,FALSE) -> 449.59 | C8: =VLOOKUP($A$2,'Table 8'!$A$5:$L$23,5,FALSE) -> 456.61 | D8: =VLOOKUP($A$2,'Table 9'!$A$5:$L$23,5,FALSE) -> 440.86 | E8: =VLOOKUP($A$2,'Table 10'!$A$5:$L$23,5,FALSE) -> 465.96 | F8: =VLOOKUP($A$2,'Table 11'!$A$5:$L$23,5,FALSE) -> 472.07 | G8: =VLOOKUP($A$2,'Table 12'!$A$5:$L$23,5,FALSE) -> 461.49 | H8: =VLOOKUP($A$2,'Table 13'!$A$5:$L$23,5,FALSE) -> 478.92 | I8: Mean | J8: 0.0156142263 | K8: -0.03449333129 | L8: 0.05693417411 | M8: 0.01311271354 | N8: -0.02241193043 | O8: 0.03776896574 | P8: 0.06523721613
A9: Upper Quartile | B9: =VLOOKUP($A$2,'Table 7'!$A$5:$L$23,6,FALSE) -> 475 | C9: =VLOOKUP($A$2,'Table 8'!$A$5:$L$23,6,FALSE) -> 475 | D9: =VLOOKUP($A$2,'Table 9'!$A$5:$L$23,6,FALSE) -> 475 | E9: =VLOOKUP($A$2,'Table 10'!$A$5:$L$23,6,FALSE) -> 495 | F9: =VLOOKUP($A$2,'Table 11'!$A$5:$L$23,6,FALSE) -> 525 | G9: =VLOOKUP($A$2,'Table 12'!$A$5:$L$23,6,FALSE) -> 495 | H9: =VLOOKUP($A$2,'Table 13'!$A$5:$L$23,6,FALSE) -> 525 | I9: Upper Quartile | J9: 0 | K9: 0 | L9: 0.04210526316 | M9: 0.06060606061 | N9: -0.05714285714 | O9: 0.06060606061 | P9: 0.1052631579
A26: 2 Bedroom Properties: | I26: 2 Bedroom Properties - Annual changes and 6-yr cumulative change:
B27: 2010 | C27: 2011 | D27: 2012 | E27: 2013 | F27: 2014 | G27: 2015 | H27: 2016 | J27: 2010 to 2011 | K27: 2011 to 2012 | L27: 2012 to 2013 | M27: 2013 to 2014 | N27: 2014 to 2015 | O27: 2015 to 2016 | P27: 2010 to 2016
A28: Lower Quartile | B28: =VLOOKUP($A$2,'Table 7'!$A$5:$L$23,9,FALSE) -> 525 | C28: =VLOOKUP($A$2,'Table 8'!$A$5:$L$23,9,FALSE) -> 500 | D28: =VLOOKUP($A$2,'Table 9'!$A$5:$L$23,9,FALSE) -> 525 | E28: =VLOOKUP($A$2,'Table 10'!$A$5:$L$23,9,FALSE) -> 500 | F28: =VLOOKUP($A$2,'Table 11'!$A$5:$L$23,9,FALSE) -> 525 | G28: =VLOOKUP($A$2,'Table 12'!$A$5:$L$23,9,FALSE) -> 525 | H28: =VLOOKUP($A$2,'Table 13'!$A$5:$L$23,9,FALSE) -> 550 | I28: Lower Quartile | J28: =C28/B28-1 -> -0.04761904762 | K28: 0.05 | L28: -0.04761904762 | M28: 0.05 | N28: 0 | O28: =H28/G28-1 -> 0.04761904762 | P28: =H28/B28-1 -> 0.04761904762
A29: Median | B29: =VLOOKUP($A$2,'Table 7'!$A$5:$L$23,10,FALSE) -> 575 | C29: =VLOOKUP($A$2,'Table 8'!$A$5:$L$23,10,FALSE) -> 550 | D29: =VLOOKUP($A$2,'Table 9'!$A$5:$L$23,10,FALSE) -> 595 | E29: =VLOOKUP($A$2,'Table 10'!$A$5:$L$23,10,FALSE) -> 575 | F29: =VLOOKUP($A$2,'Table 11'!$A$5:$L$23,10,FALSE) -> 575 | G29: =VLOOKUP($A$2,'Table 12'!$A$5:$L$23,10,FALSE) -> 575 | H29: =VLOOKUP($A$2,'Table 13'!$A$5:$L$23,10,FALSE) -> 625 | I29: Median | J29: -0.04347826087 | K29: 0.08181818182 | L29: -0.03361344538 | M29: 0 | N29: 0 | O29: =H29/G29-1 -> 0.08695652174 | P29: =H29/B29-1 -> 0.08695652174
A30: Mean | B30: =VLOOKUP($A$2,'Table 7'!$A$5:$L$23,11,FALSE) -> 581.12 | C30: =VLOOKUP($A$2,'Table 8'!$A$5:$L$23,11,FALSE) -> 571.97 | D30: =VLOOKUP($A$2,'Table 9'!$A$5:$L$23,11,FALSE) -> 608.66 | E30: =VLOOKUP($A$2,'Table 10'!$A$5:$L$23,11,FALSE) -> 587.11 | F30: =VLOOKUP($A$2,'Table 11'!$A$5:$L$23,11,FALSE) -> 603.7 | G30: =VLOOKUP($A$2,'Table 12'!$A$5:$L$23,11,FALSE) -> 610.75 | H30: =VLOOKUP($A$2,'Table 13'!$A$5:$L$23,11,FALSE) -> 635.52 | I30: Mean | J30: -0.01574545705 | K30: 0.06414672098 | L30: -0.03540564519 | M30: 0.02825705575 | N30: 0.01167798575 | O30: =H30/G30-1 -> 0.04055669259 | P30: 0.0936123348
A31: Upper Quartile | B31: =VLOOKUP($A$2,'Table 7'!$A$5:$L$23,12,FALSE) -> 625 | C31: =VLOOKUP($A$2,'Table 8'!$A$5:$L$23,12,FALSE) -> 650 | D31: =VLOOKUP($A$2,'Table 9'!$A$5:$L$23,12,FALSE) -> 680 | E31: =VLOOKUP($A$2,'Table 10'!$A$5:$L$23,12,FALSE) -> 650 | F31: =VLOOKUP($A$2,'Table 11'!$A$5:$L$23,12,FALSE) -> 695 | G31: =VLOOKUP($A$2,'Table 12'!$A$5:$L$23,12,FALSE) -> 675 | H31: =VLOOKUP($A$2,'Table 13'!$A$5:$L$23,12,FALSE) -> 695 | I31: Upper Quartile | J31: 0.04 | K31: 0.04615384615 | L31: -0.04411764706 | M31: 0.06923076923 | N31: -0.02877697842 | O31: =H31/G31-1 -> 0.02962962963 | P31: 0.112
A48: 3 Bedroom Properties: | I48: 3 Bedroom Properties - Annual changes and 6-yr cumulative change:
B49: 2010 | C49: 2011 | D49: 2012 | E49: 2013 | F49: 2014 | G49: 2015 | H49: 2016 | J49: 2010 to 2011 | K49: 2011 to 2012 | L49: 2012 to 2013 | M49: 2013 to 2014 | N49: 2014 to 2015 | O49: 2015 to 2016 | P49: 2010 to 2016
A50: Lower Quartile | B50: =VLOOKUP($A$2,'Table 7'!$A$26:$L$44,3,FALSE) -> 650 | C50: =VLOOKUP($A$2,'Table 8'!$A$26:$L$44,3,FALSE) -> 650 | D50: =VLOOKUP($A$2,'Table 9'!$A$26:$L$44,3,FALSE) -> 695 | E50: =VLOOKUP($A$2,'Table 10'!$A$26:$L$44,3,FALSE) -> 650 | F50: =VLOOKUP($A$2,'Table 11'!$A$26:$L$44,3,FALSE) -> 695 | G50: =VLOOKUP($A$2,'Table 12'!$A$26:$L$44,3,FALSE) -> 695 | H50: =VLOOKUP($A$2,'Table 13'!$A$26:$L$44,3,FALSE) -> 695 | I50: Lower Quartile | J50: =C50/B50-1 -> 0 | K50: 0.06923076923 | L50: -0.06474820144 | M50: 0.06923076923 | N50: 0 | O50: =H50/G50-1 -> 0 | P50: =H50/B50-1 -> 0.06923076923
A51: Median | B51: =VLOOKUP($A$2,'Table 7'!$A$26:$L$44,4,FALSE) -> 700 | C51: =VLOOKUP($A$2,'Table 8'!$A$26:$L$44,4,FALSE) -> 730 | D51: =VLOOKUP($A$2,'Table 9'!$A$26:$L$44,4,FALSE) -> 750 | E51: =VLOOKUP($A$2,'Table 10'!$A$26:$L$44,4,FALSE) -> 750 | F51: =VLOOKUP($A$2,'Table 11'!$A$26:$L$44,4,FALSE) -> 795 | G51: =VLOOKUP($A$2,'Table 12'!$A$26:$L$44,4,FALSE) -> 797.5 | H51: =VLOOKUP($A$2,'Table 13'!$A$26:$L$44,4,FALSE) -> 795 | I51: Median | J51: 0.04285714286 | K51: 0.02739726027 | L51: 0 | M51: 0.06 | N51: 0.003144654088 | O51: =H51/G51-1 -> -0.003134796238 | P51: =H51/B51-1 -> 0.1357142857
A52: Mean | B52: =VLOOKUP($A$2,'Table 7'!$A$26:$L$44,5,FALSE) -> 750.02 | C52: =VLOOKUP($A$2,'Table 8'!$A$26:$L$44,5,FALSE) -> 772.43 | D52: =VLOOKUP($A$2,'Table 9'!$A$26:$L$44,5,FALSE) -> 810.13 | E52: =VLOOKUP($A$2,'Table 10'!$A$26:$L$44,5,FALSE) -> 797.68 | F52: =VLOOKUP($A$2,'Table 11'!$A$26:$L$44,5,FALSE) -> 798.73 | G52: =VLOOKUP($A$2,'Table 12'!$A$26:$L$44,5,FALSE) -> 819.59 | H52: =VLOOKUP($A$2,'Table 13'!$A$26:$L$44,5,FALSE) -> 859.19 | I52: Mean | J52: 0.02987920322 | K52: 0.04880701164 | L52: -0.01536790392 | M52: 0.00131631732 | N52: 0.02611645988 | O52: =H52/G52-1 -> 0.04831684135 | P52: 0.1455561185
A53: Upper Quartile | B53: =VLOOKUP($A$2,'Table 7'!$A$26:$L$44,6,FALSE) -> 775 | C53: =VLOOKUP($A$2,'Table 8'!$A$26:$L$44,6,FALSE) -> 800 | D53: =VLOOKUP($A$2,'Table 9'!$A$26:$L$44,6,FALSE) -> 895 | E53: =VLOOKUP($A$2,'Table 10'!$A$26:$L$44,6,FALSE) -> 850 | F53: =VLOOKUP($A$2,'Table 11'!$A$26:$L$44,6,FALSE) -> 890 | G53: =VLOOKUP($A$2,'Table 12'!$A$26:$L$44,6,FALSE) -> 900 | H53: =VLOOKUP($A$2,'Table 13'!$A$26:$L$44,6,FALSE) -> 985 | I53: Upper Quartile | J53: 0.03225806452 | K53: 0.11875 | L53: -0.05027932961 | M53: 0.04705882353 | N53: 0.01123595506 | O53: =H53/G53-1 -> 0.09444444444 | P53: 0.2709677419
A70: 4 Bedroom Properties: | I70: 4 Bedroom Properties - Annual changes and 6-yr cumulative change:
B71: 2010 | C71: 2011 | D71: 2012 | E71: 2013 | F71: 2014 | G71: 2015 | H71: 2016 | J71: 2010 to 2011 | K71: 2011 to 2012 | L71: 2012 to 2013 | M71: 2013 to 2014 | N71: 2014 to 2015 | O71: 2015 to 2016 | P71: 2010 to 2016
A72: Lower Quartile | B72: =VLOOKUP($A$2,'Table 7'!$A$26:$L$44,9,FALSE) -> 900 | C72: =VLOOKUP($A$2,'Table 8'!$A$26:$L$44,9,FALSE) -> 950 | D72: =VLOOKUP($A$2,'Table 9'!$A$26:$L$44,9,FALSE) -> 900 | E72: =VLOOKUP($A$2,'Table 10'!$A$26:$L$44,9,FALSE) -> 950 | F72: =VLOOKUP($A$2,'Table 11'!$A$26:$L$44,9,FALSE) -> 922.5 | G72: =VLOOKUP($A$2,'Table 12'!$A$26:$L$44,9,FALSE) -> 950 | H72: =VLOOKUP($A$2,'Table 13'!$A$26:$L$44,9,FALSE) -> 962.5 | I72: Lower Quartile | J72: =C72/B72-1 -> 0.05555555556 | K72: -0.05263157895 | L72: 0.05555555556 | M72: -0.02894736842 | N72: 0.0298102981 | O72: =H72/G72-1 -> 0.01315789474 | P72: =H72/B72-1 -> 0.06944444444
A73: Median | B73: =VLOOKUP($A$2,'Table 7'!$A$26:$L$44,10,FALSE) -> 995 | C73: =VLOOKUP($A$2,'Table 8'!$A$26:$L$44,10,FALSE) -> 1100 | D73: =VLOOKUP($A$2,'Table 9'!$A$26:$L$44,10,FALSE) -> 1195 | E73: =VLOOKUP($A$2,'Table 10'!$A$26:$L$44,10,FALSE) -> 1100 | F73: =VLOOKUP($A$2,'Table 11'!$A$26:$L$44,10,FALSE) -> 1200 | G73: =VLOOKUP($A$2,'Table 12'!$A$26:$L$44,10,FALSE) -> 1200 | H73: =VLOOKUP($A$2,'Table 13'!$A$26:$L$44,10,FALSE) -> 1100 | I73: Median | J73: 0.1055276382 | K73: 0.08636363636 | L73: -0.07949790795 | M73: 0.09090909091 | N73: 0 | O73: -0.08333333333 | P73: =H73/B73-1 -> 0.1055276382
A74: Mean | B74: =VLOOKUP($A$2,'Table 7'!$A$26:$L$44,11,FALSE) -> 1135.19 | C74: =VLOOKUP($A$2,'Table 8'!$A$26:$L$44,11,FALSE) -> 1204.31 | D74: =VLOOKUP($A$2,'Table 9'!$A$26:$L$44,11,FALSE) -> 1137.57 | E74: =VLOOKUP($A$2,'Table 10'!$A$26:$L$44,11,FALSE) -> 1246.04 | F74: =VLOOKUP($A$2,'Table 11'!$A$26:$L$44,11,FALSE) -> 1279.83 | G74: =VLOOKUP($A$2,'Table 12'!$A$26:$L$44,11,FALSE) -> 1264.46 | H74: =VLOOKUP($A$2,'Table 13'!$A$26:$L$44,11,FALSE) -> 1276.88 | I74: Mean | J74: 0.06088848563 | K74: -0.05541762503 | L74: 0.09535237392 | M74: 0.02711790954 | N74: -0.0120094075 | O74: 0.009822374769 | P74: 0.1248161101
A75: Upper Quartile | B75: =VLOOKUP($A$2,'Table 7'!$A$26:$L$44,12,FALSE) -> 1350 | C75: =VLOOKUP($A$2,'Table 8'!$A$26:$L$44,12,FALSE) -> 1400 | D75: =VLOOKUP($A$2,'Table 9'!$A$26:$L$44,12,FALSE) -> 1300 | E75: =VLOOKUP($A$2,'Table 10'!$A$26:$L$44,12,FALSE) -> 1500 | F75: =VLOOKUP($A$2,'Table 11'!$A$26:$L$44,12,FALSE) -> 1525 | G75: =VLOOKUP($A$2,'Table 12'!$A$26:$L$44,12,FALSE) -> 1500 | H75: =VLOOKUP($A$2,'Table 13'!$A$26:$L$44,12,FALSE) -> 1500 | I75: Upper Quartile | J75: 0.03703703704 | K75: -0.07142857143 | L75: 0.1538461538 | M75: 0.01666666667 | N75: -0.01639344262 | O75: 0 | P75: 0.1111111111
A92: 1 Bedroom Shared Properties: | I92: 1 Bedroom Shared Properties - Annual changes and 6-yr cumulative change:
B93: 2010 | C93: 2011 | D93: 2012 | E93: 2013 | F93: 2014 | G93: 2015 | H93: 2016 | J93: 2010 to 2011 | K93: 2011 to 2012 | L93: 2012 to 2013 | M93: 2013 to 2014 | N93: 2014 to 2015 | O93: 2015 to 2016 | P93: 2010 to 2016
A94: Lower Quartile | B94: =VLOOKUP($A$2,'Table 7'!$A$47:$F$65,3,FALSE) -> 274 | C94: =VLOOKUP($A$2,'Table 8'!$A$47:$F$65,3,FALSE) -> 257 | D94: =VLOOKUP($A$2,'Table 9'!$A$47:$F$65,3,FALSE) -> 285 | E94: =VLOOKUP($A$2,'Table 10'!$A$47:$F$65,3,FALSE) -> 281.66 | F94: =VLOOKUP($A$2,'Table 11'!$A$47:$F$65,3,FALSE) -> 285 | G94: =VLOOKUP($A$2,'Table 12'!$A$47:$F$65,3,FALSE) -> 280 | H94: =VLOOKUP($A$2,'Table 13'!$A$47:$F$65,3,FALSE) -> 275 | I94: Lower Quartile | J94: =C94/B94-1 -> -0.06204379562 | K94: 0.1089494163 | L94: -0.01171929825 | M94: 0.01185826883 | N94: -0.01754385965 | O94: =H94/G94-1 -> -0.01785714286 | P94: =H94/B94-1 -> 0.003649635036
A95: Median | B95: =VLOOKUP($A$2,'Table 7'!$A$47:$F$65,4,FALSE) -> 300 | C95: =VLOOKUP($A$2,'Table 8'!$A$47:$F$65,4,FALSE) -> 305 | D95: =VLOOKUP($A$2,'Table 9'!$A$47:$F$65,4,FALSE) -> 327.5 | E95: =VLOOKUP($A$2,'Table 10'!$A$47:$F$65,4,FALSE) -> 310 | F95: =VLOOKUP($A$2,'Table 11'!$A$47:$F$65,4,FALSE) -> 315 | G95: =VLOOKUP($A$2,'Table 12'!$A$47:$F$65,4,FALSE) -> 319.54 | H95: =VLOOKUP($A$2,'Table 13'!$A$47:$F$65,4,FALSE) -> 325 | I95: Median | J95: 0.01666666667 | K95: 0.0737704918 | L95: -0.0534351145 | M95: 0.01612903226 | N95: 0.01441269841 | O95: 0.01708706265 | P95: =H95/B95-1 -> 0.08333333333
A96: Mean | B96: =VLOOKUP($A$2,'Table 7'!$A$47:$F$65,5,FALSE) -> 300.36 | C96: =VLOOKUP($A$2,'Table 8'!$A$47:$F$65,5,FALSE) -> 303.59 | D96: =VLOOKUP($A$2,'Table 9'!$A$47:$F$65,5,FALSE) -> 338.4 | E96: =VLOOKUP($A$2,'Table 10'!$A$47:$F$65,5,FALSE) -> 323.36 | F96: =VLOOKUP($A$2,'Table 11'!$A$47:$F$65,5,FALSE) -> 322.2 | G96: =VLOOKUP($A$2,'Table 12'!$A$47:$F$65,5,FALSE) -> 312.08 | H96: =VLOOKUP($A$2,'Table 13'!$A$47:$F$65,5,FALSE) -> 324.78 | I96: Mean | J96: 0.01075376215 | K96: 0.1146612207 | L96: -0.04444444444 | M96: -0.003587333003 | N96: -0.03140906269 | O96: 0.04069469367 | P96: 0.08130243708
A97: Upper Quartile | B97: =VLOOKUP($A$2,'Table 7'!$A$47:$F$65,6,FALSE) -> 324 | C97: =VLOOKUP($A$2,'Table 8'!$A$47:$F$65,6,FALSE) -> 335 | D97: =VLOOKUP($A$2,'Table 9'!$A$47:$F$65,6,FALSE) -> 368.33 | E97: =VLOOKUP($A$2,'Table 10'!$A$47:$F$65,6,FALSE) -> 376.66 | F97: =VLOOKUP($A$2,'Table 11'!$A$47:$F$65,6,FALSE) -> 341.67 | G97: =VLOOKUP($A$2,'Table 12'!$A$47:$F$65,6,FALSE) -> 325 | H97: =VLOOKUP($A$2,'Table 13'!$A$47:$F$65,6,FALSE) -> 375 | I97: Upper Quartile | J97: 0.03395061728 | K97: 0.09949253731 | L97: 0.02261558928 | M97: -0.09289544948 | N97: -0.0487897679 | O97: 0.1538461538 | P97: 0.1574074074
A116: Mean Rents by Property Size: | I116: Median Rents by Property Size:
B117: 2010 | C117: 2011 | D117: 2012 | E117: 2013 | F117: 2014 | G117: 2015 | H117: 2016 | J117: 2010 | K117: 2011 | L117: 2012 | M117: 2013 | N117: 2014 | O117: 2015 | P117: 2016
A118: 1 Bedroom Shared | B118: =B96 -> 300.36 | C118: 303.59 | D118: 338.4 | E118: 323.36 | F118: 322.2 | G118: 312.08 | H118: 324.78 | I118: 1 Bedroom Shared | J118: =B95 -> 300 | K118: 305 | L118: 327.5 | M118: 310 | N118: 315 | O118: =G95 -> 319.54 | P118: =H95 -> 325
A119: 1 Bedroom | B119: =B8 -> 449.59 | C119: 456.61 | D119: 440.86 | E119: 465.96 | F119: 472.07 | G119: 461.49 | H119: 478.92 | I119: 1 Bedroom | J119: =B7 -> 425 | K119: 450 | L119: 425 | M119: 450 | N119: 450 | O119: =G7 -> 450 | P119: =H7 -> 450
A120: 2 Bedrooms | B120: =B30 -> 581.12 | C120: 571.97 | D120: 608.66 | E120: 587.11 | F120: 603.7 | G120: 610.75 | H120: 635.52 | I120: 2 Bedrooms | J120: =B29 -> 575 | K120: 550 | L120: 595 | M120: 575 | N120: 575 | O120: =G29 -> 575 | P120: =H29 -> 625
A121: 3 Bedrooms | B121: =B52 -> 750.02 | C121: 772.43 | D121: 810.13 | E121: 797.68 | F121: 798.73 | G121: 819.59 | H121: 859.19 | I121: 3 Bedrooms | J121: =B51 -> 700 | K121: 730 | L121: 750 | M121: 750 | N121: 795 | O121: =G51 -> 797.5 | P121: =H51 -> 795
A122: 4 Bedrooms | B122: =B74 -> 1135.19 | C122: 1204.31 | D122: 1137.57 | E122: 1246.04 | F122: 1279.83 | G122: 1264.46 | H122: 1276.88 | I122: 4 Bedrooms | J122: =B73 -> 995 | K122: 1100 | L122: 1195 | M122: 1100 | N122: 1200 | O122: =G73 -> 1200 | P122: =H73 -> 1100
A140: Sample Sizes: | I140: Sample Proportions:
B141: 2010 | C141: 2011 | D141: 2012 | E141: 2013 | F141: 2014 | G141: 2015 | H141: 2016 | J141: 2010 | K141: 2011 | L141: 2012 | M141: 2013 | N141: 2014 | O141: 2015 | P141: 2016
A142: 1 Bedroom | B142: =VLOOKUP($A$2,'Table 7'!$A$5:$L$23,2,FALSE) -> 75 | C142: =VLOOKUP($A$2,'Table 8'!$A$5:$L$23,2,FALSE) -> 84 | D142: =VLOOKUP($A$2,'Table 9'!$A$5:$L$23,2,FALSE) -> 70 | E142: =VLOOKUP($A$2,'Table 10'!$A$5:$L$23,2,FALSE) -> 52 | F142: =VLOOKUP($A$2,'Table 11'!$A$5:$L$23,2,FALSE) -> 58 | G142: =VLOOKUP($A$2,'Table 12'!$A$5:$L$23,2,FALSE) -> 111 | H142: =VLOOKUP($A$2,'Table 13'!$A$5:$L$23,2,FALSE) -> 98 | I142: 1 Bedroom | J142: =B142/SUM(B$142:B$146) -> 0.1777251185 | K142: =C142/SUM(C$142:C$146) -> 0.2009569378 | L142: 0.2147239264 | M142: 0.1460674157 | N142: 0.1487179487 | O142: =G142/SUM(G$142:G$146) -> 0.2392241379 | P142: 0.239608802
A143: 2 Bedrooms | B143: =VLOOKUP($A$2,'Table 7'!$A$5:$L$23,8,FALSE) -> 172 | C143: =VLOOKUP($A$2,'Table 8'!$A$5:$L$23,8,FALSE) -> 137 | D143: =VLOOKUP($A$2,'Table 9'!$A$5:$L$23,8,FALSE) -> 114 | E143: =VLOOKUP($A$2,'Table 10'!$A$5:$L$23,8,FALSE) -> 123 | F143: =VLOOKUP($A$2,'Table 11'!$A$5:$L$23,8,FALSE) -> 150 | G143: =VLOOKUP($A$2,'Table 12'!$A$5:$L$23,8,FALSE) -> 177 | H143: =VLOOKUP($A$2,'Table 13'!$A$5:$L$23,8,FALSE) -> 144 | I143: 2 Bedrooms | J143: =B143/SUM(B$142:B$146) -> 0.4075829384 | K143: 0.3277511962 | L143: 0.3496932515 | M143: 0.345505618 | N143: 0.3846153846 | O143: 0.3814655172 | P143: 0.3520782396
A144: 3 Bedrooms | B144: =VLOOKUP($A$2,'Table 7'!$A$26:$L$44,2,FALSE) -> 110 | C144: =VLOOKUP($A$2,'Table 8'!$A$26:$L$44,2,FALSE) -> 115 | D144: =VLOOKUP($A$2,'Table 9'!$A$26:$L$44,2,FALSE) -> 79 | E144: =VLOOKUP($A$2,'Table 10'!$A$26:$L$44,2,FALSE) -> 95 | F144: =VLOOKUP($A$2,'Table 11'!$A$26:$L$44,2,FALSE) -> 114 | G144: =VLOOKUP($A$2,'Table 12'!$A$26:$L$44,2,FALSE) -> 98 | H144: =VLOOKUP($A$2,'Table 13'!$A$26:$L$44,2,FALSE) -> 105 | I144: 3 Bedrooms | J144: =B144/SUM(B$142:B$146) -> 0.2606635071 | K144: 0.2751196172 | L144: 0.2423312883 | M144: 0.2668539326 | N144: 0.2923076923 | O144: 0.2112068966 | P144: 0.2567237164
A145: 4 Bedrooms | B145: =VLOOKUP($A$2,'Table 7'!$A$26:$L$44,8,FALSE) -> 43 | C145: =VLOOKUP($A$2,'Table 8'!$A$26:$L$44,8,FALSE) -> 51 | D145: =VLOOKUP($A$2,'Table 9'!$A$26:$L$44,8,FALSE) -> 37 | E145: =VLOOKUP($A$2,'Table 10'!$A$26:$L$44,8,FALSE) -> 48 | F145: =VLOOKUP($A$2,'Table 11'!$A$26:$L$44,8,FALSE) -> 40 | G145: =VLOOKUP($A$2,'Table 12'!$A$26:$L$44,8,FALSE) -> 46 | H145: =VLOOKUP($A$2,'Table 13'!$A$26:$L$44,8,FALSE) -> 40 | I145: 4 Bedrooms | J145: =B145/SUM(B$142:B$146) -> 0.1018957346 | K145: 0.1220095694 | L145: 0.1134969325 | M145: 0.1348314607 | N145: 0.1025641026 | O145: 0.09913793103 | P145: 0.097799511
A146: 1 Bedroom Shared | B146: =VLOOKUP($A$2,'Table 7'!$A$47:$L$65,2,FALSE) -> 22 | C146: =VLOOKUP($A$2,'Table 8'!$A$47:$L$65,2,FALSE) -> 31 | D146: =VLOOKUP($A$2,'Table 9'!$A$47:$L$65,2,FALSE) -> 26 | E146: =VLOOKUP($A$2,'Table 10'!$A$47:$L$65,2,FALSE) -> 38 | F146: =VLOOKUP($A$2,'Table 11'!$A$47:$L$65,2,FALSE) -> 28 | G146: =VLOOKUP($A$2,'Table 12'!$A$47:$L$65,2,FALSE) -> 32 | H146: =VLOOKUP($A$2,'Table 13'!$A$47:$L$65,2,FALSE) -> 22 | I146: 1 Bedroom Shared | J146: =B146/SUM(B$142:B$146) -> 0.05213270142 | K146: 0.07416267943 | L146: 0.07975460123 | M146: 0.106741573 | N146: 0.07179487179 | O146: 0.06896551724 | P146: 0.05378973105

Sheet BRMA Profile - Fife (hidden)
A1: BRMA Rent Profile for:
A2: Fife | I2: =ROUND(MIN(J6:P9,J28:P31,J50:P53,J72:P75,J94:P97)-0.01,2) -> -0.07 | J2: =ROUND(MAX(J6:P9,J28:P31,J50:P53,J72:P75,J94:P97)+0.01,2) -> 0.46
A4: 1 Bedroom Properties - Quartile Measures: | I4: 1 Bedroom Properties - Annual changes and 6-yr cumulative change:
B5: 2010 | C5: 2011 | D5: 2012 | E5: 2013 | F5: 2014 | G5: 2015 | H5: 2016 | J5: 2010 to 2011 | K5: 2011 to 2012 | L5: 2012 to 2013 | M5: 2013 to 2014 | N5: 2014 to 2015 | O5: 2015 to 2016 | P5: 2010 to 2016
A6: Lower Quartile | B6: =VLOOKUP($A$2,'Table 7'!$A$5:$L$23,3,FALSE) -> 350 | C6: =VLOOKUP($A$2,'Table 8'!$A$5:$L$23,3,FALSE) -> 350 | D6: =VLOOKUP($A$2,'Table 9'!$A$5:$L$23,3,FALSE) -> 350 | E6: =VLOOKUP($A$2,'Table 10'!$A$5:$L$23,3,FALSE) -> 350 | F6: =VLOOKUP($A$2,'Table 11'!$A$5:$L$23,3,FALSE) -> 350 | G6: =VLOOKUP($A$2,'Table 12'!$A$5:$L$23,3,FALSE) -> 350 | H6: =VLOOKUP($A$2,'Table 13'!$A$5:$L$23,3,FALSE) -> 360 | I6: Lower Quartile | J6: =C6/B6-1 -> 0 | K6: 0 | L6: 0 | M6: 0 | N6: 0 | O6: =H6/G6-1 -> 0.02857142857 | P6: =H6/B6-1 -> 0.02857142857
A7: Median | B7: =VLOOKUP($A$2,'Table 7'!$A$5:$L$23,4,FALSE) -> 370 | C7: =VLOOKUP($A$2,'Table 8'!$A$5:$L$23,4,FALSE) -> 375 | D7: =VLOOKUP($A$2,'Table 9'!$A$5:$L$23,4,FALSE) -> 375 | E7: =VLOOKUP($A$2,'Table 10'!$A$5:$L$23,4,FALSE) -> 375 | F7: =VLOOKUP($A$2,'Table 11'!$A$5:$L$23,4,FALSE) -> 395 | G7: =VLOOKUP($A$2,'Table 12'!$A$5:$L$23,4,FALSE) -> 395 | H7: =VLOOKUP($A$2,'Table 13'!$A$5:$L$23,4,FALSE) -> 395 | I7: Median | J7: 0.01351351351 | K7: 0 | L7: 0 | M7: 0.05333333333 | N7: 0 | O7: 0 | P7: =H7/B7-1 -> 0.06756756757
A8: Mean | B8: =VLOOKUP($A$2,'Table 7'!$A$5:$L$23,5,FALSE) -> 378.99 | C8: =VLOOKUP($A$2,'Table 8'!$A$5:$L$23,5,FALSE) -> 383.44 | D8: =VLOOKUP($A$2,'Table 9'!$A$5:$L$23,5,FALSE) -> 387.33 | E8: =VLOOKUP($A$2,'Table 10'!$A$5:$L$23,5,FALSE) -> 381.48 | F8: =VLOOKUP($A$2,'Table 11'!$A$5:$L$23,5,FALSE) -> 405.31 | G8: =VLOOKUP($A$2,'Table 12'!$A$5:$L$23,5,FALSE) -> 395.12 | H8: =VLOOKUP($A$2,'Table 13'!$A$5:$L$23,5,FALSE) -> 402.75 | I8: Mean | J8: 0.01174173461 | K8: 0.01014500313 | L8: -0.0151034002 | M8: 0.06246723288 | N8: -0.02514124991 | O8: 0.01931058919 | P8: 0.06269294704
A9: Upper Quartile | B9: =VLOOKUP($A$2,'Table 7'!$A$5:$L$23,6,FALSE) -> 395 | C9: =VLOOKUP($A$2,'Table 8'!$A$5:$L$23,6,FALSE) -> 400 | D9: =VLOOKUP($A$2,'Table 9'!$A$5:$L$23,6,FALSE) -> 400 | E9: =VLOOKUP($A$2,'Table 10'!$A$5:$L$23,6,FALSE) -> 400 | F9: =VLOOKUP($A$2,'Table 11'!$A$5:$L$23,6,FALSE) -> 425 | G9: =VLOOKUP($A$2,'Table 12'!$A$5:$L$23,6,FALSE) -> 425 | H9: =VLOOKUP($A$2,'Table 13'!$A$5:$L$23,6,FALSE) -> 425 | I9: Upper Quartile | J9: 0.01265822785 | K9: 0 | L9: 0 | M9: 0.0625 | N9: 0 | O9: 0 | P9: 0.07594936709
A26: 2 Bedroom Properties: | I26: 2 Bedroom Properties - Annual changes and 6-yr cumulative change:
B27: 2010 | C27: 2011 | D27: 2012 | E27: 2013 | F27: 2014 | G27: 2015 | H27: 2016 | J27: 2010 to 2011 | K27: 2011 to 2012 | L27: 2012 to 2013 | M27: 2013 to 2014 | N27: 2014 to 2015 | O27: 2015 to 2016 | P27: 2010 to 2016
A28: Lower Quartile | B28: =VLOOKUP($A$2,'Table 7'!$A$5:$L$23,9,FALSE) -> 420 | C28: =VLOOKUP($A$2,'Table 8'!$A$5:$L$23,9,FALSE) -> 425 | D28: =VLOOKUP($A$2,'Table 9'!$A$5:$L$23,9,FALSE) -> 430 | E28: =VLOOKUP($A$2,'Table 10'!$A$5:$L$23,9,FALSE) -> 425 | F28: =VLOOKUP($A$2,'Table 11'!$A$5:$L$23,9,FALSE) -> 450 | G28: =VLOOKUP($A$2,'Table 12'!$A$5:$L$23,9,FALSE) -> 440 | H28: =VLOOKUP($A$2,'Table 13'!$A$5:$L$23,9,FALSE) -> 450 | I28: Lower Quartile | J28: =C28/B28-1 -> 0.0119047619 | K28: 0.01176470588 | L28: -0.01162790698 | M28: 0.05882352941 | N28: -0.02222222222 | O28: =H28/G28-1 -> 0.02272727273 | P28: =H28/B28-1 -> 0.07142857143
A29: Median | B29: =VLOOKUP($A$2,'Table 7'!$A$5:$L$23,10,FALSE) -> 450 | C29: =VLOOKUP($A$2,'Table 8'!$A$5:$L$23,10,FALSE) -> 470 | D29: =VLOOKUP($A$2,'Table 9'!$A$5:$L$23,10,FALSE) -> 470 | E29: =VLOOKUP($A$2,'Table 10'!$A$5:$L$23,10,FALSE) -> 475 | F29: =VLOOKUP($A$2,'Table 11'!$A$5:$L$23,10,FALSE) -> 490 | G29: =VLOOKUP($A$2,'Table 12'!$A$5:$L$23,10,FALSE) -> 475 | H29: =VLOOKUP($A$2,'Table 13'!$A$5:$L$23,10,FALSE) -> 495 | I29: Median | J29: 0.04444444444 | K29: 0 | L29: 0.01063829787 | M29: 0.03157894737 | N29: -0.0306122449 | O29: =H29/G29-1 -> 0.04210526316 | P29: =H29/B29-1 -> 0.1
A30: Mean | B30: =VLOOKUP($A$2,'Table 7'!$A$5:$L$23,11,FALSE) -> 463.99 | C30: =VLOOKUP($A$2,'Table 8'!$A$5:$L$23,11,FALSE) -> 476.96 | D30: =VLOOKUP($A$2,'Table 9'!$A$5:$L$23,11,FALSE) -> 481.34 | E30: =VLOOKUP($A$2,'Table 10'!$A$5:$L$23,11,FALSE) -> 485.39 | F30: =VLOOKUP($A$2,'Table 11'!$A$5:$L$23,11,FALSE) -> 509.51 | G30: =VLOOKUP($A$2,'Table 12'!$A$5:$L$23,11,FALSE) -> 497.96 | H30: =VLOOKUP($A$2,'Table 13'!$A$5:$L$23,11,FALSE) -> 510.77 | I30: Mean | J30: 0.02795318865 | K30: 0.009183160013 | L30: 0.008414010886 | M30: 0.04969200025 | N30: -0.02266883869 | O30: =H30/G30-1 -> 0.02572495783 | P30: 0.1008211384
A31: Upper Quartile | B31: =VLOOKUP($A$2,'Table 7'!$A$5:$L$23,12,FALSE) -> 495 | C31: =VLOOKUP($A$2,'Table 8'!$A$5:$L$23,12,FALSE) -> 520 | D31: =VLOOKUP($A$2,'Table 9'!$A$5:$L$23,12,FALSE) -> 510 | E31: =VLOOKUP($A$2,'Table 10'!$A$5:$L$23,12,FALSE) -> 525 | F31: =VLOOKUP($A$2,'Table 11'!$A$5:$L$23,12,FALSE) -> 550 | G31: =VLOOKUP($A$2,'Table 12'!$A$5:$L$23,12,FALSE) -> 550 | H31: =VLOOKUP($A$2,'Table 13'!$A$5:$L$23,12,FALSE) -> 550 | I31: Upper Quartile | J31: 0.05050505051 | K31: -0.01923076923 | L31: 0.02941176471 | M31: 0.04761904762 | N31: 0 | O31: =H31/G31-1 -> 0 | P31: 0.1111111111
A48: 3 Bedroom Properties: | I48: 3 Bedroom Properties - Annual changes and 6-yr cumulative change:
B49: 2010 | C49: 2011 | D49: 2012 | E49: 2013 | F49: 2014 | G49: 2015 | H49: 2016 | J49: 2010 to 2011 | K49: 2011 to 2012 | L49: 2012 to 2013 | M49: 2013 to 2014 | N49: 2014 to 2015 | O49: 2015 to 2016 | P49: 2010 to 2016
A50: Lower Quartile | B50: =VLOOKUP($A$2,'Table 7'!$A$26:$L$44,3,FALSE) -> 480 | C50: =VLOOKUP($A$2,'Table 8'!$A$26:$L$44,3,FALSE) -> 495 | D50: =VLOOKUP($A$2,'Table 9'!$A$26:$L$44,3,FALSE) -> 500 | E50: =VLOOKUP($A$2,'Table 10'!$A$26:$L$44,3,FALSE) -> 500 | F50: =VLOOKUP($A$2,'Table 11'!$A$26:$L$44,3,FALSE) -> 525 | G50: =VLOOKUP($A$2,'Table 12'!$A$26:$L$44,3,FALSE) -> 500 | H50: =VLOOKUP($A$2,'Table 13'!$A$26:$L$44,3,FALSE) -> 520 | I50: Lower Quartile | J50: =C50/B50-1 -> 0.03125 | K50: 0.0101010101 | L50: 0 | M50: 0.05 | N50: -0.04761904762 | O50: =H50/G50-1 -> 0.04 | P50: =H50/B50-1 -> 0.08333333333
A51: Median | B51: =VLOOKUP($A$2,'Table 7'!$A$26:$L$44,4,FALSE) -> 525 | C51: =VLOOKUP($A$2,'Table 8'!$A$26:$L$44,4,FALSE) -> 560 | D51: =VLOOKUP($A$2,'Table 9'!$A$26:$L$44,4,FALSE) -> 575 | E51: =VLOOKUP($A$2,'Table 10'!$A$26:$L$44,4,FALSE) -> 575 | F51: =VLOOKUP($A$2,'Table 11'!$A$26:$L$44,4,FALSE) -> 590 | G51: =VLOOKUP($A$2,'Table 12'!$A$26:$L$44,4,FALSE) -> 575 | H51: =VLOOKUP($A$2,'Table 13'!$A$26:$L$44,4,FALSE) -> 575 | I51: Median | J51: 0.06666666667 | K51: 0.02678571429 | L51: 0 | M51: 0.02608695652 | N51: -0.02542372881 | O51: =H51/G51-1 -> 0 | P51: =H51/B51-1 -> 0.09523809524
A52: Mean | B52: =VLOOKUP($A$2,'Table 7'!$A$26:$L$44,5,FALSE) -> 563.02 | C52: =VLOOKUP($A$2,'Table 8'!$A$26:$L$44,5,FALSE) -> 588.68 | D52: =VLOOKUP($A$2,'Table 9'!$A$26:$L$44,5,FALSE) -> 592.24 | E52: =VLOOKUP($A$2,'Table 10'!$A$26:$L$44,5,FALSE) -> 600.47 | F52: =VLOOKUP($A$2,'Table 11'!$A$26:$L$44,5,FALSE) -> 608.7 | G52: =VLOOKUP($A$2,'Table 12'!$A$26:$L$44,5,FALSE) -> 602.28 | H52: =VLOOKUP($A$2,'Table 13'!$A$26:$L$44,5,FALSE) -> 617 | I52: Mean | J52: 0.04557564563 | K52: 0.006047428144 | L52: 0.01389639335 | M52: 0.01370593035 | N52: -0.01054706752 | O52: =H52/G52-1 -> 0.02444045959 | P52: 0.09587581258
A53: Upper Quartile | B53: =VLOOKUP($A$2,'Table 7'!$A$26:$L$44,6,FALSE) -> 627.5 | C53: =VLOOKUP($A$2,'Table 8'!$A$26:$L$44,6,FALSE) -> 650 | D53: =VLOOKUP($A$2,'Table 9'!$A$26:$L$44,6,FALSE) -> 650 | E53: =VLOOKUP($A$2,'Table 10'!$A$26:$L$44,6,FALSE) -> 675 | F53: =VLOOKUP($A$2,'Table 11'!$A$26:$L$44,6,FALSE) -> 675 | G53: =VLOOKUP($A$2,'Table 12'!$A$26:$L$44,6,FALSE) -> 680 | H53: =VLOOKUP($A$2,'Table 13'!$A$26:$L$44,6,FALSE) -> 695 | I53: Upper Quartile | J53: 0.03585657371 | K53: 0 | L53: 0.03846153846 | M53: 0 | N53: 0.007407407407 | O53: =H53/G53-1 -> 0.02205882353 | P53: 0.1075697211
A70: 4 Bedroom Properties: | I70: 4 Bedroom Properties - Annual changes and 6-yr cumulative change:
B71: 2010 | C71: 2011 | D71: 2012 | E71: 2013 | F71: 2014 | G71: 2015 | H71: 2016 | J71: 2010 to 2011 | K71: 2011 to 2012 | L71: 2012 to 2013 | M71: 2013 to 2014 | N71: 2014 to 2015 | O71: 2015 to 2016 | P71: 2010 to 2016
A72: Lower Quartile | B72: =VLOOKUP($A$2,'Table 7'!$A$26:$L$44,9,FALSE) -> 695 | C72: =VLOOKUP($A$2,'Table 8'!$A$26:$L$44,9,FALSE) -> 750 | D72: =VLOOKUP($A$2,'Table 9'!$A$26:$L$44,9,FALSE) -> 750 | E72: =VLOOKUP($A$2,'Table 10'!$A$26:$L$44,9,FALSE) -> 750 | F72: =VLOOKUP($A$2,'Table 11'!$A$26:$L$44,9,FALSE) -> 750 | G72: =VLOOKUP($A$2,'Table 12'!$A$26:$L$44,9,FALSE) -> 750 | H72: =VLOOKUP($A$2,'Table 13'!$A$26:$L$44,9,FALSE) -> 775 | I72: Lower Quartile | J72: =C72/B72-1 -> 0.07913669065 | K72: 0 | L72: 0 | M72: 0 | N72: 0 | O72: =H72/G72-1 -> 0.03333333333 | P72: =H72/B72-1 -> 0.1151079137
A73: Median | B73: =VLOOKUP($A$2,'Table 7'!$A$26:$L$44,10,FALSE) -> 790 | C73: =VLOOKUP($A$2,'Table 8'!$A$26:$L$44,10,FALSE) -> 800 | D73: =VLOOKUP($A$2,'Table 9'!$A$26:$L$44,10,FALSE) -> 825 | E73: =VLOOKUP($A$2,'Table 10'!$A$26:$L$44,10,FALSE) -> 850 | F73: =VLOOKUP($A$2,'Table 11'!$A$26:$L$44,10,FALSE) -> 850 | G73: =VLOOKUP($A$2,'Table 12'!$A$26:$L$44,10,FALSE) -> 850 | H73: =VLOOKUP($A$2,'Table 13'!$A$26:$L$44,10,FALSE) -> 875 | I73: Median | J73: 0.01265822785 | K73: 0.03125 | L73: 0.0303030303 | M73: 0 | N73: 0 | O73: 0.02941176471 | P73: =H73/B73-1 -> 0.1075949367
A74: Mean | B74: =VLOOKUP($A$2,'Table 7'!$A$26:$L$44,11,FALSE) -> 773.31 | C74: =VLOOKUP($A$2,'Table 8'!$A$26:$L$44,11,FALSE) -> 823.76 | D74: =VLOOKUP($A$2,'Table 9'!$A$26:$L$44,11,FALSE) -> 859.7 | E74: =VLOOKUP($A$2,'Table 10'!$A$26:$L$44,11,FALSE) -> 884.28 | F74: =VLOOKUP($A$2,'Table 11'!$A$26:$L$44,11,FALSE) -> 870.87 | G74: =VLOOKUP($A$2,'Table 12'!$A$26:$L$44,11,FALSE) -> 884.35 | H74: =VLOOKUP($A$2,'Table 13'!$A$26:$L$44,11,FALSE) -> 900.74 | I74: Mean | J74: 0.06523903738 | K74: 0.04362921239 | L74: 0.02859136908 | M74: -0.0151648799 | N74: 0.0154787741 | O74: 0.0185333861 | P74: 0.1647851444
A75: Upper Quartile | B75: =VLOOKUP($A$2,'Table 7'!$A$26:$L$44,12,FALSE) -> 850 | C75: =VLOOKUP($A$2,'Table 8'!$A$26:$L$44,12,FALSE) -> 895 | D75: =VLOOKUP($A$2,'Table 9'!$A$26:$L$44,12,FALSE) -> 895 | E75: =VLOOKUP($A$2,'Table 10'!$A$26:$L$44,12,FALSE) -> 925 | F75: =VLOOKUP($A$2,'Table 11'!$A$26:$L$44,12,FALSE) -> 947.5 | G75: =VLOOKUP($A$2,'Table 12'!$A$26:$L$44,12,FALSE) -> 950 | H75: =VLOOKUP($A$2,'Table 13'!$A$26:$L$44,12,FALSE) -> 975 | I75: Upper Quartile | J75: 0.05294117647 | K75: 0 | L75: 0.03351955307 | M75: 0.02432432432 | N75: 0.002638522427 | O75: 0.02631578947 | P75: 0.1470588235
A92: 1 Bedroom Shared Properties: | I92: 1 Bedroom Shared Properties - Annual changes and 6-yr cumulative change:
B93: 2010 | C93: 2011 | D93: 2012 | E93: 2013 | F93: 2014 | G93: 2015 | H93: 2016 | J93: 2010 to 2011 | K93: 2011 to 2012 | L93: 2012 to 2013 | M93: 2013 to 2014 | N93: 2014 to 2015 | O93: 2015 to 2016 | P93: 2010 to 2016
A94: Lower Quartile | B94: =VLOOKUP($A$2,'Table 7'!$A$47:$F$65,3,FALSE) -> 238.33 | C94: =VLOOKUP($A$2,'Table 8'!$A$47:$F$65,3,FALSE) -> 224 | D94: =VLOOKUP($A$2,'Table 9'!$A$47:$F$65,3,FALSE) -> 251.33 | E94: =VLOOKUP($A$2,'Table 10'!$A$47:$F$65,3,FALSE) -> 274 | F94: =VLOOKUP($A$2,'Table 11'!$A$47:$F$65,3,FALSE) -> 275 | G94: =VLOOKUP($A$2,'Table 12'!$A$47:$F$65,3,FALSE) -> 275 | H94: =VLOOKUP($A$2,'Table 13'!$A$47:$F$65,3,FALSE) -> 290 | I94: Lower Quartile | J94: =C94/B94-1 -> -0.06012671506 | K94: 0.1220089286 | L94: 0.09020013528 | M94: 0.003649635036 | N94: 0 | O94: =H94/G94-1 -> 0.05454545455 | P94: =H94/B94-1 -> 0.216800235
A95: Median | B95: =VLOOKUP($A$2,'Table 7'!$A$47:$F$65,4,FALSE) -> 255.67 | C95: =VLOOKUP($A$2,'Table 8'!$A$47:$F$65,4,FALSE) -> 250 | D95: =VLOOKUP($A$2,'Table 9'!$A$47:$F$65,4,FALSE) -> 285 | E95: =VLOOKUP($A$2,'Table 10'!$A$47:$F$65,4,FALSE) -> 303.33 | F95: =VLOOKUP($A$2,'Table 11'!$A$47:$F$65,4,FALSE) -> 304.17 | G95: =VLOOKUP($A$2,'Table 12'!$A$47:$F$65,4,FALSE) -> 316.07 | H95: =VLOOKUP($A$2,'Table 13'!$A$47:$F$65,4,FALSE) -> 351.92 | I95: Median | J95: -0.02217702507 | K95: 0.14 | L95: 0.06431578947 | M95: 0.002769261201 | N95: 0.03912285893 | O95: 0.1134242415 | P95: =H95/B95-1 -> 0.3764618453
A96: Mean | B96: =VLOOKUP($A$2,'Table 7'!$A$47:$F$65,5,FALSE) -> 270.66 | C96: =VLOOKUP($A$2,'Table 8'!$A$47:$F$65,5,FALSE) -> 253.94 | D96: =VLOOKUP($A$2,'Table 9'!$A$47:$F$65,5,FALSE) -> 292.26 | E96: =VLOOKUP($A$2,'Table 10'!$A$47:$F$65,5,FALSE) -> 312.87 | F96: =VLOOKUP($A$2,'Table 11'!$A$47:$F$65,5,FALSE) -> 312.33 | G96: =VLOOKUP($A$2,'Table 12'!$A$47:$F$65,5,FALSE) -> 320.61 | H96: =VLOOKUP($A$2,'Table 13'!$A$47:$F$65,5,FALSE) -> 367.97 | I96: Mean | J96: -0.06177492056 | K96: 0.1509017878 | L96: 0.07051940053 | M96: -0.001725956468 | N96: 0.02651042167 | O96: 0.1477184118 | P96: 0.3595285598
A97: Upper Quartile | B97: =VLOOKUP($A$2,'Table 7'!$A$47:$F$65,6,FALSE) -> 281.67 | C97: =VLOOKUP($A$2,'Table 8'!$A$47:$F$65,6,FALSE) -> 275 | D97: =VLOOKUP($A$2,'Table 9'!$A$47:$F$65,6,FALSE) -> 325 | E97: =VLOOKUP($A$2,'Table 10'!$A$47:$F$65,6,FALSE) -> 336.5 | F97: =VLOOKUP($A$2,'Table 11'!$A$47:$F$65,6,FALSE) -> 350 | G97: =VLOOKUP($A$2,'Table 12'!$A$47:$F$65,6,FALSE) -> 355 | H97: =VLOOKUP($A$2,'Table 13'!$A$47:$F$65,6,FALSE) -> 409.66 | I97: Upper Quartile | J97: -0.02368019313 | K97: 0.1818181818 | L97: 0.03538461538 | M97: 0.04011887073 | N97: 0.01428571429 | O97: 0.153971831 | P97: 0.4543969894
A116: Mean Rents by Property Size: | I116: Median Rents by Property Size:
B117: 2010 | C117: 2011 | D117: 2012 | E117: 2013 | F117: 2014 | G117: 2015 | H117: 2016 | J117: 2010 | K117: 2011 | L117: 2012 | M117: 2013 | N117: 2014 | O117: 2015 | P117: 2016
A118: 1 Bedroom Shared | B118: =B96 -> 270.66 | C118: 253.94 | D118: 292.26 | E118: 312.87 | F118: 312.33 | G118: 320.61 | H118: 367.97 | I118: 1 Bedroom Shared | J118: =B95 -> 255.67 | K118: 250 | L118: 285 | M118: 303.33 | N118: 304.17 | O118: =G95 -> 316.07 | P118: =H95 -> 351.92
A119: 1 Bedroom | B119: =B8 -> 378.99 | C119: 383.44 | D119: 387.33 | E119: 381.48 | F119: 405.31 | G119: 395.12 | H119: 402.75 | I119: 1 Bedroom | J119: =B7 -> 370 | K119: 375 | L119: 375 | M119: 375 | N119: 395 | O119: =G7 -> 395 | P119: =H7 -> 395
A120: 2 Bedrooms | B120: =B30 -> 463.99 | C120: 476.96 | D120: 481.34 | E120: 485.39 | F120: 509.51 | G120: 497.96 | H120: 510.77 | I120: 2 Bedrooms | J120: =B29 -> 450 | K120: 470 | L120: 470 | M120: 475 | N120: 490 | O120: =G29 -> 475 | P120: =H29 -> 495
A121: 3 Bedrooms | B121: =B52 -> 563.02 | C121: 588.68 | D121: 592.24 | E121: 600.47 | F121: 608.7 | G121: 602.28 | H121: 617 | I121: 3 Bedrooms | J121: =B51 -> 525 | K121: 560 | L121: 575 | M121: 575 | N121: 590 | O121: =G51 -> 575 | P121: =H51 -> 575
A122: 4 Bedrooms | B122: =B74 -> 773.31 | C122: 823.76 | D122: 859.7 | E122: 884.28 | F122: 870.87 | G122: 884.35 | H122: 900.74 | I122: 4 Bedrooms | J122: =B73 -> 790 | K122: 800 | L122: 825 | M122: 850 | N122: 850 | O122: =G73 -> 850 | P122: =H73 -> 875
A140: Sample Sizes: | I140: Sample Proportions:
B141: 2010 | C141: 2011 | D141: 2012 | E141: 2013 | F141: 2014 | G141: 2015 | H141: 2016 | J141: 2010 | K141: 2011 | L141: 2012 | M141: 2013 | N141: 2014 | O141: 2015 | P141: 2016
A142: 1 Bedroom | B142: =VLOOKUP($A$2,'Table 7'!$A$5:$L$23,2,FALSE) -> 202 | C142: =VLOOKUP($A$2,'Table 8'!$A$5:$L$23,2,FALSE) -> 186 | D142: =VLOOKUP($A$2,'Table 9'!$A$5:$L$23,2,FALSE) -> 227 | E142: =VLOOKUP($A$2,'Table 10'!$A$5:$L$23,2,FALSE) -> 253 | F142: =VLOOKUP($A$2,'Table 11'!$A$5:$L$23,2,FALSE) -> 180 | G142: =VLOOKUP($A$2,'Table 12'!$A$5:$L$23,2,FALSE) -> 279 | H142: =VLOOKUP($A$2,'Table 13'!$A$5:$L$23,2,FALSE) -> 322 | I142: 1 Bedroom | J142: =B142/SUM(B$142:B$146) -> 0.163562753 | K142: =C142/SUM(C$142:C$146) -> 0.1603448276 | L142: 0.1384990848 | M142: 0.1522262335 | N142: 0.1172638436 | O142: =G142/SUM(G$142:G$146) -> 0.1451612903 | P142: 0.184105203
A143: 2 Bedrooms | B143: =VLOOKUP($A$2,'Table 7'!$A$5:$L$23,8,FALSE) -> 606 | C143: =VLOOKUP($A$2,'Table 8'!$A$5:$L$23,8,FALSE) -> 503 | D143: =VLOOKUP($A$2,'Table 9'!$A$5:$L$23,8,FALSE) -> 711 | E143: =VLOOKUP($A$2,'Table 10'!$A$5:$L$23,8,FALSE) -> 738 | F143: =VLOOKUP($A$2,'Table 11'!$A$5:$L$23,8,FALSE) -> 626 | G143: =VLOOKUP($A$2,'Table 12'!$A$5:$L$23,8,FALSE) -> 812 | H143: =VLOOKUP($A$2,'Table 13'!$A$5:$L$23,8,FALSE) -> 680 | I143: 2 Bedrooms | J143: =B143/SUM(B$142:B$146) -> 0.4906882591 | K143: 0.4336206897 | L143: 0.4338010982 | M143: 0.4440433213 | N143: 0.4078175896 | O143: 0.4224765869 | P143: 0.3887935963
A144: 3 Bedrooms | B144: =VLOOKUP($A$2,'Table 7'!$A$26:$L$44,2,FALSE) -> 272 | C144: =VLOOKUP($A$2,'Table 8'!$A$26:$L$44,2,FALSE) -> 282 | D144: =VLOOKUP($A$2,'Table 9'!$A$26:$L$44,2,FALSE) -> 407 | E144: =VLOOKUP($A$2,'Table 10'!$A$26:$L$44,2,FALSE) -> 381 | F144: =VLOOKUP($A$2,'Table 11'!$A$26:$L$44,2,FALSE) -> 415 | G144: =VLOOKUP($A$2,'Table 12'!$A$26:$L$44,2,FALSE) -> 455 | H144: =VLOOKUP($A$2,'Table 13'!$A$26:$L$44,2,FALSE) -> 434 | I144: 3 Bedrooms | J144: =B144/SUM(B$142:B$146) -> 0.220242915 | K144: 0.2431034483 | L144: 0.2483221477 | M144: 0.2292418773 | N144: 0.2703583062 | O144: 0.2367325702 | P144: 0.2481417953
A145: 4 Bedrooms | B145: =VLOOKUP($A$2,'Table 7'!$A$26:$L$44,8,FALSE) -> 106 | C145: =VLOOKUP($A$2,'Table 8'!$A$26:$L$44,8,FALSE) -> 120 | D145: =VLOOKUP($A$2,'Table 9'!$A$26:$L$44,8,FALSE) -> 185 | E145: =VLOOKUP($A$2,'Table 10'!$A$26:$L$44,8,FALSE) -> 138 | F145: =VLOOKUP($A$2,'Table 11'!$A$26:$L$44,8,FALSE) -> 168 | G145: =VLOOKUP($A$2,'Table 12'!$A$26:$L$44,8,FALSE) -> 167 | H145: =VLOOKUP($A$2,'Table 13'!$A$26:$L$44,8,FALSE) -> 151 | I145: 4 Bedrooms | J145: =B145/SUM(B$142:B$146) -> 0.08582995951 | K145: 0.1034482759 | L145: 0.1128737035 | M145: 0.08303249097 | N145: 0.1094462541 | O145: 0.08688865765 | P145: 0.0863350486
A146: 1 Bedroom Shared | B146: =VLOOKUP($A$2,'Table 7'!$A$47:$L$65,2,FALSE) -> 49 | C146: =VLOOKUP($A$2,'Table 8'!$A$47:$L$65,2,FALSE) -> 69 | D146: =VLOOKUP($A$2,'Table 9'!$A$47:$L$65,2,FALSE) -> 109 | E146: =VLOOKUP($A$2,'Table 10'!$A$47:$L$65,2,FALSE) -> 152 | F146: =VLOOKUP($A$2,'Table 11'!$A$47:$L$65,2,FALSE) -> 146 | G146: =VLOOKUP($A$2,'Table 12'!$A$47:$L$65,2,FALSE) -> 209 | H146: =VLOOKUP($A$2,'Table 13'!$A$47:$L$65,2,FALSE) -> 162 | I146: 1 Bedroom Shared | J146: =B146/SUM(B$142:B$146) -> 0.03967611336 | K146: 0.05948275862 | L146: 0.06650396583 | M146: 0.09145607702 | N146: 0.09511400651 | O146: 0.1087408949 | P146: 0.09262435678

Sheet BRMA Profile - Forth Valley (hidden)
A1: BRMA Rent Profile for:
A2: Forth Valley | I2: =ROUND(MIN(J6:P9,J28:P31,J50:P53,J72:P75,J94:P97)-0.01,2) -> -0.09 | J2: =ROUND(MAX(J6:P9,J28:P31,J50:P53,J72:P75,J94:P97)+0.01,2) -> 0.34
A4: 1 Bedroom Properties - Quartile Measures: | I4: 1 Bedroom Properties - Annual changes and 6-yr cumulative change:
B5: 2010 | C5: 2011 | D5: 2012 | E5: 2013 | F5: 2014 | G5: 2015 | H5: 2016 | J5: 2010 to 2011 | K5: 2011 to 2012 | L5: 2012 to 2013 | M5: 2013 to 2014 | N5: 2014 to 2015 | O5: 2015 to 2016 | P5: 2010 to 2016
A6: Lower Quartile | B6: =VLOOKUP($A$2,'Table 7'!$A$5:$L$23,3,FALSE) -> 350 | C6: =VLOOKUP($A$2,'Table 8'!$A$5:$L$23,3,FALSE) -> 350 | D6: =VLOOKUP($A$2,'Table 9'!$A$5:$L$23,3,FALSE) -> 350 | E6: =VLOOKUP($A$2,'Table 10'!$A$5:$L$23,3,FALSE) -> 350 | F6: =VLOOKUP($A$2,'Table 11'!$A$5:$L$23,3,FALSE) -> 350 | G6: =VLOOKUP($A$2,'Table 12'!$A$5:$L$23,3,FALSE) -> 357.5 | H6: =VLOOKUP($A$2,'Table 13'!$A$5:$L$23,3,FALSE) -> 355 | I6: Lower Quartile | J6: =C6/B6-1 -> 0 | K6: 0 | L6: 0 | M6: 0 | N6: 0.02142857143 | O6: =H6/G6-1 -> -0.006993006993 | P6: =H6/B6-1 -> 0.01428571429
A7: Median | B7: =VLOOKUP($A$2,'Table 7'!$A$5:$L$23,4,FALSE) -> 375 | C7: =VLOOKUP($A$2,'Table 8'!$A$5:$L$23,4,FALSE) -> 385 | D7: =VLOOKUP($A$2,'Table 9'!$A$5:$L$23,4,FALSE) -> 395 | E7: =VLOOKUP($A$2,'Table 10'!$A$5:$L$23,4,FALSE) -> 390 | F7: =VLOOKUP($A$2,'Table 11'!$A$5:$L$23,4,FALSE) -> 392.5 | G7: =VLOOKUP($A$2,'Table 12'!$A$5:$L$23,4,FALSE) -> 380 | H7: =VLOOKUP($A$2,'Table 13'!$A$5:$L$23,4,FALSE) -> 395 | I7: Median | J7: 0.02666666667 | K7: 0.02597402597 | L7: -0.01265822785 | M7: 0.00641025641 | N7: -0.03184713376 | O7: 0.03947368421 | P7: =H7/B7-1 -> 0.05333333333
A8: Mean | B8: =VLOOKUP($A$2,'Table 7'!$A$5:$L$23,5,FALSE) -> 386.8 | C8: =VLOOKUP($A$2,'Table 8'!$A$5:$L$23,5,FALSE) -> 384.61 | D8: =VLOOKUP($A$2,'Table 9'!$A$5:$L$23,5,FALSE) -> 392.76 | E8: =VLOOKUP($A$2,'Table 10'!$A$5:$L$23,5,FALSE) -> 388.84 | F8: =VLOOKUP($A$2,'Table 11'!$A$5:$L$23,5,FALSE) -> 387.39 | G8: =VLOOKUP($A$2,'Table 12'!$A$5:$L$23,5,FALSE) -> 396.32 | H8: =VLOOKUP($A$2,'Table 13'!$A$5:$L$23,5,FALSE) -> 407.52 | I8: Mean | J8: -0.005661840745 | K8: 0.02119029666 | L8: -0.009980649761 | M8: -0.003729040222 | N8: 0.023051705 | O8: 0.02825999193 | P8: 0.05356773526
A9: Upper Quartile | B9: =VLOOKUP($A$2,'Table 7'!$A$5:$L$23,6,FALSE) -> 417.5 | C9: =VLOOKUP($A$2,'Table 8'!$A$5:$L$23,6,FALSE) -> 400 | D9: =VLOOKUP($A$2,'Table 9'!$A$5:$L$23,6,FALSE) -> 425 | E9: =VLOOKUP($A$2,'Table 10'!$A$5:$L$23,6,FALSE) -> 425 | F9: =VLOOKUP($A$2,'Table 11'!$A$5:$L$23,6,FALSE) -> 425 | G9: =VLOOKUP($A$2,'Table 12'!$A$5:$L$23,6,FALSE) -> 425 | H9: =VLOOKUP($A$2,'Table 13'!$A$5:$L$23,6,FALSE) -> 450 | I9: Upper Quartile | J9: -0.04191616766 | K9: 0.0625 | L9: 0 | M9: 0 | N9: 0 | O9: 0.05882352941 | P9: 0.07784431138
A26: 2 Bedroom Properties: | I26: 2 Bedroom Properties - Annual changes and 6-yr cumulative change:
B27: 2010 | C27: 2011 | D27: 2012 | E27: 2013 | F27: 2014 | G27: 2015 | H27: 2016 | J27: 2010 to 2011 | K27: 2011 to 2012 | L27: 2012 to 2013 | M27: 2013 to 2014 | N27: 2014 to 2015 | O27: 2015 to 2016 | P27: 2010 to 2016
A28: Lower Quartile | B28: =VLOOKUP($A$2,'Table 7'!$A$5:$L$23,9,FALSE) -> 435 | C28: =VLOOKUP($A$2,'Table 8'!$A$5:$L$23,9,FALSE) -> 450 | D28: =VLOOKUP($A$2,'Table 9'!$A$5:$L$23,9,FALSE) -> 450 | E28: =VLOOKUP($A$2,'Table 10'!$A$5:$L$23,9,FALSE) -> 450 | F28: =VLOOKUP($A$2,'Table 11'!$A$5:$L$23,9,FALSE) -> 435 | G28: =VLOOKUP($A$2,'Table 12'!$A$5:$L$23,9,FALSE) -> 450 | H28: =VLOOKUP($A$2,'Table 13'!$A$5:$L$23,9,FALSE) -> 450 | I28: Lower Quartile | J28: =C28/B28-1 -> 0.03448275862 | K28: 0 | L28: 0 | M28: -0.03333333333 | N28: 0.03448275862 | O28: =H28/G28-1 -> 0 | P28: =H28/B28-1 -> 0.03448275862
A29: Median | B29: =VLOOKUP($A$2,'Table 7'!$A$5:$L$23,10,FALSE) -> 482.5 | C29: =VLOOKUP($A$2,'Table 8'!$A$5:$L$23,10,FALSE) -> 495 | D29: =VLOOKUP($A$2,'Table 9'!$A$5:$L$23,10,FALSE) -> 500 | E29: =VLOOKUP($A$2,'Table 10'!$A$5:$L$23,10,FALSE) -> 495 | F29: =VLOOKUP($A$2,'Table 11'!$A$5:$L$23,10,FALSE) -> 495 | G29: =VLOOKUP($A$2,'Table 12'!$A$5:$L$23,10,FALSE) -> 495 | H29: =VLOOKUP($A$2,'Table 13'!$A$5:$L$23,10,FALSE) -> 510 | I29: Median | J29: 0.02590673575 | K29: 0.0101010101 | L29: -0.01 | M29: 0 | N29: 0 | O29: =H29/G29-1 -> 0.0303030303 | P29: =H29/B29-1 -> 0.05699481865
A30: Mean | B30: =VLOOKUP($A$2,'Table 7'!$A$5:$L$23,11,FALSE) -> 492.41 | C30: =VLOOKUP($A$2,'Table 8'!$A$5:$L$23,11,FALSE) -> 506.53 | D30: =VLOOKUP($A$2,'Table 9'!$A$5:$L$23,11,FALSE) -> 510.32 | E30: =VLOOKUP($A$2,'Table 10'!$A$5:$L$23,11,FALSE) -> 505.6 | F30: =VLOOKUP($A$2,'Table 11'!$A$5:$L$23,11,FALSE) -> 506.37 | G30: =VLOOKUP($A$2,'Table 12'!$A$5:$L$23,11,FALSE) -> 508.44 | H30: =VLOOKUP($A$2,'Table 13'!$A$5:$L$23,11,FALSE) -> 529.72 | I30: Mean | J30: 0.02867529092 | K30: 0.007482281405 | L30: -0.009249098605 | M30: 0.001522943038 | N30: 0.0040879199 | O30: =H30/G30-1 -> 0.04185351271 | P30: 0.07577019151
A31: Upper Quartile | B31: =VLOOKUP($A$2,'Table 7'!$A$5:$L$23,12,FALSE) -> 550 | C31: =VLOOKUP($A$2,'Table 8'!$A$5:$L$23,12,FALSE) -> 550 | D31: =VLOOKUP($A$2,'Table 9'!$A$5:$L$23,12,FALSE) -> 550 | E31: =VLOOKUP($A$2,'Table 10'!$A$5:$L$23,12,FALSE) -> 550 | F31: =VLOOKUP($A$2,'Table 11'!$A$5:$L$23,12,FALSE) -> 550 | G31: =VLOOKUP($A$2,'Table 12'!$A$5:$L$23,12,FALSE) -> 550 | H31: =VLOOKUP($A$2,'Table 13'!$A$5:$L$23,12,FALSE) -> 595 | I31: Upper Quartile | J31: 0 | K31: 0 | L31: 0 | M31: 0 | N31: 0 | O31: =H31/G31-1 -> 0.08181818182 | P31: 0.08181818182
A48: 3 Bedroom Properties: | I48: 3 Bedroom Properties - Annual changes and 6-yr cumulative change:
B49: 2010 | C49: 2011 | D49: 2012 | E49: 2013 | F49: 2014 | G49: 2015 | H49: 2016 | J49: 2010 to 2011 | K49: 2011 to 2012 | L49: 2012 to 2013 | M49: 2013 to 2014 | N49: 2014 to 2015 | O49: 2015 to 2016 | P49: 2010 to 2016
A50: Lower Quartile | B50: =VLOOKUP($A$2,'Table 7'!$A$26:$L$44,3,FALSE) -> 525 | C50: =VLOOKUP($A$2,'Table 8'!$A$26:$L$44,3,FALSE) -> 545 | D50: =VLOOKUP($A$2,'Table 9'!$A$26:$L$44,3,FALSE) -> 545 | E50: =VLOOKUP($A$2,'Table 10'!$A$26:$L$44,3,FALSE) -> 550 | F50: =VLOOKUP($A$2,'Table 11'!$A$26:$L$44,3,FALSE) -> 525 | G50: =VLOOKUP($A$2,'Table 12'!$A$26:$L$44,3,FALSE) -> 525 | H50: =VLOOKUP($A$2,'Table 13'!$A$26:$L$44,3,FALSE) -> 545 | I50: Lower Quartile | J50: =C50/B50-1 -> 0.0380952381 | K50: 0 | L50: 0.009174311927 | M50: -0.04545454545 | N50: 0 | O50: =H50/G50-1 -> 0.0380952381 | P50: =H50/B50-1 -> 0.0380952381
A51: Median | B51: =VLOOKUP($A$2,'Table 7'!$A$26:$L$44,4,FALSE) -> 600 | C51: =VLOOKUP($A$2,'Table 8'!$A$26:$L$44,4,FALSE) -> 600 | D51: =VLOOKUP($A$2,'Table 9'!$A$26:$L$44,4,FALSE) -> 625 | E51: =VLOOKUP($A$2,'Table 10'!$A$26:$L$44,4,FALSE) -> 600 | F51: =VLOOKUP($A$2,'Table 11'!$A$26:$L$44,4,FALSE) -> 595 | G51: =VLOOKUP($A$2,'Table 12'!$A$26:$L$44,4,FALSE) -> 600 | H51: =VLOOKUP($A$2,'Table 13'!$A$26:$L$44,4,FALSE) -> 650 | I51: Median | J51: 0 | K51: 0.04166666667 | L51: -0.04 | M51: -0.008333333333 | N51: 0.008403361345 | O51: =H51/G51-1 -> 0.08333333333 | P51: =H51/B51-1 -> 0.08333333333
A52: Mean | B52: =VLOOKUP($A$2,'Table 7'!$A$26:$L$44,5,FALSE) -> 642.74 | C52: =VLOOKUP($A$2,'Table 8'!$A$26:$L$44,5,FALSE) -> 626.7 | D52: =VLOOKUP($A$2,'Table 9'!$A$26:$L$44,5,FALSE) -> 647.5 | E52: =VLOOKUP($A$2,'Table 10'!$A$26:$L$44,5,FALSE) -> 637.34 | F52: =VLOOKUP($A$2,'Table 11'!$A$26:$L$44,5,FALSE) -> 637.21 | G52: =VLOOKUP($A$2,'Table 12'!$A$26:$L$44,5,FALSE) -> 633.64 | H52: =VLOOKUP($A$2,'Table 13'!$A$26:$L$44,5,FALSE) -> 677.94 | I52: Mean | J52: -0.02495565859 | K52: 0.03318972395 | L52: -0.01569111969 | M52: -0.0002039727618 | N52: -0.00560254861 | O52: =H52/G52-1 -> 0.06991351556 | P52: 0.05476553505
A53: Upper Quartile | B53: =VLOOKUP($A$2,'Table 7'!$A$26:$L$44,6,FALSE) -> 700 | C53: =VLOOKUP($A$2,'Table 8'!$A$26:$L$44,6,FALSE) -> 695 | D53: =VLOOKUP($A$2,'Table 9'!$A$26:$L$44,6,FALSE) -> 725 | E53: =VLOOKUP($A$2,'Table 10'!$A$26:$L$44,6,FALSE) -> 695 | F53: =VLOOKUP($A$2,'Table 11'!$A$26:$L$44,6,FALSE) -> 750 | G53: =VLOOKUP($A$2,'Table 12'!$A$26:$L$44,6,FALSE) -> 695 | H53: =VLOOKUP($A$2,'Table 13'!$A$26:$L$44,6,FALSE) -> 750 | I53: Upper Quartile | J53: -0.007142857143 | K53: 0.04316546763 | L53: -0.04137931034 | M53: 0.07913669065 | N53: -0.07333333333 | O53: =H53/G53-1 -> 0.07913669065 | P53: 0.07142857143
A70: 4 Bedroom Properties: | I70: 4 Bedroom Properties - Annual changes and 6-yr cumulative change:
B71: 2010 | C71: 2011 | D71: 2012 | E71: 2013 | F71: 2014 | G71: 2015 | H71: 2016 | J71: 2010 to 2011 | K71: 2011 to 2012 | L71: 2012 to 2013 | M71: 2013 to 2014 | N71: 2014 to 2015 | O71: 2015 to 2016 | P71: 2010 to 2016
A72: Lower Quartile | B72: =VLOOKUP($A$2,'Table 7'!$A$26:$L$44,9,FALSE) -> 750 | C72: =VLOOKUP($A$2,'Table 8'!$A$26:$L$44,9,FALSE) -> 732.5 | D72: =VLOOKUP($A$2,'Table 9'!$A$26:$L$44,9,FALSE) -> 750 | E72: =VLOOKUP($A$2,'Table 10'!$A$26:$L$44,9,FALSE) -> 775 | F72: =VLOOKUP($A$2,'Table 11'!$A$26:$L$44,9,FALSE) -> 775 | G72: =VLOOKUP($A$2,'Table 12'!$A$26:$L$44,9,FALSE) -> 795 | H72: =VLOOKUP($A$2,'Table 13'!$A$26:$L$44,9,FALSE) -> 800 | I72: Lower Quartile | J72: =C72/B72-1 -> -0.02333333333 | K72: 0.02389078498 | L72: 0.03333333333 | M72: 0 | N72: 0.02580645161 | O72: =H72/G72-1 -> 0.006289308176 | P72: =H72/B72-1 -> 0.06666666667
A73: Median | B73: =VLOOKUP($A$2,'Table 7'!$A$26:$L$44,10,FALSE) -> 800 | C73: =VLOOKUP($A$2,'Table 8'!$A$26:$L$44,10,FALSE) -> 800 | D73: =VLOOKUP($A$2,'Table 9'!$A$26:$L$44,10,FALSE) -> 850 | E73: =VLOOKUP($A$2,'Table 10'!$A$26:$L$44,10,FALSE) -> 850 | F73: =VLOOKUP($A$2,'Table 11'!$A$26:$L$44,10,FALSE) -> 850 | G73: =VLOOKUP($A$2,'Table 12'!$A$26:$L$44,10,FALSE) -> 850 | H73: =VLOOKUP($A$2,'Table 13'!$A$26:$L$44,10,FALSE) -> 950 | I73: Median | J73: 0 | K73: 0.0625 | L73: 0 | M73: 0 | N73: 0 | O73: 0.1176470588 | P73: =H73/B73-1 -> 0.1875
A74: Mean | B74: =VLOOKUP($A$2,'Table 7'!$A$26:$L$44,11,FALSE) -> 857.08 | C74: =VLOOKUP($A$2,'Table 8'!$A$26:$L$44,11,FALSE) -> 858.02 | D74: =VLOOKUP($A$2,'Table 9'!$A$26:$L$44,11,FALSE) -> 883.77 | E74: =VLOOKUP($A$2,'Table 10'!$A$26:$L$44,11,FALSE) -> 891.69 | F74: =VLOOKUP($A$2,'Table 11'!$A$26:$L$44,11,FALSE) -> 878.77 | G74: =VLOOKUP($A$2,'Table 12'!$A$26:$L$44,11,FALSE) -> 905.72 | H74: =VLOOKUP($A$2,'Table 13'!$A$26:$L$44,11,FALSE) -> 1051.92 | I74: Mean | J74: 0.001096747095 | K74: 0.03001095546 | L74: 0.008961607658 | M74: -0.01448934047 | N74: 0.03066786531 | O74: 0.1614185399 | P74: 0.2273300042
A75: Upper Quartile | B75: =VLOOKUP($A$2,'Table 7'!$A$26:$L$44,12,FALSE) -> 900 | C75: =VLOOKUP($A$2,'Table 8'!$A$26:$L$44,12,FALSE) -> 900 | D75: =VLOOKUP($A$2,'Table 9'!$A$26:$L$44,12,FALSE) -> 950 | E75: =VLOOKUP($A$2,'Table 10'!$A$26:$L$44,12,FALSE) -> 975 | F75: =VLOOKUP($A$2,'Table 11'!$A$26:$L$44,12,FALSE) -> 900 | G75: =VLOOKUP($A$2,'Table 12'!$A$26:$L$44,12,FALSE) -> 1000 | H75: =VLOOKUP($A$2,'Table 13'!$A$26:$L$44,12,FALSE) -> 1200 | I75: Upper Quartile | J75: 0 | K75: 0.05555555556 | L75: 0.02631578947 | M75: -0.07692307692 | N75: 0.1111111111 | O75: 0.2 | P75: 0.3333333333
A92: 1 Bedroom Shared Properties: | I92: 1 Bedroom Shared Properties - Annual changes and 6-yr cumulative change:
B93: 2010 | C93: 2011 | D93: 2012 | E93: 2013 | F93: 2014 | G93: 2015 | H93: 2016 | J93: 2010 to 2011 | K93: 2011 to 2012 | L93: 2012 to 2013 | M93: 2013 to 2014 | N93: 2014 to 2015 | O93: 2015 to 2016 | P93: 2010 to 2016
A94: Lower Quartile | B94: =VLOOKUP($A$2,'Table 7'!$A$47:$F$65,3,FALSE) -> 255 | C94: =VLOOKUP($A$2,'Table 8'!$A$47:$F$65,3,FALSE) -> 250 | D94: =VLOOKUP($A$2,'Table 9'!$A$47:$F$65,3,FALSE) -> 250 | E94: =VLOOKUP($A$2,'Table 10'!$A$47:$F$65,3,FALSE) -> 260 | F94: =VLOOKUP($A$2,'Table 11'!$A$47:$F$65,3,FALSE) -> 270.17 | G94: =VLOOKUP($A$2,'Table 12'!$A$47:$F$65,3,FALSE) -> 272.62 | H94: =VLOOKUP($A$2,'Table 13'!$A$47:$F$65,3,FALSE) -> 294.35 | I94: Lower Quartile | J94: =C94/B94-1 -> -0.01960784314 | K94: 0 | L94: 0.04 | M94: 0.03911538462 | N94: 0.009068364363 | O94: =H94/G94-1 -> 0.07970801849 | P94: =H94/B94-1 -> 0.1543137255
A95: Median | B95: =VLOOKUP($A$2,'Table 7'!$A$47:$F$65,4,FALSE) -> 285 | C95: =VLOOKUP($A$2,'Table 8'!$A$47:$F$65,4,FALSE) -> 275 | D95: =VLOOKUP($A$2,'Table 9'!$A$47:$F$65,4,FALSE) -> 275 | E95: =VLOOKUP($A$2,'Table 10'!$A$47:$F$65,4,FALSE) -> 275 | F95: =VLOOKUP($A$2,'Table 11'!$A$47:$F$65,4,FALSE) -> 305 | G95: =VLOOKUP($A$2,'Table 12'!$A$47:$F$65,4,FALSE) -> 300 | H95: =VLOOKUP($A$2,'Table 13'!$A$47:$F$65,4,FALSE) -> 333 | I95: Median | J95: -0.0350877193 | K95: 0 | L95: 0 | M95: 0.1090909091 | N95: -0.01639344262 | O95: 0.11 | P95: =H95/B95-1 -> 0.1684210526
A96: Mean | B96: =VLOOKUP($A$2,'Table 7'!$A$47:$F$65,5,FALSE) -> 275.63 | C96: =VLOOKUP($A$2,'Table 8'!$A$47:$F$65,5,FALSE) -> 278.14 | D96: =VLOOKUP($A$2,'Table 9'!$A$47:$F$65,5,FALSE) -> 273.16 | E96: =VLOOKUP($A$2,'Table 10'!$A$47:$F$65,5,FALSE) -> 284.89 | F96: =VLOOKUP($A$2,'Table 11'!$A$47:$F$65,5,FALSE) -> 308.49 | G96: =VLOOKUP($A$2,'Table 12'!$A$47:$F$65,5,FALSE) -> 307.52 | H96: =VLOOKUP($A$2,'Table 13'!$A$47:$F$65,5,FALSE) -> 350.9 | I96: Mean | J96: 0.009106410768 | K96: -0.01790465233 | L96: 0.04294186557 | M96: 0.08283899049 | N96: -0.003144348277 | O96: 0.1410639958 | P96: 0.2730834815
A97: Upper Quartile | B97: =VLOOKUP($A$2,'Table 7'!$A$47:$F$65,6,FALSE) -> 300 | C97: =VLOOKUP($A$2,'Table 8'!$A$47:$F$65,6,FALSE) -> 297.5 | D97: =VLOOKUP($A$2,'Table 9'!$A$47:$F$65,6,FALSE) -> 300 | E97: =VLOOKUP($A$2,'Table 10'!$A$47:$F$65,6,FALSE) -> 315.47 | F97: =VLOOKUP($A$2,'Table 11'!$A$47:$F$65,6,FALSE) -> 354.17 | G97: =VLOOKUP($A$2,'Table 12'!$A$47:$F$65,6,FALSE) -> 350 | H97: =VLOOKUP($A$2,'Table 13'!$A$47:$F$65,6,FALSE) -> 375 | I97: Upper Quartile | J97: -0.008333333333 | K97: 0.008403361345 | L97: 0.05156666667 | M97: 0.1226741053 | N97: -0.01177400683 | O97: 0.07142857143 | P97: 0.25
A116: Mean Rents by Property Size: | I116: Median Rents by Property Size:
B117: 2010 | C117: 2011 | D117: 2012 | E117: 2013 | F117: 2014 | G117: 2015 | H117: 2016 | J117: 2010 | K117: 2011 | L117: 2012 | M117: 2013 | N117: 2014 | O117: 2015 | P117: 2016
A118: 1 Bedroom Shared | B118: =B96 -> 275.63 | C118: 278.14 | D118: 273.16 | E118: 284.89 | F118: 308.49 | G118: 307.52 | H118: 350.9 | I118: 1 Bedroom Shared | J118: =B95 -> 285 | K118: 275 | L118: 275 | M118: 275 | N118: 305 | O118: =G95 -> 300 | P118: =H95 -> 333
A119: 1 Bedroom | B119: =B8 -> 386.8 | C119: 384.61 | D119: 392.76 | E119: 388.84 | F119: 387.39 | G119: 396.32 | H119: 407.52 | I119: 1 Bedroom | J119: =B7 -> 375 | K119: 385 | L119: 395 | M119: 390 | N119: 392.5 | O119: =G7 -> 380 | P119: =H7 -> 395
A120: 2 Bedrooms | B120: =B30 -> 492.41 | C120: 506.53 | D120: 510.32 | E120: 505.6 | F120: 506.37 | G120: 508.44 | H120: 529.72 | I120: 2 Bedrooms | J120: =B29 -> 482.5 | K120: 495 | L120: 500 | M120: 495 | N120: 495 | O120: =G29 -> 495 | P120: =H29 -> 510
A121: 3 Bedrooms | B121: =B52 -> 642.74 | C121: 626.7 | D121: 647.5 | E121: 637.34 | F121: 637.21 | G121: 633.64 | H121: 677.94 | I121: 3 Bedrooms | J121: =B51 -> 600 | K121: 600 | L121: 625 | M121: 600 | N121: 595 | O121: =G51 -> 600 | P121: =H51 -> 650
A122: 4 Bedrooms | B122: =B74 -> 857.08 | C122: 858.02 | D122: 883.77 | E122: 891.69 | F122: 878.77 | G122: 905.72 | H122: 1051.92 | I122: 4 Bedrooms | J122: =B73 -> 800 | K122: 800 | L122: 850 | M122: 850 | N122: 850 | O122: =G73 -> 850 | P122: =H73 -> 950
A140: Sample Sizes: | I140: Sample Proportions:
B141: 2010 | C141: 2011 | D141: 2012 | E141: 2013 | F141: 2014 | G141: 2015 | H141: 2016 | J141: 2010 | K141: 2011 | L141: 2012 | M141: 2013 | N141: 2014 | O141: 2015 | P141: 2016
A142: 1 Bedroom | B142: =VLOOKUP($A$2,'Table 7'!$A$5:$L$23,2,FALSE) -> 260 | C142: =VLOOKUP($A$2,'Table 8'!$A$5:$L$23,2,FALSE) -> 208 | D142: =VLOOKUP($A$2,'Table 9'!$A$5:$L$23,2,FALSE) -> 217 | E142: =VLOOKUP($A$2,'Table 10'!$A$5:$L$23,2,FALSE) -> 219 | F142: =VLOOKUP($A$2,'Table 11'!$A$5:$L$23,2,FALSE) -> 218 | G142: =VLOOKUP($A$2,'Table 12'!$A$5:$L$23,2,FALSE) -> 300 | H142: =VLOOKUP($A$2,'Table 13'!$A$5:$L$23,2,FALSE) -> 350 | I142: 1 Bedroom | J142: =B142/SUM(B$142:B$146) -> 0.1873198847 | K142: =C142/SUM(C$142:C$146) -> 0.1697959184 | L142: 0.1849957374 | M142: 0.1894463668 | N142: 0.1955156951 | O142: =G142/SUM(G$142:G$146) -> 0.2009377093 | P142: 0.2258064516
A143: 2 Bedrooms | B143: =VLOOKUP($A$2,'Table 7'!$A$5:$L$23,8,FALSE) -> 660 | C143: =VLOOKUP($A$2,'Table 8'!$A$5:$L$23,8,FALSE) -> 576 | D143: =VLOOKUP($A$2,'Table 9'!$A$5:$L$23,8,FALSE) -> 581 | E143: =VLOOKUP($A$2,'Table 10'!$A$5:$L$23,8,FALSE) -> 582 | F143: =VLOOKUP($A$2,'Table 11'!$A$5:$L$23,8,FALSE) -> 540 | G143: =VLOOKUP($A$2,'Table 12'!$A$5:$L$23,8,FALSE) -> 739 | H143: =VLOOKUP($A$2,'Table 13'!$A$5:$L$23,8,FALSE) -> 709 | I143: 2 Bedrooms | J143: =B143/SUM(B$142:B$146) -> 0.4755043228 | K143: 0.4702040816 | L143: 0.4953111679 | M143: 0.5034602076 | N143: 0.4843049327 | O143: 0.4949765573 | P143: 0.4574193548
A144: 3 Bedrooms | B144: =VLOOKUP($A$2,'Table 7'!$A$26:$L$44,2,FALSE) -> 301 | C144: =VLOOKUP($A$2,'Table 8'!$A$26:$L$44,2,FALSE) -> 241 | D144: =VLOOKUP($A$2,'Table 9'!$A$26:$L$44,2,FALSE) -> 194 | E144: =VLOOKUP($A$2,'Table 10'!$A$26:$L$44,2,FALSE) -> 199 | F144: =VLOOKUP($A$2,'Table 11'!$A$26:$L$44,2,FALSE) -> 176 | G144: =VLOOKUP($A$2,'Table 12'!$A$26:$L$44,2,FALSE) -> 236 | H144: =VLOOKUP($A$2,'Table 13'!$A$26:$L$44,2,FALSE) -> 286 | I144: 3 Bedrooms | J144: =B144/SUM(B$142:B$146) -> 0.2168587896 | K144: 0.1967346939 | L144: 0.1653878943 | M144: 0.1721453287 | N144: 0.1578475336 | O144: 0.158070998 | P144: 0.184516129
A145: 4 Bedrooms | B145: =VLOOKUP($A$2,'Table 7'!$A$26:$L$44,8,FALSE) -> 130 | C145: =VLOOKUP($A$2,'Table 8'!$A$26:$L$44,8,FALSE) -> 144 | D145: =VLOOKUP($A$2,'Table 9'!$A$26:$L$44,8,FALSE) -> 114 | E145: =VLOOKUP($A$2,'Table 10'!$A$26:$L$44,8,FALSE) -> 71 | F145: =VLOOKUP($A$2,'Table 11'!$A$26:$L$44,8,FALSE) -> 73 | G145: =VLOOKUP($A$2,'Table 12'!$A$26:$L$44,8,FALSE) -> 83 | H145: =VLOOKUP($A$2,'Table 13'!$A$26:$L$44,8,FALSE) -> 100 | I145: 4 Bedrooms | J145: =B145/SUM(B$142:B$146) -> 0.09365994236 | K145: 0.1175510204 | L145: 0.09718670077 | M145: 0.06141868512 | N145: 0.06547085202 | O145: 0.05559276624 | P145: 0.06451612903
A146: 1 Bedroom Shared | B146: =VLOOKUP($A$2,'Table 7'!$A$47:$L$65,2,FALSE) -> 37 | C146: =VLOOKUP($A$2,'Table 8'!$A$47:$L$65,2,FALSE) -> 56 | D146: =VLOOKUP($A$2,'Table 9'!$A$47:$L$65,2,FALSE) -> 67 | E146: =VLOOKUP($A$2,'Table 10'!$A$47:$L$65,2,FALSE) -> 85 | F146: =VLOOKUP($A$2,'Table 11'!$A$47:$L$65,2,FALSE) -> 108 | G146: =VLOOKUP($A$2,'Table 12'!$A$47:$L$65,2,FALSE) -> 135 | H146: =VLOOKUP($A$2,'Table 13'!$A$47:$L$65,2,FALSE) -> 105 | I146: 1 Bedroom Shared | J146: =B146/SUM(B$142:B$146) -> 0.02665706052 | K146: 0.04571428571 | L146: 0.05711849957 | M146: 0.07352941176 | N146: 0.09686098655 | O146: 0.09042196919 | P146: 0.06774193548

Sheet BRMA Profile - Greater Glasgow (hidden)
A1: BRMA Rent Profile for:
A2: Greater Glasgow | I2: =ROUND(MIN(J6:P9,J28:P31,J50:P53,J72:P75,J94:P97)-0.01,2) -> -0.15 | J2: =ROUND(MAX(J6:P9,J28:P31,J50:P53,J72:P75,J94:P97)+0.01,2) -> 0.43
A4: 1 Bedroom Properties - Quartile Measures: | I4: 1 Bedroom Properties - Annual changes and 6-yr cumulative change:
B5: 2010 | C5: 2011 | D5: 2012 | E5: 2013 | F5: 2014 | G5: 2015 | H5: 2016 | J5: 2010 to 2011 | K5: 2011 to 2012 | L5: 2012 to 2013 | M5: 2013 to 2014 | N5: 2014 to 2015 | O5: 2015 to 2016 | P5: 2010 to 2016
A6: Lower Quartile | B6: =VLOOKUP($A$2,'Table 7'!$A$5:$L$23,3,FALSE) -> 380 | C6: =VLOOKUP($A$2,'Table 8'!$A$5:$L$23,3,FALSE) -> 395 | D6: =VLOOKUP($A$2,'Table 9'!$A$5:$L$23,3,FALSE) -> 375 | E6: =VLOOKUP($A$2,'Table 10'!$A$5:$L$23,3,FALSE) -> 395 | F6: =VLOOKUP($A$2,'Table 11'!$A$5:$L$23,3,FALSE) -> 395 | G6: =VLOOKUP($A$2,'Table 12'!$A$5:$L$23,3,FALSE) -> 420 | H6: =VLOOKUP($A$2,'Table 13'!$A$5:$L$23,3,FALSE) -> 425 | I6: Lower Quartile | J6: =C6/B6-1 -> 0.03947368421 | K6: -0.05063291139 | L6: 0.05333333333 | M6: 0 | N6: 0.06329113924 | O6: =H6/G6-1 -> 0.0119047619 | P6: =H6/B6-1 -> 0.1184210526
A7: Median | B7: =VLOOKUP($A$2,'Table 7'!$A$5:$L$23,4,FALSE) -> 425 | C7: =VLOOKUP($A$2,'Table 8'!$A$5:$L$23,4,FALSE) -> 450 | D7: =VLOOKUP($A$2,'Table 9'!$A$5:$L$23,4,FALSE) -> 430 | E7: =VLOOKUP($A$2,'Table 10'!$A$5:$L$23,4,FALSE) -> 450 | F7: =VLOOKUP($A$2,'Table 11'!$A$5:$L$23,4,FALSE) -> 450 | G7: =VLOOKUP($A$2,'Table 12'!$A$5:$L$23,4,FALSE) -> 480 | H7: =VLOOKUP($A$2,'Table 13'!$A$5:$L$23,4,FALSE) -> 495 | I7: Median | J7: 0.05882352941 | K7: -0.04444444444 | L7: 0.04651162791 | M7: 0 | N7: 0.06666666667 | O7: 0.03125 | P7: =H7/B7-1 -> 0.1647058824
A8: Mean | B8: =VLOOKUP($A$2,'Table 7'!$A$5:$L$23,5,FALSE) -> 437.14 | C8: =VLOOKUP($A$2,'Table 8'!$A$5:$L$23,5,FALSE) -> 451.11 | D8: =VLOOKUP($A$2,'Table 9'!$A$5:$L$23,5,FALSE) -> 444.05 | E8: =VLOOKUP($A$2,'Table 10'!$A$5:$L$23,5,FALSE) -> 455.78 | F8: =VLOOKUP($A$2,'Table 11'!$A$5:$L$23,5,FALSE) -> 476.49 | G8: =VLOOKUP($A$2,'Table 12'!$A$5:$L$23,5,FALSE) -> 501.23 | H8: =VLOOKUP($A$2,'Table 13'!$A$5:$L$23,5,FALSE) -> 520.03 | I8: Mean | J8: 0.03195772521 | K8: -0.01565028485 | L8: 0.02641594415 | M8: 0.04543858879 | N8: 0.05192134148 | O8: 0.03750773098 | P8: 0.1896188864
A9: Upper Quartile | B9: =VLOOKUP($A$2,'Table 7'!$A$5:$L$23,6,FALSE) -> 485 | C9: =VLOOKUP($A$2,'Table 8'!$A$5:$L$23,6,FALSE) -> 495 | D9: =VLOOKUP($A$2,'Table 9'!$A$5:$L$23,6,FALSE) -> 495 | E9: =VLOOKUP($A$2,'Table 10'!$A$5:$L$23,6,FALSE) -> 500 | F9: =VLOOKUP($A$2,'Table 11'!$A$5:$L$23,6,FALSE) -> 535 | G9: =VLOOKUP($A$2,'Table 12'!$A$5:$L$23,6,FALSE) -> 575 | H9: =VLOOKUP($A$2,'Table 13'!$A$5:$L$23,6,FALSE) -> 595 | I9: Upper Quartile | J9: 0.0206185567 | K9: 0 | L9: 0.0101010101 | M9: 0.07 | N9: 0.07476635514 | O9: 0.0347826087 | P9: 0.2268041237
A26: 2 Bedroom Properties: | I26: 2 Bedroom Properties - Annual changes and 6-yr cumulative change:
B27: 2010 | C27: 2011 | D27: 2012 | E27: 2013 | F27: 2014 | G27: 2015 | H27: 2016 | J27: 2010 to 2011 | K27: 2011 to 2012 | L27: 2012 to 2013 | M27: 2013 to 2014 | N27: 2014 to 2015 | O27: 2015 to 2016 | P27: 2010 to 2016
A28: Lower Quartile | B28: =VLOOKUP($A$2,'Table 7'!$A$5:$L$23,9,FALSE) -> 495 | C28: =VLOOKUP($A$2,'Table 8'!$A$5:$L$23,9,FALSE) -> 495 | D28: =VLOOKUP($A$2,'Table 9'!$A$5:$L$23,9,FALSE) -> 495 | E28: =VLOOKUP($A$2,'Table 10'!$A$5:$L$23,9,FALSE) -> 495 | F28: =VLOOKUP($A$2,'Table 11'!$A$5:$L$23,9,FALSE) -> 500 | G28: =VLOOKUP($A$2,'Table 12'!$A$5:$L$23,9,FALSE) -> 525 | H28: =VLOOKUP($A$2,'Table 13'!$A$5:$L$23,9,FALSE) -> 550 | I28: Lower Quartile | J28: =C28/B28-1 -> 0 | K28: 0 | L28: 0 | M28: 0.0101010101 | N28: 0.05 | O28: =H28/G28-1 -> 0.04761904762 | P28: =H28/B28-1 -> 0.1111111111
A29: Median | B29: =VLOOKUP($A$2,'Table 7'!$A$5:$L$23,10,FALSE) -> 550 | C29: =VLOOKUP($A$2,'Table 8'!$A$5:$L$23,10,FALSE) -> 550 | D29: =VLOOKUP($A$2,'Table 9'!$A$5:$L$23,10,FALSE) -> 550 | E29: =VLOOKUP($A$2,'Table 10'!$A$5:$L$23,10,FALSE) -> 550 | F29: =VLOOKUP($A$2,'Table 11'!$A$5:$L$23,10,FALSE) -> 575 | G29: =VLOOKUP($A$2,'Table 12'!$A$5:$L$23,10,FALSE) -> 625 | H29: =VLOOKUP($A$2,'Table 13'!$A$5:$L$23,10,FALSE) -> 650 | I29: Median | J29: 0 | K29: 0 | L29: 0 | M29: 0.04545454545 | N29: 0.08695652174 | O29: =H29/G29-1 -> 0.04 | P29: =H29/B29-1 -> 0.1818181818
A30: Mean | B30: =VLOOKUP($A$2,'Table 7'!$A$5:$L$23,11,FALSE) -> 563.64 | C30: =VLOOKUP($A$2,'Table 8'!$A$5:$L$23,11,FALSE) -> 588.05 | D30: =VLOOKUP($A$2,'Table 9'!$A$5:$L$23,11,FALSE) -> 572.74 | E30: =VLOOKUP($A$2,'Table 10'!$A$5:$L$23,11,FALSE) -> 593.71 | F30: =VLOOKUP($A$2,'Table 11'!$A$5:$L$23,11,FALSE) -> 626.38 | G30: =VLOOKUP($A$2,'Table 12'!$A$5:$L$23,11,FALSE) -> 667.74 | H30: =VLOOKUP($A$2,'Table 13'!$A$5:$L$23,11,FALSE) -> 695.92 | I30: Mean | J30: 0.04330778511 | K30: -0.02603520109 | L30: 0.03661347208 | M30: 0.05502686497 | N30: 0.06603020531 | O30: =H30/G30-1 -> 0.04220205469 | P30: 0.2346888085
A31: Upper Quartile | B31: =VLOOKUP($A$2,'Table 7'!$A$5:$L$23,12,FALSE) -> 600 | C31: =VLOOKUP($A$2,'Table 8'!$A$5:$L$23,12,FALSE) -> 650 | D31: =VLOOKUP($A$2,'Table 9'!$A$5:$L$23,12,FALSE) -> 625 | E31: =VLOOKUP($A$2,'Table 10'!$A$5:$L$23,12,FALSE) -> 650 | F31: =VLOOKUP($A$2,'Table 11'!$A$5:$L$23,12,FALSE) -> 695 | G31: =VLOOKUP($A$2,'Table 12'!$A$5:$L$23,12,FALSE) -> 750 | H31: =VLOOKUP($A$2,'Table 13'!$A$5:$L$23,12,FALSE) -> 795 | I31: Upper Quartile | J31: 0.08333333333 | K31: -0.03846153846 | L31: 0.04 | M31: 0.06923076923 | N31: 0.07913669065 | O31: =H31/G31-1 -> 0.06 | P31: 0.325
A48: 3 Bedroom Properties: | I48: 3 Bedroom Properties - Annual changes and 6-yr cumulative change:
B49: 2010 | C49: 2011 | D49: 2012 | E49: 2013 | F49: 2014 | G49: 2015 | H49: 2016 | J49: 2010 to 2011 | K49: 2011 to 2012 | L49: 2012 to 2013 | M49: 2013 to 2014 | N49: 2014 to 2015 | O49: 2015 to 2016 | P49: 2010 to 2016
A50: Lower Quartile | B50: =VLOOKUP($A$2,'Table 7'!$A$26:$L$44,3,FALSE) -> 575 | C50: =VLOOKUP($A$2,'Table 8'!$A$26:$L$44,3,FALSE) -> 575 | D50: =VLOOKUP($A$2,'Table 9'!$A$26:$L$44,3,FALSE) -> 575 | E50: =VLOOKUP($A$2,'Table 10'!$A$26:$L$44,3,FALSE) -> 575 | F50: =VLOOKUP($A$2,'Table 11'!$A$26:$L$44,3,FALSE) -> 567.5 | G50: =VLOOKUP($A$2,'Table 12'!$A$26:$L$44,3,FALSE) -> 595 | H50: =VLOOKUP($A$2,'Table 13'!$A$26:$L$44,3,FALSE) -> 600 | I50: Lower Quartile | J50: =C50/B50-1 -> 0 | K50: 0 | L50: 0 | M50: -0.01304347826 | N50: 0.04845814978 | O50: =H50/G50-1 -> 0.008403361345 | P50: =H50/B50-1 -> 0.04347826087
A51: Median | B51: =VLOOKUP($A$2,'Table 7'!$A$26:$L$44,4,FALSE) -> 695 | C51: =VLOOKUP($A$2,'Table 8'!$A$26:$L$44,4,FALSE) -> 695 | D51: =VLOOKUP($A$2,'Table 9'!$A$26:$L$44,4,FALSE) -> 695 | E51: =VLOOKUP($A$2,'Table 10'!$A$26:$L$44,4,FALSE) -> 675 | F51: =VLOOKUP($A$2,'Table 11'!$A$26:$L$44,4,FALSE) -> 695 | G51: =VLOOKUP($A$2,'Table 12'!$A$26:$L$44,4,FALSE) -> 750 | H51: =VLOOKUP($A$2,'Table 13'!$A$26:$L$44,4,FALSE) -> 800 | I51: Median | J51: 0 | K51: 0 | L51: -0.02877697842 | M51: 0.02962962963 | N51: 0.07913669065 | O51: =H51/G51-1 -> 0.06666666667 | P51: =H51/B51-1 -> 0.1510791367
A52: Mean | B52: =VLOOKUP($A$2,'Table 7'!$A$26:$L$44,5,FALSE) -> 728.19 | C52: =VLOOKUP($A$2,'Table 8'!$A$26:$L$44,5,FALSE) -> 753.27 | D52: =VLOOKUP($A$2,'Table 9'!$A$26:$L$44,5,FALSE) -> 734.1 | E52: =VLOOKUP($A$2,'Table 10'!$A$26:$L$44,5,FALSE) -> 753.15 | F52: =VLOOKUP($A$2,'Table 11'!$A$26:$L$44,5,FALSE) -> 795.62 | G52: =VLOOKUP($A$2,'Table 12'!$A$26:$L$44,5,FALSE) -> 833.69 | H52: =VLOOKUP($A$2,'Table 13'!$A$26:$L$44,5,FALSE) -> 915.07 | I52: Mean | J52: 0.03444156058 | K52: -0.02544904218 | L52: 0.02595014303 | M52: 0.05638982938 | N52: 0.04784947588 | O52: =H52/G52-1 -> 0.09761422111 | P52: 0.2566363174
A53: Upper Quartile | B53: =VLOOKUP($A$2,'Table 7'!$A$26:$L$44,6,FALSE) -> 825 | C53: =VLOOKUP($A$2,'Table 8'!$A$26:$L$44,6,FALSE) -> 862.5 | D53: =VLOOKUP($A$2,'Table 9'!$A$26:$L$44,6,FALSE) -> 800 | E53: =VLOOKUP($A$2,'Table 10'!$A$26:$L$44,6,FALSE) -> 850 | F53: =VLOOKUP($A$2,'Table 11'!$A$26:$L$44,6,FALSE) -> 900 | G53: =VLOOKUP($A$2,'Table 12'!$A$26:$L$44,6,FALSE) -> 975 | H53: =VLOOKUP($A$2,'Table 13'!$A$26:$L$44,6,FALSE) -> 1170 | I53: Upper Quartile | J53: 0.04545454545 | K53: -0.07246376812 | L53: 0.0625 | M53: 0.05882352941 | N53: 0.08333333333 | O53: =H53/G53-1 -> 0.2 | P53: 0.4181818182
A70: 4 Bedroom Properties: | I70: 4 Bedroom Properties - Annual changes and 6-yr cumulative change:
B71: 2010 | C71: 2011 | D71: 2012 | E71: 2013 | F71: 2014 | G71: 2015 | H71: 2016 | J71: 2010 to 2011 | K71: 2011 to 2012 | L71: 2012 to 2013 | M71: 2013 to 2014 | N71: 2014 to 2015 | O71: 2015 to 2016 | P71: 2010 to 2016
A72: Lower Quartile | B72: =VLOOKUP($A$2,'Table 7'!$A$26:$L$44,9,FALSE) -> 845 | C72: =VLOOKUP($A$2,'Table 8'!$A$26:$L$44,9,FALSE) -> 875 | D72: =VLOOKUP($A$2,'Table 9'!$A$26:$L$44,9,FALSE) -> 800 | E72: =VLOOKUP($A$2,'Table 10'!$A$26:$L$44,9,FALSE) -> 895 | F72: =VLOOKUP($A$2,'Table 11'!$A$26:$L$44,9,FALSE) -> 895 | G72: =VLOOKUP($A$2,'Table 12'!$A$26:$L$44,9,FALSE) -> 850 | H72: =VLOOKUP($A$2,'Table 13'!$A$26:$L$44,9,FALSE) -> 925 | I72: Lower Quartile | J72: =C72/B72-1 -> 0.03550295858 | K72: -0.08571428571 | L72: 0.11875 | M72: 0 | N72: -0.05027932961 | O72: =H72/G72-1 -> 0.08823529412 | P72: =H72/B72-1 -> 0.09467455621
A73: Median | B73: =VLOOKUP($A$2,'Table 7'!$A$26:$L$44,10,FALSE) -> 1000 | C73: =VLOOKUP($A$2,'Table 8'!$A$26:$L$44,10,FALSE) -> 1100 | D73: =VLOOKUP($A$2,'Table 9'!$A$26:$L$44,10,FALSE) -> 950 | E73: =VLOOKUP($A$2,'Table 10'!$A$26:$L$44,10,FALSE) -> 1000 | F73: =VLOOKUP($A$2,'Table 11'!$A$26:$L$44,10,FALSE) -> 1200 | G73: =VLOOKUP($A$2,'Table 12'!$A$26:$L$44,10,FALSE) -> 1100 | H73: =VLOOKUP($A$2,'Table 13'!$A$26:$L$44,10,FALSE) -> 1250 | I73: Median | J73: 0.1 | K73: -0.1363636364 | L73: 0.05263157895 | M73: 0.2 | N73: -0.08333333333 | O73: 0.1363636364 | P73: =H73/B73-1 -> 0.25
A74: Mean | B74: =VLOOKUP($A$2,'Table 7'!$A$26:$L$44,11,FALSE) -> 1067.19 | C74: =VLOOKUP($A$2,'Table 8'!$A$26:$L$44,11,FALSE) -> 1169.83 | D74: =VLOOKUP($A$2,'Table 9'!$A$26:$L$44,11,FALSE) -> 1048.83 | E74: =VLOOKUP($A$2,'Table 10'!$A$26:$L$44,11,FALSE) -> 1189.78 | F74: =VLOOKUP($A$2,'Table 11'!$A$26:$L$44,11,FALSE) -> 1211.12 | G74: =VLOOKUP($A$2,'Table 12'!$A$26:$L$44,11,FALSE) -> 1189.33 | H74: =VLOOKUP($A$2,'Table 13'!$A$26:$L$44,11,FALSE) -> 1299.47 | I74: Mean | J74: 0.09617781276 | K74: -0.1034338323 | L74: 0.1343878417 | M74: 0.01793608902 | N74: -0.01799161107 | O74: 0.09260676179 | P74: 0.2176557127
A75: Upper Quartile | B75: =VLOOKUP($A$2,'Table 7'!$A$26:$L$44,12,FALSE) -> 1250 | C75: =VLOOKUP($A$2,'Table 8'!$A$26:$L$44,12,FALSE) -> 1300 | D75: =VLOOKUP($A$2,'Table 9'!$A$26:$L$44,12,FALSE) -> 1250 | E75: =VLOOKUP($A$2,'Table 10'!$A$26:$L$44,12,FALSE) -> 1400 | F75: =VLOOKUP($A$2,'Table 11'!$A$26:$L$44,12,FALSE) -> 1500 | G75: =VLOOKUP($A$2,'Table 12'!$A$26:$L$44,12,FALSE) -> 1500 | H75: =VLOOKUP($A$2,'Table 13'!$A$26:$L$44,12,FALSE) -> 1600 | I75: Upper Quartile | J75: 0.04 | K75: -0.03846153846 | L75: 0.12 | M75: 0.07142857143 | N75: 0 | O75: 0.06666666667 | P75: 0.28
A92: 1 Bedroom Shared Properties: | I92: 1 Bedroom Shared Properties - Annual changes and 6-yr cumulative change:
B93: 2010 | C93: 2011 | D93: 2012 | E93: 2013 | F93: 2014 | G93: 2015 | H93: 2016 | J93: 2010 to 2011 | K93: 2011 to 2012 | L93: 2012 to 2013 | M93: 2013 to 2014 | N93: 2014 to 2015 | O93: 2015 to 2016 | P93: 2010 to 2016
A94: Lower Quartile | B94: =VLOOKUP($A$2,'Table 7'!$A$47:$F$65,3,FALSE) -> 284 | C94: =VLOOKUP($A$2,'Table 8'!$A$47:$F$65,3,FALSE) -> 270 | D94: =VLOOKUP($A$2,'Table 9'!$A$47:$F$65,3,FALSE) -> 275 | E94: =VLOOKUP($A$2,'Table 10'!$A$47:$F$65,3,FALSE) -> 290 | F94: =VLOOKUP($A$2,'Table 11'!$A$47:$F$65,3,FALSE) -> 293.33 | G94: =VLOOKUP($A$2,'Table 12'!$A$47:$F$65,3,FALSE) -> 285 | H94: =VLOOKUP($A$2,'Table 13'!$A$47:$F$65,3,FALSE) -> 308 | I94: Lower Quartile | J94: =C94/B94-1 -> -0.04929577465 | K94: 0.01851851852 | L94: 0.05454545455 | M94: 0.01148275862 | N94: -0.02839804998 | O94: =H94/G94-1 -> 0.08070175439 | P94: =H94/B94-1 -> 0.08450704225
A95: Median | B95: =VLOOKUP($A$2,'Table 7'!$A$47:$F$65,4,FALSE) -> 300 | C95: =VLOOKUP($A$2,'Table 8'!$A$47:$F$65,4,FALSE) -> 300 | D95: =VLOOKUP($A$2,'Table 9'!$A$47:$F$65,4,FALSE) -> 302.5 | E95: =VLOOKUP($A$2,'Table 10'!$A$47:$F$65,4,FALSE) -> 320 | F95: =VLOOKUP($A$2,'Table 11'!$A$47:$F$65,4,FALSE) -> 325 | G95: =VLOOKUP($A$2,'Table 12'!$A$47:$F$65,4,FALSE) -> 335 | H95: =VLOOKUP($A$2,'Table 13'!$A$47:$F$65,4,FALSE) -> 350 | I95: Median | J95: 0 | K95: 0.008333333333 | L95: 0.05785123967 | M95: 0.015625 | N95: 0.03076923077 | O95: 0.0447761194 | P95: =H95/B95-1 -> 0.1666666667
A96: Mean | B96: =VLOOKUP($A$2,'Table 7'!$A$47:$F$65,5,FALSE) -> 313.1 | C96: =VLOOKUP($A$2,'Table 8'!$A$47:$F$65,5,FALSE) -> 295.46 | D96: =VLOOKUP($A$2,'Table 9'!$A$47:$F$65,5,FALSE) -> 312.28 | E96: =VLOOKUP($A$2,'Table 10'!$A$47:$F$65,5,FALSE) -> 323.09 | F96: =VLOOKUP($A$2,'Table 11'!$A$47:$F$65,5,FALSE) -> 346.23 | G96: =VLOOKUP($A$2,'Table 12'!$A$47:$F$65,5,FALSE) -> 352.87 | H96: =VLOOKUP($A$2,'Table 13'!$A$47:$F$65,5,FALSE) -> 372.15 | I96: Mean | J96: -0.05633982753 | K96: 0.05692817979 | L96: 0.03461636992 | M96: 0.07162091058 | N96: 0.01917800306 | O96: 0.05463768527 | P96: 0.188597892
A97: Upper Quartile | B97: =VLOOKUP($A$2,'Table 7'!$A$47:$F$65,6,FALSE) -> 345 | C97: =VLOOKUP($A$2,'Table 8'!$A$47:$F$65,6,FALSE) -> 325 | D97: =VLOOKUP($A$2,'Table 9'!$A$47:$F$65,6,FALSE) -> 350 | E97: =VLOOKUP($A$2,'Table 10'!$A$47:$F$65,6,FALSE) -> 350 | F97: =VLOOKUP($A$2,'Table 11'!$A$47:$F$65,6,FALSE) -> 400 | G97: =VLOOKUP($A$2,'Table 12'!$A$47:$F$65,6,FALSE) -> 400 | H97: =VLOOKUP($A$2,'Table 13'!$A$47:$F$65,6,FALSE) -> 425 | I97: Upper Quartile | J97: -0.05797101449 | K97: 0.07692307692 | L97: 0 | M97: 0.1428571429 | N97: 0 | O97: 0.0625 | P97: 0.231884058
A116: Mean Rents by Property Size: | I116: Median Rents by Property Size:
B117: 2010 | C117: 2011 | D117: 2012 | E117: 2013 | F117: 2014 | G117: 2015 | H117: 2016 | J117: 2010 | K117: 2011 | L117: 2012 | M117: 2013 | N117: 2014 | O117: 2015 | P117: 2016
A118: 1 Bedroom Shared | B118: =B96 -> 313.1 | C118: 295.46 | D118: 312.28 | E118: 323.09 | F118: 346.23 | G118: 352.87 | H118: 372.15 | I118: 1 Bedroom Shared | J118: =B95 -> 300 | K118: 300 | L118: 302.5 | M118: 320 | N118: 325 | O118: =G95 -> 335 | P118: =H95 -> 350
A119: 1 Bedroom | B119: =B8 -> 437.14 | C119: 451.11 | D119: 444.05 | E119: 455.78 | F119: 476.49 | G119: 501.23 | H119: 520.03 | I119: 1 Bedroom | J119: =B7 -> 425 | K119: 450 | L119: 430 | M119: 450 | N119: 450 | O119: =G7 -> 480 | P119: =H7 -> 495
A120: 2 Bedrooms | B120: =B30 -> 563.64 | C120: 588.05 | D120: 572.74 | E120: 593.71 | F120: 626.38 | G120: 667.74 | H120: 695.92 | I120: 2 Bedrooms | J120: =B29 -> 550 | K120: 550 | L120: 550 | M120: 550 | N120: 575 | O120: =G29 -> 625 | P120: =H29 -> 650
A121: 3 Bedrooms | B121: =B52 -> 728.19 | C121: 753.27 | D121: 734.1 | E121: 753.15 | F121: 795.62 | G121: 833.69 | H121: 915.07 | I121: 3 Bedrooms | J121: =B51 -> 695 | K121: 695 | L121: 695 | M121: 675 | N121: 695 | O121: =G51 -> 750 | P121: =H51 -> 800
A122: 4 Bedrooms | B122: =B74 -> 1067.19 | C122: 1169.83 | D122: 1048.83 | E122: 1189.78 | F122: 1211.12 | G122: 1189.33 | H122: 1299.47 | I122: 4 Bedrooms | J122: =B73 -> 1000 | K122: 1100 | L122: 950 | M122: 1000 | N122: 1200 | O122: =G73 -> 1100 | P122: =H73 -> 1250
A140: Sample Sizes: | I140: Sample Proportions:
B141: 2010 | C141: 2011 | D141: 2012 | E141: 2013 | F141: 2014 | G141: 2015 | H141: 2016 | J141: 2010 | K141: 2011 | L141: 2012 | M141: 2013 | N141: 2014 | O141: 2015 | P141: 2016
A142: 1 Bedroom | B142: =VLOOKUP($A$2,'Table 7'!$A$5:$L$23,2,FALSE) -> 868 | C142: =VLOOKUP($A$2,'Table 8'!$A$5:$L$23,2,FALSE) -> 747 | D142: =VLOOKUP($A$2,'Table 9'!$A$5:$L$23,2,FALSE) -> 998 | E142: =VLOOKUP($A$2,'Table 10'!$A$5:$L$23,2,FALSE) -> 945 | F142: =VLOOKUP($A$2,'Table 11'!$A$5:$L$23,2,FALSE) -> 1116 | G142: =VLOOKUP($A$2,'Table 12'!$A$5:$L$23,2,FALSE) -> 1097 | H142: =VLOOKUP($A$2,'Table 13'!$A$5:$L$23,2,FALSE) -> 1289 | I142: 1 Bedroom | J142: =B142/SUM(B$142:B$146) -> 0.2681495212 | K142: =C142/SUM(C$142:C$146) -> 0.2385057471 | L142: 0.2741005218 | M142: 0.2633779264 | N142: 0.2882975975 | O142: =G142/SUM(G$142:G$146) -> 0.2827319588 | P142: 0.2952359139
A143: 2 Bedrooms | B143: =VLOOKUP($A$2,'Table 7'!$A$5:$L$23,8,FALSE) -> 1486 | C143: =VLOOKUP($A$2,'Table 8'!$A$5:$L$23,8,FALSE) -> 1374 | D143: =VLOOKUP($A$2,'Table 9'!$A$5:$L$23,8,FALSE) -> 1570 | E143: =VLOOKUP($A$2,'Table 10'!$A$5:$L$23,8,FALSE) -> 1623 | F143: =VLOOKUP($A$2,'Table 11'!$A$5:$L$23,8,FALSE) -> 1840 | G143: =VLOOKUP($A$2,'Table 12'!$A$5:$L$23,8,FALSE) -> 1856 | H143: =VLOOKUP($A$2,'Table 13'!$A$5:$L$23,8,FALSE) -> 2199 | I143: 2 Bedrooms | J143: =B143/SUM(B$142:B$146) -> 0.4590670374 | K143: 0.438697318 | L143: 0.4312002197 | M143: 0.4523411371 | N143: 0.4753293723 | O143: 0.4783505155 | P143: 0.5036646816
A144: 3 Bedrooms | B144: =VLOOKUP($A$2,'Table 7'!$A$26:$L$44,2,FALSE) -> 474 | C144: =VLOOKUP($A$2,'Table 8'!$A$26:$L$44,2,FALSE) -> 476 | D144: =VLOOKUP($A$2,'Table 9'!$A$26:$L$44,2,FALSE) -> 474 | E144: =VLOOKUP($A$2,'Table 10'!$A$26:$L$44,2,FALSE) -> 503 | F144: =VLOOKUP($A$2,'Table 11'!$A$26:$L$44,2,FALSE) -> 512 | G144: =VLOOKUP($A$2,'Table 12'!$A$26:$L$44,2,FALSE) -> 545 | H144: =VLOOKUP($A$2,'Table 13'!$A$26:$L$44,2,FALSE) -> 566 | I144: 3 Bedrooms | J144: =B144/SUM(B$142:B$146) -> 0.1464318814 | K144: 0.1519795658 | L144: 0.1301840154 | M144: 0.1401895206 | N144: 0.1322655645 | O144: 0.1404639175 | P144: 0.1296381127
A145: 4 Bedrooms | B145: =VLOOKUP($A$2,'Table 7'!$A$26:$L$44,8,FALSE) -> 219 | C145: =VLOOKUP($A$2,'Table 8'!$A$26:$L$44,8,FALSE) -> 233 | D145: =VLOOKUP($A$2,'Table 9'!$A$26:$L$44,8,FALSE) -> 227 | E145: =VLOOKUP($A$2,'Table 10'!$A$26:$L$44,8,FALSE) -> 138 | F145: =VLOOKUP($A$2,'Table 11'!$A$26:$L$44,8,FALSE) -> 130 | G145: =VLOOKUP($A$2,'Table 12'!$A$26:$L$44,8,FALSE) -> 127 | H145: =VLOOKUP($A$2,'Table 13'!$A$26:$L$44,8,FALSE) -> 123 | I145: 4 Bedrooms | J145: =B145/SUM(B$142:B$146) -> 0.06765523633 | K145: 0.07439335888 | L145: 0.06234550948 | M145: 0.03846153846 | N145: 0.03358305347 | O145: 0.03273195876 | P145: 0.02817224004
A146: 1 Bedroom Shared | B146: =VLOOKUP($A$2,'Table 7'!$A$47:$L$65,2,FALSE) -> 190 | C146: =VLOOKUP($A$2,'Table 8'!$A$47:$L$65,2,FALSE) -> 302 | D146: =VLOOKUP($A$2,'Table 9'!$A$47:$L$65,2,FALSE) -> 372 | E146: =VLOOKUP($A$2,'Table 10'!$A$47:$L$65,2,FALSE) -> 379 | F146: =VLOOKUP($A$2,'Table 11'!$A$47:$L$65,2,FALSE) -> 273 | G146: =VLOOKUP($A$2,'Table 12'!$A$47:$L$65,2,FALSE) -> 255 | H146: =VLOOKUP($A$2,'Table 13'!$A$47:$L$65,2,FALSE) -> 189 | I146: 1 Bedroom Shared | J146: =B146/SUM(B$142:B$146) -> 0.05869632376 | K146: 0.09642401022 | L146: 0.1021697336 | M146: 0.1056298774 | N146: 0.0705244123 | O146: 0.06572164948 | P146: 0.04328905176

Sheet BRMA Profile - Highlands and Is (hidden)
A1: BRMA Rent Profile for:
A2: Highland and Islands | I2: =ROUND(MIN(J6:P9,J28:P31,J50:P53,J72:P75,J94:P97)-0.01,2) -> -0.09 | J2: =ROUND(MAX(J6:P9,J28:P31,J50:P53,J72:P75,J94:P97)+0.01,2) -> 0.19
A4: 1 Bedroom Properties - Quartile Measures: | I4: 1 Bedroom Properties - Annual changes and 6-yr cumulative change:
B5: 2010 | C5: 2011 | D5: 2012 | E5: 2013 | F5: 2014 | G5: 2015 | H5: 2016 | J5: 2010 to 2011 | K5: 2011 to 2012 | L5: 2012 to 2013 | M5: 2013 to 2014 | N5: 2014 to 2015 | O5: 2015 to 2016 | P5: 2010 to 2016
A6: Lower Quartile | B6: =VLOOKUP($A$2,'Table 7'!$A$5:$L$23,3,FALSE) -> 375 | C6: =VLOOKUP($A$2,'Table 8'!$A$5:$L$23,3,FALSE) -> 375 | D6: =VLOOKUP($A$2,'Table 9'!$A$5:$L$23,3,FALSE) -> 375 | E6: =VLOOKUP($A$2,'Table 10'!$A$5:$L$23,3,FALSE) -> 395 | F6: =VLOOKUP($A$2,'Table 11'!$A$5:$L$23,3,FALSE) -> 400 | G6: =VLOOKUP($A$2,'Table 12'!$A$5:$L$23,3,FALSE) -> 400 | H6: =VLOOKUP($A$2,'Table 13'!$A$5:$L$23,3,FALSE) -> 400 | I6: Lower Quartile | J6: =C6/B6-1 -> 0 | K6: 0 | L6: 0.05333333333 | M6: 0.01265822785 | N6: 0 | O6: =H6/G6-1 -> 0 | P6: =H6/B6-1 -> 0.06666666667
A7: Median | B7: =VLOOKUP($A$2,'Table 7'!$A$5:$L$23,4,FALSE) -> 420 | C7: =VLOOKUP($A$2,'Table 8'!$A$5:$L$23,4,FALSE) -> 420 | D7: =VLOOKUP($A$2,'Table 9'!$A$5:$L$23,4,FALSE) -> 425 | E7: =VLOOKUP($A$2,'Table 10'!$A$5:$L$23,4,FALSE) -> 430 | F7: =VLOOKUP($A$2,'Table 11'!$A$5:$L$23,4,FALSE) -> 445 | G7: =VLOOKUP($A$2,'Table 12'!$A$5:$L$23,4,FALSE) -> 450 | H7: =VLOOKUP($A$2,'Table 13'!$A$5:$L$23,4,FALSE) -> 470 | I7: Median | J7: 0 | K7: 0.0119047619 | L7: 0.01176470588 | M7: 0.03488372093 | N7: 0.01123595506 | O7: 0.04444444444 | P7: =H7/B7-1 -> 0.119047619
A8: Mean | B8: =VLOOKUP($A$2,'Table 7'!$A$5:$L$23,5,FALSE) -> 415.01 | C8: =VLOOKUP($A$2,'Table 8'!$A$5:$L$23,5,FALSE) -> 419.9 | D8: =VLOOKUP($A$2,'Table 9'!$A$5:$L$23,5,FALSE) -> 424.36 | E8: =VLOOKUP($A$2,'Table 10'!$A$5:$L$23,5,FALSE) -> 430.75 | F8: =VLOOKUP($A$2,'Table 11'!$A$5:$L$23,5,FALSE) -> 439.51 | G8: =VLOOKUP($A$2,'Table 12'!$A$5:$L$23,5,FALSE) -> 449.77 | H8: =VLOOKUP($A$2,'Table 13'!$A$5:$L$23,5,FALSE) -> 460.5 | I8: Mean | J8: 0.01178284861 | K8: 0.01062157657 | L8: 0.01505796965 | M8: 0.02033662217 | N8: 0.02334417874 | O8: 0.02385663784 | P8: 0.1096118166
A9: Upper Quartile | B9: =VLOOKUP($A$2,'Table 7'!$A$5:$L$23,6,FALSE) -> 450 | C9: =VLOOKUP($A$2,'Table 8'!$A$5:$L$23,6,FALSE) -> 450 | D9: =VLOOKUP($A$2,'Table 9'!$A$5:$L$23,6,FALSE) -> 450 | E9: =VLOOKUP($A$2,'Table 10'!$A$5:$L$23,6,FALSE) -> 475 | F9: =VLOOKUP($A$2,'Table 11'!$A$5:$L$23,6,FALSE) -> 475 | G9: =VLOOKUP($A$2,'Table 12'!$A$5:$L$23,6,FALSE) -> 495 | H9: =VLOOKUP($A$2,'Table 13'!$A$5:$L$23,6,FALSE) -> 500 | I9: Upper Quartile | J9: 0 | K9: 0 | L9: 0.05555555556 | M9: 0 | N9: 0.04210526316 | O9: 0.0101010101 | P9: 0.1111111111
A26: 2 Bedroom Properties: | I26: 2 Bedroom Properties - Annual changes and 6-yr cumulative change:
B27: 2010 | C27: 2011 | D27: 2012 | E27: 2013 | F27: 2014 | G27: 2015 | H27: 2016 | J27: 2010 to 2011 | K27: 2011 to 2012 | L27: 2012 to 2013 | M27: 2013 to 2014 | N27: 2014 to 2015 | O27: 2015 to 2016 | P27: 2010 to 2016
A28: Lower Quartile | B28: =VLOOKUP($A$2,'Table 7'!$A$5:$L$23,9,FALSE) -> 450 | C28: =VLOOKUP($A$2,'Table 8'!$A$5:$L$23,9,FALSE) -> 460 | D28: =VLOOKUP($A$2,'Table 9'!$A$5:$L$23,9,FALSE) -> 450 | E28: =VLOOKUP($A$2,'Table 10'!$A$5:$L$23,9,FALSE) -> 475 | F28: =VLOOKUP($A$2,'Table 11'!$A$5:$L$23,9,FALSE) -> 475 | G28: =VLOOKUP($A$2,'Table 12'!$A$5:$L$23,9,FALSE) -> 495 | H28: =VLOOKUP($A$2,'Table 13'!$A$5:$L$23,9,FALSE) -> 500 | I28: Lower Quartile | J28: =C28/B28-1 -> 0.02222222222 | K28: -0.02173913043 | L28: 0.05555555556 | M28: 0 | N28: 0.04210526316 | O28: =H28/G28-1 -> 0.0101010101 | P28: =H28/B28-1 -> 0.1111111111
A29: Median | B29: =VLOOKUP($A$2,'Table 7'!$A$5:$L$23,10,FALSE) -> 500 | C29: =VLOOKUP($A$2,'Table 8'!$A$5:$L$23,10,FALSE) -> 500 | D29: =VLOOKUP($A$2,'Table 9'!$A$5:$L$23,10,FALSE) -> 500 | E29: =VLOOKUP($A$2,'Table 10'!$A$5:$L$23,10,FALSE) -> 525 | F29: =VLOOKUP($A$2,'Table 11'!$A$5:$L$23,10,FALSE) -> 525 | G29: =VLOOKUP($A$2,'Table 12'!$A$5:$L$23,10,FALSE) -> 550 | H29: =VLOOKUP($A$2,'Table 13'!$A$5:$L$23,10,FALSE) -> 550 | I29: Median | J29: 0 | K29: 0 | L29: 0.05 | M29: 0 | N29: 0.04761904762 | O29: =H29/G29-1 -> 0 | P29: =H29/B29-1 -> 0.1
A30: Mean | B30: =VLOOKUP($A$2,'Table 7'!$A$5:$L$23,11,FALSE) -> 503.41 | C30: =VLOOKUP($A$2,'Table 8'!$A$5:$L$23,11,FALSE) -> 513.76 | D30: =VLOOKUP($A$2,'Table 9'!$A$5:$L$23,11,FALSE) -> 516.38 | E30: =VLOOKUP($A$2,'Table 10'!$A$5:$L$23,11,FALSE) -> 527.24 | F30: =VLOOKUP($A$2,'Table 11'!$A$5:$L$23,11,FALSE) -> 532.32 | G30: =VLOOKUP($A$2,'Table 12'!$A$5:$L$23,11,FALSE) -> 544.55 | H30: =VLOOKUP($A$2,'Table 13'!$A$5:$L$23,11,FALSE) -> 560.95 | I30: Mean | J30: 0.02055978228 | K30: 0.005099657428 | L30: 0.02103102366 | M30: 0.009635080798 | N30: 0.02297490231 | O30: =H30/G30-1 -> 0.03011661004 | P30: 0.1143004708
A31: Upper Quartile | B31: =VLOOKUP($A$2,'Table 7'!$A$5:$L$23,12,FALSE) -> 550 | C31: =VLOOKUP($A$2,'Table 8'!$A$5:$L$23,12,FALSE) -> 550 | D31: =VLOOKUP($A$2,'Table 9'!$A$5:$L$23,12,FALSE) -> 550 | E31: =VLOOKUP($A$2,'Table 10'!$A$5:$L$23,12,FALSE) -> 575 | F31: =VLOOKUP($A$2,'Table 11'!$A$5:$L$23,12,FALSE) -> 580 | G31: =VLOOKUP($A$2,'Table 12'!$A$5:$L$23,12,FALSE) -> 600 | H31: =VLOOKUP($A$2,'Table 13'!$A$5:$L$23,12,FALSE) -> 625 | I31: Upper Quartile | J31: 0 | K31: 0 | L31: 0.04545454545 | M31: 0.008695652174 | N31: 0.03448275862 | O31: =H31/G31-1 -> 0.04166666667 | P31: 0.1363636364
A48: 3 Bedroom Properties: | I48: 3 Bedroom Properties - Annual changes and 6-yr cumulative change:
B49: 2010 | C49: 2011 | D49: 2012 | E49: 2013 | F49: 2014 | G49: 2015 | H49: 2016 | J49: 2010 to 2011 | K49: 2011 to 2012 | L49: 2012 to 2013 | M49: 2013 to 2014 | N49: 2014 to 2015 | O49: 2015 to 2016 | P49: 2010 to 2016
A50: Lower Quartile | B50: =VLOOKUP($A$2,'Table 7'!$A$26:$L$44,3,FALSE) -> 525 | C50: =VLOOKUP($A$2,'Table 8'!$A$26:$L$44,3,FALSE) -> 550 | D50: =VLOOKUP($A$2,'Table 9'!$A$26:$L$44,3,FALSE) -> 550 | E50: =VLOOKUP($A$2,'Table 10'!$A$26:$L$44,3,FALSE) -> 550 | F50: =VLOOKUP($A$2,'Table 11'!$A$26:$L$44,3,FALSE) -> 550 | G50: =VLOOKUP($A$2,'Table 12'!$A$26:$L$44,3,FALSE) -> 550 | H50: =VLOOKUP($A$2,'Table 13'!$A$26:$L$44,3,FALSE) -> 575 | I50: Lower Quartile | J50: =C50/B50-1 -> 0.04761904762 | K50: 0 | L50: 0 | M50: 0 | N50: 0 | O50: =H50/G50-1 -> 0.04545454545 | P50: =H50/B50-1 -> 0.09523809524
A51: Median | B51: =VLOOKUP($A$2,'Table 7'!$A$26:$L$44,4,FALSE) -> 600 | C51: =VLOOKUP($A$2,'Table 8'!$A$26:$L$44,4,FALSE) -> 625 | D51: =VLOOKUP($A$2,'Table 9'!$A$26:$L$44,4,FALSE) -> 620 | E51: =VLOOKUP($A$2,'Table 10'!$A$26:$L$44,4,FALSE) -> 600 | F51: =VLOOKUP($A$2,'Table 11'!$A$26:$L$44,4,FALSE) -> 600 | G51: =VLOOKUP($A$2,'Table 12'!$A$26:$L$44,4,FALSE) -> 650 | H51: =VLOOKUP($A$2,'Table 13'!$A$26:$L$44,4,FALSE) -> 650 | I51: Median | J51: 0.04166666667 | K51: -0.008 | L51: -0.03225806452 | M51: 0 | N51: 0.08333333333 | O51: =H51/G51-1 -> 0 | P51: =H51/B51-1 -> 0.08333333333
A52: Mean | B52: =VLOOKUP($A$2,'Table 7'!$A$26:$L$44,5,FALSE) -> 594.77 | C52: =VLOOKUP($A$2,'Table 8'!$A$26:$L$44,5,FALSE) -> 619.54 | D52: =VLOOKUP($A$2,'Table 9'!$A$26:$L$44,5,FALSE) -> 623.1 | E52: =VLOOKUP($A$2,'Table 10'!$A$26:$L$44,5,FALSE) -> 620.37 | F52: =VLOOKUP($A$2,'Table 11'!$A$26:$L$44,5,FALSE) -> 625.22 | G52: =VLOOKUP($A$2,'Table 12'!$A$26:$L$44,5,FALSE) -> 652.25 | H52: =VLOOKUP($A$2,'Table 13'!$A$26:$L$44,5,FALSE) -> 671.75 | I52: Mean | J52: 0.04164635069 | K52: 0.005746198793 | L52: -0.00438131921 | M52: 0.007817915115 | N52: 0.04323278206 | O52: =H52/G52-1 -> 0.02989651207 | P52: 0.1294281823
A53: Upper Quartile | B53: =VLOOKUP($A$2,'Table 7'!$A$26:$L$44,6,FALSE) -> 650 | C53: =VLOOKUP($A$2,'Table 8'!$A$26:$L$44,6,FALSE) -> 695 | D53: =VLOOKUP($A$2,'Table 9'!$A$26:$L$44,6,FALSE) -> 695 | E53: =VLOOKUP($A$2,'Table 10'!$A$26:$L$44,6,FALSE) -> 695 | F53: =VLOOKUP($A$2,'Table 11'!$A$26:$L$44,6,FALSE) -> 700 | G53: =VLOOKUP($A$2,'Table 12'!$A$26:$L$44,6,FALSE) -> 750 | H53: =VLOOKUP($A$2,'Table 13'!$A$26:$L$44,6,FALSE) -> 765 | I53: Upper Quartile | J53: 0.06923076923 | K53: 0 | L53: 0 | M53: 0.007194244604 | N53: 0.07142857143 | O53: =H53/G53-1 -> 0.02 | P53: 0.1769230769
A70: 4 Bedroom Properties: | I70: 4 Bedroom Properties - Annual changes and 6-yr cumulative change:
B71: 2010 | C71: 2011 | D71: 2012 | E71: 2013 | F71: 2014 | G71: 2015 | H71: 2016 | J71: 2010 to 2011 | K71: 2011 to 2012 | L71: 2012 to 2013 | M71: 2013 to 2014 | N71: 2014 to 2015 | O71: 2015 to 2016 | P71: 2010 to 2016
A72: Lower Quartile | B72: =VLOOKUP($A$2,'Table 7'!$A$26:$L$44,9,FALSE) -> 650 | C72: =VLOOKUP($A$2,'Table 8'!$A$26:$L$44,9,FALSE) -> 650 | D72: =VLOOKUP($A$2,'Table 9'!$A$26:$L$44,9,FALSE) -> 650 | E72: =VLOOKUP($A$2,'Table 10'!$A$26:$L$44,9,FALSE) -> 650 | F72: =VLOOKUP($A$2,'Table 11'!$A$26:$L$44,9,FALSE) -> 675 | G72: =VLOOKUP($A$2,'Table 12'!$A$26:$L$44,9,FALSE) -> 695 | H72: =VLOOKUP($A$2,'Table 13'!$A$26:$L$44,9,FALSE) -> 695 | I72: Lower Quartile | J72: =C72/B72-1 -> 0 | K72: 0 | L72: 0 | M72: 0.03846153846 | N72: 0.02962962963 | O72: =H72/G72-1 -> 0 | P72: =H72/B72-1 -> 0.06923076923
A73: Median | B73: =VLOOKUP($A$2,'Table 7'!$A$26:$L$44,10,FALSE) -> 775 | C73: =VLOOKUP($A$2,'Table 8'!$A$26:$L$44,10,FALSE) -> 750 | D73: =VLOOKUP($A$2,'Table 9'!$A$26:$L$44,10,FALSE) -> 750 | E73: =VLOOKUP($A$2,'Table 10'!$A$26:$L$44,10,FALSE) -> 750 | F73: =VLOOKUP($A$2,'Table 11'!$A$26:$L$44,10,FALSE) -> 750 | G73: =VLOOKUP($A$2,'Table 12'!$A$26:$L$44,10,FALSE) -> 795 | H73: =VLOOKUP($A$2,'Table 13'!$A$26:$L$44,10,FALSE) -> 812.5 | I73: Median | J73: -0.03225806452 | K73: 0 | L73: 0 | M73: 0 | N73: 0.06 | O73: 0.02201257862 | P73: =H73/B73-1 -> 0.04838709677
A74: Mean | B74: =VLOOKUP($A$2,'Table 7'!$A$26:$L$44,11,FALSE) -> 750.68 | C74: =VLOOKUP($A$2,'Table 8'!$A$26:$L$44,11,FALSE) -> 745.16 | D74: =VLOOKUP($A$2,'Table 9'!$A$26:$L$44,11,FALSE) -> 755.01 | E74: =VLOOKUP($A$2,'Table 10'!$A$26:$L$44,11,FALSE) -> 748.89 | F74: =VLOOKUP($A$2,'Table 11'!$A$26:$L$44,11,FALSE) -> 761.79 | G74: =VLOOKUP($A$2,'Table 12'!$A$26:$L$44,11,FALSE) -> 814.1 | H74: =VLOOKUP($A$2,'Table 13'!$A$26:$L$44,11,FALSE) -> 822.47 | I74: Mean | J74: -0.007353332978 | K74: 0.01321863761 | L74: -0.008105852903 | M74: 0.01722549373 | N74: 0.068667218 | O74: 0.01028129222 | P74: 0.09563329248
A75: Upper Quartile | B75: =VLOOKUP($A$2,'Table 7'!$A$26:$L$44,12,FALSE) -> 850 | C75: =VLOOKUP($A$2,'Table 8'!$A$26:$L$44,12,FALSE) -> 825 | D75: =VLOOKUP($A$2,'Table 9'!$A$26:$L$44,12,FALSE) -> 850 | E75: =VLOOKUP($A$2,'Table 10'!$A$26:$L$44,12,FALSE) -> 850 | F75: =VLOOKUP($A$2,'Table 11'!$A$26:$L$44,12,FALSE) -> 850 | G75: =VLOOKUP($A$2,'Table 12'!$A$26:$L$44,12,FALSE) -> 900 | H75: =VLOOKUP($A$2,'Table 13'!$A$26:$L$44,12,FALSE) -> 950 | I75: Upper Quartile | J75: -0.02941176471 | K75: 0.0303030303 | L75: 0 | M75: 0 | N75: 0.05882352941 | O75: 0.05555555556 | P75: 0.1176470588
A92: 1 Bedroom Shared Properties: | I92: 1 Bedroom Shared Properties - Annual changes and 6-yr cumulative change:
B93: 2010 | C93: 2011 | D93: 2012 | E93: 2013 | F93: 2014 | G93: 2015 | H93: 2016 | J93: 2010 to 2011 | K93: 2011 to 2012 | L93: 2012 to 2013 | M93: 2013 to 2014 | N93: 2014 to 2015 | O93: 2015 to 2016 | P93: 2010 to 2016
A94: Lower Quartile | B94: =VLOOKUP($A$2,'Table 7'!$A$47:$F$65,3,FALSE) -> 255 | C94: =VLOOKUP($A$2,'Table 8'!$A$47:$F$65,3,FALSE) -> 258.27 | D94: =VLOOKUP($A$2,'Table 9'!$A$47:$F$65,3,FALSE) -> 250 | E94: =VLOOKUP($A$2,'Table 10'!$A$47:$F$65,3,FALSE) -> 250 | F94: =VLOOKUP($A$2,'Table 11'!$A$47:$F$65,3,FALSE) -> 253.33 | G94: =VLOOKUP($A$2,'Table 12'!$A$47:$F$65,3,FALSE) -> 270 | H94: =VLOOKUP($A$2,'Table 13'!$A$47:$F$65,3,FALSE) -> 275.89 | I94: Lower Quartile | J94: =C94/B94-1 -> 0.01282352941 | K94: -0.03202075348 | L94: 0 | M94: 0.01332 | N94: 0.06580349741 | O94: =H94/G94-1 -> 0.02181481481 | P94: =H94/B94-1 -> 0.08192156863
A95: Median | B95: =VLOOKUP($A$2,'Table 7'!$A$47:$F$65,4,FALSE) -> 285 | C95: =VLOOKUP($A$2,'Table 8'!$A$47:$F$65,4,FALSE) -> 285 | D95: =VLOOKUP($A$2,'Table 9'!$A$47:$F$65,4,FALSE) -> 275 | E95: =VLOOKUP($A$2,'Table 10'!$A$47:$F$65,4,FALSE) -> 285.34 | F95: =VLOOKUP($A$2,'Table 11'!$A$47:$F$65,4,FALSE) -> 290 | G95: =VLOOKUP($A$2,'Table 12'!$A$47:$F$65,4,FALSE) -> 300 | H95: =VLOOKUP($A$2,'Table 13'!$A$47:$F$65,4,FALSE) -> 306.4 | I95: Median | J95: 0 | K95: -0.0350877193 | L95: 0.0376 | M95: 0.01633139413 | N95: 0.03448275862 | O95: 0.02133333333 | P95: =H95/B95-1 -> 0.0750877193
A96: Mean | B96: =VLOOKUP($A$2,'Table 7'!$A$47:$F$65,5,FALSE) -> 287.37 | C96: =VLOOKUP($A$2,'Table 8'!$A$47:$F$65,5,FALSE) -> 289.49 | D96: =VLOOKUP($A$2,'Table 9'!$A$47:$F$65,5,FALSE) -> 279.29 | E96: =VLOOKUP($A$2,'Table 10'!$A$47:$F$65,5,FALSE) -> 317.59 | F96: =VLOOKUP($A$2,'Table 11'!$A$47:$F$65,5,FALSE) -> 290.83 | G96: =VLOOKUP($A$2,'Table 12'!$A$47:$F$65,5,FALSE) -> 315.31 | H96: =VLOOKUP($A$2,'Table 13'!$A$47:$F$65,5,FALSE) -> 319.81 | I96: Mean | J96: 0.007377248843 | K96: -0.0352343777 | L96: 0.1371334455 | M96: -0.08425957996 | N96: 0.0841728845 | O96: 0.01427166915 | P96: 0.1128858266
A97: Upper Quartile | B97: =VLOOKUP($A$2,'Table 7'!$A$47:$F$65,6,FALSE) -> 310 | C97: =VLOOKUP($A$2,'Table 8'!$A$47:$F$65,6,FALSE) -> 320 | D97: =VLOOKUP($A$2,'Table 9'!$A$47:$F$65,6,FALSE) -> 300 | E97: =VLOOKUP($A$2,'Table 10'!$A$47:$F$65,6,FALSE) -> 311.67 | F97: =VLOOKUP($A$2,'Table 11'!$A$47:$F$65,6,FALSE) -> 318.33 | G97: =VLOOKUP($A$2,'Table 12'!$A$47:$F$65,6,FALSE) -> 334.52 | H97: =VLOOKUP($A$2,'Table 13'!$A$47:$F$65,6,FALSE) -> 350 | I97: Upper Quartile | J97: 0.03225806452 | K97: -0.0625 | L97: 0.0389 | M97: 0.02136875541 | N97: 0.0508591713 | O97: 0.04627526007 | P97: 0.1290322581
A116: Mean Rents by Property Size: | I116: Median Rents by Property Size:
B117: 2010 | C117: 2011 | D117: 2012 | E117: 2013 | F117: 2014 | G117: 2015 | H117: 2016 | J117: 2010 | K117: 2011 | L117: 2012 | M117: 2013 | N117: 2014 | O117: 2015 | P117: 2016
A118: 1 Bedroom Shared | B118: =B96 -> 287.37 | C118: 289.49 | D118: 279.29 | E118: 317.59 | F118: 290.83 | G118: 315.31 | H118: 319.81 | I118: 1 Bedroom Shared | J118: =B95 -> 285 | K118: 285 | L118: 275 | M118: 285.34 | N118: 290 | O118: =G95 -> 300 | P118: =H95 -> 306.4
A119: 1 Bedroom | B119: =B8 -> 415.01 | C119: 419.9 | D119: 424.36 | E119: 430.75 | F119: 439.51 | G119: 449.77 | H119: 460.5 | I119: 1 Bedroom | J119: =B7 -> 420 | K119: 420 | L119: 425 | M119: 430 | N119: 445 | O119: =G7 -> 450 | P119: =H7 -> 470
A120: 2 Bedrooms | B120: =B30 -> 503.41 | C120: 513.76 | D120: 516.38 | E120: 527.24 | F120: 532.32 | G120: 544.55 | H120: 560.95 | I120: 2 Bedrooms | J120: =B29 -> 500 | K120: 500 | L120: 500 | M120: 525 | N120: 525 | O120: =G29 -> 550 | P120: =H29 -> 550
A121: 3 Bedrooms | B121: =B52 -> 594.77 | C121: 619.54 | D121: 623.1 | E121: 620.37 | F121: 625.22 | G121: 652.25 | H121: 671.75 | I121: 3 Bedrooms | J121: =B51 -> 600 | K121: 625 | L121: 620 | M121: 600 | N121: 600 | O121: =G51 -> 650 | P121: =H51 -> 650
A122: 4 Bedrooms | B122: =B74 -> 750.68 | C122: 745.16 | D122: 755.01 | E122: 748.89 | F122: 761.79 | G122: 814.1 | H122: 822.47 | I122: 4 Bedrooms | J122: =B73 -> 775 | K122: 750 | L122: 750 | M122: 750 | N122: 750 | O122: =G73 -> 795 | P122: =H73 -> 812.5
A140: Sample Sizes: | I140: Sample Proportions:
B141: 2010 | C141: 2011 | D141: 2012 | E141: 2013 | F141: 2014 | G141: 2015 | H141: 2016 | J141: 2010 | K141: 2011 | L141: 2012 | M141: 2013 | N141: 2014 | O141: 2015 | P141: 2016
A142: 1 Bedroom | B142: =VLOOKUP($A$2,'Table 7'!$A$5:$L$23,2,FALSE) -> 175 | C142: =VLOOKUP($A$2,'Table 8'!$A$5:$L$23,2,FALSE) -> 244 | D142: =VLOOKUP($A$2,'Table 9'!$A$5:$L$23,2,FALSE) -> 257 | E142: =VLOOKUP($A$2,'Table 10'!$A$5:$L$23,2,FALSE) -> 179 | F142: =VLOOKUP($A$2,'Table 11'!$A$5:$L$23,2,FALSE) -> 236 | G142: =VLOOKUP($A$2,'Table 12'!$A$5:$L$23,2,FALSE) -> 258 | H142: =VLOOKUP($A$2,'Table 13'!$A$5:$L$23,2,FALSE) -> 269 | I142: 1 Bedroom | J142: =B142/SUM(B$142:B$146) -> 0.1305970149 | K142: =C142/SUM(C$142:C$146) -> 0.1357818587 | L142: 0.138172043 | M142: 0.1322008863 | N142: 0.1413173653 | O142: =G142/SUM(G$142:G$146) -> 0.154583583 | P142: 0.1631291692
A143: 2 Bedrooms | B143: =VLOOKUP($A$2,'Table 7'!$A$5:$L$23,8,FALSE) -> 585 | C143: =VLOOKUP($A$2,'Table 8'!$A$5:$L$23,8,FALSE) -> 783 | D143: =VLOOKUP($A$2,'Table 9'!$A$5:$L$23,8,FALSE) -> 785 | E143: =VLOOKUP($A$2,'Table 10'!$A$5:$L$23,8,FALSE) -> 566 | F143: =VLOOKUP($A$2,'Table 11'!$A$5:$L$23,8,FALSE) -> 741 | G143: =VLOOKUP($A$2,'Table 12'!$A$5:$L$23,8,FALSE) -> 734 | H143: =VLOOKUP($A$2,'Table 13'!$A$5:$L$23,8,FALSE) -> 733 | I143: 2 Bedrooms | J143: =B143/SUM(B$142:B$146) -> 0.4365671642 | K143: 0.4357262104 | L143: 0.4220430108 | M143: 0.4180206795 | N143: 0.4437125749 | O143: 0.439784302 | P143: 0.4445118253
A144: 3 Bedrooms | B144: =VLOOKUP($A$2,'Table 7'!$A$26:$L$44,2,FALSE) -> 362 | C144: =VLOOKUP($A$2,'Table 8'!$A$26:$L$44,2,FALSE) -> 467 | D144: =VLOOKUP($A$2,'Table 9'!$A$26:$L$44,2,FALSE) -> 491 | E144: =VLOOKUP($A$2,'Table 10'!$A$26:$L$44,2,FALSE) -> 355 | F144: =VLOOKUP($A$2,'Table 11'!$A$26:$L$44,2,FALSE) -> 436 | G144: =VLOOKUP($A$2,'Table 12'!$A$26:$L$44,2,FALSE) -> 347 | H144: =VLOOKUP($A$2,'Table 13'!$A$26:$L$44,2,FALSE) -> 361 | I144: 3 Bedrooms | J144: =B144/SUM(B$142:B$146) -> 0.2701492537 | K144: 0.2598775737 | L144: 0.2639784946 | M144: 0.2621861152 | N144: 0.2610778443 | O144: 0.2079089275 | P144: 0.2189205579
A145: 4 Bedrooms | B145: =VLOOKUP($A$2,'Table 7'!$A$26:$L$44,8,FALSE) -> 117 | C145: =VLOOKUP($A$2,'Table 8'!$A$26:$L$44,8,FALSE) -> 170 | D145: =VLOOKUP($A$2,'Table 9'!$A$26:$L$44,8,FALSE) -> 184 | E145: =VLOOKUP($A$2,'Table 10'!$A$26:$L$44,8,FALSE) -> 128 | F145: =VLOOKUP($A$2,'Table 11'!$A$26:$L$44,8,FALSE) -> 123 | G145: =VLOOKUP($A$2,'Table 12'!$A$26:$L$44,8,FALSE) -> 129 | H145: =VLOOKUP($A$2,'Table 13'!$A$26:$L$44,8,FALSE) -> 108 | I145: 4 Bedrooms | J145: =B145/SUM(B$142:B$146) -> 0.08731343284 | K145: 0.09460211464 | L145: 0.09892473118 | M145: 0.09453471196 | N145: 0.07365269461 | O145: 0.07729179149 | P145: 0.06549423893
A146: 1 Bedroom Shared | B146: =VLOOKUP($A$2,'Table 7'!$A$47:$L$65,2,FALSE) -> 101 | C146: =VLOOKUP($A$2,'Table 8'!$A$47:$L$65,2,FALSE) -> 133 | D146: =VLOOKUP($A$2,'Table 9'!$A$47:$L$65,2,FALSE) -> 143 | E146: =VLOOKUP($A$2,'Table 10'!$A$47:$L$65,2,FALSE) -> 126 | F146: =VLOOKUP($A$2,'Table 11'!$A$47:$L$65,2,FALSE) -> 134 | G146: =VLOOKUP($A$2,'Table 12'!$A$47:$L$65,2,FALSE) -> 201 | H146: =VLOOKUP($A$2,'Table 13'!$A$47:$L$65,2,FALSE) -> 178 | I146: 1 Bedroom Shared | J146: =B146/SUM(B$142:B$146) -> 0.07537313433 | K146: 0.07401224263 | L146: 0.07688172043 | M146: 0.09305760709 | N146: 0.08023952096 | O146: 0.120431396 | P146: 0.1079442086

Sheet BRMA Profile - Lothian (hidden)
A1: BRMA Rent Profile for:
A2: Lothian | I2: =ROUND(MIN(J6:P9,J28:P31,J50:P53,J72:P75,J94:P97)-0.01,2) -> -0.12 | J2: =ROUND(MAX(J6:P9,J28:P31,J50:P53,J72:P75,J94:P97)+0.01,2) -> 0.3
A4: 1 Bedroom Properties - Quartile Measures: | I4: 1 Bedroom Properties - Annual changes and 6-yr cumulative change:
B5: 2010 | C5: 2011 | D5: 2012 | E5: 2013 | F5: 2014 | G5: 2015 | H5: 2016 | J5: 2010 to 2011 | K5: 2011 to 2012 | L5: 2012 to 2013 | M5: 2013 to 2014 | N5: 2014 to 2015 | O5: 2015 to 2016 | P5: 2010 to 2016
A6: Lower Quartile | B6: =VLOOKUP($A$2,'Table 7'!$A$5:$L$23,3,FALSE) -> 465 | C6: =VLOOKUP($A$2,'Table 8'!$A$5:$L$23,3,FALSE) -> 480 | D6: =VLOOKUP($A$2,'Table 9'!$A$5:$L$23,3,FALSE) -> 495 | E6: =VLOOKUP($A$2,'Table 10'!$A$5:$L$23,3,FALSE) -> 495 | F6: =VLOOKUP($A$2,'Table 11'!$A$5:$L$23,3,FALSE) -> 515 | G6: =VLOOKUP($A$2,'Table 12'!$A$5:$L$23,3,FALSE) -> 550 | H6: =VLOOKUP($A$2,'Table 13'!$A$5:$L$23,3,FALSE) -> 575 | I6: Lower Quartile | J6: =C6/B6-1 -> 0.03225806452 | K6: 0.03125 | L6: 0 | M6: 0.0404040404 | N6: 0.06796116505 | O6: =H6/G6-1 -> 0.04545454545 | P6: =H6/B6-1 -> 0.2365591398
A7: Median | B7: =VLOOKUP($A$2,'Table 7'!$A$5:$L$23,4,FALSE) -> 500 | C7: =VLOOKUP($A$2,'Table 8'!$A$5:$L$23,4,FALSE) -> 525 | D7: =VLOOKUP($A$2,'Table 9'!$A$5:$L$23,4,FALSE) -> 525 | E7: =VLOOKUP($A$2,'Table 10'!$A$5:$L$23,4,FALSE) -> 525 | F7: =VLOOKUP($A$2,'Table 11'!$A$5:$L$23,4,FALSE) -> 550 | G7: =VLOOKUP($A$2,'Table 12'!$A$5:$L$23,4,FALSE) -> 595 | H7: =VLOOKUP($A$2,'Table 13'!$A$5:$L$23,4,FALSE) -> 625 | I7: Median | J7: 0.05 | K7: 0 | L7: 0 | M7: 0.04761904762 | N7: 0.08181818182 | O7: 0.05042016807 | P7: =H7/B7-1 -> 0.25
A8: Mean | B8: =VLOOKUP($A$2,'Table 7'!$A$5:$L$23,5,FALSE) -> 520.36 | C8: =VLOOKUP($A$2,'Table 8'!$A$5:$L$23,5,FALSE) -> 535.28 | D8: =VLOOKUP($A$2,'Table 9'!$A$5:$L$23,5,FALSE) -> 541.55 | E8: =VLOOKUP($A$2,'Table 10'!$A$5:$L$23,5,FALSE) -> 555.27 | F8: =VLOOKUP($A$2,'Table 11'!$A$5:$L$23,5,FALSE) -> 582.18 | G8: =VLOOKUP($A$2,'Table 12'!$A$5:$L$23,5,FALSE) -> 619.9 | H8: =VLOOKUP($A$2,'Table 13'!$A$5:$L$23,5,FALSE) -> 652.92 | I8: Mean | J8: 0.02867245753 | K8: 0.01171349574 | L8: 0.02533468747 | M8: 0.04846290994 | N8: 0.06479095812 | O8: 0.05326665591 | P8: 0.2547467138
A9: Upper Quartile | B9: =VLOOKUP($A$2,'Table 7'!$A$5:$L$23,6,FALSE) -> 550 | C9: =VLOOKUP($A$2,'Table 8'!$A$5:$L$23,6,FALSE) -> 575 | D9: =VLOOKUP($A$2,'Table 9'!$A$5:$L$23,6,FALSE) -> 575 | E9: =VLOOKUP($A$2,'Table 10'!$A$5:$L$23,6,FALSE) -> 595 | F9: =VLOOKUP($A$2,'Table 11'!$A$5:$L$23,6,FALSE) -> 625 | G9: =VLOOKUP($A$2,'Table 12'!$A$5:$L$23,6,FALSE) -> 675 | H9: =VLOOKUP($A$2,'Table 13'!$A$5:$L$23,6,FALSE) -> 700 | I9: Upper Quartile | J9: 0.04545454545 | K9: 0 | L9: 0.0347826087 | M9: 0.05042016807 | N9: 0.08 | O9: 0.03703703704 | P9: 0.2727272727
A26: 2 Bedroom Properties: | I26: 2 Bedroom Properties - Annual changes and 6-yr cumulative change:
B27: 2010 | C27: 2011 | D27: 2012 | E27: 2013 | F27: 2014 | G27: 2015 | H27: 2016 | J27: 2010 to 2011 | K27: 2011 to 2012 | L27: 2012 to 2013 | M27: 2013 to 2014 | N27: 2014 to 2015 | O27: 2015 to 2016 | P27: 2010 to 2016
A28: Lower Quartile | B28: =VLOOKUP($A$2,'Table 7'!$A$5:$L$23,9,FALSE) -> 580 | C28: =VLOOKUP($A$2,'Table 8'!$A$5:$L$23,9,FALSE) -> 595 | D28: =VLOOKUP($A$2,'Table 9'!$A$5:$L$23,9,FALSE) -> 600 | E28: =VLOOKUP($A$2,'Table 10'!$A$5:$L$23,9,FALSE) -> 625 | F28: =VLOOKUP($A$2,'Table 11'!$A$5:$L$23,9,FALSE) -> 630 | G28: =VLOOKUP($A$2,'Table 12'!$A$5:$L$23,9,FALSE) -> 675 | H28: =VLOOKUP($A$2,'Table 13'!$A$5:$L$23,9,FALSE) -> 700 | I28: Lower Quartile | J28: =C28/B28-1 -> 0.02586206897 | K28: 0.008403361345 | L28: 0.04166666667 | M28: 0.008 | N28: 0.07142857143 | O28: =H28/G28-1 -> 0.03703703704 | P28: =H28/B28-1 -> 0.2068965517
A29: Median | B29: =VLOOKUP($A$2,'Table 7'!$A$5:$L$23,10,FALSE) -> 650 | C29: =VLOOKUP($A$2,'Table 8'!$A$5:$L$23,10,FALSE) -> 650 | D29: =VLOOKUP($A$2,'Table 9'!$A$5:$L$23,10,FALSE) -> 650 | E29: =VLOOKUP($A$2,'Table 10'!$A$5:$L$23,10,FALSE) -> 680 | F29: =VLOOKUP($A$2,'Table 11'!$A$5:$L$23,10,FALSE) -> 705 | G29: =VLOOKUP($A$2,'Table 12'!$A$5:$L$23,10,FALSE) -> 775 | H29: =VLOOKUP($A$2,'Table 13'!$A$5:$L$23,10,FALSE) -> 800 | I29: Median | J29: 0 | K29: 0 | L29: 0.04615384615 | M29: 0.03676470588 | N29: 0.09929078014 | O29: =H29/G29-1 -> 0.03225806452 | P29: =H29/B29-1 -> 0.2307692308
A30: Mean | B30: =VLOOKUP($A$2,'Table 7'!$A$5:$L$23,11,FALSE) -> 664.51 | C30: =VLOOKUP($A$2,'Table 8'!$A$5:$L$23,11,FALSE) -> 688.96 | D30: =VLOOKUP($A$2,'Table 9'!$A$5:$L$23,11,FALSE) -> 699.53 | E30: =VLOOKUP($A$2,'Table 10'!$A$5:$L$23,11,FALSE) -> 728.57 | F30: =VLOOKUP($A$2,'Table 11'!$A$5:$L$23,11,FALSE) -> 779.12 | G30: =VLOOKUP($A$2,'Table 12'!$A$5:$L$23,11,FALSE) -> 828.92 | H30: =VLOOKUP($A$2,'Table 13'!$A$5:$L$23,11,FALSE) -> 830.97 | I30: Mean | J30: 0.03679402868 | K30: 0.0153419647 | L30: 0.04151358769 | M30: 0.06938248899 | N30: 0.06391826676 | O30: =H30/G30-1 -> 0.002473097524 | P30: 0.2505003687
A31: Upper Quartile | B31: =VLOOKUP($A$2,'Table 7'!$A$5:$L$23,12,FALSE) -> 715 | C31: =VLOOKUP($A$2,'Table 8'!$A$5:$L$23,12,FALSE) -> 750 | D31: =VLOOKUP($A$2,'Table 9'!$A$5:$L$23,12,FALSE) -> 750 | E31: =VLOOKUP($A$2,'Table 10'!$A$5:$L$23,12,FALSE) -> 775 | F31: =VLOOKUP($A$2,'Table 11'!$A$5:$L$23,12,FALSE) -> 840 | G31: =VLOOKUP($A$2,'Table 12'!$A$5:$L$23,12,FALSE) -> 900 | H31: =VLOOKUP($A$2,'Table 13'!$A$5:$L$23,12,FALSE) -> 925 | I31: Upper Quartile | J31: 0.04895104895 | K31: 0 | L31: 0.03333333333 | M31: 0.08387096774 | N31: 0.07142857143 | O31: =H31/G31-1 -> 0.02777777778 | P31: 0.2937062937
A48: 3 Bedroom Properties: | I48: 3 Bedroom Properties - Annual changes and 6-yr cumulative change:
B49: 2010 | C49: 2011 | D49: 2012 | E49: 2013 | F49: 2014 | G49: 2015 | H49: 2016 | J49: 2010 to 2011 | K49: 2011 to 2012 | L49: 2012 to 2013 | M49: 2013 to 2014 | N49: 2014 to 2015 | O49: 2015 to 2016 | P49: 2010 to 2016
A50: Lower Quartile | B50: =VLOOKUP($A$2,'Table 7'!$A$26:$L$44,3,FALSE) -> 750 | C50: =VLOOKUP($A$2,'Table 8'!$A$26:$L$44,3,FALSE) -> 750 | D50: =VLOOKUP($A$2,'Table 9'!$A$26:$L$44,3,FALSE) -> 795 | E50: =VLOOKUP($A$2,'Table 10'!$A$26:$L$44,3,FALSE) -> 795 | F50: =VLOOKUP($A$2,'Table 11'!$A$26:$L$44,3,FALSE) -> 800 | G50: =VLOOKUP($A$2,'Table 12'!$A$26:$L$44,3,FALSE) -> 825 | H50: =VLOOKUP($A$2,'Table 13'!$A$26:$L$44,3,FALSE) -> 860 | I50: Lower Quartile | J50: =C50/B50-1 -> 0 | K50: 0.06 | L50: 0 | M50: 0.006289308176 | N50: 0.03125 | O50: =H50/G50-1 -> 0.04242424242 | P50: =H50/B50-1 -> 0.1466666667
A51: Median | B51: =VLOOKUP($A$2,'Table 7'!$A$26:$L$44,4,FALSE) -> 895 | C51: =VLOOKUP($A$2,'Table 8'!$A$26:$L$44,4,FALSE) -> 895 | D51: =VLOOKUP($A$2,'Table 9'!$A$26:$L$44,4,FALSE) -> 925 | E51: =VLOOKUP($A$2,'Table 10'!$A$26:$L$44,4,FALSE) -> 920 | F51: =VLOOKUP($A$2,'Table 11'!$A$26:$L$44,4,FALSE) -> 985 | G51: =VLOOKUP($A$2,'Table 12'!$A$26:$L$44,4,FALSE) -> 1000 | H51: =VLOOKUP($A$2,'Table 13'!$A$26:$L$44,4,FALSE) -> 1100 | I51: Median | J51: 0 | K51: 0.03351955307 | L51: -0.005405405405 | M51: 0.07065217391 | N51: 0.0152284264 | O51: =H51/G51-1 -> 0.1 | P51: =H51/B51-1 -> 0.2290502793
A52: Mean | B52: =VLOOKUP($A$2,'Table 7'!$A$26:$L$44,5,FALSE) -> 917.68 | C52: =VLOOKUP($A$2,'Table 8'!$A$26:$L$44,5,FALSE) -> 924.64 | D52: =VLOOKUP($A$2,'Table 9'!$A$26:$L$44,5,FALSE) -> 983.3 | E52: =VLOOKUP($A$2,'Table 10'!$A$26:$L$44,5,FALSE) -> 970.95 | F52: =VLOOKUP($A$2,'Table 11'!$A$26:$L$44,5,FALSE) -> 1065.86 | G52: =VLOOKUP($A$2,'Table 12'!$A$26:$L$44,5,FALSE) -> 1097.15 | H52: =VLOOKUP($A$2,'Table 13'!$A$26:$L$44,5,FALSE) -> 1111.64 | I52: Mean | J52: 0.007584343126 | K52: 0.06344090673 | L52: -0.01255974779 | M52: 0.09774962665 | N52: 0.02935657591 | O52: =H52/G52-1 -> 0.01320694527 | P52: 0.2113590794
A53: Upper Quartile | B53: =VLOOKUP($A$2,'Table 7'!$A$26:$L$44,6,FALSE) -> 1005 | C53: =VLOOKUP($A$2,'Table 8'!$A$26:$L$44,6,FALSE) -> 1050 | D53: =VLOOKUP($A$2,'Table 9'!$A$26:$L$44,6,FALSE) -> 1100 | E53: =VLOOKUP($A$2,'Table 10'!$A$26:$L$44,6,FALSE) -> 1100 | F53: =VLOOKUP($A$2,'Table 11'!$A$26:$L$44,6,FALSE) -> 1215 | G53: =VLOOKUP($A$2,'Table 12'!$A$26:$L$44,6,FALSE) -> 1300 | H53: =VLOOKUP($A$2,'Table 13'!$A$26:$L$44,6,FALSE) -> 1300 | I53: Upper Quartile | J53: 0.0447761194 | K53: 0.04761904762 | L53: 0 | M53: 0.1045454545 | N53: 0.06995884774 | O53: =H53/G53-1 -> 0 | P53: 0.2935323383
A70: 4 Bedroom Properties: | I70: 4 Bedroom Properties - Annual changes and 6-yr cumulative change:
B71: 2010 | C71: 2011 | D71: 2012 | E71: 2013 | F71: 2014 | G71: 2015 | H71: 2016 | J71: 2010 to 2011 | K71: 2011 to 2012 | L71: 2012 to 2013 | M71: 2013 to 2014 | N71: 2014 to 2015 | O71: 2015 to 2016 | P71: 2010 to 2016
A72: Lower Quartile | B72: =VLOOKUP($A$2,'Table 7'!$A$26:$L$44,9,FALSE) -> 1100 | C72: =VLOOKUP($A$2,'Table 8'!$A$26:$L$44,9,FALSE) -> 1045 | D72: =VLOOKUP($A$2,'Table 9'!$A$26:$L$44,9,FALSE) -> 1100 | E72: =VLOOKUP($A$2,'Table 10'!$A$26:$L$44,9,FALSE) -> 1175 | F72: =VLOOKUP($A$2,'Table 11'!$A$26:$L$44,9,FALSE) -> 1050 | G72: =VLOOKUP($A$2,'Table 12'!$A$26:$L$44,9,FALSE) -> 1200 | H72: =VLOOKUP($A$2,'Table 13'!$A$26:$L$44,9,FALSE) -> 1225 | I72: Lower Quartile | J72: =C72/B72-1 -> -0.05 | K72: 0.05263157895 | L72: 0.06818181818 | M72: -0.1063829787 | N72: 0.1428571429 | O72: =H72/G72-1 -> 0.02083333333 | P72: =H72/B72-1 -> 0.1136363636
A73: Median | B73: =VLOOKUP($A$2,'Table 7'!$A$26:$L$44,10,FALSE) -> 1280 | C73: =VLOOKUP($A$2,'Table 8'!$A$26:$L$44,10,FALSE) -> 1300 | D73: =VLOOKUP($A$2,'Table 9'!$A$26:$L$44,10,FALSE) -> 1300 | E73: =VLOOKUP($A$2,'Table 10'!$A$26:$L$44,10,FALSE) -> 1400 | F73: =VLOOKUP($A$2,'Table 11'!$A$26:$L$44,10,FALSE) -> 1395 | G73: =VLOOKUP($A$2,'Table 12'!$A$26:$L$44,10,FALSE) -> 1500 | H73: =VLOOKUP($A$2,'Table 13'!$A$26:$L$44,10,FALSE) -> 1500 | I73: Median | J73: 0.015625 | K73: 0 | L73: 0.07692307692 | M73: -0.003571428571 | N73: 0.0752688172 | O73: 0 | P73: =H73/B73-1 -> 0.171875
A74: Mean | B74: =VLOOKUP($A$2,'Table 7'!$A$26:$L$44,11,FALSE) -> 1290.68 | C74: =VLOOKUP($A$2,'Table 8'!$A$26:$L$44,11,FALSE) -> 1321.2 | D74: =VLOOKUP($A$2,'Table 9'!$A$26:$L$44,11,FALSE) -> 1341.31 | E74: =VLOOKUP($A$2,'Table 10'!$A$26:$L$44,11,FALSE) -> 1416.47 | F74: =VLOOKUP($A$2,'Table 11'!$A$26:$L$44,11,FALSE) -> 1428.27 | G74: =VLOOKUP($A$2,'Table 12'!$A$26:$L$44,11,FALSE) -> 1510.64 | H74: =VLOOKUP($A$2,'Table 13'!$A$26:$L$44,11,FALSE) -> 1512.32 | I74: Mean | J74: 0.02364644993 | K74: 0.0152210112 | L74: 0.05603477198 | M74: 0.008330568244 | N74: 0.05767116862 | O74: 0.001112111423 | P74: 0.1717234326
A75: Upper Quartile | B75: =VLOOKUP($A$2,'Table 7'!$A$26:$L$44,12,FALSE) -> 1400 | C75: =VLOOKUP($A$2,'Table 8'!$A$26:$L$44,12,FALSE) -> 1500 | D75: =VLOOKUP($A$2,'Table 9'!$A$26:$L$44,12,FALSE) -> 1500 | E75: =VLOOKUP($A$2,'Table 10'!$A$26:$L$44,12,FALSE) -> 1600 | F75: =VLOOKUP($A$2,'Table 11'!$A$26:$L$44,12,FALSE) -> 1695 | G75: =VLOOKUP($A$2,'Table 12'!$A$26:$L$44,12,FALSE) -> 1730 | H75: =VLOOKUP($A$2,'Table 13'!$A$26:$L$44,12,FALSE) -> 1800 | I75: Upper Quartile | J75: 0.07142857143 | K75: 0 | L75: 0.06666666667 | M75: 0.059375 | N75: 0.02064896755 | O75: 0.04046242775 | P75: 0.2857142857
A92: 1 Bedroom Shared Properties: | I92: 1 Bedroom Shared Properties - Annual changes and 6-yr cumulative change:
B93: 2010 | C93: 2011 | D93: 2012 | E93: 2013 | F93: 2014 | G93: 2015 | H93: 2016 | J93: 2010 to 2011 | K93: 2011 to 2012 | L93: 2012 to 2013 | M93: 2013 to 2014 | N93: 2014 to 2015 | O93: 2015 to 2016 | P93: 2010 to 2016
A94: Lower Quartile | B94: =VLOOKUP($A$2,'Table 7'!$A$47:$F$65,3,FALSE) -> 285 | C94: =VLOOKUP($A$2,'Table 8'!$A$47:$F$65,3,FALSE) -> 285 | D94: =VLOOKUP($A$2,'Table 9'!$A$47:$F$65,3,FALSE) -> 280 | E94: =VLOOKUP($A$2,'Table 10'!$A$47:$F$65,3,FALSE) -> 285 | F94: =VLOOKUP($A$2,'Table 11'!$A$47:$F$65,3,FALSE) -> 300 | G94: =VLOOKUP($A$2,'Table 12'!$A$47:$F$65,3,FALSE) -> 305 | H94: =VLOOKUP($A$2,'Table 13'!$A$47:$F$65,3,FALSE) -> 325 | I94: Lower Quartile | J94: =C94/B94-1 -> 0 | K94: -0.01754385965 | L94: 0.01785714286 | M94: 0.05263157895 | N94: 0.01666666667 | O94: =H94/G94-1 -> 0.06557377049 | P94: =H94/B94-1 -> 0.1403508772
A95: Median | B95: =VLOOKUP($A$2,'Table 7'!$A$47:$F$65,4,FALSE) -> 325 | C95: =VLOOKUP($A$2,'Table 8'!$A$47:$F$65,4,FALSE) -> 320 | D95: =VLOOKUP($A$2,'Table 9'!$A$47:$F$65,4,FALSE) -> 325 | E95: =VLOOKUP($A$2,'Table 10'!$A$47:$F$65,4,FALSE) -> 325 | F95: =VLOOKUP($A$2,'Table 11'!$A$47:$F$65,4,FALSE) -> 328 | G95: =VLOOKUP($A$2,'Table 12'!$A$47:$F$65,4,FALSE) -> 350 | H95: =VLOOKUP($A$2,'Table 13'!$A$47:$F$65,4,FALSE) -> 375 | I95: Median | J95: -0.01538461538 | K95: 0.015625 | L95: 0 | M95: 0.009230769231 | N95: 0.06707317073 | O95: 0.07142857143 | P95: =H95/B95-1 -> 0.1538461538
A96: Mean | B96: =VLOOKUP($A$2,'Table 7'!$A$47:$F$65,5,FALSE) -> 319.85 | C96: =VLOOKUP($A$2,'Table 8'!$A$47:$F$65,5,FALSE) -> 313.86 | D96: =VLOOKUP($A$2,'Table 9'!$A$47:$F$65,5,FALSE) -> 316.18 | E96: =VLOOKUP($A$2,'Table 10'!$A$47:$F$65,5,FALSE) -> 327.84 | F96: =VLOOKUP($A$2,'Table 11'!$A$47:$F$65,5,FALSE) -> 338.41 | G96: =VLOOKUP($A$2,'Table 12'!$A$47:$F$65,5,FALSE) -> 351.08 | H96: =VLOOKUP($A$2,'Table 13'!$A$47:$F$65,5,FALSE) -> 367.86 | I96: Mean | J96: -0.01872752853 | K96: 0.007391830753 | L96: 0.03687772788 | M96: 0.03224133724 | N96: 0.03743979197 | O96: 0.04779537427 | P96: 0.1501016101
A97: Upper Quartile | B97: =VLOOKUP($A$2,'Table 7'!$A$47:$F$65,6,FALSE) -> 350 | C97: =VLOOKUP($A$2,'Table 8'!$A$47:$F$65,6,FALSE) -> 341.47 | D97: =VLOOKUP($A$2,'Table 9'!$A$47:$F$65,6,FALSE) -> 350 | E97: =VLOOKUP($A$2,'Table 10'!$A$47:$F$65,6,FALSE) -> 366.33 | F97: =VLOOKUP($A$2,'Table 11'!$A$47:$F$65,6,FALSE) -> 375 | G97: =VLOOKUP($A$2,'Table 12'!$A$47:$F$65,6,FALSE) -> 395 | H97: =VLOOKUP($A$2,'Table 13'!$A$47:$F$65,6,FALSE) -> 425 | I97: Upper Quartile | J97: -0.02437142857 | K97: 0.02498023252 | L97: 0.04665714286 | M97: 0.02366718532 | N97: 0.05333333333 | O97: 0.07594936709 | P97: 0.2142857143
A116: Mean Rents by Property Size: | I116: Median Rents by Property Size:
B117: 2010 | C117: 2011 | D117: 2012 | E117: 2013 | F117: 2014 | G117: 2015 | H117: 2016 | J117: 2010 | K117: 2011 | L117: 2012 | M117: 2013 | N117: 2014 | O117: 2015 | P117: 2016
A118: 1 Bedroom Shared | B118: =B96 -> 319.85 | C118: 313.86 | D118: 316.18 | E118: 327.84 | F118: 338.41 | G118: 351.08 | H118: 367.86 | I118: 1 Bedroom Shared | J118: =B95 -> 325 | K118: 320 | L118: 325 | M118: 325 | N118: 328 | O118: =G95 -> 350 | P118: =H95 -> 375
A119: 1 Bedroom | B119: =B8 -> 520.36 | C119: 535.28 | D119: 541.55 | E119: 555.27 | F119: 582.18 | G119: 619.9 | H119: 652.92 | I119: 1 Bedroom | J119: =B7 -> 500 | K119: 525 | L119: 525 | M119: 525 | N119: 550 | O119: =G7 -> 595 | P119: =H7 -> 625
A120: 2 Bedrooms | B120: =B30 -> 664.51 | C120: 688.96 | D120: 699.53 | E120: 728.57 | F120: 779.12 | G120: 828.92 | H120: 830.97 | I120: 2 Bedrooms | J120: =B29 -> 650 | K120: 650 | L120: 650 | M120: 680 | N120: 705 | O120: =G29 -> 775 | P120: =H29 -> 800
A121: 3 Bedrooms | B121: =B52 -> 917.68 | C121: 924.64 | D121: 983.3 | E121: 970.95 | F121: 1065.86 | G121: 1097.15 | H121: 1111.64 | I121: 3 Bedrooms | J121: =B51 -> 895 | K121: 895 | L121: 925 | M121: 920 | N121: 985 | O121: =G51 -> 1000 | P121: =H51 -> 1100
A122: 4 Bedrooms | B122: =B74 -> 1290.68 | C122: 1321.2 | D122: 1341.31 | E122: 1416.47 | F122: 1428.27 | G122: 1510.64 | H122: 1512.32 | I122: 4 Bedrooms | J122: =B73 -> 1280 | K122: 1300 | L122: 1300 | M122: 1400 | N122: 1395 | O122: =G73 -> 1500 | P122: =H73 -> 1500
A140: Sample Sizes: | I140: Sample Proportions:
B141: 2010 | C141: 2011 | D141: 2012 | E141: 2013 | F141: 2014 | G141: 2015 | H141: 2016 | J141: 2010 | K141: 2011 | L141: 2012 | M141: 2013 | N141: 2014 | O141: 2015 | P141: 2016
A142: 1 Bedroom | B142: =VLOOKUP($A$2,'Table 7'!$A$5:$L$23,2,FALSE) -> 1221 | C142: =VLOOKUP($A$2,'Table 8'!$A$5:$L$23,2,FALSE) -> 987 | D142: =VLOOKUP($A$2,'Table 9'!$A$5:$L$23,2,FALSE) -> 1276 | E142: =VLOOKUP($A$2,'Table 10'!$A$5:$L$23,2,FALSE) -> 1049 | F142: =VLOOKUP($A$2,'Table 11'!$A$5:$L$23,2,FALSE) -> 950 | G142: =VLOOKUP($A$2,'Table 12'!$A$5:$L$23,2,FALSE) -> 939 | H142: =VLOOKUP($A$2,'Table 13'!$A$5:$L$23,2,FALSE) -> 944 | I142: 1 Bedroom | J142: =B142/SUM(B$142:B$146) -> 0.2555997488 | K142: =C142/SUM(C$142:C$146) -> 0.2551706308 | L142: 0.2848214286 | M142: 0.2559160771 | N142: 0.2540786306 | O142: =G142/SUM(G$142:G$146) -> 0.2334079045 | P142: 0.2416794675
A143: 2 Bedrooms | B143: =VLOOKUP($A$2,'Table 7'!$A$5:$L$23,8,FALSE) -> 1909 | C143: =VLOOKUP($A$2,'Table 8'!$A$5:$L$23,8,FALSE) -> 1495 | D143: =VLOOKUP($A$2,'Table 9'!$A$5:$L$23,8,FALSE) -> 1654 | E143: =VLOOKUP($A$2,'Table 10'!$A$5:$L$23,8,FALSE) -> 1791 | F143: =VLOOKUP($A$2,'Table 11'!$A$5:$L$23,8,FALSE) -> 1602 | G143: =VLOOKUP($A$2,'Table 12'!$A$5:$L$23,8,FALSE) -> 1818 | H143: =VLOOKUP($A$2,'Table 13'!$A$5:$L$23,8,FALSE) -> 1776 | I143: 2 Bedrooms | J143: =B143/SUM(B$142:B$146) -> 0.3996231945 | K143: 0.3865046536 | L143: 0.3691964286 | M143: 0.436935838 | N143: 0.4284568066 | O143: 0.451901566 | P143: 0.4546850998
A144: 3 Bedrooms | B144: =VLOOKUP($A$2,'Table 7'!$A$26:$L$44,2,FALSE) -> 923 | C144: =VLOOKUP($A$2,'Table 8'!$A$26:$L$44,2,FALSE) -> 737 | D144: =VLOOKUP($A$2,'Table 9'!$A$26:$L$44,2,FALSE) -> 801 | E144: =VLOOKUP($A$2,'Table 10'!$A$26:$L$44,2,FALSE) -> 666 | F144: =VLOOKUP($A$2,'Table 11'!$A$26:$L$44,2,FALSE) -> 612 | G144: =VLOOKUP($A$2,'Table 12'!$A$26:$L$44,2,FALSE) -> 698 | H144: =VLOOKUP($A$2,'Table 13'!$A$26:$L$44,2,FALSE) -> 613 | I144: 3 Bedrooms | J144: =B144/SUM(B$142:B$146) -> 0.1932175005 | K144: 0.1905377456 | L144: 0.1787946429 | M144: 0.1624786533 | N144: 0.1636801284 | O144: 0.1735023614 | P144: 0.156938044
A145: 4 Bedrooms | B145: =VLOOKUP($A$2,'Table 7'!$A$26:$L$44,8,FALSE) -> 473 | C145: =VLOOKUP($A$2,'Table 8'!$A$26:$L$44,8,FALSE) -> 406 | D145: =VLOOKUP($A$2,'Table 9'!$A$26:$L$44,8,FALSE) -> 442 | E145: =VLOOKUP($A$2,'Table 10'!$A$26:$L$44,8,FALSE) -> 264 | F145: =VLOOKUP($A$2,'Table 11'!$A$26:$L$44,8,FALSE) -> 242 | G145: =VLOOKUP($A$2,'Table 12'!$A$26:$L$44,8,FALSE) -> 229 | H145: =VLOOKUP($A$2,'Table 13'!$A$26:$L$44,8,FALSE) -> 194 | I145: 4 Bedrooms | J145: =B145/SUM(B$142:B$146) -> 0.0990161189 | K145: 0.1049638056 | L145: 0.09866071429 | M145: 0.06440595267 | N145: 0.06472318802 | O145: 0.05692269451 | P145: 0.0496671787
A146: 1 Bedroom Shared | B146: =VLOOKUP($A$2,'Table 7'!$A$47:$L$65,2,FALSE) -> 251 | C146: =VLOOKUP($A$2,'Table 8'!$A$47:$L$65,2,FALSE) -> 243 | D146: =VLOOKUP($A$2,'Table 9'!$A$47:$L$65,2,FALSE) -> 307 | E146: =VLOOKUP($A$2,'Table 10'!$A$47:$L$65,2,FALSE) -> 329 | F146: =VLOOKUP($A$2,'Table 11'!$A$47:$L$65,2,FALSE) -> 333 | G146: =VLOOKUP($A$2,'Table 12'!$A$47:$L$65,2,FALSE) -> 339 | H146: =VLOOKUP($A$2,'Table 13'!$A$47:$L$65,2,FALSE) -> 379 | I146: 1 Bedroom Shared | J146: =B146/SUM(B$142:B$146) -> 0.0525434373 | K146: 0.06282316443 | L146: 0.06852678571 | M146: 0.0802634789 | N146: 0.08906124632 | O146: 0.08426547353 | P146: 0.09703020993

Sheet BRMA Profile - North Lanarkshir (hidden)
A1: BRMA Rent Profile for:
A2: North Lanarkshire | I2: =ROUND(MIN(J6:P9,J28:P31,J50:P53,J72:P75,J94:P97)-0.01,2) -> -0.1 | J2: =ROUND(MAX(J6:P9,J28:P31,J50:P53,J72:P75,J94:P97)+0.01,2) -> 0.14
A4: 1 Bedroom Properties - Quartile Measures: | I4: 1 Bedroom Properties - Annual changes and 6-yr cumulative change:
B5: 2010 | C5: 2011 | D5: 2012 | E5: 2013 | F5: 2014 | G5: 2015 | H5: 2016 | J5: 2010 to 2011 | K5: 2011 to 2012 | L5: 2012 to 2013 | M5: 2013 to 2014 | N5: 2014 to 2015 | O5: 2015 to 2016 | P5: 2010 to 2016
A6: Lower Quartile | B6: =VLOOKUP($A$2,'Table 7'!$A$5:$L$23,3,FALSE) -> 350 | C6: =VLOOKUP($A$2,'Table 8'!$A$5:$L$23,3,FALSE) -> 350 | D6: =VLOOKUP($A$2,'Table 9'!$A$5:$L$23,3,FALSE) -> 350 | E6: =VLOOKUP($A$2,'Table 10'!$A$5:$L$23,3,FALSE) -> 350 | F6: =VLOOKUP($A$2,'Table 11'!$A$5:$L$23,3,FALSE) -> 350 | G6: =VLOOKUP($A$2,'Table 12'!$A$5:$L$23,3,FALSE) -> 350 | H6: =VLOOKUP($A$2,'Table 13'!$A$5:$L$23,3,FALSE) -> 350 | I6: Lower Quartile | J6: =C6/B6-1 -> 0 | K6: 0 | L6: 0 | M6: 0 | N6: 0 | O6: =H6/G6-1 -> 0 | P6: =H6/B6-1 -> 0
A7: Median | B7: =VLOOKUP($A$2,'Table 7'!$A$5:$L$23,4,FALSE) -> 375 | C7: =VLOOKUP($A$2,'Table 8'!$A$5:$L$23,4,FALSE) -> 375 | D7: =VLOOKUP($A$2,'Table 9'!$A$5:$L$23,4,FALSE) -> 375 | E7: =VLOOKUP($A$2,'Table 10'!$A$5:$L$23,4,FALSE) -> 375 | F7: =VLOOKUP($A$2,'Table 11'!$A$5:$L$23,4,FALSE) -> 375 | G7: =VLOOKUP($A$2,'Table 12'!$A$5:$L$23,4,FALSE) -> 375 | H7: =VLOOKUP($A$2,'Table 13'!$A$5:$L$23,4,FALSE) -> 375 | I7: Median | J7: 0 | K7: 0 | L7: 0 | M7: 0 | N7: 0 | O7: 0 | P7: =H7/B7-1 -> 0
A8: Mean | B8: =VLOOKUP($A$2,'Table 7'!$A$5:$L$23,5,FALSE) -> 373.16 | C8: =VLOOKUP($A$2,'Table 8'!$A$5:$L$23,5,FALSE) -> 378.99 | D8: =VLOOKUP($A$2,'Table 9'!$A$5:$L$23,5,FALSE) -> 382.48 | E8: =VLOOKUP($A$2,'Table 10'!$A$5:$L$23,5,FALSE) -> 382.66 | F8: =VLOOKUP($A$2,'Table 11'!$A$5:$L$23,5,FALSE) -> 375.12 | G8: =VLOOKUP($A$2,'Table 12'!$A$5:$L$23,5,FALSE) -> 383.63 | H8: =VLOOKUP($A$2,'Table 13'!$A$5:$L$23,5,FALSE) -> 381.35 | I8: Mean | J8: 0.01562332512 | K8: 0.009208686245 | L8: 0.0004706128425 | M8: -0.01970417603 | N8: 0.02268607379 | O8: -0.005943226546 | P8: 0.02194769
A9: Upper Quartile | B9: =VLOOKUP($A$2,'Table 7'!$A$5:$L$23,6,FALSE) -> 400 | C9: =VLOOKUP($A$2,'Table 8'!$A$5:$L$23,6,FALSE) -> 425 | D9: =VLOOKUP($A$2,'Table 9'!$A$5:$L$23,6,FALSE) -> 400 | E9: =VLOOKUP($A$2,'Table 10'!$A$5:$L$23,6,FALSE) -> 425 | F9: =VLOOKUP($A$2,'Table 11'!$A$5:$L$23,6,FALSE) -> 395 | G9: =VLOOKUP($A$2,'Table 12'!$A$5:$L$23,6,FALSE) -> 400 | H9: =VLOOKUP($A$2,'Table 13'!$A$5:$L$23,6,FALSE) -> 425 | I9: Upper Quartile | J9: 0.0625 | K9: -0.05882352941 | L9: 0.0625 | M9: -0.07058823529 | N9: 0.01265822785 | O9: 0.0625 | P9: 0.0625
A26: 2 Bedroom Properties: | I26: 2 Bedroom Properties - Annual changes and 6-yr cumulative change:
B27: 2010 | C27: 2011 | D27: 2012 | E27: 2013 | F27: 2014 | G27: 2015 | H27: 2016 | J27: 2010 to 2011 | K27: 2011 to 2012 | L27: 2012 to 2013 | M27: 2013 to 2014 | N27: 2014 to 2015 | O27: 2015 to 2016 | P27: 2010 to 2016
A28: Lower Quartile | B28: =VLOOKUP($A$2,'Table 7'!$A$5:$L$23,9,FALSE) -> 425 | C28: =VLOOKUP($A$2,'Table 8'!$A$5:$L$23,9,FALSE) -> 425 | D28: =VLOOKUP($A$2,'Table 9'!$A$5:$L$23,9,FALSE) -> 425 | E28: =VLOOKUP($A$2,'Table 10'!$A$5:$L$23,9,FALSE) -> 425 | F28: =VLOOKUP($A$2,'Table 11'!$A$5:$L$23,9,FALSE) -> 425 | G28: =VLOOKUP($A$2,'Table 12'!$A$5:$L$23,9,FALSE) -> 425 | H28: =VLOOKUP($A$2,'Table 13'!$A$5:$L$23,9,FALSE) -> 425 | I28: Lower Quartile | J28: =C28/B28-1 -> 0 | K28: 0 | L28: 0 | M28: 0 | N28: 0 | O28: =H28/G28-1 -> 0 | P28: =H28/B28-1 -> 0
A29: Median | B29: =VLOOKUP($A$2,'Table 7'!$A$5:$L$23,10,FALSE) -> 450 | C29: =VLOOKUP($A$2,'Table 8'!$A$5:$L$23,10,FALSE) -> 450 | D29: =VLOOKUP($A$2,'Table 9'!$A$5:$L$23,10,FALSE) -> 450 | E29: =VLOOKUP($A$2,'Table 10'!$A$5:$L$23,10,FALSE) -> 450 | F29: =VLOOKUP($A$2,'Table 11'!$A$5:$L$23,10,FALSE) -> 450 | G29: =VLOOKUP($A$2,'Table 12'!$A$5:$L$23,10,FALSE) -> 450 | H29: =VLOOKUP($A$2,'Table 13'!$A$5:$L$23,10,FALSE) -> 475 | I29: Median | J29: 0 | K29: 0 | L29: 0 | M29: 0 | N29: 0 | O29: =H29/G29-1 -> 0.05555555556 | P29: =H29/B29-1 -> 0.05555555556
A30: Mean | B30: =VLOOKUP($A$2,'Table 7'!$A$5:$L$23,11,FALSE) -> 454.65 | C30: =VLOOKUP($A$2,'Table 8'!$A$5:$L$23,11,FALSE) -> 463.08 | D30: =VLOOKUP($A$2,'Table 9'!$A$5:$L$23,11,FALSE) -> 464.37 | E30: =VLOOKUP($A$2,'Table 10'!$A$5:$L$23,11,FALSE) -> 463.09 | F30: =VLOOKUP($A$2,'Table 11'!$A$5:$L$23,11,FALSE) -> 463.85 | G30: =VLOOKUP($A$2,'Table 12'!$A$5:$L$23,11,FALSE) -> 474.83 | H30: =VLOOKUP($A$2,'Table 13'!$A$5:$L$23,11,FALSE) -> 475.8 | I30: Mean | J30: 0.0185417354 | K30: 0.002785695776 | L30: -0.00275642268 | M30: 0.001641149669 | N30: 0.02367144551 | O30: =H30/G30-1 -> 0.002042836384 | P30: 0.04651930056
A31: Upper Quartile | B31: =VLOOKUP($A$2,'Table 7'!$A$5:$L$23,12,FALSE) -> 495 | C31: =VLOOKUP($A$2,'Table 8'!$A$5:$L$23,12,FALSE) -> 495 | D31: =VLOOKUP($A$2,'Table 9'!$A$5:$L$23,12,FALSE) -> 500 | E31: =VLOOKUP($A$2,'Table 10'!$A$5:$L$23,12,FALSE) -> 495 | F31: =VLOOKUP($A$2,'Table 11'!$A$5:$L$23,12,FALSE) -> 497.5 | G31: =VLOOKUP($A$2,'Table 12'!$A$5:$L$23,12,FALSE) -> 525 | H31: =VLOOKUP($A$2,'Table 13'!$A$5:$L$23,12,FALSE) -> 525 | I31: Upper Quartile | J31: 0 | K31: 0.0101010101 | L31: -0.01 | M31: 0.005050505051 | N31: 0.05527638191 | O31: =H31/G31-1 -> 0 | P31: 0.06060606061
A48: 3 Bedroom Properties: | I48: 3 Bedroom Properties - Annual changes and 6-yr cumulative change:
B49: 2010 | C49: 2011 | D49: 2012 | E49: 2013 | F49: 2014 | G49: 2015 | H49: 2016 | J49: 2010 to 2011 | K49: 2011 to 2012 | L49: 2012 to 2013 | M49: 2013 to 2014 | N49: 2014 to 2015 | O49: 2015 to 2016 | P49: 2010 to 2016
A50: Lower Quartile | B50: =VLOOKUP($A$2,'Table 7'!$A$26:$L$44,3,FALSE) -> 495 | C50: =VLOOKUP($A$2,'Table 8'!$A$26:$L$44,3,FALSE) -> 475 | D50: =VLOOKUP($A$2,'Table 9'!$A$26:$L$44,3,FALSE) -> 495 | E50: =VLOOKUP($A$2,'Table 10'!$A$26:$L$44,3,FALSE) -> 475 | F50: =VLOOKUP($A$2,'Table 11'!$A$26:$L$44,3,FALSE) -> 495 | G50: =VLOOKUP($A$2,'Table 12'!$A$26:$L$44,3,FALSE) -> 479 | H50: =VLOOKUP($A$2,'Table 13'!$A$26:$L$44,3,FALSE) -> 495 | I50: Lower Quartile | J50: =C50/B50-1 -> -0.0404040404 | K50: 0.04210526316 | L50: -0.0404040404 | M50: 0.04210526316 | N50: -0.03232323232 | O50: =H50/G50-1 -> 0.03340292276 | P50: =H50/B50-1 -> 0
A51: Median | B51: =VLOOKUP($A$2,'Table 7'!$A$26:$L$44,4,FALSE) -> 550 | C51: =VLOOKUP($A$2,'Table 8'!$A$26:$L$44,4,FALSE) -> 550 | D51: =VLOOKUP($A$2,'Table 9'!$A$26:$L$44,4,FALSE) -> 550 | E51: =VLOOKUP($A$2,'Table 10'!$A$26:$L$44,4,FALSE) -> 550 | F51: =VLOOKUP($A$2,'Table 11'!$A$26:$L$44,4,FALSE) -> 550 | G51: =VLOOKUP($A$2,'Table 12'!$A$26:$L$44,4,FALSE) -> 550 | H51: =VLOOKUP($A$2,'Table 13'!$A$26:$L$44,4,FALSE) -> 550 | I51: Median | J51: 0 | K51: 0 | L51: 0 | M51: 0 | N51: 0 | O51: =H51/G51-1 -> 0 | P51: =H51/B51-1 -> 0
A52: Mean | B52: =VLOOKUP($A$2,'Table 7'!$A$26:$L$44,5,FALSE) -> 548.52 | C52: =VLOOKUP($A$2,'Table 8'!$A$26:$L$44,5,FALSE) -> 545.82 | D52: =VLOOKUP($A$2,'Table 9'!$A$26:$L$44,5,FALSE) -> 571.46 | E52: =VLOOKUP($A$2,'Table 10'!$A$26:$L$44,5,FALSE) -> 540.87 | F52: =VLOOKUP($A$2,'Table 11'!$A$26:$L$44,5,FALSE) -> 550.52 | G52: =VLOOKUP($A$2,'Table 12'!$A$26:$L$44,5,FALSE) -> 564.87 | H52: =VLOOKUP($A$2,'Table 13'!$A$26:$L$44,5,FALSE) -> 564.39 | I52: Mean | J52: -0.004922336469 | K52: 0.04697519329 | L52: -0.05352955587 | M52: 0.01784162553 | N52: 0.02606626462 | O52: =H52/G52-1 -> -0.0008497530405 | P52: 0.02893239991
A53: Upper Quartile | B53: =VLOOKUP($A$2,'Table 7'!$A$26:$L$44,6,FALSE) -> 600 | C53: =VLOOKUP($A$2,'Table 8'!$A$26:$L$44,6,FALSE) -> 595 | D53: =VLOOKUP($A$2,'Table 9'!$A$26:$L$44,6,FALSE) -> 650 | E53: =VLOOKUP($A$2,'Table 10'!$A$26:$L$44,6,FALSE) -> 600 | F53: =VLOOKUP($A$2,'Table 11'!$A$26:$L$44,6,FALSE) -> 597.5 | G53: =VLOOKUP($A$2,'Table 12'!$A$26:$L$44,6,FALSE) -> 650 | H53: =VLOOKUP($A$2,'Table 13'!$A$26:$L$44,6,FALSE) -> 600 | I53: Upper Quartile | J53: -0.008333333333 | K53: 0.09243697479 | L53: -0.07692307692 | M53: -0.004166666667 | N53: 0.08786610879 | O53: =H53/G53-1 -> -0.07692307692 | P53: 0
A70: 4 Bedroom Properties: | I70: 4 Bedroom Properties - Annual changes and 6-yr cumulative change:
B71: 2010 | C71: 2011 | D71: 2012 | E71: 2013 | F71: 2014 | G71: 2015 | H71: 2016 | J71: 2010 to 2011 | K71: 2011 to 2012 | L71: 2012 to 2013 | M71: 2013 to 2014 | N71: 2014 to 2015 | O71: 2015 to 2016 | P71: 2010 to 2016
A72: Lower Quartile | B72: =VLOOKUP($A$2,'Table 7'!$A$26:$L$44,9,FALSE) -> 695 | C72: =VLOOKUP($A$2,'Table 8'!$A$26:$L$44,9,FALSE) -> 695 | D72: =VLOOKUP($A$2,'Table 9'!$A$26:$L$44,9,FALSE) -> 725 | E72: =VLOOKUP($A$2,'Table 10'!$A$26:$L$44,9,FALSE) -> 750 | F72: =VLOOKUP($A$2,'Table 11'!$A$26:$L$44,9,FALSE) -> 695 | G72: =VLOOKUP($A$2,'Table 12'!$A$26:$L$44,9,FALSE) -> 750 | H72: =VLOOKUP($A$2,'Table 13'!$A$26:$L$44,9,FALSE) -> 695 | I72: Lower Quartile | J72: =C72/B72-1 -> 0 | K72: 0.04316546763 | L72: 0.03448275862 | M72: -0.07333333333 | N72: 0.07913669065 | O72: =H72/G72-1 -> -0.07333333333 | P72: =H72/B72-1 -> 0
A73: Median | B73: =VLOOKUP($A$2,'Table 7'!$A$26:$L$44,10,FALSE) -> 795 | C73: =VLOOKUP($A$2,'Table 8'!$A$26:$L$44,10,FALSE) -> 750 | D73: =VLOOKUP($A$2,'Table 9'!$A$26:$L$44,10,FALSE) -> 795 | E73: =VLOOKUP($A$2,'Table 10'!$A$26:$L$44,10,FALSE) -> 800 | F73: =VLOOKUP($A$2,'Table 11'!$A$26:$L$44,10,FALSE) -> 795 | G73: =VLOOKUP($A$2,'Table 12'!$A$26:$L$44,10,FALSE) -> 850 | H73: =VLOOKUP($A$2,'Table 13'!$A$26:$L$44,10,FALSE) -> 795 | I73: Median | J73: -0.05660377358 | K73: 0.06 | L73: 0.006289308176 | M73: -0.00625 | N73: 0.06918238994 | O73: -0.06470588235 | P73: =H73/B73-1 -> 0
A74: Mean | B74: =VLOOKUP($A$2,'Table 7'!$A$26:$L$44,11,FALSE) -> 776.25 | C74: =VLOOKUP($A$2,'Table 8'!$A$26:$L$44,11,FALSE) -> 769.27 | D74: =VLOOKUP($A$2,'Table 9'!$A$26:$L$44,11,FALSE) -> 793.22 | E74: =VLOOKUP($A$2,'Table 10'!$A$26:$L$44,11,FALSE) -> 826.73 | F74: =VLOOKUP($A$2,'Table 11'!$A$26:$L$44,11,FALSE) -> 791.64 | G74: =VLOOKUP($A$2,'Table 12'!$A$26:$L$44,11,FALSE) -> 895.06 | H74: =VLOOKUP($A$2,'Table 13'!$A$26:$L$44,11,FALSE) -> 823.4 | I74: Mean | J74: -0.00899194847 | K74: 0.0311334122 | L74: 0.04224553087 | M74: -0.04244432886 | N74: 0.13064019 | O74: -0.08006167184 | P74: 0.06074074074
A75: Upper Quartile | B75: =VLOOKUP($A$2,'Table 7'!$A$26:$L$44,12,FALSE) -> 850 | C75: =VLOOKUP($A$2,'Table 8'!$A$26:$L$44,12,FALSE) -> 850 | D75: =VLOOKUP($A$2,'Table 9'!$A$26:$L$44,12,FALSE) -> 850 | E75: =VLOOKUP($A$2,'Table 10'!$A$26:$L$44,12,FALSE) -> 895 | F75: =VLOOKUP($A$2,'Table 11'!$A$26:$L$44,12,FALSE) -> 850 | G75: =VLOOKUP($A$2,'Table 12'!$A$26:$L$44,12,FALSE) -> 950 | H75: =VLOOKUP($A$2,'Table 13'!$A$26:$L$44,12,FALSE) -> 925 | I75: Upper Quartile | J75: 0 | K75: 0 | L75: 0.05294117647 | M75: -0.05027932961 | N75: 0.1176470588 | O75: -0.02631578947 | P75: 0.08823529412
A92: 1 Bedroom Shared Properties: | I92: 1 Bedroom Shared Properties - Annual changes and 6-yr cumulative change:
B93: 2010 | C93: 2011 | D93: 2012 | E93: 2013 | F93: 2014 | G93: 2015 | H93: 2016 | J93: 2010 to 2011 | K93: 2011 to 2012 | L93: 2012 to 2013 | M93: 2013 to 2014 | N93: 2014 to 2015 | O93: 2015 to 2016 | P93: 2010 to 2016
A94: Lower Quartile | B94: =VLOOKUP($A$2,'Table 7'!$A$47:$F$65,3,FALSE) -> 260 | C94: =VLOOKUP($A$2,'Table 8'!$A$47:$F$65,3,FALSE) -> 280 | D94: =VLOOKUP($A$2,'Table 9'!$A$47:$F$65,3,FALSE) -> 255.5 | E94: =VLOOKUP($A$2,'Table 10'!$A$47:$F$65,3,FALSE) -> 253 | F94: =VLOOKUP($A$2,'Table 11'!$A$47:$F$65,3,FALSE) -> 260 | G94: =VLOOKUP($A$2,'Table 12'!$A$47:$F$65,3,FALSE) -> 260.71 | H94: =VLOOKUP($A$2,'Table 13'!$A$47:$F$65,3,FALSE) -> 260.71 | I94: Lower Quartile | J94: =C94/B94-1 -> 0.07692307692 | K94: -0.0875 | L94: -0.009784735812 | M94: 0.02766798419 | N94: 0.002730769231 | O94: =H94/G94-1 -> 0 | P94: =H94/B94-1 -> 0.002730769231
A95: Median | B95: =VLOOKUP($A$2,'Table 7'!$A$47:$F$65,4,FALSE) -> 300 | C95: =VLOOKUP($A$2,'Table 8'!$A$47:$F$65,4,FALSE) -> 300 | D95: =VLOOKUP($A$2,'Table 9'!$A$47:$F$65,4,FALSE) -> 301.5 | E95: =VLOOKUP($A$2,'Table 10'!$A$47:$F$65,4,FALSE) -> 275 | F95: =VLOOKUP($A$2,'Table 11'!$A$47:$F$65,4,FALSE) -> 300 | G95: =VLOOKUP($A$2,'Table 12'!$A$47:$F$65,4,FALSE) -> 300 | H95: =VLOOKUP($A$2,'Table 13'!$A$47:$F$65,4,FALSE) -> 325 | I95: Median | J95: 0 | K95: 0.005 | L95: -0.08789386401 | M95: 0.09090909091 | N95: 0 | O95: 0.08333333333 | P95: =H95/B95-1 -> 0.08333333333
A96: Mean | B96: =VLOOKUP($A$2,'Table 7'!$A$47:$F$65,5,FALSE) -> 296.88 | C96: =VLOOKUP($A$2,'Table 8'!$A$47:$F$65,5,FALSE) -> 306.67 | D96: =VLOOKUP($A$2,'Table 9'!$A$47:$F$65,5,FALSE) -> 297.25 | E96: =VLOOKUP($A$2,'Table 10'!$A$47:$F$65,5,FALSE) -> 274.71 | F96: =VLOOKUP($A$2,'Table 11'!$A$47:$F$65,5,FALSE) -> 296.1 | G96: =VLOOKUP($A$2,'Table 12'!$A$47:$F$65,5,FALSE) -> 310.17 | H96: =VLOOKUP($A$2,'Table 13'!$A$47:$F$65,5,FALSE) -> 319.96 | I96: Mean | J96: 0.03297628672 | K96: -0.03071705742 | L96: -0.07582842725 | M96: 0.07786392923 | N96: 0.0475177305 | O96: 0.03156333623 | P96: 0.07774184856
A97: Upper Quartile | B97: =VLOOKUP($A$2,'Table 7'!$A$47:$F$65,6,FALSE) -> 320.33 | C97: =VLOOKUP($A$2,'Table 8'!$A$47:$F$65,6,FALSE) -> 349 | D97: =VLOOKUP($A$2,'Table 9'!$A$47:$F$65,6,FALSE) -> 329 | E97: =VLOOKUP($A$2,'Table 10'!$A$47:$F$65,6,FALSE) -> 300 | F97: =VLOOKUP($A$2,'Table 11'!$A$47:$F$65,6,FALSE) -> 325 | G97: =VLOOKUP($A$2,'Table 12'!$A$47:$F$65,6,FALSE) -> 338.81 | H97: =VLOOKUP($A$2,'Table 13'!$A$47:$F$65,6,FALSE) -> 359.52 | I97: Upper Quartile | J97: 0.08950145163 | K97: -0.05730659026 | L97: -0.08814589666 | M97: 0.08333333333 | N97: 0.04249230769 | O97: 0.06112570467 | P97: 0.1223425842
A116: Mean Rents by Property Size: | I116: Median Rents by Property Size:
B117: 2010 | C117: 2011 | D117: 2012 | E117: 2013 | F117: 2014 | G117: 2015 | H117: 2016 | J117: 2010 | K117: 2011 | L117: 2012 | M117: 2013 | N117: 2014 | O117: 2015 | P117: 2016
A118: 1 Bedroom Shared | B118: =B96 -> 296.88 | C118: 306.67 | D118: 297.25 | E118: 274.71 | F118: 296.1 | G118: 310.17 | H118: 319.96 | I118: 1 Bedroom Shared | J118: =B95 -> 300 | K118: 300 | L118: 301.5 | M118: 275 | N118: 300 | O118: =G95 -> 300 | P118: =H95 -> 325
A119: 1 Bedroom | B119: =B8 -> 373.16 | C119: 378.99 | D119: 382.48 | E119: 382.66 | F119: 375.12 | G119: 383.63 | H119: 381.35 | I119: 1 Bedroom | J119: =B7 -> 375 | K119: 375 | L119: 375 | M119: 375 | N119: 375 | O119: =G7 -> 375 | P119: =H7 -> 375
A120: 2 Bedrooms | B120: =B30 -> 454.65 | C120: 463.08 | D120: 464.37 | E120: 463.09 | F120: 463.85 | G120: 474.83 | H120: 475.8 | I120: 2 Bedrooms | J120: =B29 -> 450 | K120: 450 | L120: 450 | M120: 450 | N120: 450 | O120: =G29 -> 450 | P120: =H29 -> 475
A121: 3 Bedrooms | B121: =B52 -> 548.52 | C121: 545.82 | D121: 571.46 | E121: 540.87 | F121: 550.52 | G121: 564.87 | H121: 564.39 | I121: 3 Bedrooms | J121: =B51 -> 550 | K121: 550 | L121: 550 | M121: 550 | N121: 550 | O121: =G51 -> 550 | P121: =H51 -> 550
A122: 4 Bedrooms | B122: =B74 -> 776.25 | C122: 769.27 | D122: 793.22 | E122: 826.73 | F122: 791.64 | G122: 895.06 | H122: 823.4 | I122: 4 Bedrooms | J122: =B73 -> 795 | K122: 750 | L122: 795 | M122: 800 | N122: 795 | O122: =G73 -> 850 | P122: =H73 -> 795
A140: Sample Sizes: | I140: Sample Proportions:
B141: 2010 | C141: 2011 | D141: 2012 | E141: 2013 | F141: 2014 | G141: 2015 | H141: 2016 | J141: 2010 | K141: 2011 | L141: 2012 | M141: 2013 | N141: 2014 | O141: 2015 | P141: 2016
A142: 1 Bedroom | B142: =VLOOKUP($A$2,'Table 7'!$A$5:$L$23,2,FALSE) -> 153 | C142: =VLOOKUP($A$2,'Table 8'!$A$5:$L$23,2,FALSE) -> 185 | D142: =VLOOKUP($A$2,'Table 9'!$A$5:$L$23,2,FALSE) -> 162 | E142: =VLOOKUP($A$2,'Table 10'!$A$5:$L$23,2,FALSE) -> 127 | F142: =VLOOKUP($A$2,'Table 11'!$A$5:$L$23,2,FALSE) -> 164 | G142: =VLOOKUP($A$2,'Table 12'!$A$5:$L$23,2,FALSE) -> 160 | H142: =VLOOKUP($A$2,'Table 13'!$A$5:$L$23,2,FALSE) -> 181 | I142: 1 Bedroom | J142: =B142/SUM(B$142:B$146) -> 0.16156283 | K142: =C142/SUM(C$142:C$146) -> 0.1634275618 | L142: 0.1651376147 | M142: 0.1439909297 | N142: 0.1748400853 | O142: =G142/SUM(G$142:G$146) -> 0.1666666667 | P142: 0.1779744346
A143: 2 Bedrooms | B143: =VLOOKUP($A$2,'Table 7'!$A$5:$L$23,8,FALSE) -> 468 | C143: =VLOOKUP($A$2,'Table 8'!$A$5:$L$23,8,FALSE) -> 548 | D143: =VLOOKUP($A$2,'Table 9'!$A$5:$L$23,8,FALSE) -> 430 | E143: =VLOOKUP($A$2,'Table 10'!$A$5:$L$23,8,FALSE) -> 431 | F143: =VLOOKUP($A$2,'Table 11'!$A$5:$L$23,8,FALSE) -> 468 | G143: =VLOOKUP($A$2,'Table 12'!$A$5:$L$23,8,FALSE) -> 437 | H143: =VLOOKUP($A$2,'Table 13'!$A$5:$L$23,8,FALSE) -> 505 | I143: 2 Bedrooms | J143: =B143/SUM(B$142:B$146) -> 0.4941921859 | K143: 0.4840989399 | L143: 0.4383282365 | M143: 0.4886621315 | N143: 0.4989339019 | O143: 0.4552083333 | P143: 0.4965585054
A144: 3 Bedrooms | B144: =VLOOKUP($A$2,'Table 7'!$A$26:$L$44,2,FALSE) -> 180 | C144: =VLOOKUP($A$2,'Table 8'!$A$26:$L$44,2,FALSE) -> 251 | D144: =VLOOKUP($A$2,'Table 9'!$A$26:$L$44,2,FALSE) -> 229 | E144: =VLOOKUP($A$2,'Table 10'!$A$26:$L$44,2,FALSE) -> 199 | F144: =VLOOKUP($A$2,'Table 11'!$A$26:$L$44,2,FALSE) -> 200 | G144: =VLOOKUP($A$2,'Table 12'!$A$26:$L$44,2,FALSE) -> 237 | H144: =VLOOKUP($A$2,'Table 13'!$A$26:$L$44,2,FALSE) -> 215 | I144: 3 Bedrooms | J144: =B144/SUM(B$142:B$146) -> 0.1900739176 | K144: 0.2217314488 | L144: 0.2334352701 | M144: 0.2256235828 | N144: 0.2132196162 | O144: 0.246875 | P144: 0.2114060964
A145: 4 Bedrooms | B145: =VLOOKUP($A$2,'Table 7'!$A$26:$L$44,8,FALSE) -> 102 | C145: =VLOOKUP($A$2,'Table 8'!$A$26:$L$44,8,FALSE) -> 97 | D145: =VLOOKUP($A$2,'Table 9'!$A$26:$L$44,8,FALSE) -> 96 | E145: =VLOOKUP($A$2,'Table 10'!$A$26:$L$44,8,FALSE) -> 66 | F145: =VLOOKUP($A$2,'Table 11'!$A$26:$L$44,8,FALSE) -> 55 | G145: =VLOOKUP($A$2,'Table 12'!$A$26:$L$44,8,FALSE) -> 62 | H145: =VLOOKUP($A$2,'Table 13'!$A$26:$L$44,8,FALSE) -> 47 | I145: 4 Bedrooms | J145: =B145/SUM(B$142:B$146) -> 0.1077085533 | K145: 0.08568904594 | L145: 0.09785932722 | M145: 0.07482993197 | N145: 0.05863539446 | O145: 0.06458333333 | P145: 0.04621435595
A146: 1 Bedroom Shared | B146: =VLOOKUP($A$2,'Table 7'!$A$47:$L$65,2,FALSE) -> 44 | C146: =VLOOKUP($A$2,'Table 8'!$A$47:$L$65,2,FALSE) -> 51 | D146: =VLOOKUP($A$2,'Table 9'!$A$47:$L$65,2,FALSE) -> 64 | E146: =VLOOKUP($A$2,'Table 10'!$A$47:$L$65,2,FALSE) -> 59 | F146: =VLOOKUP($A$2,'Table 11'!$A$47:$L$65,2,FALSE) -> 51 | G146: =VLOOKUP($A$2,'Table 12'!$A$47:$L$65,2,FALSE) -> 64 | H146: =VLOOKUP($A$2,'Table 13'!$A$47:$L$65,2,FALSE) -> 69 | I146: 1 Bedroom Shared | J146: =B146/SUM(B$142:B$146) -> 0.0464625132 | K146: 0.04505300353 | L146: 0.06523955148 | M146: 0.06689342404 | N146: 0.05437100213 | O146: 0.06666666667 | P146: 0.06784660767

Sheet BRMA Profile - Perth and Kinros (hidden)
A1: BRMA Rent Profile for:
A2: Perth and Kinross | I2: =ROUND(MIN(J6:P9,J28:P31,J50:P53,J72:P75,J94:P97)-0.01,2) -> -0.1 | J2: =ROUND(MAX(J6:P9,J28:P31,J50:P53,J72:P75,J94:P97)+0.01,2) -> 0.2
A4: 1 Bedroom Properties - Quartile Measures: | I4: 1 Bedroom Properties - Annual changes and 6-yr cumulative change:
B5: 2010 | C5: 2011 | D5: 2012 | E5: 2013 | F5: 2014 | G5: 2015 | H5: 2016 | J5: 2010 to 2011 | K5: 2011 to 2012 | L5: 2012 to 2013 | M5: 2013 to 2014 | N5: 2014 to 2015 | O5: 2015 to 2016 | P5: 2010 to 2016
A6: Lower Quartile | B6: =VLOOKUP($A$2,'Table 7'!$A$5:$L$23,3,FALSE) -> 350 | C6: =VLOOKUP($A$2,'Table 8'!$A$5:$L$23,3,FALSE) -> 350 | D6: =VLOOKUP($A$2,'Table 9'!$A$5:$L$23,3,FALSE) -> 350 | E6: =VLOOKUP($A$2,'Table 10'!$A$5:$L$23,3,FALSE) -> 365 | F6: =VLOOKUP($A$2,'Table 11'!$A$5:$L$23,3,FALSE) -> 360 | G6: =VLOOKUP($A$2,'Table 12'!$A$5:$L$23,3,FALSE) -> 375 | H6: =VLOOKUP($A$2,'Table 13'!$A$5:$L$23,3,FALSE) -> 380 | I6: Lower Quartile | J6: =C6/B6-1 -> 0 | K6: 0 | L6: 0.04285714286 | M6: -0.01369863014 | N6: 0.04166666667 | O6: =H6/G6-1 -> 0.01333333333 | P6: =H6/B6-1 -> 0.08571428571
A7: Median | B7: =VLOOKUP($A$2,'Table 7'!$A$5:$L$23,4,FALSE) -> 380 | C7: =VLOOKUP($A$2,'Table 8'!$A$5:$L$23,4,FALSE) -> 380 | D7: =VLOOKUP($A$2,'Table 9'!$A$5:$L$23,4,FALSE) -> 380 | E7: =VLOOKUP($A$2,'Table 10'!$A$5:$L$23,4,FALSE) -> 395 | F7: =VLOOKUP($A$2,'Table 11'!$A$5:$L$23,4,FALSE) -> 392.5 | G7: =VLOOKUP($A$2,'Table 12'!$A$5:$L$23,4,FALSE) -> 400 | H7: =VLOOKUP($A$2,'Table 13'!$A$5:$L$23,4,FALSE) -> 400 | I7: Median | J7: 0 | K7: 0 | L7: 0.03947368421 | M7: -0.006329113924 | N7: 0.01910828025 | O7: 0 | P7: =H7/B7-1 -> 0.05263157895
A8: Mean | B8: =VLOOKUP($A$2,'Table 7'!$A$5:$L$23,5,FALSE) -> 377.44 | C8: =VLOOKUP($A$2,'Table 8'!$A$5:$L$23,5,FALSE) -> 377.57 | D8: =VLOOKUP($A$2,'Table 9'!$A$5:$L$23,5,FALSE) -> 380.4 | E8: =VLOOKUP($A$2,'Table 10'!$A$5:$L$23,5,FALSE) -> 396.18 | F8: =VLOOKUP($A$2,'Table 11'!$A$5:$L$23,5,FALSE) -> 388.83 | G8: =VLOOKUP($A$2,'Table 12'!$A$5:$L$23,5,FALSE) -> 402.5 | H8: =VLOOKUP($A$2,'Table 13'!$A$5:$L$23,5,FALSE) -> 408.15 | I8: Mean | J8: 0.0003444256041 | K8: 0.007495298885 | L8: 0.04148264984 | M8: -0.01855217325 | N8: 0.03515675231 | O8: 0.01403726708 | P8: 0.08136392539
A9: Upper Quartile | B9: =VLOOKUP($A$2,'Table 7'!$A$5:$L$23,6,FALSE) -> 400 | C9: =VLOOKUP($A$2,'Table 8'!$A$5:$L$23,6,FALSE) -> 400 | D9: =VLOOKUP($A$2,'Table 9'!$A$5:$L$23,6,FALSE) -> 400 | E9: =VLOOKUP($A$2,'Table 10'!$A$5:$L$23,6,FALSE) -> 420 | F9: =VLOOKUP($A$2,'Table 11'!$A$5:$L$23,6,FALSE) -> 420 | G9: =VLOOKUP($A$2,'Table 12'!$A$5:$L$23,6,FALSE) -> 425 | H9: =VLOOKUP($A$2,'Table 13'!$A$5:$L$23,6,FALSE) -> 430 | I9: Upper Quartile | J9: 0 | K9: 0 | L9: 0.05 | M9: 0 | N9: 0.0119047619 | O9: 0.01176470588 | P9: 0.075
A26: 2 Bedroom Properties: | I26: 2 Bedroom Properties - Annual changes and 6-yr cumulative change:
B27: 2010 | C27: 2011 | D27: 2012 | E27: 2013 | F27: 2014 | G27: 2015 | H27: 2016 | J27: 2010 to 2011 | K27: 2011 to 2012 | L27: 2012 to 2013 | M27: 2013 to 2014 | N27: 2014 to 2015 | O27: 2015 to 2016 | P27: 2010 to 2016
A28: Lower Quartile | B28: =VLOOKUP($A$2,'Table 7'!$A$5:$L$23,9,FALSE) -> 450 | C28: =VLOOKUP($A$2,'Table 8'!$A$5:$L$23,9,FALSE) -> 452.5 | D28: =VLOOKUP($A$2,'Table 9'!$A$5:$L$23,9,FALSE) -> 450 | E28: =VLOOKUP($A$2,'Table 10'!$A$5:$L$23,9,FALSE) -> 460 | F28: =VLOOKUP($A$2,'Table 11'!$A$5:$L$23,9,FALSE) -> 460 | G28: =VLOOKUP($A$2,'Table 12'!$A$5:$L$23,9,FALSE) -> 475 | H28: =VLOOKUP($A$2,'Table 13'!$A$5:$L$23,9,FALSE) -> 495 | I28: Lower Quartile | J28: =C28/B28-1 -> 0.005555555556 | K28: -0.005524861878 | L28: 0.02222222222 | M28: 0 | N28: 0.03260869565 | O28: =H28/G28-1 -> 0.04210526316 | P28: =H28/B28-1 -> 0.1
A29: Median | B29: =VLOOKUP($A$2,'Table 7'!$A$5:$L$23,10,FALSE) -> 500 | C29: =VLOOKUP($A$2,'Table 8'!$A$5:$L$23,10,FALSE) -> 500 | D29: =VLOOKUP($A$2,'Table 9'!$A$5:$L$23,10,FALSE) -> 495 | E29: =VLOOKUP($A$2,'Table 10'!$A$5:$L$23,10,FALSE) -> 500 | F29: =VLOOKUP($A$2,'Table 11'!$A$5:$L$23,10,FALSE) -> 500 | G29: =VLOOKUP($A$2,'Table 12'!$A$5:$L$23,10,FALSE) -> 525 | H29: =VLOOKUP($A$2,'Table 13'!$A$5:$L$23,10,FALSE) -> 525 | I29: Median | J29: 0 | K29: -0.01 | L29: 0.0101010101 | M29: 0 | N29: 0.05 | O29: =H29/G29-1 -> 0 | P29: =H29/B29-1 -> 0.05
A30: Mean | B30: =VLOOKUP($A$2,'Table 7'!$A$5:$L$23,11,FALSE) -> 506.44 | C30: =VLOOKUP($A$2,'Table 8'!$A$5:$L$23,11,FALSE) -> 512.44 | D30: =VLOOKUP($A$2,'Table 9'!$A$5:$L$23,11,FALSE) -> 504.82 | E30: =VLOOKUP($A$2,'Table 10'!$A$5:$L$23,11,FALSE) -> 518.61 | F30: =VLOOKUP($A$2,'Table 11'!$A$5:$L$23,11,FALSE) -> 520.45 | G30: =VLOOKUP($A$2,'Table 12'!$A$5:$L$23,11,FALSE) -> 528.99 | H30: =VLOOKUP($A$2,'Table 13'!$A$5:$L$23,11,FALSE) -> 539.95 | I30: Mean | J30: 0.01184740542 | K30: -0.01487003356 | L30: 0.02731666733 | M30: 0.00354794547 | N30: 0.01640887693 | O30: =H30/G30-1 -> 0.02071872814 | P30: 0.06616775926
A31: Upper Quartile | B31: =VLOOKUP($A$2,'Table 7'!$A$5:$L$23,12,FALSE) -> 550 | C31: =VLOOKUP($A$2,'Table 8'!$A$5:$L$23,12,FALSE) -> 550 | D31: =VLOOKUP($A$2,'Table 9'!$A$5:$L$23,12,FALSE) -> 550 | E31: =VLOOKUP($A$2,'Table 10'!$A$5:$L$23,12,FALSE) -> 550 | F31: =VLOOKUP($A$2,'Table 11'!$A$5:$L$23,12,FALSE) -> 575 | G31: =VLOOKUP($A$2,'Table 12'!$A$5:$L$23,12,FALSE) -> 575 | H31: =VLOOKUP($A$2,'Table 13'!$A$5:$L$23,12,FALSE) -> 595 | I31: Upper Quartile | J31: 0 | K31: 0 | L31: 0 | M31: 0.04545454545 | N31: 0 | O31: =H31/G31-1 -> 0.0347826087 | P31: 0.08181818182
A48: 3 Bedroom Properties: | I48: 3 Bedroom Properties - Annual changes and 6-yr cumulative change:
B49: 2010 | C49: 2011 | D49: 2012 | E49: 2013 | F49: 2014 | G49: 2015 | H49: 2016 | J49: 2010 to 2011 | K49: 2011 to 2012 | L49: 2012 to 2013 | M49: 2013 to 2014 | N49: 2014 to 2015 | O49: 2015 to 2016 | P49: 2010 to 2016
A50: Lower Quartile | B50: =VLOOKUP($A$2,'Table 7'!$A$26:$L$44,3,FALSE) -> 595 | C50: =VLOOKUP($A$2,'Table 8'!$A$26:$L$44,3,FALSE) -> 575 | D50: =VLOOKUP($A$2,'Table 9'!$A$26:$L$44,3,FALSE) -> 575 | E50: =VLOOKUP($A$2,'Table 10'!$A$26:$L$44,3,FALSE) -> 575 | F50: =VLOOKUP($A$2,'Table 11'!$A$26:$L$44,3,FALSE) -> 550 | G50: =VLOOKUP($A$2,'Table 12'!$A$26:$L$44,3,FALSE) -> 595 | H50: =VLOOKUP($A$2,'Table 13'!$A$26:$L$44,3,FALSE) -> 600 | I50: Lower Quartile | J50: =C50/B50-1 -> -0.03361344538 | K50: 0 | L50: 0 | M50: -0.04347826087 | N50: 0.08181818182 | O50: =H50/G50-1 -> 0.008403361345 | P50: =H50/B50-1 -> 0.008403361345
A51: Median | B51: =VLOOKUP($A$2,'Table 7'!$A$26:$L$44,4,FALSE) -> 650 | C51: =VLOOKUP($A$2,'Table 8'!$A$26:$L$44,4,FALSE) -> 650 | D51: =VLOOKUP($A$2,'Table 9'!$A$26:$L$44,4,FALSE) -> 650 | E51: =VLOOKUP($A$2,'Table 10'!$A$26:$L$44,4,FALSE) -> 650 | F51: =VLOOKUP($A$2,'Table 11'!$A$26:$L$44,4,FALSE) -> 625 | G51: =VLOOKUP($A$2,'Table 12'!$A$26:$L$44,4,FALSE) -> 650 | H51: =VLOOKUP($A$2,'Table 13'!$A$26:$L$44,4,FALSE) -> 675 | I51: Median | J51: 0 | K51: 0 | L51: 0 | M51: -0.03846153846 | N51: 0.04 | O51: =H51/G51-1 -> 0.03846153846 | P51: =H51/B51-1 -> 0.03846153846
A52: Mean | B52: =VLOOKUP($A$2,'Table 7'!$A$26:$L$44,5,FALSE) -> 647.27 | C52: =VLOOKUP($A$2,'Table 8'!$A$26:$L$44,5,FALSE) -> 646.58 | D52: =VLOOKUP($A$2,'Table 9'!$A$26:$L$44,5,FALSE) -> 639.05 | E52: =VLOOKUP($A$2,'Table 10'!$A$26:$L$44,5,FALSE) -> 665.03 | F52: =VLOOKUP($A$2,'Table 11'!$A$26:$L$44,5,FALSE) -> 639.44 | G52: =VLOOKUP($A$2,'Table 12'!$A$26:$L$44,5,FALSE) -> 679.55 | H52: =VLOOKUP($A$2,'Table 13'!$A$26:$L$44,5,FALSE) -> 699.52 | I52: Mean | J52: -0.001066015728 | K52: -0.01164589069 | L52: 0.04065409592 | M52: -0.03847946709 | N52: 0.06272676092 | O52: =H52/G52-1 -> 0.0293870944 | P52: 0.08072365473
A53: Upper Quartile | B53: =VLOOKUP($A$2,'Table 7'!$A$26:$L$44,6,FALSE) -> 695 | C53: =VLOOKUP($A$2,'Table 8'!$A$26:$L$44,6,FALSE) -> 700 | D53: =VLOOKUP($A$2,'Table 9'!$A$26:$L$44,6,FALSE) -> 700 | E53: =VLOOKUP($A$2,'Table 10'!$A$26:$L$44,6,FALSE) -> 700 | F53: =VLOOKUP($A$2,'Table 11'!$A$26:$L$44,6,FALSE) -> 695 | G53: =VLOOKUP($A$2,'Table 12'!$A$26:$L$44,6,FALSE) -> 750 | H53: =VLOOKUP($A$2,'Table 13'!$A$26:$L$44,6,FALSE) -> 795 | I53: Upper Quartile | J53: 0.007194244604 | K53: 0 | L53: 0 | M53: -0.007142857143 | N53: 0.07913669065 | O53: =H53/G53-1 -> 0.06 | P53: 0.1438848921
A70: 4 Bedroom Properties: | I70: 4 Bedroom Properties - Annual changes and 6-yr cumulative change:
B71: 2010 | C71: 2011 | D71: 2012 | E71: 2013 | F71: 2014 | G71: 2015 | H71: 2016 | J71: 2010 to 2011 | K71: 2011 to 2012 | L71: 2012 to 2013 | M71: 2013 to 2014 | N71: 2014 to 2015 | O71: 2015 to 2016 | P71: 2010 to 2016
A72: Lower Quartile | B72: =VLOOKUP($A$2,'Table 7'!$A$26:$L$44,9,FALSE) -> 750 | C72: =VLOOKUP($A$2,'Table 8'!$A$26:$L$44,9,FALSE) -> 750 | D72: =VLOOKUP($A$2,'Table 9'!$A$26:$L$44,9,FALSE) -> 725 | E72: =VLOOKUP($A$2,'Table 10'!$A$26:$L$44,9,FALSE) -> 762.5 | F72: =VLOOKUP($A$2,'Table 11'!$A$26:$L$44,9,FALSE) -> 725 | G72: =VLOOKUP($A$2,'Table 12'!$A$26:$L$44,9,FALSE) -> 862.5 | H72: =VLOOKUP($A$2,'Table 13'!$A$26:$L$44,9,FALSE) -> 850 | I72: Lower Quartile | J72: =C72/B72-1 -> 0 | K72: -0.03333333333 | L72: 0.05172413793 | M72: -0.04918032787 | N72: 0.1896551724 | O72: =H72/G72-1 -> -0.01449275362 | P72: =H72/B72-1 -> 0.1333333333
A73: Median | B73: =VLOOKUP($A$2,'Table 7'!$A$26:$L$44,10,FALSE) -> 850 | C73: =VLOOKUP($A$2,'Table 8'!$A$26:$L$44,10,FALSE) -> 875 | D73: =VLOOKUP($A$2,'Table 9'!$A$26:$L$44,10,FALSE) -> 850 | E73: =VLOOKUP($A$2,'Table 10'!$A$26:$L$44,10,FALSE) -> 895 | F73: =VLOOKUP($A$2,'Table 11'!$A$26:$L$44,10,FALSE) -> 885 | G73: =VLOOKUP($A$2,'Table 12'!$A$26:$L$44,10,FALSE) -> 972.5 | H73: =VLOOKUP($A$2,'Table 13'!$A$26:$L$44,10,FALSE) -> 950 | I73: Median | J73: 0.02941176471 | K73: -0.02857142857 | L73: 0.05294117647 | M73: -0.01117318436 | N73: 0.0988700565 | O73: -0.02313624679 | P73: =H73/B73-1 -> 0.1176470588
A74: Mean | B74: =VLOOKUP($A$2,'Table 7'!$A$26:$L$44,11,FALSE) -> 857.5 | C74: =VLOOKUP($A$2,'Table 8'!$A$26:$L$44,11,FALSE) -> 865.06 | D74: =VLOOKUP($A$2,'Table 9'!$A$26:$L$44,11,FALSE) -> 870.84 | E74: =VLOOKUP($A$2,'Table 10'!$A$26:$L$44,11,FALSE) -> 972.7 | F74: =VLOOKUP($A$2,'Table 11'!$A$26:$L$44,11,FALSE) -> 912.59 | G74: =VLOOKUP($A$2,'Table 12'!$A$26:$L$44,11,FALSE) -> 992.12 | H74: =VLOOKUP($A$2,'Table 13'!$A$26:$L$44,11,FALSE) -> 1018.04 | I74: Mean | J74: 0.008816326531 | K74: 0.00668161746 | L74: 0.1169675256 | M74: -0.06179705973 | N74: 0.08714756901 | O74: 0.02612587187 | P74: 0.1872186589
A75: Upper Quartile | B75: =VLOOKUP($A$2,'Table 7'!$A$26:$L$44,12,FALSE) -> 995 | C75: =VLOOKUP($A$2,'Table 8'!$A$26:$L$44,12,FALSE) -> 975 | D75: =VLOOKUP($A$2,'Table 9'!$A$26:$L$44,12,FALSE) -> 995 | E75: =VLOOKUP($A$2,'Table 10'!$A$26:$L$44,12,FALSE) -> 1000 | F75: =VLOOKUP($A$2,'Table 11'!$A$26:$L$44,12,FALSE) -> 1000 | G75: =VLOOKUP($A$2,'Table 12'!$A$26:$L$44,12,FALSE) -> 1100 | H75: =VLOOKUP($A$2,'Table 13'!$A$26:$L$44,12,FALSE) -> 1100 | I75: Upper Quartile | J75: -0.02010050251 | K75: 0.02051282051 | L75: 0.005025125628 | M75: 0 | N75: 0.1 | O75: 0 | P75: 0.1055276382
A92: 1 Bedroom Shared Properties: | I92: 1 Bedroom Shared Properties - Annual changes and 6-yr cumulative change:
B93: 2010 | C93: 2011 | D93: 2012 | E93: 2013 | F93: 2014 | G93: 2015 | H93: 2016 | J93: 2010 to 2011 | K93: 2011 to 2012 | L93: 2012 to 2013 | M93: 2013 to 2014 | N93: 2014 to 2015 | O93: 2015 to 2016 | P93: 2010 to 2016
A94: Lower Quartile | B94: =VLOOKUP($A$2,'Table 7'!$A$47:$F$65,3,FALSE) -> 235 | C94: =VLOOKUP($A$2,'Table 8'!$A$47:$F$65,3,FALSE) -> 235 | D94: =VLOOKUP($A$2,'Table 9'!$A$47:$F$65,3,FALSE) -> 236 | E94: =VLOOKUP($A$2,'Table 10'!$A$47:$F$65,3,FALSE) -> 250 | F94: =VLOOKUP($A$2,'Table 11'!$A$47:$F$65,3,FALSE) -> 250 | G94: =VLOOKUP($A$2,'Table 12'!$A$47:$F$65,3,FALSE) -> 254.17 | H94: =VLOOKUP($A$2,'Table 13'!$A$47:$F$65,3,FALSE) -> 250 | I94: Lower Quartile | J94: =C94/B94-1 -> 0 | K94: 0.004255319149 | L94: 0.0593220339 | M94: 0 | N94: 0.01668 | O94: =H94/G94-1 -> -0.01640634221 | P94: =H94/B94-1 -> 0.06382978723
A95: Median | B95: =VLOOKUP($A$2,'Table 7'!$A$47:$F$65,4,FALSE) -> 260 | C95: =VLOOKUP($A$2,'Table 8'!$A$47:$F$65,4,FALSE) -> 265 | D95: =VLOOKUP($A$2,'Table 9'!$A$47:$F$65,4,FALSE) -> 253.33 | E95: =VLOOKUP($A$2,'Table 10'!$A$47:$F$65,4,FALSE) -> 280 | F95: =VLOOKUP($A$2,'Table 11'!$A$47:$F$65,4,FALSE) -> 256.67 | G95: =VLOOKUP($A$2,'Table 12'!$A$47:$F$65,4,FALSE) -> 291.07 | H95: =VLOOKUP($A$2,'Table 13'!$A$47:$F$65,4,FALSE) -> 291.07 | I95: Median | J95: 0.01923076923 | K95: -0.04403773585 | L95: 0.105277701 | M95: -0.08332142857 | N95: 0.1340242335 | O95: 0 | P95: =H95/B95-1 -> 0.1195
A96: Mean | B96: =VLOOKUP($A$2,'Table 7'!$A$47:$F$65,5,FALSE) -> 261.86 | C96: =VLOOKUP($A$2,'Table 8'!$A$47:$F$65,5,FALSE) -> 267.89 | D96: =VLOOKUP($A$2,'Table 9'!$A$47:$F$65,5,FALSE) -> 258.69 | E96: =VLOOKUP($A$2,'Table 10'!$A$47:$F$65,5,FALSE) -> 275.49 | F96: =VLOOKUP($A$2,'Table 11'!$A$47:$F$65,5,FALSE) -> 280.86 | G96: =VLOOKUP($A$2,'Table 12'!$A$47:$F$65,5,FALSE) -> 294.54 | H96: =VLOOKUP($A$2,'Table 13'!$A$47:$F$65,5,FALSE) -> 288.35 | I96: Mean | J96: 0.02302757199 | K96: -0.03434245399 | L96: 0.06494259538 | M96: 0.01949254056 | N96: 0.04870754112 | O96: -0.02101582128 | P96: 0.1011609257
A97: Upper Quartile | B97: =VLOOKUP($A$2,'Table 7'!$A$47:$F$65,6,FALSE) -> 285 | C97: =VLOOKUP($A$2,'Table 8'!$A$47:$F$65,6,FALSE) -> 300 | D97: =VLOOKUP($A$2,'Table 9'!$A$47:$F$65,6,FALSE) -> 283 | E97: =VLOOKUP($A$2,'Table 10'!$A$47:$F$65,6,FALSE) -> 300 | F97: =VLOOKUP($A$2,'Table 11'!$A$47:$F$65,6,FALSE) -> 300 | G97: =VLOOKUP($A$2,'Table 12'!$A$47:$F$65,6,FALSE) -> 330 | H97: =VLOOKUP($A$2,'Table 13'!$A$47:$F$65,6,FALSE) -> 300 | I97: Upper Quartile | J97: 0.05263157895 | K97: -0.05666666667 | L97: 0.06007067138 | M97: 0 | N97: 0.1 | O97: -0.09090909091 | P97: 0.05263157895
A116: Mean Rents by Property Size: | I116: Median Rents by Property Size:
B117: 2010 | C117: 2011 | D117: 2012 | E117: 2013 | F117: 2014 | G117: 2015 | H117: 2016 | J117: 2010 | K117: 2011 | L117: 2012 | M117: 2013 | N117: 2014 | O117: 2015 | P117: 2016
A118: 1 Bedroom Shared | B118: =B96 -> 261.86 | C118: 267.89 | D118: 258.69 | E118: 275.49 | F118: 280.86 | G118: 294.54 | H118: 288.35 | I118: 1 Bedroom Shared | J118: =B95 -> 260 | K118: 265 | L118: 253.33 | M118: 280 | N118: 256.67 | O118: =G95 -> 291.07 | P118: =H95 -> 291.07
A119: 1 Bedroom | B119: =B8 -> 377.44 | C119: 377.57 | D119: 380.4 | E119: 396.18 | F119: 388.83 | G119: 402.5 | H119: 408.15 | I119: 1 Bedroom | J119: =B7 -> 380 | K119: 380 | L119: 380 | M119: 395 | N119: 392.5 | O119: =G7 -> 400 | P119: =H7 -> 400
A120: 2 Bedrooms | B120: =B30 -> 506.44 | C120: 512.44 | D120: 504.82 | E120: 518.61 | F120: 520.45 | G120: 528.99 | H120: 539.95 | I120: 2 Bedrooms | J120: =B29 -> 500 | K120: 500 | L120: 495 | M120: 500 | N120: 500 | O120: =G29 -> 525 | P120: =H29 -> 525
A121: 3 Bedrooms | B121: =B52 -> 647.27 | C121: 646.58 | D121: 639.05 | E121: 665.03 | F121: 639.44 | G121: 679.55 | H121: 699.52 | I121: 3 Bedrooms | J121: =B51 -> 650 | K121: 650 | L121: 650 | M121: 650 | N121: 625 | O121: =G51 -> 650 | P121: =H51 -> 675
A122: 4 Bedrooms | B122: =B74 -> 857.5 | C122: 865.06 | D122: 870.84 | E122: 972.7 | F122: 912.59 | G122: 992.12 | H122: 1018.04 | I122: 4 Bedrooms | J122: =B73 -> 850 | K122: 875 | L122: 850 | M122: 895 | N122: 885 | O122: =G73 -> 972.5 | P122: =H73 -> 950
A140: Sample Sizes: | I140: Sample Proportions:
B141: 2010 | C141: 2011 | D141: 2012 | E141: 2013 | F141: 2014 | G141: 2015 | H141: 2016 | J141: 2010 | K141: 2011 | L141: 2012 | M141: 2013 | N141: 2014 | O141: 2015 | P141: 2016
A142: 1 Bedroom | B142: =VLOOKUP($A$2,'Table 7'!$A$5:$L$23,2,FALSE) -> 176 | C142: =VLOOKUP($A$2,'Table 8'!$A$5:$L$23,2,FALSE) -> 212 | D142: =VLOOKUP($A$2,'Table 9'!$A$5:$L$23,2,FALSE) -> 210 | E142: =VLOOKUP($A$2,'Table 10'!$A$5:$L$23,2,FALSE) -> 165 | F142: =VLOOKUP($A$2,'Table 11'!$A$5:$L$23,2,FALSE) -> 200 | G142: =VLOOKUP($A$2,'Table 12'!$A$5:$L$23,2,FALSE) -> 201 | H142: =VLOOKUP($A$2,'Table 13'!$A$5:$L$23,2,FALSE) -> 240 | I142: 1 Bedroom | J142: =B142/SUM(B$142:B$146) -> 0.2128174123 | K142: =C142/SUM(C$142:C$146) -> 0.2050290135 | L142: 0.1935483871 | M142: 0.1870748299 | N142: 0.2081165453 | O142: =G142/SUM(G$142:G$146) -> 0.2291904219 | P142: 0.2628696605
A143: 2 Bedrooms | B143: =VLOOKUP($A$2,'Table 7'!$A$5:$L$23,8,FALSE) -> 379 | C143: =VLOOKUP($A$2,'Table 8'!$A$5:$L$23,8,FALSE) -> 472 | D143: =VLOOKUP($A$2,'Table 9'!$A$5:$L$23,8,FALSE) -> 516 | E143: =VLOOKUP($A$2,'Table 10'!$A$5:$L$23,8,FALSE) -> 419 | F143: =VLOOKUP($A$2,'Table 11'!$A$5:$L$23,8,FALSE) -> 462 | G143: =VLOOKUP($A$2,'Table 12'!$A$5:$L$23,8,FALSE) -> 442 | H143: =VLOOKUP($A$2,'Table 13'!$A$5:$L$23,8,FALSE) -> 424 | I143: 2 Bedrooms | J143: =B143/SUM(B$142:B$146) -> 0.4582829504 | K143: 0.4564796905 | L143: 0.4755760369 | M143: 0.4750566893 | N143: 0.4807492196 | O143: 0.503990878 | P143: 0.4644030668
A144: 3 Bedrooms | B144: =VLOOKUP($A$2,'Table 7'!$A$26:$L$44,2,FALSE) -> 161 | C144: =VLOOKUP($A$2,'Table 8'!$A$26:$L$44,2,FALSE) -> 218 | D144: =VLOOKUP($A$2,'Table 9'!$A$26:$L$44,2,FALSE) -> 213 | E144: =VLOOKUP($A$2,'Table 10'!$A$26:$L$44,2,FALSE) -> 153 | F144: =VLOOKUP($A$2,'Table 11'!$A$26:$L$44,2,FALSE) -> 179 | G144: =VLOOKUP($A$2,'Table 12'!$A$26:$L$44,2,FALSE) -> 133 | H144: =VLOOKUP($A$2,'Table 13'!$A$26:$L$44,2,FALSE) -> 138 | I144: 3 Bedrooms | J144: =B144/SUM(B$142:B$146) -> 0.1946795647 | K144: 0.2108317215 | L144: 0.1963133641 | M144: 0.1734693878 | N144: 0.186264308 | O144: 0.1516533637 | P144: 0.1511500548
A145: 4 Bedrooms | B145: =VLOOKUP($A$2,'Table 7'!$A$26:$L$44,8,FALSE) -> 62 | C145: =VLOOKUP($A$2,'Table 8'!$A$26:$L$44,8,FALSE) -> 78 | D145: =VLOOKUP($A$2,'Table 9'!$A$26:$L$44,8,FALSE) -> 77 | E145: =VLOOKUP($A$2,'Table 10'!$A$26:$L$44,8,FALSE) -> 76 | F145: =VLOOKUP($A$2,'Table 11'!$A$26:$L$44,8,FALSE) -> 66 | G145: =VLOOKUP($A$2,'Table 12'!$A$26:$L$44,8,FALSE) -> 52 | H145: =VLOOKUP($A$2,'Table 13'!$A$26:$L$44,8,FALSE) -> 47 | I145: 4 Bedrooms | J145: =B145/SUM(B$142:B$146) -> 0.07496977025 | K145: 0.07543520309 | L145: 0.07096774194 | M145: 0.08616780045 | N145: 0.06867845994 | O145: 0.05929304447 | P145: 0.05147864184
A146: 1 Bedroom Shared | B146: =VLOOKUP($A$2,'Table 7'!$A$47:$L$65,2,FALSE) -> 49 | C146: =VLOOKUP($A$2,'Table 8'!$A$47:$L$65,2,FALSE) -> 54 | D146: =VLOOKUP($A$2,'Table 9'!$A$47:$L$65,2,FALSE) -> 69 | E146: =VLOOKUP($A$2,'Table 10'!$A$47:$L$65,2,FALSE) -> 69 | F146: =VLOOKUP($A$2,'Table 11'!$A$47:$L$65,2,FALSE) -> 54 | G146: =VLOOKUP($A$2,'Table 12'!$A$47:$L$65,2,FALSE) -> 49 | H146: =VLOOKUP($A$2,'Table 13'!$A$47:$L$65,2,FALSE) -> 64 | I146: 1 Bedroom Shared | J146: =B146/SUM(B$142:B$146) -> 0.0592503023 | K146: 0.05222437137 | L146: 0.06359447005 | M146: 0.07823129252 | N146: 0.05619146722 | O146: 0.0558722919 | P146: 0.07009857612

Sheet BRMA Profile - Renfrewshire In (hidden)
A1: BRMA Rent Profile for:
A2: Renfrewshire / Inverclyde | I2: =ROUND(MIN(J6:P9,J28:P31,J50:P53,J72:P75,J94:P97)-0.01,2) -> -0.1 | J2: =ROUND(MAX(J6:P9,J28:P31,J50:P53,J72:P75,J94:P97)+0.01,2) -> 0.23
A4: 1 Bedroom Properties - Quartile Measures: | I4: 1 Bedroom Properties - Annual changes and 6-yr cumulative change:
B5: 2010 | C5: 2011 | D5: 2012 | E5: 2013 | F5: 2014 | G5: 2015 | H5: 2016 | J5: 2010 to 2011 | K5: 2011 to 2012 | L5: 2012 to 2013 | M5: 2013 to 2014 | N5: 2014 to 2015 | O5: 2015 to 2016 | P5: 2010 to 2016
A6: Lower Quartile | B6: =VLOOKUP($A$2,'Table 7'!$A$5:$L$23,3,FALSE) -> 350 | C6: =VLOOKUP($A$2,'Table 8'!$A$5:$L$23,3,FALSE) -> 350 | D6: =VLOOKUP($A$2,'Table 9'!$A$5:$L$23,3,FALSE) -> 330 | E6: =VLOOKUP($A$2,'Table 10'!$A$5:$L$23,3,FALSE) -> 350 | F6: =VLOOKUP($A$2,'Table 11'!$A$5:$L$23,3,FALSE) -> 350 | G6: =VLOOKUP($A$2,'Table 12'!$A$5:$L$23,3,FALSE) -> 330 | H6: =VLOOKUP($A$2,'Table 13'!$A$5:$L$23,3,FALSE) -> 350 | I6: Lower Quartile | J6: =C6/B6-1 -> 0 | K6: -0.05714285714 | L6: 0.06060606061 | M6: 0 | N6: -0.05714285714 | O6: =H6/G6-1 -> 0.06060606061 | P6: =H6/B6-1 -> 0
A7: Median | B7: =VLOOKUP($A$2,'Table 7'!$A$5:$L$23,4,FALSE) -> 375 | C7: =VLOOKUP($A$2,'Table 8'!$A$5:$L$23,4,FALSE) -> 372.5 | D7: =VLOOKUP($A$2,'Table 9'!$A$5:$L$23,4,FALSE) -> 365 | E7: =VLOOKUP($A$2,'Table 10'!$A$5:$L$23,4,FALSE) -> 375 | F7: =VLOOKUP($A$2,'Table 11'!$A$5:$L$23,4,FALSE) -> 375 | G7: =VLOOKUP($A$2,'Table 12'!$A$5:$L$23,4,FALSE) -> 350 | H7: =VLOOKUP($A$2,'Table 13'!$A$5:$L$23,4,FALSE) -> 375 | I7: Median | J7: -0.006666666667 | K7: -0.02013422819 | L7: 0.02739726027 | M7: 0 | N7: -0.06666666667 | O7: 0.07142857143 | P7: =H7/B7-1 -> 0
A8: Mean | B8: =VLOOKUP($A$2,'Table 7'!$A$5:$L$23,5,FALSE) -> 374.39 | C8: =VLOOKUP($A$2,'Table 8'!$A$5:$L$23,5,FALSE) -> 373.37 | D8: =VLOOKUP($A$2,'Table 9'!$A$5:$L$23,5,FALSE) -> 370.31 | E8: =VLOOKUP($A$2,'Table 10'!$A$5:$L$23,5,FALSE) -> 377.76 | F8: =VLOOKUP($A$2,'Table 11'!$A$5:$L$23,5,FALSE) -> 377.5 | G8: =VLOOKUP($A$2,'Table 12'!$A$5:$L$23,5,FALSE) -> 372.21 | H8: =VLOOKUP($A$2,'Table 13'!$A$5:$L$23,5,FALSE) -> 391.6 | I8: Mean | J8: -0.002724431742 | K8: -0.008195623644 | L8: 0.02011827928 | M8: -0.0006882676832 | N8: -0.01401324503 | O8: 0.05209424787 | P8: 0.04596810812
